{"text_format":"1","workbook":"xlsx","n_sheets":13,"sheets":["Instructions","Energy Data Entry","Process Data Entry","Flow-based Summary","Flow Efficiency","BOD-based Summary","BOD Efficiency","Nutrient Removal Summary","TP removal","TN removal","Calculation Notes","Background Calculations","Other Charts"],"not_rendered":{"charts":12,"images":4,"macros":1,"external_links":0,"defined_names":63,"comments":2,"pivot_tables":0},"unopened":[{"sheet":"Flow Efficiency","index":4,"reason":"not_a_worksheet"},{"sheet":"BOD Efficiency","index":6,"reason":"not_a_worksheet"},{"sheet":"TP removal","index":8,"reason":"not_a_worksheet"},{"sheet":"TN removal","index":9,"reason":"not_a_worksheet"}],"bounds":{"document_bytes":16777216,"sheet_cells":100000,"rows_first":2000,"rows_last":500,"rows_between":2000,"halvings":0,"cell_chars":16384,"cell_head_chars":4096},"cells_cut":0,"cells_raw":0,"read":"whole","date_system":"1900"}

{"sheet":"Instructions","index":0,"n_rows":40,"n_cols":2,"rows_kept":40,"cut":false,"hidden":false,"merged":[[17,1,30,7],[38,1,38,7],[39,1,40,7],[1,1,3,7],[10,1,10,4],[11,1,14,7],[5,1,7,7],[33,1,33,7],[36,1,36,7]]}
[]
[null,"Nutrient & Energy Assessment Tool - Wastewater Optimization\nVersion 3.0 beta (March 2019)  "]
[]
[]
[]
[null,"ABOUT THIS TOOL:\nThis tool is intended to help wastewater operators track changes in energy usage, treatment costs, and nutrient discharge resulting from efforts to optimize their facilities. It calculates savings and displays them on summary charts, and plots related data to help identify trends. This information can be used to evaluate optimization efforts and identify further opportunities. "]
[]
[]
[]
[]
[null,"Energy Data Entry"]
[null,"1) Enter some background information about the facility and the name and contact information for your energy providers\n\n2) Select a month from which to measure progress and enter it into the \"Beginning of Monitoring Period.\" This will adjust the \"month\" column across all sheets in the tool and determine how savings are calculated. For example, if optimization efforts began in late July 2017, it may be prudent to select August 2017 as the beginning of the monitoring period. Be mindful that if this date is adjusted after entering process or energy data, that data will no longer match the appropriate months and will need to be adjusted accordingly.\n\n3) Enter electric billing data for each electric meter you wish to track. Up to five meters can be tracked. For usability, electric meters 2-5 can be shown or hidden by clicking the appropriate buttons. Depending on your computer settings, it may be necessary to \"enable content\" to allow the buttons to function. If significant natural gas is used at the facility, consider entering gas usage data in Columns AD-AG. \n\n4) Not all electric bills will have all components listed on the data entry page. Usage (kWh) and total cost ($) are required for the tool to work properly. The other fields are optional but will activate additional features and can be useful in identifying further opportunities. It may be necessary to contact the electric power provider to obtain usage and demand information if it is not listed on the bill.\n\n5) It is common that electrical billing dates do not align with a calendar month. If this is the case, simply assign the bill to the month that makes the most sense and be consistent going forward. For example, if the billing dates are July 20th - August 19th, it is prudent to assign that bill to August. Any inaccuracies due to misalignment will ultimately average out since energy savings are calculated on an annual basis.\n\n6) For best results, once energy data is up to date, continue to the process data entry sheet and enter flow and BOD data for any months that have energy data."]
[]
[]
[]
[]
[null,"Process Data Entry"]
[null,"1) Enter the available process data for the appropriate months. It is best to ensure that any month with process data also has energy data, and vice versa. \n\n2) Flow and BOD data will be used with the information on the Energy Data Entry sheet to track energy efficiency (kWh/MG and kWh/lb BOD), cost efficiency ($/MG and $/lb BOD), and savings (kWh/year and $/year).\n\n3) Nitrogen and phosphorus data will be used to estimate nutrient removal provided sufficient data is available. \n\nFor phosphorus, the tool needs flow, influent and effluent TP concentrations to calculate removal. If any of those three parameters are missing for a given month, that month will not count towards the total.\n\nFor nitrogen, the tool needs influent TKN, effluent nitrate + nitrite, and either effluent TKN or effluent ammonia to work properly. Most facilities do not have significant influent nitrate or nitrite, but if that is the case, be sure to include it.\n\nIn order to estimate removal on an annual basis, the above data needs to be entered at least quarterly."]
[]
[]
[]
[]
[]
[]
[]
[]
[]
[]
[]
[]
[]
[]
[null,"Summary Tables and Charts"]
[null,"The remaining sheets display calculated savings and trends based on the data entered:\n\nFlow-based Summary: This table summarizes energy usage, energy costs, and flow treated for each year of the monitoring period. It also compares performance relative to the baseline data. Savings for each monitoring year are calculated by using the baseline kWh/MG (or $/MG) to estimate the energy (or cost) the plant would have required to treat the volume treated during that year, and comparing that value to the actual energy used. \n\nBOD-based Summary: This table functions similarly as the 'Flow-based Summary' but uses the quantity of BOD removed as the basis for comparison. Plants that have a significant amount of infiltration/inflow may find this a more reasonable basis of comparison.\n\nNutrient Removal Summary: This table summarizes nutrient removal performance based on data from the 'Process Data Entry' sheet. Influent, effluent and % removal values are calculated from all availalble values. Mass removal values are calculated using only months which meet the criteria described in the 'Process Data Entry' section above.\n\nTN and TP removal: These charts display annual trends in influent and effluent nutrients, and overall removal. Baseline data is shaded.\n\nFlow and BOD Efficiency: These charts display annual trends in kWh/MG and kWh/lb BOD. Baseline data is shaded.\n"]
[]
[null,"Troubleshooting"]
[null,"The Tool may display odd data, or it may unexpectedly display blanks. In these cases it may be helpful to check the following:\n\n1) If process data has been entered for a month, ensure corresponding energy data has been entered, and vice versa. If data is missing and unavailable, either enter a reasonable estimate or delete the rest of the data for that month.\n2) If the plant uses more than one electric meter, ensure that all meters have data entered for the appropriate months. \n3) Ensure that nutrient data meets the criteria described in the 'Process Data Entry' section above, and that any month with nutrient data has a corresponding average daily flow.\n4) If the issue is not resolved, try re-entering the data in a fresh copy of the tool, and a formula may have inadvertently been edited.\n5) If none of the above resolve the issue, please use the contact information below to ask for help."]
[]
[null,"The pages in this Tool are protected to minimize accidental changes in the formulas or charts. Each sheet can be unprotected under the \"Review\" tab. Additionally, some sheets have been hidden to improve usability. To unhide hidden sheets, right-click on any sheet title and select \"Unhide...\" Editing these sheets is discouraged as it could cause issues elsewhere in the Tool."]
[null,"Questions?\nPlease contact Brendan Held at (404) 562-8018 or held.brendan@epa.gov"]

{"sheet":"Energy Data Entry","index":1,"n_rows":108,"n_cols":33,"rows_kept":108,"cut":false,"hidden":false,"merged":[[0,1,2,7],[22,3,22,6],[10,1,10,2],[10,4,10,5],[11,1,11,2],[11,3,11,5],[12,1,12,2],[12,3,12,5],[22,29,22,32],[4,1,6,6],[7,2,7,6],[8,2,8,6],[22,8,22,11],[22,13,22,16],[22,18,22,21],[22,23,22,26],[14,1,17,6],[20,29,20,32],[21,3,21,6],[21,8,21,11],[21,13,21,16],[21,18,21,21],[21,23,21,26],[21,29,21,32]]}
[null,"R4  Energy Assessment Tool for Water & Wastewater Facilities - EPA Region 4\nYellow-shaded cells indicate data entry fields"]
[]
[]
[]
[null," ENTER PLANT NAME AND BRIEF DESCRIPTION OF PROCESSES: Design flow, Anoxic zones, Biosolids Processes, Activated Sludge Process, Fine/Coarse Bubble, etc."]
[]
[]
[null,"Name of Facility:"]
[null,"Major Unit Processes:"]
[]
[null,"Beginning of Monitoring Period\n(MM/YYYY)",null,"2019-08-01","Ideally 24 months of baseline data is available prior to this date. Progress is measured beginning with this month."]
[null,"ENERGY DATA PROVIDER:"]
[null,"PHONE/EMAIL:"]
[]
[null,"Electric Meters: \n\n1. Enter the Meter Number if shown and a Description: Whole Plant, Aeration, Pumping, Etc.\n2. Enter the Monthly Usage: (kWh) for each meter.\n3. Enter the Monthly Total Cost: The total charge for that meter, inclusive of demand charges, fees, taxes, etc.\n4. If available, enter the \"Actual\" and \"Billed\" Demand in kW under the appropriate columns. (Optional)\n5. If available, enter the Demand Charge as shown on the bill, under the \"Demand Cost\" column. (Optional)\n6. If you have additional meters, click the appropriate \"Show Meter\" button to input additional data. Click \"Hide Meter\" to hide. \n7. If there is significant natural gas use at the plant (e.g., for heating digesters or drying biosolids), use the gas meter table on the far right to enter the appropriate data."]
[]
[]
[]
[]
[]
[null,null,null,null,null,null,null,null,null,null,null,null,null,null,null,null,null,null,null,null,null,null,null,null,null,null,null,null,null,"GAS METER:  Enter Monthly Gas Usage as  ccf or Therms\n (1 ccf = 100 cu ft = 1 Therm)"]
[null,null,"METER 1 ",null,null,null,null,"METER 2 ",null,null,null,null,"METER 3 ",null,null,null,null,"METER 4 ",null,null,null,null,"METER 5 ",null,null,null,null,null,null," Enter Monthly Gas Usage as  ccf or Therms:\n (1 ccf = 100 cu ft = 1 Therm)"]
[null,null," Equipment on this Meter: ",null,null,null,null," Equipment on this Meter: ",null,null,null,null," Equipment on this Meter: ",null,null,null,null," Equipment on this Meter: ",null,null,null,null," Equipment on this Meter: ",null,null,null,null,null,null,"For Multiple Gas Meters - Sum and Enter Totals"]
[null,"MONTH\n(Auto-filled)\n","MONTHLY ELECTRIC USE (kWh)","TOTAL ELECTRIC BILL (incl. demand, taxes, etc.) ($)","Actual kW Demand (if available)","Billed kW Demand (if available)","DEMAND COST\n (If known, else leave blank)","MONTHLY kWh used #2","Total Electric Bill (incl. demand, taxes, etc.) ($) #2","Actual kW Demand #2 (if available)","Billed kW Demand #2 (if available) ","DEMAND COST #2\n(if known, else leave blank)","MONTHLY kWh used #3","Total Electric Bill (incl. demand, taxes, etc.) ($) #3","Actual kW Demand #3 (if available)","Billed kW Demand #3 (if available)","DEMAND COST #3\n(if known, else leave blank)","MONTHLY kWh used #4","Total Electric Bill (incl. demand, taxes, etc.) ($) #4","Actual kW Demand #4 (if available)","Billed kW Demand #4 (if available) ","DEMAND COST #4\n(if known, else leave blank)","MONTHLY kWh used #5","Total Electric Bill (incl. demand, taxes, etc.) ($) #5","Actual kW Demand #5 (if available)","Billed kW Demand #5 (if available) ","DEMAND COST #5\n(if known, else leave blank)",null,null,"MONTH","Gas usage (ccf or therms)","Total gas cost ($)","Gas energy usage in kWh"]
[null,{"$f":"DATE(YEAR(B26),MONTH(B26)-1,DAY(B26))","v":"2017-08-01"},null,null,null,null,null,null,null,null,null,null,null,null,null,null,null,null,null,null,null,null,null,null,null,null,null,null,null,{"$f":"Table3[[#This Row],[MONTH\n(Auto-filled)\n]]","v":"2017-08-01"},0,null,{"$f":"IF(Table5[[#This Row],[Gas usage (ccf or therms)]]=0,0,29.31*Table5[[#This Row],[Gas usage (ccf or therms)]])","v":0}]
[null,"2017-09-01",null,null,null,null,null,null,null,null,null,null,null,null,null,null,null,null,null,null,null,null,null,null,null,null,null,null,null,{"$f":"Table3[[#This Row],[MONTH\n(Auto-filled)\n]]","v":"2017-09-01"},0,null,{"$f":"IF(Table5[[#This Row],[Gas usage (ccf or therms)]]=0,0,29.31*Table5[[#This Row],[Gas usage (ccf or therms)]])","v":0}]
[null,"2017-10-01",null,null,null,null,null,null,null,null,null,null,null,null,null,null,null,null,null,null,null,null,null,null,null,null,null,null,null,{"$f":"Table3[[#This Row],[MONTH\n(Auto-filled)\n]]","v":"2017-10-01"},0,null,{"$f":"IF(Table5[[#This Row],[Gas usage (ccf or therms)]]=0,0,29.31*Table5[[#This Row],[Gas usage (ccf or therms)]])","v":0}]
[null,"2017-11-01",null,null,null,null,null,null,null,null,null,null,null,null,null,null,null,null,null,null,null,null,null,null,null,null,null,null,null,{"$f":"Table3[[#This Row],[MONTH\n(Auto-filled)\n]]","v":"2017-11-01"},0,null,{"$f":"IF(Table5[[#This Row],[Gas usage (ccf or therms)]]=0,0,29.31*Table5[[#This Row],[Gas usage (ccf or therms)]])","v":0}]
[null,"2017-12-01",null,null,null,null,null,null,null,null,null,null,null,null,null,null,null,null,null,null,null,null,null,null,null,null,null,null,null,{"$f":"Table3[[#This Row],[MONTH\n(Auto-filled)\n]]","v":"2017-12-01"},0,null,{"$f":"IF(Table5[[#This Row],[Gas usage (ccf or therms)]]=0,0,29.31*Table5[[#This Row],[Gas usage (ccf or therms)]])","v":0}]
[null,"2018-01-01",null,null,null,null,null,null,null,null,null,null,null,null,null,null,null,null,null,null,null,null,null,null,null,null,null,null,null,{"$f":"Table3[[#This Row],[MONTH\n(Auto-filled)\n]]","v":"2018-01-01"},0,null,{"$f":"IF(Table5[[#This Row],[Gas usage (ccf or therms)]]=0,0,29.31*Table5[[#This Row],[Gas usage (ccf or therms)]])","v":0}]
[null,"2018-02-01",null,null,null,null,null,null,null,null,null,null,null,null,null,null,null,null,null,null,null,null,null,null,null,null,null,null,null,{"$f":"Table3[[#This Row],[MONTH\n(Auto-filled)\n]]","v":"2018-02-01"},0,null,{"$f":"IF(Table5[[#This Row],[Gas usage (ccf or therms)]]=0,0,29.31*Table5[[#This Row],[Gas usage (ccf or therms)]])","v":0}]
[null,"2018-03-01",null,null,null,null,null,null,null,null,null,null,null,null,null,null,null,null,null,null,null,null,null,null,null,null,null,null,null,{"$f":"Table3[[#This Row],[MONTH\n(Auto-filled)\n]]","v":"2018-03-01"},0,null,{"$f":"IF(Table5[[#This Row],[Gas usage (ccf or therms)]]=0,0,29.31*Table5[[#This Row],[Gas usage (ccf or therms)]])","v":0}]
[null,"2018-04-01",null,null,null,null,null,null,null,null,null,null,null,null,null,null,null,null,null,null,null,null,null,null,null,null,null,null,null,{"$f":"Table3[[#This Row],[MONTH\n(Auto-filled)\n]]","v":"2018-04-01"},0,null,{"$f":"IF(Table5[[#This Row],[Gas usage (ccf or therms)]]=0,0,29.31*Table5[[#This Row],[Gas usage (ccf or therms)]])","v":0}]
[null,"2018-05-01",null,null,null,null,null,null,null,null,null,null,null,null,null,null,null,null,null,null,null,null,null,null,null,null,null,null,null,{"$f":"Table3[[#This Row],[MONTH\n(Auto-filled)\n]]","v":"2018-05-01"},0,null,{"$f":"IF(Table5[[#This Row],[Gas usage (ccf or therms)]]=0,0,29.31*Table5[[#This Row],[Gas usage (ccf or therms)]])","v":0}]
[null,"2018-06-01",null,null,null,null,null,null,null,null,null,null,null,null,null,null,null,null,null,null,null,null,null,null,null,null,null,null,null,{"$f":"Table3[[#This Row],[MONTH\n(Auto-filled)\n]]","v":"2018-06-01"},0,null,{"$f":"IF(Table5[[#This Row],[Gas usage (ccf or therms)]]=0,0,29.31*Table5[[#This Row],[Gas usage (ccf or therms)]])","v":0}]
[null,"2018-07-01",null,null,null,null,null,null,null,null,null,null,null,null,null,null,null,null,null,null,null,null,null,null,null,null,null,null,null,{"$f":"Table3[[#This Row],[MONTH\n(Auto-filled)\n]]","v":"2018-07-01"},0,null,{"$f":"IF(Table5[[#This Row],[Gas usage (ccf or therms)]]=0,0,29.31*Table5[[#This Row],[Gas usage (ccf or therms)]])","v":0}]
[null,{"$f":"DATE(YEAR(B38),MONTH(B38)-1,DAY(B38))","v":"2018-08-01"},null,null,null,null,null,null,null,null,null,null,null,null,null,null,null,null,null,null,null,null,null,null,null,null,null,null,null,{"$f":"Table3[[#This Row],[MONTH\n(Auto-filled)\n]]","v":"2018-08-01"},0,null,{"$f":"IF(Table5[[#This Row],[Gas usage (ccf or therms)]]=0,0,29.31*Table5[[#This Row],[Gas usage (ccf or therms)]])","v":0}]
[null,"2018-09-01",null,null,null,null,null,null,null,null,null,null,null,null,null,null,null,null,null,null,null,null,null,null,null,null,null,null,null,{"$f":"Table3[[#This Row],[MONTH\n(Auto-filled)\n]]","v":"2018-09-01"},0,null,{"$f":"IF(Table5[[#This Row],[Gas usage (ccf or therms)]]=0,0,29.31*Table5[[#This Row],[Gas usage (ccf or therms)]])","v":0}]
[null,"2018-10-01",null,null,null,null,null,null,null,null,null,null,null,null,null,null,null,null,null,null,null,null,null,null,null,null,null,null,null,{"$f":"Table3[[#This Row],[MONTH\n(Auto-filled)\n]]","v":"2018-10-01"},0,null,{"$f":"IF(Table5[[#This Row],[Gas usage (ccf or therms)]]=0,0,29.31*Table5[[#This Row],[Gas usage (ccf or therms)]])","v":0}]
[null,"2018-11-01",null,null,null,null,null,null,null,null,null,null,null,null,null,null,null,null,null,null,null,null,null,null,null,null,null,null,null,{"$f":"Table3[[#This Row],[MONTH\n(Auto-filled)\n]]","v":"2018-11-01"},0,null,{"$f":"IF(Table5[[#This Row],[Gas usage (ccf or therms)]]=0,0,29.31*Table5[[#This Row],[Gas usage (ccf or therms)]])","v":0}]
[null,"2018-12-01",null,null,null,null,null,null,null,null,null,null,null,null,null,null,null,null,null,null,null,null,null,null,null,null,null,null,null,{"$f":"Table3[[#This Row],[MONTH\n(Auto-filled)\n]]","v":"2018-12-01"},0,null,{"$f":"IF(Table5[[#This Row],[Gas usage (ccf or therms)]]=0,0,29.31*Table5[[#This Row],[Gas usage (ccf or therms)]])","v":0}]
[null,"2019-01-01",null,null,null,null,null,null,null,null,null,null,null,null,null,null,null,null,null,null,null,null,null,null,null,null,null,null,null,{"$f":"Table3[[#This Row],[MONTH\n(Auto-filled)\n]]","v":"2019-01-01"},0,null,{"$f":"IF(Table5[[#This Row],[Gas usage (ccf or therms)]]=0,0,29.31*Table5[[#This Row],[Gas usage (ccf or therms)]])","v":0}]
[null,"2019-02-01",null,null,null,null,null,null,null,null,null,null,null,null,null,null,null,null,null,null,null,null,null,null,null,null,null,null,null,{"$f":"Table3[[#This Row],[MONTH\n(Auto-filled)\n]]","v":"2019-02-01"},0,null,{"$f":"IF(Table5[[#This Row],[Gas usage (ccf or therms)]]=0,0,29.31*Table5[[#This Row],[Gas usage (ccf or therms)]])","v":0}]
[null,"2019-03-01",null,null,null,null,null,null,null,null,null,null,null,null,null,null,null,null,null,null,null,null,null,null,null,null,null,null,null,{"$f":"Table3[[#This Row],[MONTH\n(Auto-filled)\n]]","v":"2019-03-01"},0,null,{"$f":"IF(Table5[[#This Row],[Gas usage (ccf or therms)]]=0,0,29.31*Table5[[#This Row],[Gas usage (ccf or therms)]])","v":0}]
[null,"2019-04-01",null,null,null,null,null,null,null,null,null,null,null,null,null,null,null,null,null,null,null,null,null,null,null,null,null,null,null,{"$f":"Table3[[#This Row],[MONTH\n(Auto-filled)\n]]","v":"2019-04-01"},0,null,{"$f":"IF(Table5[[#This Row],[Gas usage (ccf or therms)]]=0,0,29.31*Table5[[#This Row],[Gas usage (ccf or therms)]])","v":0}]
[null,"2019-05-01",null,null,null,null,null,null,null,null,null,null,null,null,null,null,null,null,null,null,null,null,null,null,null,null,null,null,null,{"$f":"Table3[[#This Row],[MONTH\n(Auto-filled)\n]]","v":"2019-05-01"},0,null,{"$f":"IF(Table5[[#This Row],[Gas usage (ccf or therms)]]=0,0,29.31*Table5[[#This Row],[Gas usage (ccf or therms)]])","v":0}]
[null,"2019-06-01",null,null,null,null,null,null,null,null,null,null,null,null,null,null,null,null,null,null,null,null,null,null,null,null,null,null,null,{"$f":"Table3[[#This Row],[MONTH\n(Auto-filled)\n]]","v":"2019-06-01"},0,null,{"$f":"IF(Table5[[#This Row],[Gas usage (ccf or therms)]]=0,0,29.31*Table5[[#This Row],[Gas usage (ccf or therms)]])","v":0}]
[null,{"$f":"DATE(YEAR(D11),MONTH(D11)-1,DAY(D11))","v":"2019-07-01"},null,null,null,null,null,null,null,null,null,null,null,null,null,null,null,null,null,null,null,null,null,null,null,null,null,null,null,{"$f":"Table3[[#This Row],[MONTH\n(Auto-filled)\n]]","v":"2019-07-01"},0,null,{"$f":"IF(Table5[[#This Row],[Gas usage (ccf or therms)]]=0,0,29.31*Table5[[#This Row],[Gas usage (ccf or therms)]])","v":0}]
[null,{"$f":"EOMONTH(D11,-1)+1","v":"2019-08-01"},null,null,null,null,null,null,null,null,null,null,null,null,null,null,null,null,null,null,null,null,null,null,null,null,null,null,null,{"$f":"Table3[[#This Row],[MONTH\n(Auto-filled)\n]]","v":"2019-08-01"},0,null,{"$f":"IF(Table5[[#This Row],[Gas usage (ccf or therms)]]=0,0,29.31*Table5[[#This Row],[Gas usage (ccf or therms)]])","v":0}]
[null,{"$f":"DATE(YEAR(B49),MONTH(B49)+1,DAY(B49))","v":"2019-09-01"},null,null,null,null,null,null,null,null,null,null,null,null,null,null,null,null,null,null,null,null,null,null,null,null,null,null,null,{"$f":"Table3[[#This Row],[MONTH\n(Auto-filled)\n]]","v":"2019-09-01"},0,null,{"$f":"IF(Table5[[#This Row],[Gas usage (ccf or therms)]]=0,0,29.31*Table5[[#This Row],[Gas usage (ccf or therms)]])","v":0}]
[null,{"$f":"DATE(YEAR(B50),MONTH(B50)+1,DAY(B50))","v":"2019-10-01"},null,null,null,null,null,null,null,null,null,null,null,null,null,null,null,null,null,null,null,null,null,null,null,null,null,null,null,{"$f":"Table3[[#This Row],[MONTH\n(Auto-filled)\n]]","v":"2019-10-01"},0,null,{"$f":"IF(Table5[[#This Row],[Gas usage (ccf or therms)]]=0,0,29.31*Table5[[#This Row],[Gas usage (ccf or therms)]])","v":0}]
[null,"2019-11-01",null,null,null,null,null,null,null,null,null,null,null,null,null,null,null,null,null,null,null,null,null,null,null,null,null,null,null,{"$f":"Table3[[#This Row],[MONTH\n(Auto-filled)\n]]","v":"2019-11-01"},0,null,{"$f":"IF(Table5[[#This Row],[Gas usage (ccf or therms)]]=0,0,29.31*Table5[[#This Row],[Gas usage (ccf or therms)]])","v":0}]
[null,"2019-12-01",null,null,null,null,null,null,null,null,null,null,null,null,null,null,null,null,null,null,null,null,null,null,null,null,null,null,null,{"$f":"Table3[[#This Row],[MONTH\n(Auto-filled)\n]]","v":"2019-12-01"},0,null,{"$f":"IF(Table5[[#This Row],[Gas usage (ccf or therms)]]=0,0,29.31*Table5[[#This Row],[Gas usage (ccf or therms)]])","v":0}]
[null,"2020-01-01",null,null,null,null,null,null,null,null,null,null,null,null,null,null,null,null,null,null,null,null,null,null,null,null,null,null,null,{"$f":"Table3[[#This Row],[MONTH\n(Auto-filled)\n]]","v":"2020-01-01"},0,null,{"$f":"IF(Table5[[#This Row],[Gas usage (ccf or therms)]]=0,0,29.31*Table5[[#This Row],[Gas usage (ccf or therms)]])","v":0}]
[null,"2020-02-01",null,null,null,null,null,null,null,null,null,null,null,null,null,null,null,null,null,null,null,null,null,null,null,null,null,null,null,{"$f":"Table3[[#This Row],[MONTH\n(Auto-filled)\n]]","v":"2020-02-01"},0,null,{"$f":"IF(Table5[[#This Row],[Gas usage (ccf or therms)]]=0,0,29.31*Table5[[#This Row],[Gas usage (ccf or therms)]])","v":0}]
[null,"2020-03-01",null,null,null,null,null,null,null,null,null,null,null,null,null,null,null,null,null,null,null,null,null,null,null,null,null,null,null,{"$f":"Table3[[#This Row],[MONTH\n(Auto-filled)\n]]","v":"2020-03-01"},0,null,{"$f":"IF(Table5[[#This Row],[Gas usage (ccf or therms)]]=0,0,29.31*Table5[[#This Row],[Gas usage (ccf or therms)]])","v":0}]
[null,"2020-04-01",null,null,null,null,null,null,null,null,null,null,null,null,null,null,null,null,null,null,null,null,null,null,null,null,null,null,null,{"$f":"Table3[[#This Row],[MONTH\n(Auto-filled)\n]]","v":"2020-04-01"},0,null,{"$f":"IF(Table5[[#This Row],[Gas usage (ccf or therms)]]=0,0,29.31*Table5[[#This Row],[Gas usage (ccf or therms)]])","v":0}]
[null,"2020-05-01",null,null,null,null,null,null,null,null,null,null,null,null,null,null,null,null,null,null,null,null,null,null,null,null,null,null,null,{"$f":"Table3[[#This Row],[MONTH\n(Auto-filled)\n]]","v":"2020-05-01"},0,null,{"$f":"IF(Table5[[#This Row],[Gas usage (ccf or therms)]]=0,0,29.31*Table5[[#This Row],[Gas usage (ccf or therms)]])","v":0}]
[null,"2020-06-01",null,null,null,null,null,null,null,null,null,null,null,null,null,null,null,null,null,null,null,null,null,null,null,null,null,null,null,{"$f":"Table3[[#This Row],[MONTH\n(Auto-filled)\n]]","v":"2020-06-01"},0,null,{"$f":"IF(Table5[[#This Row],[Gas usage (ccf or therms)]]=0,0,29.31*Table5[[#This Row],[Gas usage (ccf or therms)]])","v":0}]
[null,"2020-07-01",null,null,null,null,null,null,null,null,null,null,null,null,null,null,null,null,null,null,null,null,null,null,null,null,null,null,null,{"$f":"Table3[[#This Row],[MONTH\n(Auto-filled)\n]]","v":"2020-07-01"},0,null,{"$f":"IF(Table5[[#This Row],[Gas usage (ccf or therms)]]=0,0,29.31*Table5[[#This Row],[Gas usage (ccf or therms)]])","v":0}]
[null,"2020-08-01",null,null,null,null,null,null,null,null,null,null,null,null,null,null,null,null,null,null,null,null,null,null,null,null,null,null,null,{"$f":"Table3[[#This Row],[MONTH\n(Auto-filled)\n]]","v":"2020-08-01"},0,null,{"$f":"IF(Table5[[#This Row],[Gas usage (ccf or therms)]]=0,0,29.31*Table5[[#This Row],[Gas usage (ccf or therms)]])","v":0}]
[null,"2020-09-01",null,null,null,null,null,null,null,null,null,null,null,null,null,null,null,null,null,null,null,null,null,null,null,null,null,null,null,{"$f":"Table3[[#This Row],[MONTH\n(Auto-filled)\n]]","v":"2020-09-01"},0,null,{"$f":"IF(Table5[[#This Row],[Gas usage (ccf or therms)]]=0,0,29.31*Table5[[#This Row],[Gas usage (ccf or therms)]])","v":0}]
[null,"2020-10-01",null,null,null,null,null,null,null,null,null,null,null,null,null,null,null,null,null,null,null,null,null,null,null,null,null,null,null,{"$f":"Table3[[#This Row],[MONTH\n(Auto-filled)\n]]","v":"2020-10-01"},0,null,{"$f":"IF(Table5[[#This Row],[Gas usage (ccf or therms)]]=0,0,29.31*Table5[[#This Row],[Gas usage (ccf or therms)]])","v":0}]
[null,"2020-11-01",null,null,null,null,null,null,null,null,null,null,null,null,null,null,null,null,null,null,null,null,null,null,null,null,null,null,null,{"$f":"Table3[[#This Row],[MONTH\n(Auto-filled)\n]]","v":"2020-11-01"},0,null,{"$f":"IF(Table5[[#This Row],[Gas usage (ccf or therms)]]=0,0,29.31*Table5[[#This Row],[Gas usage (ccf or therms)]])","v":0}]
[null,"2020-12-01",null,null,null,null,null,null,null,null,null,null,null,null,null,null,null,null,null,null,null,null,null,null,null,null,null,null,null,{"$f":"Table3[[#This Row],[MONTH\n(Auto-filled)\n]]","v":"2020-12-01"},0,null,{"$f":"IF(Table5[[#This Row],[Gas usage (ccf or therms)]]=0,0,29.31*Table5[[#This Row],[Gas usage (ccf or therms)]])","v":0}]
[null,"2021-01-01",null,null,null,null,null,null,null,null,null,null,null,null,null,null,null,null,null,null,null,null,null,null,null,null,null,null,null,{"$f":"Table3[[#This Row],[MONTH\n(Auto-filled)\n]]","v":"2021-01-01"},0,null,{"$f":"IF(Table5[[#This Row],[Gas usage (ccf or therms)]]=0,0,29.31*Table5[[#This Row],[Gas usage (ccf or therms)]])","v":0}]
[null,"2021-02-01",null,null,null,null,null,null,null,null,null,null,null,null,null,null,null,null,null,null,null,null,null,null,null,null,null,null,null,{"$f":"Table3[[#This Row],[MONTH\n(Auto-filled)\n]]","v":"2021-02-01"},0,null,{"$f":"IF(Table5[[#This Row],[Gas usage (ccf or therms)]]=0,0,29.31*Table5[[#This Row],[Gas usage (ccf or therms)]])","v":0}]
[null,"2021-03-01",null,null,null,null,null,null,null,null,null,null,null,null,null,null,null,null,null,null,null,null,null,null,null,null,null,null,null,{"$f":"Table3[[#This Row],[MONTH\n(Auto-filled)\n]]","v":"2021-03-01"},0,null,{"$f":"IF(Table5[[#This Row],[Gas usage (ccf or therms)]]=0,0,29.31*Table5[[#This Row],[Gas usage (ccf or therms)]])","v":0}]
[null,"2021-04-01",null,null,null,null,null,null,null,null,null,null,null,null,null,null,null,null,null,null,null,null,null,null,null,null,null,null,null,{"$f":"Table3[[#This Row],[MONTH\n(Auto-filled)\n]]","v":"2021-04-01"},0,null,{"$f":"IF(Table5[[#This Row],[Gas usage (ccf or therms)]]=0,0,29.31*Table5[[#This Row],[Gas usage (ccf or therms)]])","v":0}]
[null,"2021-05-01",null,null,null,null,null,null,null,null,null,null,null,null,null,null,null,null,null,null,null,null,null,null,null,null,null,null,null,{"$f":"Table3[[#This Row],[MONTH\n(Auto-filled)\n]]","v":"2021-05-01"},0,null,{"$f":"IF(Table5[[#This Row],[Gas usage (ccf or therms)]]=0,0,29.31*Table5[[#This Row],[Gas usage (ccf or therms)]])","v":0}]
[null,"2021-06-01",null,null,null,null,null,null,null,null,null,null,null,null,null,null,null,null,null,null,null,null,null,null,null,null,null,null,null,{"$f":"Table3[[#This Row],[MONTH\n(Auto-filled)\n]]","v":"2021-06-01"},0,null,{"$f":"IF(Table5[[#This Row],[Gas usage (ccf or therms)]]=0,0,29.31*Table5[[#This Row],[Gas usage (ccf or therms)]])","v":0}]
[null,"2021-07-01",null,null,null,null,null,null,null,null,null,null,null,null,null,null,null,null,null,null,null,null,null,null,null,null,null,null,null,{"$f":"Table3[[#This Row],[MONTH\n(Auto-filled)\n]]","v":"2021-07-01"},0,null,{"$f":"IF(Table5[[#This Row],[Gas usage (ccf or therms)]]=0,0,29.31*Table5[[#This Row],[Gas usage (ccf or therms)]])","v":0}]
[null,"2021-08-01",null,null,null,null,null,null,null,null,null,null,null,null,null,null,null,null,null,null,null,null,null,null,null,null,null,null,null,{"$f":"Table3[[#This Row],[MONTH\n(Auto-filled)\n]]","v":"2021-08-01"},0,null,{"$f":"IF(Table5[[#This Row],[Gas usage (ccf or therms)]]=0,0,29.31*Table5[[#This Row],[Gas usage (ccf or therms)]])","v":0}]
[null,"2021-09-01",null,null,null,null,null,null,null,null,null,null,null,null,null,null,null,null,null,null,null,null,null,null,null,null,null,null,null,{"$f":"Table3[[#This Row],[MONTH\n(Auto-filled)\n]]","v":"2021-09-01"},0,null,{"$f":"IF(Table5[[#This Row],[Gas usage (ccf or therms)]]=0,0,29.31*Table5[[#This Row],[Gas usage (ccf or therms)]])","v":0}]
[null,"2021-10-01",null,null,null,null,null,null,null,null,null,null,null,null,null,null,null,null,null,null,null,null,null,null,null,null,null,null,null,{"$f":"Table3[[#This Row],[MONTH\n(Auto-filled)\n]]","v":"2021-10-01"},0,null,{"$f":"IF(Table5[[#This Row],[Gas usage (ccf or therms)]]=0,0,29.31*Table5[[#This Row],[Gas usage (ccf or therms)]])","v":0}]
[null,"2021-11-01",null,null,null,null,null,null,null,null,null,null,null,null,null,null,null,null,null,null,null,null,null,null,null,null,null,null,null,{"$f":"Table3[[#This Row],[MONTH\n(Auto-filled)\n]]","v":"2021-11-01"},0,null,{"$f":"IF(Table5[[#This Row],[Gas usage (ccf or therms)]]=0,0,29.31*Table5[[#This Row],[Gas usage (ccf or therms)]])","v":0}]
[null,"2021-12-01",null,null,null,null,null,null,null,null,null,null,null,null,null,null,null,null,null,null,null,null,null,null,null,null,null,null,null,{"$f":"Table3[[#This Row],[MONTH\n(Auto-filled)\n]]","v":"2021-12-01"},0,null,{"$f":"IF(Table5[[#This Row],[Gas usage (ccf or therms)]]=0,0,29.31*Table5[[#This Row],[Gas usage (ccf or therms)]])","v":0}]
[null,"2022-01-01",null,null,null,null,null,null,null,null,null,null,null,null,null,null,null,null,null,null,null,null,null,null,null,null,null,null,null,{"$f":"Table3[[#This Row],[MONTH\n(Auto-filled)\n]]","v":"2022-01-01"},0,null,{"$f":"IF(Table5[[#This Row],[Gas usage (ccf or therms)]]=0,0,29.31*Table5[[#This Row],[Gas usage (ccf or therms)]])","v":0}]
[null,"2022-02-01",null,null,null,null,null,null,null,null,null,null,null,null,null,null,null,null,null,null,null,null,null,null,null,null,null,null,null,{"$f":"Table3[[#This Row],[MONTH\n(Auto-filled)\n]]","v":"2022-02-01"},0,null,{"$f":"IF(Table5[[#This Row],[Gas usage (ccf or therms)]]=0,0,29.31*Table5[[#This Row],[Gas usage (ccf or therms)]])","v":0}]
[null,"2022-03-01",null,null,null,null,null,null,null,null,null,null,null,null,null,null,null,null,null,null,null,null,null,null,null,null,null,null,null,{"$f":"Table3[[#This Row],[MONTH\n(Auto-filled)\n]]","v":"2022-03-01"},0,null,{"$f":"IF(Table5[[#This Row],[Gas usage (ccf or therms)]]=0,0,29.31*Table5[[#This Row],[Gas usage (ccf or therms)]])","v":0}]
[null,"2022-04-01",null,null,null,null,null,null,null,null,null,null,null,null,null,null,null,null,null,null,null,null,null,null,null,null,null,null,null,{"$f":"Table3[[#This Row],[MONTH\n(Auto-filled)\n]]","v":"2022-04-01"},0,null,{"$f":"IF(Table5[[#This Row],[Gas usage (ccf or therms)]]=0,0,29.31*Table5[[#This Row],[Gas usage (ccf or therms)]])","v":0}]
[null,"2022-05-01",null,null,null,null,null,null,null,null,null,null,null,null,null,null,null,null,null,null,null,null,null,null,null,null,null,null,null,{"$f":"Table3[[#This Row],[MONTH\n(Auto-filled)\n]]","v":"2022-05-01"},0,null,{"$f":"IF(Table5[[#This Row],[Gas usage (ccf or therms)]]=0,0,29.31*Table5[[#This Row],[Gas usage (ccf or therms)]])","v":0}]
[null,"2022-06-01",null,null,null,null,null,null,null,null,null,null,null,null,null,null,null,null,null,null,null,null,null,null,null,null,null,null,null,{"$f":"Table3[[#This Row],[MONTH\n(Auto-filled)\n]]","v":"2022-06-01"},0,null,{"$f":"IF(Table5[[#This Row],[Gas usage (ccf or therms)]]=0,0,29.31*Table5[[#This Row],[Gas usage (ccf or therms)]])","v":0}]
[null,"2022-07-01",null,null,null,null,null,null,null,null,null,null,null,null,null,null,null,null,null,null,null,null,null,null,null,null,null,null,null,{"$f":"Table3[[#This Row],[MONTH\n(Auto-filled)\n]]","v":"2022-07-01"},0,null,{"$f":"IF(Table5[[#This Row],[Gas usage (ccf or therms)]]=0,0,29.31*Table5[[#This Row],[Gas usage (ccf or therms)]])","v":0}]
[null,"2022-08-01",null,null,null,null,null,null,null,null,null,null,null,null,null,null,null,null,null,null,null,null,null,null,null,null,null,null,null,{"$f":"Table3[[#This Row],[MONTH\n(Auto-filled)\n]]","v":"2022-08-01"},0,null,{"$f":"IF(Table5[[#This Row],[Gas usage (ccf or therms)]]=0,0,29.31*Table5[[#This Row],[Gas usage (ccf or therms)]])","v":0}]
[null,"2022-09-01",null,null,null,null,null,null,null,null,null,null,null,null,null,null,null,null,null,null,null,null,null,null,null,null,null,null,null,{"$f":"Table3[[#This Row],[MONTH\n(Auto-filled)\n]]","v":"2022-09-01"},0,null,{"$f":"IF(Table5[[#This Row],[Gas usage (ccf or therms)]]=0,0,29.31*Table5[[#This Row],[Gas usage (ccf or therms)]])","v":0}]
[null,"2022-10-01",null,null,null,null,null,null,null,null,null,null,null,null,null,null,null,null,null,null,null,null,null,null,null,null,null,null,null,{"$f":"Table3[[#This Row],[MONTH\n(Auto-filled)\n]]","v":"2022-10-01"},0,null,{"$f":"IF(Table5[[#This Row],[Gas usage (ccf or therms)]]=0,0,29.31*Table5[[#This Row],[Gas usage (ccf or therms)]])","v":0}]
[null,"2022-11-01",null,null,null,null,null,null,null,null,null,null,null,null,null,null,null,null,null,null,null,null,null,null,null,null,null,null,null,{"$f":"Table3[[#This Row],[MONTH\n(Auto-filled)\n]]","v":"2022-11-01"},0,null,{"$f":"IF(Table5[[#This Row],[Gas usage (ccf or therms)]]=0,0,29.31*Table5[[#This Row],[Gas usage (ccf or therms)]])","v":0}]
[null,"2022-12-01",null,null,null,null,null,null,null,null,null,null,null,null,null,null,null,null,null,null,null,null,null,null,null,null,null,null,null,{"$f":"Table3[[#This Row],[MONTH\n(Auto-filled)\n]]","v":"2022-12-01"},0,null,{"$f":"IF(Table5[[#This Row],[Gas usage (ccf or therms)]]=0,0,29.31*Table5[[#This Row],[Gas usage (ccf or therms)]])","v":0}]
[null,"2023-01-01",null,null,null,null,null,null,null,null,null,null,null,null,null,null,null,null,null,null,null,null,null,null,null,null,null,null,null,{"$f":"Table3[[#This Row],[MONTH\n(Auto-filled)\n]]","v":"2023-01-01"},0,null,{"$f":"IF(Table5[[#This Row],[Gas usage (ccf or therms)]]=0,0,29.31*Table5[[#This Row],[Gas usage (ccf or therms)]])","v":0}]
[null,"2023-02-01",null,null,null,null,null,null,null,null,null,null,null,null,null,null,null,null,null,null,null,null,null,null,null,null,null,null,null,{"$f":"Table3[[#This Row],[MONTH\n(Auto-filled)\n]]","v":"2023-02-01"},0,null,{"$f":"IF(Table5[[#This Row],[Gas usage (ccf or therms)]]=0,0,29.31*Table5[[#This Row],[Gas usage (ccf or therms)]])","v":0}]
[null,"2023-03-01",null,null,null,null,null,null,null,null,null,null,null,null,null,null,null,null,null,null,null,null,null,null,null,null,null,null,null,{"$f":"Table3[[#This Row],[MONTH\n(Auto-filled)\n]]","v":"2023-03-01"},0,null,{"$f":"IF(Table5[[#This Row],[Gas usage (ccf or therms)]]=0,0,29.31*Table5[[#This Row],[Gas usage (ccf or therms)]])","v":0}]
[null,"2023-04-01",null,null,null,null,null,null,null,null,null,null,null,null,null,null,null,null,null,null,null,null,null,null,null,null,null,null,null,{"$f":"Table3[[#This Row],[MONTH\n(Auto-filled)\n]]","v":"2023-04-01"},0,null,{"$f":"IF(Table5[[#This Row],[Gas usage (ccf or therms)]]=0,0,29.31*Table5[[#This Row],[Gas usage (ccf or therms)]])","v":0}]
[null,"2023-05-01",null,null,null,null,null,null,null,null,null,null,null,null,null,null,null,null,null,null,null,null,null,null,null,null,null,null,null,{"$f":"Table3[[#This Row],[MONTH\n(Auto-filled)\n]]","v":"2023-05-01"},0,null,{"$f":"IF(Table5[[#This Row],[Gas usage (ccf or therms)]]=0,0,29.31*Table5[[#This Row],[Gas usage (ccf or therms)]])","v":0}]
[null,"2023-06-01",null,null,null,null,null,null,null,null,null,null,null,null,null,null,null,null,null,null,null,null,null,null,null,null,null,null,null,{"$f":"Table3[[#This Row],[MONTH\n(Auto-filled)\n]]","v":"2023-06-01"},0,null,{"$f":"IF(Table5[[#This Row],[Gas usage (ccf or therms)]]=0,0,29.31*Table5[[#This Row],[Gas usage (ccf or therms)]])","v":0}]
[null,"2023-07-01",null,null,null,null,null,null,null,null,null,null,null,null,null,null,null,null,null,null,null,null,null,null,null,null,null,null,null,{"$f":"Table3[[#This Row],[MONTH\n(Auto-filled)\n]]","v":"2023-07-01"},0,null,{"$f":"IF(Table5[[#This Row],[Gas usage (ccf or therms)]]=0,0,29.31*Table5[[#This Row],[Gas usage (ccf or therms)]])","v":0}]
[null,"2023-08-01",null,null,null,null,null,null,null,null,null,null,null,null,null,null,null,null,null,null,null,null,null,null,null,null,null,null,null,{"$f":"Table3[[#This Row],[MONTH\n(Auto-filled)\n]]","v":"2023-08-01"},0,null,{"$f":"IF(Table5[[#This Row],[Gas usage (ccf or therms)]]=0,0,29.31*Table5[[#This Row],[Gas usage (ccf or therms)]])","v":0}]
[null,"2023-09-01",null,null,null,null,null,null,null,null,null,null,null,null,null,null,null,null,null,null,null,null,null,null,null,null,null,null,null,{"$f":"Table3[[#This Row],[MONTH\n(Auto-filled)\n]]","v":"2023-09-01"},0,null,{"$f":"IF(Table5[[#This Row],[Gas usage (ccf or therms)]]=0,0,29.31*Table5[[#This Row],[Gas usage (ccf or therms)]])","v":0}]
[null,"2023-10-01",null,null,null,null,null,null,null,null,null,null,null,null,null,null,null,null,null,null,null,null,null,null,null,null,null,null,null,{"$f":"Table3[[#This Row],[MONTH\n(Auto-filled)\n]]","v":"2023-10-01"},0,null,{"$f":"IF(Table5[[#This Row],[Gas usage (ccf or therms)]]=0,0,29.31*Table5[[#This Row],[Gas usage (ccf or therms)]])","v":0}]
[null,"2023-11-01",null,null,null,null,null,null,null,null,null,null,null,null,null,null,null,null,null,null,null,null,null,null,null,null,null,null,null,{"$f":"Table3[[#This Row],[MONTH\n(Auto-filled)\n]]","v":"2023-11-01"},0,null,{"$f":"IF(Table5[[#This Row],[Gas usage (ccf or therms)]]=0,0,29.31*Table5[[#This Row],[Gas usage (ccf or therms)]])","v":0}]
[null,"2023-12-01",null,null,null,null,null,null,null,null,null,null,null,null,null,null,null,null,null,null,null,null,null,null,null,null,null,null,null,{"$f":"Table3[[#This Row],[MONTH\n(Auto-filled)\n]]","v":"2023-12-01"},0,null,{"$f":"IF(Table5[[#This Row],[Gas usage (ccf or therms)]]=0,0,29.31*Table5[[#This Row],[Gas usage (ccf or therms)]])","v":0}]
[null,"2024-01-01",null,null,null,null,null,null,null,null,null,null,null,null,null,null,null,null,null,null,null,null,null,null,null,null,null,null,null,{"$f":"Table3[[#This Row],[MONTH\n(Auto-filled)\n]]","v":"2024-01-01"},0,null,{"$f":"IF(Table5[[#This Row],[Gas usage (ccf or therms)]]=0,0,29.31*Table5[[#This Row],[Gas usage (ccf or therms)]])","v":0}]
[null,"2024-02-01",null,null,null,null,null,null,null,null,null,null,null,null,null,null,null,null,null,null,null,null,null,null,null,null,null,null,null,{"$f":"Table3[[#This Row],[MONTH\n(Auto-filled)\n]]","v":"2024-02-01"},0,null,{"$f":"IF(Table5[[#This Row],[Gas usage (ccf or therms)]]=0,0,29.31*Table5[[#This Row],[Gas usage (ccf or therms)]])","v":0}]
[null,"2024-03-01",null,null,null,null,null,null,null,null,null,null,null,null,null,null,null,null,null,null,null,null,null,null,null,null,null,null,null,{"$f":"Table3[[#This Row],[MONTH\n(Auto-filled)\n]]","v":"2024-03-01"},0,null,{"$f":"IF(Table5[[#This Row],[Gas usage (ccf or therms)]]=0,0,29.31*Table5[[#This Row],[Gas usage (ccf or therms)]])","v":0}]
[null,"2024-04-01",null,null,null,null,null,null,null,null,null,null,null,null,null,null,null,null,null,null,null,null,null,null,null,null,null,null,null,{"$f":"Table3[[#This Row],[MONTH\n(Auto-filled)\n]]","v":"2024-04-01"},0,null,{"$f":"IF(Table5[[#This Row],[Gas usage (ccf or therms)]]=0,0,29.31*Table5[[#This Row],[Gas usage (ccf or therms)]])","v":0}]
[null,"2024-05-01",null,null,null,null,null,null,null,null,null,null,null,null,null,null,null,null,null,null,null,null,null,null,null,null,null,null,null,{"$f":"Table3[[#This Row],[MONTH\n(Auto-filled)\n]]","v":"2024-05-01"},0,null,{"$f":"IF(Table5[[#This Row],[Gas usage (ccf or therms)]]=0,0,29.31*Table5[[#This Row],[Gas usage (ccf or therms)]])","v":0}]
[null,"2024-06-01",null,null,null,null,null,null,null,null,null,null,null,null,null,null,null,null,null,null,null,null,null,null,null,null,null,null,null,{"$f":"Table3[[#This Row],[MONTH\n(Auto-filled)\n]]","v":"2024-06-01"},0,null,{"$f":"IF(Table5[[#This Row],[Gas usage (ccf or therms)]]=0,0,29.31*Table5[[#This Row],[Gas usage (ccf or therms)]])","v":0}]
[null,"2024-07-01",null,null,null,null,null,null,null,null,null,null,null,null,null,null,null,null,null,null,null,null,null,null,null,null,null,null,null,{"$f":"Table3[[#This Row],[MONTH\n(Auto-filled)\n]]","v":"2024-07-01"},0,null,{"$f":"IF(Table5[[#This Row],[Gas usage (ccf or therms)]]=0,0,29.31*Table5[[#This Row],[Gas usage (ccf or therms)]])","v":0}]

{"sheet":"Process Data Entry","index":2,"n_rows":89,"n_cols":14,"rows_kept":89,"cut":false,"hidden":false,"merged":[]}
[]
[]
[]
[]
[null,"MONTH\n(Auto-filled)\n","Avg Daily Flow\n(MGD)","Avg Influent CBOD \n(mg/L)","Avg Effluent CBOD \n(mg/L)","CBOD removal (lbs/d)","Avg influent TKN (mg/L)","Avg influent NH3 (mg/L)","Avg influent NOx (mg/L)","Avg effluent TKN (mg/L)","Avg effluent NH3  (mg/L)","Avg effluent NOx (mg/L)","Avg influent TP (mg/L)","Avg effluent TP (mg/L)"]
[null,{"$f":"'Energy Data Entry'!B25","v":"2017-08-01"},null,null,null,{"$f":"IF(C6*(D6-E6)*8.34=0,\"\",C6*(D6-E6)*8.34)","v":""}]
[null,{"$f":"'Energy Data Entry'!B26","v":"2017-09-01"},null,null,null,{"$f":"IF(C7*(D7-E7)*8.34=0,\"\",C7*(D7-E7)*8.34)","v":""}]
[null,{"$f":"'Energy Data Entry'!B27","v":"2017-10-01"},null,null,null,""]
[null,{"$f":"'Energy Data Entry'!B28","v":"2017-11-01"},null,null,null,""]
[null,{"$f":"'Energy Data Entry'!B29","v":"2017-12-01"},null,null,null,""]
[null,{"$f":"'Energy Data Entry'!B30","v":"2018-01-01"},null,null,null,""]
[null,{"$f":"'Energy Data Entry'!B31","v":"2018-02-01"},null,null,null,""]
[null,{"$f":"'Energy Data Entry'!B32","v":"2018-03-01"},null,null,null,""]
[null,{"$f":"'Energy Data Entry'!B33","v":"2018-04-01"},null,null,null,""]
[null,{"$f":"'Energy Data Entry'!B34","v":"2018-05-01"},null,null,null,""]
[null,{"$f":"'Energy Data Entry'!B35","v":"2018-06-01"},null,null,null,""]
[null,{"$f":"'Energy Data Entry'!B36","v":"2018-07-01"},null,null,null,""]
[null,{"$f":"'Energy Data Entry'!B37","v":"2018-08-01"},null,null,null,{"$f":"IF(C18*(D18-E18)*8.34=0,\"\",C18*(D18-E18)*8.34)","v":""}]
[null,{"$f":"'Energy Data Entry'!B38","v":"2018-09-01"},null,null,null,{"$f":"IF(C19*(D19-E19)*8.34=0,\"\",C19*(D19-E19)*8.34)","v":""}]
[null,{"$f":"'Energy Data Entry'!B39","v":"2018-10-01"},null,null,null,""]
[null,{"$f":"'Energy Data Entry'!B40","v":"2018-11-01"},null,null,null,""]
[null,{"$f":"'Energy Data Entry'!B41","v":"2018-12-01"},null,null,null,""]
[null,{"$f":"'Energy Data Entry'!B42","v":"2019-01-01"},null,null,null,""]
[null,{"$f":"'Energy Data Entry'!B43","v":"2019-02-01"},null,null,null,""]
[null,{"$f":"'Energy Data Entry'!B44","v":"2019-03-01"},null,null,null,""]
[null,{"$f":"'Energy Data Entry'!B45","v":"2019-04-01"},null,null,null,""]
[null,{"$f":"'Energy Data Entry'!B46","v":"2019-05-01"},null,null,null,""]
[null,{"$f":"'Energy Data Entry'!B47","v":"2019-06-01"},null,null,null,""]
[null,{"$f":"'Energy Data Entry'!B48","v":"2019-07-01"},null,null,null,""]
[null,{"$f":"'Energy Data Entry'!B49","v":"2019-08-01"},null,null,null,""]
[null,{"$f":"'Energy Data Entry'!B50","v":"2019-09-01"},null,null,null,""]
[null,{"$f":"'Energy Data Entry'!B51","v":"2019-10-01"},null,null,null,""]
[null,{"$f":"'Energy Data Entry'!B52","v":"2019-11-01"},null,null,null,""]
[null,{"$f":"'Energy Data Entry'!B53","v":"2019-12-01"},null,null,null,""]
[null,{"$f":"'Energy Data Entry'!B54","v":"2020-01-01"},null,null,null,""]
[null,{"$f":"'Energy Data Entry'!B55","v":"2020-02-01"},null,null,null,""]
[null,{"$f":"'Energy Data Entry'!B56","v":"2020-03-01"},null,null,null,""]
[null,{"$f":"'Energy Data Entry'!B57","v":"2020-04-01"},null,null,null,""]
[null,{"$f":"'Energy Data Entry'!B58","v":"2020-05-01"},null,null,null,""]
[null,{"$f":"'Energy Data Entry'!B59","v":"2020-06-01"},null,null,null,""]
[null,{"$f":"'Energy Data Entry'!B60","v":"2020-07-01"},null,null,null,{"$f":"IF(C41*(D41-E41)*8.34=0,\"\",C41*(D41-E41)*8.34)","v":""}]
[null,{"$f":"'Energy Data Entry'!B61","v":"2020-08-01"},null,null,null,""]
[null,{"$f":"'Energy Data Entry'!B62","v":"2020-09-01"},null,null,null,""]
[null,{"$f":"'Energy Data Entry'!B63","v":"2020-10-01"},null,null,null,""]
[null,{"$f":"'Energy Data Entry'!B64","v":"2020-11-01"},null,null,null,""]
[null,{"$f":"'Energy Data Entry'!B65","v":"2020-12-01"},null,null,null,""]
[null,{"$f":"'Energy Data Entry'!B66","v":"2021-01-01"},null,null,null,""]
[null,{"$f":"'Energy Data Entry'!B67","v":"2021-02-01"},null,null,null,""]
[null,{"$f":"'Energy Data Entry'!B68","v":"2021-03-01"},null,null,null,""]
[null,{"$f":"'Energy Data Entry'!B69","v":"2021-04-01"},null,null,null,""]
[null,{"$f":"'Energy Data Entry'!B70","v":"2021-05-01"},null,null,null,""]
[null,{"$f":"'Energy Data Entry'!B71","v":"2021-06-01"},null,null,null,""]
[null,{"$f":"'Energy Data Entry'!B72","v":"2021-07-01"},null,null,null,""]
[null,{"$f":"'Energy Data Entry'!B73","v":"2021-08-01"},null,null,null,""]
[null,{"$f":"'Energy Data Entry'!B74","v":"2021-09-01"},null,null,null,""]
[null,{"$f":"'Energy Data Entry'!B75","v":"2021-10-01"},null,null,null,""]
[null,{"$f":"'Energy Data Entry'!B76","v":"2021-11-01"},null,null,null,""]
[null,{"$f":"'Energy Data Entry'!B77","v":"2021-12-01"},null,null,null,""]
[null,{"$f":"'Energy Data Entry'!B78","v":"2022-01-01"},null,null,null,""]
[null,{"$f":"'Energy Data Entry'!B79","v":"2022-02-01"},null,null,null,""]
[null,{"$f":"'Energy Data Entry'!B80","v":"2022-03-01"},null,null,null,""]
[null,{"$f":"'Energy Data Entry'!B81","v":"2022-04-01"},null,null,null,""]
[null,{"$f":"'Energy Data Entry'!B82","v":"2022-05-01"},null,null,null,""]
[null,{"$f":"'Energy Data Entry'!B83","v":"2022-06-01"},null,null,null,""]
[null,{"$f":"'Energy Data Entry'!B84","v":"2022-07-01"},null,null,null,""]
[null,{"$f":"'Energy Data Entry'!B85","v":"2022-08-01"},null,null,null,""]
[null,{"$f":"'Energy Data Entry'!B86","v":"2022-09-01"},null,null,null,""]
[null,{"$f":"'Energy Data Entry'!B87","v":"2022-10-01"},null,null,null,""]
[null,{"$f":"'Energy Data Entry'!B88","v":"2022-11-01"},null,null,null,""]
[null,{"$f":"'Energy Data Entry'!B89","v":"2022-12-01"},null,null,null,""]
[null,{"$f":"'Energy Data Entry'!B90","v":"2023-01-01"},null,null,null,""]
[null,{"$f":"'Energy Data Entry'!B91","v":"2023-02-01"},null,null,null,""]
[null,{"$f":"'Energy Data Entry'!B92","v":"2023-03-01"},null,null,null,""]
[null,{"$f":"'Energy Data Entry'!B93","v":"2023-04-01"},null,null,null,""]
[null,{"$f":"'Energy Data Entry'!B94","v":"2023-05-01"},null,null,null,""]
[null,{"$f":"'Energy Data Entry'!B95","v":"2023-06-01"},null,null,null,""]
[null,{"$f":"'Energy Data Entry'!B96","v":"2023-07-01"},null,null,null,""]
[null,{"$f":"'Energy Data Entry'!B97","v":"2023-08-01"},null,null,null,""]
[null,{"$f":"'Energy Data Entry'!B98","v":"2023-09-01"},null,null,null,""]
[null,{"$f":"'Energy Data Entry'!B99","v":"2023-10-01"},null,null,null,""]
[null,{"$f":"'Energy Data Entry'!B100","v":"2023-11-01"},null,null,null,""]
[null,{"$f":"'Energy Data Entry'!B101","v":"2023-12-01"},null,null,null,""]
[null,{"$f":"'Energy Data Entry'!B102","v":"2024-01-01"},null,null,null,{"$f":"IF(C83*(D83-E83)*8.34=0,\"\",C83*(D83-E83)*8.34)","v":""}]
[null,{"$f":"'Energy Data Entry'!B103","v":"2024-02-01"},null,null,null,""]
[null,{"$f":"'Energy Data Entry'!B104","v":"2024-03-01"},null,null,null,""]
[null,{"$f":"'Energy Data Entry'!B105","v":"2024-04-01"},null,null,null,""]
[null,{"$f":"'Energy Data Entry'!B106","v":"2024-05-01"},null,null,null,""]
[null,{"$f":"'Energy Data Entry'!B107","v":"2024-06-01"},null,null,null,""]
[null,{"$f":"'Energy Data Entry'!B108","v":"2024-07-01"},null,null,null,""]

{"sheet":"Flow-based Summary","index":3,"n_rows":22,"n_cols":9,"rows_kept":22,"cut":false,"hidden":false,"merged":[[1,1,2,8],[5,9,6,9],[7,9,8,9],[9,9,10,9],[11,9,12,9],[17,8,18,8],[13,9,14,9],[15,9,16,9],[5,8,6,8],[7,8,8,8],[9,8,10,8],[11,8,12,8],[13,8,14,8],[15,8,16,8]]}
[]
[null,"Flow-based Energy and Cost Savings"]
[]
[]
[null,null,{"$f":"'Background Calculations'!C147","v":"Baseline: Aug 2017 - Jul 2019"},{"$f":"CONCATENATE('Background Calculations'!C149,'Background Calculations'!H188)","v":"Aug 2019 - Jul 2020\n(to date)"},{"$f":"CONCATENATE('Background Calculations'!C150,'Background Calculations'!H189)","v":"Aug 2020 - Jul 2021"},{"$f":"CONCATENATE('Background Calculations'!C151,'Background Calculations'!H190)","v":"Aug 2021 - Jul 2022"},{"$f":"CONCATENATE('Background Calculations'!C152,'Background Calculations'!H191)","v":"Aug 2022 - Jul 2023"},{"$f":"CONCATENATE('Background Calculations'!C153,'Background Calculations'!H192)","v":"Aug 2023 - Jul 2024"},"Cumulative Change"]
[null,"Avg energy usage (kWh/month)",{"$f":"IFERROR('Background Calculations'!F147,\"\")","v":""},{"$f":"IFERROR('Background Calculations'!F149,\"\")","v":""},{"$f":"IFERROR('Background Calculations'!F150,\"\")","v":""},{"$f":"IFERROR('Background Calculations'!F151,\"\")","v":""},{"$f":"IFERROR('Background Calculations'!F152,\"\")","v":""},{"$f":"IFERROR('Background Calculations'!F153,\"\")","v":""},{"$f":"IFERROR('Background Calculations'!F154,\"\")","v":""}]
[null,"% change from baseline","N/A",{"$f":"IFERROR(ROUND((D6/$C$6-1)*100,1)&\"%\",\"\")","v":""},{"$f":"IFERROR(ROUND((E6/$C$6-1)*100,1)&\"%\",\"\")","v":""},{"$f":"IFERROR(ROUND((F6/$C$6-1)*100,1)&\"%\",\"\")","v":""},{"$f":"IFERROR(ROUND((G6/$C$6-1)*100,1)&\"%\",\"\")","v":""},{"$f":"IFERROR(ROUND((H6/$C$6-1)*100,1)&\"%\",\"\")","v":""}]
[null,"Average Daily Flow (MGD)",{"$f":"IFERROR('Background Calculations'!D147,\"\")","v":""},{"$f":"IFERROR('Background Calculations'!D149,\"\")","v":""},{"$f":"IFERROR('Background Calculations'!D150,\"\")","v":""},{"$f":"IFERROR('Background Calculations'!D151,\"\")","v":""},{"$f":"IFERROR('Background Calculations'!D152,\"\")","v":""},{"$f":"IFERROR('Background Calculations'!D153,\"\")","v":""},{"$f":"IFERROR('Background Calculations'!D154,\"\")","v":""}]
[null,"% change from baseline","N/A",{"$f":"IFERROR(ROUND((D8/$C$8-1)*100,1)&\"%\",\"\")","v":""},{"$f":"IFERROR(ROUND((E8/$C$8-1)*100,1)&\"%\",\"\")","v":""},{"$f":"IFERROR(ROUND((F8/$C$8-1)*100,1)&\"%\",\"\")","v":""},{"$f":"IFERROR(ROUND((G8/$C$8-1)*100,1)&\"%\",\"\")","v":""},{"$f":"IFERROR(ROUND((H8/$C$8-1)*100,1)&\"%\",\"\")","v":""}]
[null,"Energy Efficiency \n(kWh/MG)",{"$f":"IFERROR('Background Calculations'!G147,\"\")","v":""},{"$f":"IFERROR('Background Calculations'!G149,\"\")","v":""},{"$f":"IFERROR('Background Calculations'!G150,\"\")","v":""},{"$f":"IFERROR('Background Calculations'!G151,\"\")","v":""},{"$f":"IFERROR('Background Calculations'!G152,\"\")","v":""},{"$f":"IFERROR('Background Calculations'!G153,\"\")","v":""},{"$f":"IFERROR('Background Calculations'!G154,\"\")","v":""}]
[null,"% change from baseline","N/A",{"$f":"IFERROR(ROUND((D10/$C$10-1)*100,1)&\"%\",\"\")","v":""},{"$f":"IFERROR(ROUND((E10/$C$10-1)*100,1)&\"%\",\"\")","v":""},{"$f":"IFERROR(ROUND((F10/$C$10-1)*100,1)&\"%\",\"\")","v":""},{"$f":"IFERROR(ROUND((G10/$C$10-1)*100,1)&\"%\",\"\")","v":""},{"$f":"IFERROR(ROUND((H10/$C$10-1)*100,1)&\"%\",\"\")","v":""}]
[null,"Monthly Energy Cost\n($/month)",{"$f":"IFERROR('Background Calculations'!H147,\"\")","v":""},{"$f":"IFERROR('Background Calculations'!H149,\"\")","v":""},{"$f":"IFERROR('Background Calculations'!H150,\"\")","v":""},{"$f":"IFERROR('Background Calculations'!H151,\"\")","v":""},{"$f":"IFERROR('Background Calculations'!H152,\"\")","v":""},{"$f":"IFERROR('Background Calculations'!H153,\"\")","v":""},{"$f":"IFERROR('Background Calculations'!H154,\"\")","v":""}]
[null,"% change from baseline","N/A",{"$f":"IFERROR(ROUND((D12/$C$12-1)*100,1)&\"%\",\"\")","v":""},{"$f":"IFERROR(ROUND((E12/$C$12-1)*100,1)&\"%\",\"\")","v":""},{"$f":"IFERROR(ROUND((F12/$C$12-1)*100,1)&\"%\",\"\")","v":""},{"$f":"IFERROR(ROUND((G12/$C$12-1)*100,1)&\"%\",\"\")","v":""},{"$f":"IFERROR(ROUND((H12/$C$12-1)*100,1)&\"%\",\"\")","v":""}]
[null,"Energy Cost Efficiency\n($/MG)",{"$f":"IFERROR('Background Calculations'!J147,\"\")","v":""},{"$f":"IFERROR('Background Calculations'!J149,\"\")","v":""},{"$f":"IFERROR('Background Calculations'!J150,\"\")","v":""},{"$f":"IFERROR('Background Calculations'!J151,\"\")","v":""},{"$f":"IFERROR('Background Calculations'!J152,\"\")","v":""},{"$f":"IFERROR('Background Calculations'!J153,\"\")","v":""},{"$f":"IFERROR('Background Calculations'!J154,\"\")","v":""}]
[null,"% change from baseline","N/A",{"$f":"IFERROR(ROUND((D14/$C$14-1)*100,1)&\"%\",\"\")","v":""},{"$f":"IFERROR(ROUND((E14/$C$14-1)*100,1)&\"%\",\"\")","v":""},{"$f":"IFERROR(ROUND((F14/$C$14-1)*100,1)&\"%\",\"\")","v":""},"",""]
[null,"Cost of Electriciity\n($/kWh)",{"$f":"IFERROR('Background Calculations'!I147,\"\")","v":""},{"$f":"IFERROR('Background Calculations'!I149,\"\")","v":""},{"$f":"IFERROR('Background Calculations'!I150,\"\")","v":""},{"$f":"IFERROR('Background Calculations'!I151,\"\")","v":""},{"$f":"IFERROR('Background Calculations'!I152,\"\")","v":""},{"$f":"IFERROR('Background Calculations'!I153,\"\")","v":""},{"$f":"IFERROR('Background Calculations'!I154,\"\")","v":""}]
[null,"% change from baseline","N/A",{"$f":"IFERROR(ROUND((D16/$C$16-1)*100,1)&\"%\",\"\")","v":""},{"$f":"IFERROR(ROUND((E16/$C$16-1)*100,1)&\"%\",\"\")","v":""},{"$f":"IFERROR(ROUND((F16/$C$16-1)*100,1)&\"%\",\"\")","v":""},{"$f":"IFERROR(ROUND((G16/$C$16-1)*100,1)&\"%\",\"\")","v":""},{"$f":"IFERROR(ROUND((H16/$C$16-1)*100,1)&\"%\",\"\")","v":""}]
[null,{"$f":"'Background Calculations'!N145","v":"Avg Billed Electric Demand (kW)"},{"$f":"IFERROR('Background Calculations'!N147,\"\")","v":""},{"$f":"IFERROR('Background Calculations'!N149,\"\")","v":""},{"$f":"IFERROR('Background Calculations'!N150,\"\")","v":""},{"$f":"IFERROR('Background Calculations'!N151,\"\")","v":""},{"$f":"IFERROR('Background Calculations'!N152,\"\")","v":""},{"$f":"IFERROR('Background Calculations'!N153,\"\")","v":""},{"$f":"IFERROR('Background Calculations'!N154,\"\")","v":""}]
[null,"% change from baseline","N/A",{"$f":"IFERROR(ROUND((D18/$C$18-1)*100,1)&\"%\",\"\")","v":""},{"$f":"IFERROR(ROUND((E18/$C$18-1)*100,1)&\"%\",\"\")","v":""},{"$f":"IFERROR(ROUND((F18/$C$18-1)*100,1)&\"%\",\"\")","v":""},{"$f":"IFERROR(ROUND((G18/$C$18-1)*100,1)&\"%\",\"\")","v":""},{"$f":"IFERROR(ROUND((H18/$C$18-1)*100,1)&\"%\",\"\")","v":""}]
[null,null,null,null,null,null,null,null,"Cumulative Savings"]
[null,"Energy Savings (kWh)","N/A",{"$f":"IFERROR('Background Calculations'!K149,\"\")","v":""},{"$f":"IFERROR('Background Calculations'!K150,\"\")","v":""},{"$f":"IFERROR('Background Calculations'!K151,\"\")","v":""},{"$f":"IFERROR('Background Calculations'!K152,\"\")","v":""},{"$f":"IFERROR('Background Calculations'!K153,\"\")","v":""},{"$f":"IF(SUM(D21:H21)=0,\"\",SUM(D21:H21))","v":""}]
[null,"Energy Cost Savings ","N/A",{"$f":"IFERROR('Background Calculations'!O149,\"\")","v":""},{"$f":"IFERROR('Background Calculations'!O150,\"\")","v":""},{"$f":"IFERROR('Background Calculations'!O151,\"\")","v":""},{"$f":"IFERROR('Background Calculations'!O152,\"\")","v":""},{"$f":"IFERROR('Background Calculations'!O153,\"\")","v":""},{"$f":"IF(SUM(D22:H22)=0,\"\",SUM(D22:H22))","v":""}]

{"sheet":"BOD-based Summary","index":5,"n_rows":22,"n_cols":9,"rows_kept":22,"cut":false,"hidden":false,"merged":[[17,8,18,8],[11,8,12,8],[11,9,12,9],[13,8,14,8],[13,9,14,9],[15,8,16,8],[15,9,16,9],[9,8,10,8],[9,9,10,9],[1,1,2,8],[5,8,6,8],[5,9,6,9],[7,8,8,8],[7,9,8,9]]}
[]
[null,"BOD-based Energy and Cost Savings"]
[]
[]
[null,null,{"$f":"'Background Calculations'!C147","v":"Baseline: Aug 2017 - Jul 2019"},{"$f":"CONCATENATE('Background Calculations'!C149,'Background Calculations'!H188)","v":"Aug 2019 - Jul 2020\n(to date)"},{"$f":"CONCATENATE('Background Calculations'!C150,'Background Calculations'!H189)","v":"Aug 2020 - Jul 2021"},{"$f":"CONCATENATE('Background Calculations'!C151,'Background Calculations'!H190)","v":"Aug 2021 - Jul 2022"},{"$f":"CONCATENATE('Background Calculations'!C152,'Background Calculations'!H191)","v":"Aug 2022 - Jul 2023"},{"$f":"CONCATENATE('Background Calculations'!C153,'Background Calculations'!H192)","v":"Aug 2023 - Jul 2024"},"Cumulative Change"]
[null,"Avg energy usage (kWh/month)",{"$f":"IFERROR('Background Calculations'!F160,\"\")","v":""},{"$f":"IFERROR('Background Calculations'!F162,\"\")","v":""},{"$f":"IFERROR('Background Calculations'!F163,\"\")","v":""},{"$f":"IFERROR('Background Calculations'!F164,\"\")","v":""},{"$f":"IFERROR('Background Calculations'!F165,\"\")","v":""},{"$f":"IFERROR('Background Calculations'!F166,\"\")","v":""},{"$f":"IFERROR('Background Calculations'!F167,\"\")","v":""}]
[null,"% change from baseline","N/A",{"$f":"IFERROR(ROUND((D6/$C$6-1)*100,1)&\"%\",\"\")","v":""},{"$f":"IFERROR(ROUND((E6/$C$6-1)*100,1)&\"%\",\"\")","v":""},{"$f":"IFERROR(ROUND((F6/$C$6-1)*100,1)&\"%\",\"\")","v":""},{"$f":"IFERROR(ROUND((G6/$C$6-1)*100,1)&\"%\",\"\")","v":""},{"$f":"IFERROR(ROUND((H6/$C$6-1)*100,1)&\"%\",\"\")","v":""}]
[null,"Average BOD removal (lbs/d)",{"$f":"IFERROR('Background Calculations'!D160,\"\")","v":""},{"$f":"IFERROR('Background Calculations'!D162,\"\")","v":""},{"$f":"IFERROR('Background Calculations'!D163,\"\")","v":""},{"$f":"IFERROR('Background Calculations'!D164,\"\")","v":""},{"$f":"IFERROR('Background Calculations'!D165,\"\")","v":""},{"$f":"IFERROR('Background Calculations'!D166,\"\")","v":""},{"$f":"IFERROR('Background Calculations'!D167,\"\")","v":""}]
[null,"% change from baseline","N/A",{"$f":"IFERROR(ROUND((D8/$C$8-1)*100,1)&\"%\",\"\")","v":""},{"$f":"IFERROR(ROUND((E8/$C$8-1)*100,1)&\"%\",\"\")","v":""},{"$f":"IFERROR(ROUND((F8/$C$8-1)*100,1)&\"%\",\"\")","v":""},{"$f":"IFERROR(ROUND((G8/$C$8-1)*100,1)&\"%\",\"\")","v":""},{"$f":"IFERROR(ROUND((H8/$C$8-1)*100,1)&\"%\",\"\")","v":""}]
[null,"Energy Efficiency \n(kWh/lb BOD)",{"$f":"IFERROR('Background Calculations'!G160,\"\")","v":""},{"$f":"IFERROR('Background Calculations'!G162,\"\")","v":""},{"$f":"IFERROR('Background Calculations'!G163,\"\")","v":""},{"$f":"IFERROR('Background Calculations'!G164,\"\")","v":""},{"$f":"IFERROR('Background Calculations'!G165,\"\")","v":""},{"$f":"IFERROR('Background Calculations'!G166,\"\")","v":""},{"$f":"IFERROR('Background Calculations'!G167,\"\")","v":""}]
[null,"% change from baseline","N/A",{"$f":"IFERROR(ROUND((D10/$C$10-1)*100,1)&\"%\",\"\")","v":""},{"$f":"IFERROR(ROUND((E10/$C$10-1)*100,1)&\"%\",\"\")","v":""},{"$f":"IFERROR(ROUND((F10/$C$10-1)*100,1)&\"%\",\"\")","v":""},{"$f":"IFERROR(ROUND((G10/$C$10-1)*100,1)&\"%\",\"\")","v":""},{"$f":"IFERROR(ROUND((H10/$C$10-1)*100,1)&\"%\",\"\")","v":""}]
[null,"Monthly Energy Cost\n($/month)",{"$f":"IFERROR('Background Calculations'!H160,\"\")","v":""},{"$f":"IFERROR('Background Calculations'!H162,\"\")","v":""},{"$f":"IFERROR('Background Calculations'!H163,\"\")","v":""},{"$f":"IFERROR('Background Calculations'!H164,\"\")","v":""},{"$f":"IFERROR('Background Calculations'!H165,\"\")","v":""},{"$f":"IFERROR('Background Calculations'!H166,\"\")","v":""},{"$f":"IFERROR('Background Calculations'!H167,\"\")","v":""}]
[null,"% change from baseline","N/A",{"$f":"IFERROR(ROUND((D12/$C$12-1)*100,1)&\"%\",\"\")","v":""},{"$f":"IFERROR(ROUND((E12/$C$12-1)*100,1)&\"%\",\"\")","v":""},{"$f":"IFERROR(ROUND((F12/$C$12-1)*100,1)&\"%\",\"\")","v":""},{"$f":"IFERROR(ROUND((G12/$C$12-1)*100,1)&\"%\",\"\")","v":""},{"$f":"IFERROR(ROUND((H12/$C$12-1)*100,1)&\"%\",\"\")","v":""}]
[null,"Energy Cost Efficiency\n($/lb BOD)",{"$f":"IFERROR('Background Calculations'!J160,\"\")","v":""},{"$f":"IFERROR('Background Calculations'!J162,\"\")","v":""},{"$f":"IFERROR('Background Calculations'!J163,\"\")","v":""},{"$f":"IFERROR('Background Calculations'!J164,\"\")","v":""},{"$f":"IFERROR('Background Calculations'!J165,\"\")","v":""},{"$f":"IFERROR('Background Calculations'!J166,\"\")","v":""},{"$f":"IFERROR('Background Calculations'!J167,\"\")","v":""}]
[null,"% change from baseline","N/A",{"$f":"IFERROR(ROUND((D14/$C$14-1)*100,1)&\"%\",\"\")","v":""},{"$f":"IFERROR(ROUND((E14/$C$14-1)*100,1)&\"%\",\"\")","v":""},{"$f":"IFERROR(ROUND((F14/$C$14-1)*100,1)&\"%\",\"\")","v":""},{"$f":"IFERROR(ROUND((G14/$C$14-1)*100,1)&\"%\",\"\")","v":""},{"$f":"IFERROR(ROUND((H14/$C$14-1)*100,1)&\"%\",\"\")","v":""}]
[null,"Cost of Electriciity\n($/kWh)",{"$f":"IFERROR('Background Calculations'!I160,\"\")","v":""},{"$f":"IFERROR('Background Calculations'!I162,\"\")","v":""},{"$f":"IFERROR('Background Calculations'!I163,\"\")","v":""},{"$f":"IFERROR('Background Calculations'!I164,\"\")","v":""},{"$f":"IFERROR('Background Calculations'!I165,\"\")","v":""},{"$f":"IFERROR('Background Calculations'!I166,\"\")","v":""},{"$f":"IFERROR('Background Calculations'!I167,\"\")","v":""}]
[null,"% change from baseline","N/A",{"$f":"IFERROR(ROUND((D16/$C$16-1)*100,1)&\"%\",\"\")","v":""},{"$f":"IFERROR(ROUND((E16/$C$16-1)*100,1)&\"%\",\"\")","v":""},{"$f":"IFERROR(ROUND((F16/$C$16-1)*100,1)&\"%\",\"\")","v":""},{"$f":"IFERROR(ROUND((G16/$C$16-1)*100,1)&\"%\",\"\")","v":""},{"$f":"IFERROR(ROUND((H16/$C$16-1)*100,1)&\"%\",\"\")","v":""}]
[null,"Avg kW \ndemand",{"$f":"IFERROR('Background Calculations'!N147,\"\")","v":""},{"$f":"IFERROR('Background Calculations'!N149,\"\")","v":""},{"$f":"IFERROR('Background Calculations'!N150,\"\")","v":""},{"$f":"IFERROR('Background Calculations'!N151,\"\")","v":""},{"$f":"IFERROR('Background Calculations'!N152,\"\")","v":""},{"$f":"IFERROR('Background Calculations'!N153,\"\")","v":""},{"$f":"IFERROR('Background Calculations'!N154,\"\")","v":""}]
[null,"% change from baseline","N/A",{"$f":"IFERROR(ROUND((D18/$C$18-1)*100,1)&\"%\",\"\")","v":""},{"$f":"IFERROR(ROUND((E18/$C$18-1)*100,1)&\"%\",\"\")","v":""},{"$f":"IFERROR(ROUND((F18/$C$18-1)*100,1)&\"%\",\"\")","v":""},{"$f":"IFERROR(ROUND((G18/$C$18-1)*100,1)&\"%\",\"\")","v":""},{"$f":"IFERROR(ROUND((H18/$C$18-1)*100,1)&\"%\",\"\")","v":""}]
[null,null,null,null,null,null,null,null,"Cumulative Savings"]
[null,"Energy Savings","N/A",{"$f":"IFERROR('Background Calculations'!K162,\"\")","v":""},{"$f":"IFERROR('Background Calculations'!K163,\"\")","v":""},{"$f":"IFERROR('Background Calculations'!K164,\"\")","v":""},{"$f":"IFERROR('Background Calculations'!K165,\"\")","v":""},{"$f":"IFERROR('Background Calculations'!K166,\"\")","v":""},{"$f":"IF(SUM(D21:H21)=0,\"\",SUM(D21:H21))","v":""}]
[null,"Energy Cost Savings","N/A",{"$f":"IFERROR('Background Calculations'!N162,\"\")","v":""},{"$f":"IFERROR('Background Calculations'!N163,\"\")","v":""},{"$f":"IFERROR('Background Calculations'!N164,\"\")","v":""},{"$f":"IFERROR('Background Calculations'!N165,\"\")","v":""},{"$f":"IFERROR('Background Calculations'!N166,\"\")","v":""},{"$f":"IF(SUM(D22:H22)=0,\"\",SUM(D22:H22))","v":""}]

{"sheet":"Nutrient Removal Summary","index":7,"n_rows":22,"n_cols":9,"rows_kept":22,"cut":false,"hidden":false,"merged":[[17,8,18,8],[9,8,10,8],[9,9,10,9],[1,1,2,8],[5,8,6,8],[5,9,6,9],[7,8,8,8],[7,9,8,9],[15,9,16,9],[15,8,16,8],[11,9,12,9],[13,8,14,8],[13,9,14,9],[11,8,12,8]]}
[]
[null,"Nutrient Removal Summary"]
[]
[]
[null,null,{"$f":"'Background Calculations'!C147","v":"Baseline: Aug 2017 - Jul 2019"},{"$f":"CONCATENATE('Background Calculations'!C149,'Background Calculations'!H188)","v":"Aug 2019 - Jul 2020\n(to date)"},{"$f":"CONCATENATE('Background Calculations'!C150,'Background Calculations'!H189)","v":"Aug 2020 - Jul 2021"},{"$f":"CONCATENATE('Background Calculations'!C151,'Background Calculations'!H190)","v":"Aug 2021 - Jul 2022"},{"$f":"CONCATENATE('Background Calculations'!C152,'Background Calculations'!H191)","v":"Aug 2022 - Jul 2023"},{"$f":"CONCATENATE('Background Calculations'!C153,'Background Calculations'!H192)","v":"Aug 2023 - Jul 2024"},"Cumulative Change"]
[null,"Avg Influent TN\n(mg/L)",{"$f":"IFERROR('Background Calculations'!D197,\"\")","v":""},{"$f":"IFERROR('Background Calculations'!D199,\"\")","v":""},{"$f":"IFERROR('Background Calculations'!D200,\"\")","v":""},{"$f":"IFERROR('Background Calculations'!D201,\"\")","v":""},{"$f":"IFERROR('Background Calculations'!D202,\"\")","v":""},{"$f":"IFERROR('Background Calculations'!D203,\"\")","v":""},{"$f":"IFERROR('Background Calculations'!D204,\"\")","v":""}]
[null,"% change from baseline","N/A",{"$f":"IFERROR(ROUND((D6/$C$6-1)*100,1)&\"%\",\"\")","v":""},{"$f":"IFERROR(ROUND((E6/$C$6-1)*100,1)&\"%\",\"\")","v":""},{"$f":"IFERROR(ROUND((F6/$C$6-1)*100,1)&\"%\",\"\")","v":""},{"$f":"IFERROR(ROUND((G6/$C$6-1)*100,1)&\"%\",\"\")","v":""},{"$f":"IFERROR(ROUND((H6/$C$6-1)*100,1)&\"%\",\"\")","v":""}]
[null,{"$f":"IFERROR('Background Calculations'!G196,\"Insufficient effluent N data\")","v":"Avg Effluent TKN (mg/L)"},{"$f":"IFERROR('Background Calculations'!G197,\"\")","v":""},{"$f":"IFERROR('Background Calculations'!G199,\"\")","v":""},{"$f":"IFERROR('Background Calculations'!G200,\"\")","v":""},{"$f":"IFERROR('Background Calculations'!G201,\"\")","v":""},{"$f":"IFERROR('Background Calculations'!G202,\"\")","v":""},{"$f":"IFERROR('Background Calculations'!G203,\"\")","v":""},{"$f":"IFERROR('Background Calculations'!G204,\"\")","v":""}]
[null,"% change from baseline","N/A",{"$f":"IFERROR(ROUND((D8/$C$8-1)*100,1)&\"%\",\"\")","v":""},{"$f":"IFERROR(ROUND((E8/$C$8-1)*100,1)&\"%\",\"\")","v":""},{"$f":"IFERROR(ROUND((F8/$C$8-1)*100,1)&\"%\",\"\")","v":""},{"$f":"IFERROR(ROUND((G8/$C$8-1)*100,1)&\"%\",\"\")","v":""},{"$f":"IFERROR(ROUND((H8/$C$8-1)*100,1)&\"%\",\"\")","v":""}]
[null,"Avg Effluent NO3+NO2 (mg/L)",{"$f":"IFERROR('Background Calculations'!H197,\"\")","v":""},{"$f":"IFERROR('Background Calculations'!H199,\"\")","v":""},{"$f":"IFERROR('Background Calculations'!H200,\"\")","v":""},{"$f":"IFERROR('Background Calculations'!H201,\"\")","v":""},{"$f":"IFERROR('Background Calculations'!H202,\"\")","v":""},{"$f":"IFERROR('Background Calculations'!H203,\"\")","v":""},{"$f":"IFERROR('Background Calculations'!H204,\"\")","v":""}]
[null,"% change from baseline","N/A",{"$f":"IFERROR(ROUND((D10/$C$10-1)*100,1)&\"%\",\"\")","v":""},{"$f":"IFERROR(ROUND((E10/$C$10-1)*100,1)&\"%\",\"\")","v":""},{"$f":"IFERROR(ROUND((F10/$C$10-1)*100,1)&\"%\",\"\")","v":""},{"$f":"IFERROR(ROUND((G10/$C$10-1)*100,1)&\"%\",\"\")","v":""},{"$f":"IFERROR(ROUND((H10/$C$10-1)*100,1)&\"%\",\"\")","v":""}]
[null,"Avg TN removal (%)",{"$f":"IFERROR((C6-(C8+C10))/C6,\"\")","v":""},"","","","","",{"$f":"IFERROR((AVERAGE(D12:H12)-C12)/C12,\"\")","v":""}]
[null,"Avg TN removal (lbs/mo)",{"$f":"IFERROR('Background Calculations'!I197,\"\")","v":""},{"$f":"IFERROR('Background Calculations'!I199,\"\")","v":""},{"$f":"IFERROR('Background Calculations'!I200,\"\")","v":""},{"$f":"IFERROR('Background Calculations'!I201,\"\")","v":""},{"$f":"IFERROR('Background Calculations'!I202,\"\")","v":""},{"$f":"IFERROR('Background Calculations'!I203,\"\")","v":""}]
[null,"Avg Influent TP\n(mg/L)",{"$f":"IFERROR('Background Calculations'!N197,\"\")","v":""},{"$f":"IFERROR('Background Calculations'!N199,\"\")","v":""},{"$f":"IFERROR('Background Calculations'!N200,\"\")","v":""},{"$f":"IFERROR('Background Calculations'!N201,\"\")","v":""},{"$f":"IFERROR('Background Calculations'!N202,\"\")","v":""},{"$f":"IFERROR('Background Calculations'!N203,\"\")","v":""},{"$f":"IFERROR('Background Calculations'!N204,\"\")","v":""}]
[null,"% change from baseline","N/A",{"$f":"IFERROR(ROUND((D14/$C$14-1)*100,1)&\"%\",\"\")","v":""},{"$f":"IFERROR(ROUND((E14/$C$14-1)*100,1)&\"%\",\"\")","v":""},{"$f":"IFERROR(ROUND((F14/$C$14-1)*100,1)&\"%\",\"\")","v":""},{"$f":"IFERROR(ROUND((G14/$C$14-1)*100,1)&\"%\",\"\")","v":""},{"$f":"IFERROR(ROUND((H14/$C$14-1)*100,1)&\"%\",\"\")","v":""}]
[null,"Avg Effluent TP\n(mg/L)",{"$f":"IFERROR('Background Calculations'!O197,\"\")","v":""},{"$f":"IFERROR('Background Calculations'!O199,\"\")","v":""},{"$f":"IFERROR('Background Calculations'!O200,\"\")","v":""},{"$f":"IFERROR('Background Calculations'!O201,\"\")","v":""},{"$f":"IFERROR('Background Calculations'!O202,\"\")","v":""},{"$f":"IFERROR('Background Calculations'!O203,\"\")","v":""},{"$f":"IFERROR('Background Calculations'!O204,\"\")","v":""}]
[null,"% change from baseline","N/A",{"$f":"IFERROR(ROUND((D16/$C$16-1)*100,1)&\"%\",\"\")","v":""},{"$f":"IFERROR(ROUND((E16/$C$16-1)*100,1)&\"%\",\"\")","v":""},{"$f":"IFERROR(ROUND((F16/$C$16-1)*100,1)&\"%\",\"\")","v":""},{"$f":"IFERROR(ROUND((G16/$C$16-1)*100,1)&\"%\",\"\")","v":""},{"$f":"IFERROR(ROUND((H16/$C$16-1)*100,1)&\"%\",\"\")","v":""}]
[null,"Avg TP removed (%)",{"$f":"IFERROR((C14-C16)/C14,\"\")","v":""},"","","","","",{"$f":"IFERROR(AVERAGE(D18:H18)/C18-1,\"\")","v":""}]
[null,"Avg TP removed (lbs/mo)",{"$f":"IFERROR('Background Calculations'!P197,\"\")","v":""},{"$f":"IFERROR('Background Calculations'!P199,\"\")","v":""},{"$f":"IFERROR('Background Calculations'!P200,\"\")","v":""},{"$f":"IFERROR('Background Calculations'!P201,\"\")","v":""},{"$f":"IFERROR('Background Calculations'!P202,\"\")","v":""},{"$f":"IFERROR('Background Calculations'!P203,\"\")","v":""}]
[null,null,null,null,null,null,null,null,"Approx. Additional Removal (lbs)"]
[null,"Improvement in % TN removal (%)","N/A",{"$f":"IFERROR(D12/C12-1,\"\")","v":""},{"$f":"IFERROR(E12/C12-1,\"\")","v":""},{"$f":"IFERROR(F12/C12-1,\"\")","v":""},{"$f":"IFERROR(G12/C12-1,\"\")","v":""},{"$f":"IFERROR(H12/C12-1,\"\")","v":""},{"$f":"'Background Calculations'!K204","v":0}]
[null,"Improvement in % TP removal (%)","N/A",{"$f":"IFERROR(D18/C18-1,\"\")","v":""},{"$f":"IFERROR(E18/C18-1,\"\")","v":""},{"$f":"IFERROR(F18/C18-1,\"\")","v":""},{"$f":"IFERROR(G18/C18-1,\"\")","v":""},{"$f":"IFERROR(H18/C18-1,\"\")","v":""},{"$f":"'Background Calculations'!Q204","v":0}]

{"sheet":"Calculation Notes","index":10,"n_rows":0,"n_cols":0,"rows_kept":0,"cut":false,"hidden":true,"merged":[]}

{"sheet":"Background Calculations","index":11,"n_rows":204,"n_cols":34,"rows_kept":204,"cut":false,"hidden":true,"merged":[]}
[]
[]
["Year","Column2","Avg Daily Flow","Monthly Flow","BOD removed","Total BOD removed","Electric kWh usage","Gas kWh usage","Total Energy Usage","Flow Efficiency","BOD efficiency","Total Electric Demand (Actual)","Total Electric Demand (Billed)","Electric Demand Cost","Total electric cost","Total Gas cost","Avg $/kWh","Avg $/kW demand","Total Energy Cost","Column6","Energy Cost per Volume Treated","Energy Cost per lb BOD","Column7","Avg influent TKN","Avg influent NH3","Avg influent NOx","Avg effluent TKN","Avg effluent NH3","Avg effluent NOx","Approx TN removal (mg/L)","Approx TN removal (lbs)","Avg influent TP","Avg effluent TP","Calculated TP removal (lbs)"]
[1,{"$f":"'Energy Data Entry'!B25","v":"2017-08-01"},{"$f":"IF(OR('Process Data Entry'!C6=\"\",'Process Data Entry'!C6=0),\"\",'Process Data Entry'!C6)","v":""},{"$f":"IF(Table4[Avg Daily Flow]=\"\",\"\",_xlfn.DAYS(EOMONTH(B4,0),EOMONTH(B4,-1))*C4)","v":""},{"$f":"IF('Process Data Entry'!F6=\"\",\"\",'Process Data Entry'!F6)","v":""},{"$f":"IF(Table4[BOD removed]=\"\",\"\",Table4[BOD removed]*_xlfn.DAYS(EOMONTH(Table4[[#This Row],[Column2]],0),EOMONTH(Table4[[#This Row],[Column2]],-1)))","v":""},{"$f":"IF(SUM('Energy Data Entry'!C25,'Energy Data Entry'!H25,'Energy Data Entry'!M25,'Energy Data Entry'!R25,'Energy Data Entry'!W25)=0,\"\",SUM('Energy Data Entry'!C25,'Energy Data Entry'!H25,'Energy Data Entry'!M25,'Energy Data Entry'!R25,'Energy Data Entry'!W25))","v":""},{"$f":"'Energy Data Entry'!AG25","v":0},{"$f":"IF(Table4[[#This Row],[Electric kWh usage]]=\"\",\"\",Table4[[#This Row],[Gas kWh usage]]+Table4[[#This Row],[Electric kWh usage]])","v":""},{"$f":"IF(OR(Table4[[#This Row],[Electric kWh usage]]=\"\",Table4[[#This Row],[Monthly Flow]]=\"\"),\"\",(Table4[[#This Row],[Electric kWh usage]]+Table4[[#This Row],[Gas kWh usage]])/Table4[[#This Row],[Monthly Flow]])","v":""},{"$f":"IFERROR(IF(Table4[[#This Row],[Electric kWh usage]]=\"\",\"\",(Table4[[#This Row],[Electric kWh usage]]+Table4[[#This Row],[Gas kWh usage]])/Table4[[#This Row],[Total BOD removed]]),\"\")","v":""},{"$f":"IF('Energy Data Entry'!E25+'Energy Data Entry'!J25+'Energy Data Entry'!O25+'Energy Data Entry'!T25+'Energy Data Entry'!Y25=0,\"\",'Energy Data Entry'!E25+'Energy Data Entry'!J25+'Energy Data Entry'!O25+'Energy Data Entry'!T25+'Energy Data Entry'!Y25)","v":""},{"$f":"IF('Energy Data Entry'!F25+'Energy Data Entry'!K25+'Energy Data Entry'!P25++'Energy Data Entry'!U25+'Energy Data Entry'!Z25=0,\"\",'Energy Data Entry'!F25+'Energy Data Entry'!K25+'Energy Data Entry'!P25++'Energy Data Entry'!U25+'Energy Data Entry'!Z25)","v":""},{"$f":"IF('Energy Data Entry'!G25+'Energy Data Entry'!L25+'Energy Data Entry'!Q25+'Energy Data Entry'!V25+'Energy Data Entry'!AA25=0,\"\",'Energy Data Entry'!G25+'Energy Data Entry'!L25+'Energy Data Entry'!Q25+'Energy Data Entry'!V25+'Energy Data Entry'!AA25)","v":""},{"$f":"IF('Energy Data Entry'!D25+'Energy Data Entry'!I25+'Energy Data Entry'!N25+'Energy Data Entry'!S25+'Energy Data Entry'!X25=0,\"\",'Energy Data Entry'!D25+'Energy Data Entry'!I25+'Energy Data Entry'!N25+'Energy Data Entry'!S25+'Energy Data Entry'!X25)","v":""},{"$f":"'Energy Data Entry'!AF25","v":0},{"$f":"IFERROR(Table4[[#This Row],[Total electric cost]]/Table4[[#This Row],[Electric kWh usage]],\"\")","v":""},{"$f":"IFERROR(Table4[[#This Row],[Electric Demand Cost]]/Table4[[#This Row],[Total Electric Demand (Billed)]],IFERROR(Table4[[#This Row],[Electric Demand Cost]]/Table4[[#This Row],[Total Electric Demand (Actual)]],\"\"))","v":""},{"$f":"IFERROR(Table4[[#This Row],[Total Gas cost]]+Table4[[#This Row],[Total electric cost]],\"\")","v":""},null,{"$f":"IFERROR(Table4[[#This Row],[Total Energy Cost]]/Table4[[#This Row],[Monthly Flow]],\"\")","v":""},{"$f":"IFERROR(Table4[[#This Row],[Total Energy Cost]]/Table4[[#This Row],[Total BOD removed]],\"\")","v":""},null,{"$f":"IF('Process Data Entry'!G6=\"\",\"\",'Process Data Entry'!G6)","v":""},{"$f":"IF('Process Data Entry'!H6=\"\",\"\",'Process Data Entry'!H6)","v":""},{"$f":"IF('Process Data Entry'!I6=\"\",0,'Process Data Entry'!I6)","v":0},{"$f":"IF('Process Data Entry'!J6=\"\",\"\",'Process Data Entry'!J6)","v":""},{"$f":"IF('Process Data Entry'!K6=\"\",\"\",'Process Data Entry'!K6)","v":""},{"$f":"IF('Process Data Entry'!L6=\"\",\"\",'Process Data Entry'!L6)","v":""},{"$f":"IFERROR(IF(OR(X4=\"\",AC4=\"\",AND(AA4=\"\",AB4=\"\"),((X4+Z4)-(MAX(AA4,AB4)+AC4))<0),\"\",(X4+Z4)-(MAX(AA4,AB4)+AC4)),\"\")","v":""},{"$f":"IF(OR(AD4=\"\",D4=\"\"),\"\",AD4*D4*8.34)","v":""},{"$f":"IF('Process Data Entry'!M6=\"\",\"\",'Process Data Entry'!M6)","v":""},{"$f":"IF('Process Data Entry'!N6=\"\",\"\",'Process Data Entry'!N6)","v":""},{"$f":"IF(OR(AF4=\"\",AG4=\"\",D4=\"\"),\"\",8.34*D4*(AF4-AG4))","v":""}]
[1,{"$f":"'Energy Data Entry'!B26","v":"2017-09-01"},{"$f":"IF(OR('Process Data Entry'!C7=\"\",'Process Data Entry'!C7=0),\"\",'Process Data Entry'!C7)","v":""},{"$f":"IF(Table4[Avg Daily Flow]=\"\",\"\",_xlfn.DAYS(EOMONTH(B5,0),EOMONTH(B5,-1))*C5)","v":""},{"$f":"IF('Process Data Entry'!F7=\"\",\"\",'Process Data Entry'!F7)","v":""},{"$f":"IF(Table4[BOD removed]=\"\",\"\",Table4[BOD removed]*_xlfn.DAYS(EOMONTH(Table4[[#This Row],[Column2]],0),EOMONTH(Table4[[#This Row],[Column2]],-1)))","v":""},{"$f":"IF(SUM('Energy Data Entry'!C26,'Energy Data Entry'!H26,'Energy Data Entry'!M26,'Energy Data Entry'!R26,'Energy Data Entry'!W26)=0,\"\",SUM('Energy Data Entry'!C26,'Energy Data Entry'!H26,'Energy Data Entry'!M26,'Energy Data Entry'!R26,'Energy Data Entry'!W26))","v":""},{"$f":"'Energy Data Entry'!AG26","v":0},{"$f":"IF(Table4[[#This Row],[Electric kWh usage]]=\"\",\"\",Table4[[#This Row],[Gas kWh usage]]+Table4[[#This Row],[Electric kWh usage]])","v":""},{"$f":"IF(OR(Table4[[#This Row],[Electric kWh usage]]=\"\",Table4[[#This Row],[Monthly Flow]]=\"\"),\"\",(Table4[[#This Row],[Electric kWh usage]]+Table4[[#This Row],[Gas kWh usage]])/Table4[[#This Row],[Monthly Flow]])","v":""},{"$f":"IFERROR(IF(Table4[[#This Row],[Electric kWh usage]]=\"\",\"\",(Table4[[#This Row],[Electric kWh usage]]+Table4[[#This Row],[Gas kWh usage]])/Table4[[#This Row],[Total BOD removed]]),\"\")","v":""},{"$f":"IF('Energy Data Entry'!E26+'Energy Data Entry'!J26+'Energy Data Entry'!O26+'Energy Data Entry'!T26+'Energy Data Entry'!Y26=0,\"\",'Energy Data Entry'!E26+'Energy Data Entry'!J26+'Energy Data Entry'!O26+'Energy Data Entry'!T26+'Energy Data Entry'!Y26)","v":""},{"$f":"IF('Energy Data Entry'!F26+'Energy Data Entry'!K26+'Energy Data Entry'!P26++'Energy Data Entry'!U26+'Energy Data Entry'!Z26=0,\"\",'Energy Data Entry'!F26+'Energy Data Entry'!K26+'Energy Data Entry'!P26++'Energy Data Entry'!U26+'Energy Data Entry'!Z26)","v":""},{"$f":"IF('Energy Data Entry'!G26+'Energy Data Entry'!L26+'Energy Data Entry'!Q26+'Energy Data Entry'!V26+'Energy Data Entry'!AA26=0,\"\",'Energy Data Entry'!G26+'Energy Data Entry'!L26+'Energy Data Entry'!Q26+'Energy Data Entry'!V26+'Energy Data Entry'!AA26)","v":""},{"$f":"IF('Energy Data Entry'!D26+'Energy Data Entry'!I26+'Energy Data Entry'!N26+'Energy Data Entry'!S26+'Energy Data Entry'!X26=0,\"\",'Energy Data Entry'!D26+'Energy Data Entry'!I26+'Energy Data Entry'!N26+'Energy Data Entry'!S26+'Energy Data Entry'!X26)","v":""},{"$f":"'Energy Data Entry'!AF26","v":0},{"$f":"IFERROR(Table4[[#This Row],[Total electric cost]]/Table4[[#This Row],[Electric kWh usage]],\"\")","v":""},{"$f":"IFERROR(Table4[[#This Row],[Electric Demand Cost]]/Table4[[#This Row],[Total Electric Demand (Billed)]],IFERROR(Table4[[#This Row],[Electric Demand Cost]]/Table4[[#This Row],[Total Electric Demand (Actual)]],\"\"))","v":""},{"$f":"IFERROR(Table4[[#This Row],[Total Gas cost]]+Table4[[#This Row],[Total electric cost]],\"\")","v":""},null,{"$f":"IFERROR(Table4[[#This Row],[Total Energy Cost]]/Table4[[#This Row],[Monthly Flow]],\"\")","v":""},{"$f":"IFERROR(Table4[[#This Row],[Total Energy Cost]]/Table4[[#This Row],[Total BOD removed]],\"\")","v":""},null,{"$f":"IF('Process Data Entry'!G7=\"\",\"\",'Process Data Entry'!G7)","v":""},{"$f":"IF('Process Data Entry'!H7=\"\",\"\",'Process Data Entry'!H7)","v":""},{"$f":"IF('Process Data Entry'!I7=\"\",0,'Process Data Entry'!I7)","v":0},{"$f":"IF('Process Data Entry'!J7=\"\",\"\",'Process Data Entry'!J7)","v":""},{"$f":"IF('Process Data Entry'!K7=\"\",\"\",'Process Data Entry'!K7)","v":""},{"$f":"IF('Process Data Entry'!L7=\"\",\"\",'Process Data Entry'!L7)","v":""},"","",{"$f":"IF('Process Data Entry'!M7=\"\",\"\",'Process Data Entry'!M7)","v":""},{"$f":"IF('Process Data Entry'!N7=\"\",\"\",'Process Data Entry'!N7)","v":""},""]
[1,{"$f":"'Energy Data Entry'!B27","v":"2017-10-01"},{"$f":"IF(OR('Process Data Entry'!C8=\"\",'Process Data Entry'!C8=0),\"\",'Process Data Entry'!C8)","v":""},{"$f":"IF(Table4[Avg Daily Flow]=\"\",\"\",_xlfn.DAYS(EOMONTH(B6,0),EOMONTH(B6,-1))*C6)","v":""},{"$f":"IF('Process Data Entry'!F8=\"\",\"\",'Process Data Entry'!F8)","v":""},{"$f":"IF(Table4[BOD removed]=\"\",\"\",Table4[BOD removed]*_xlfn.DAYS(EOMONTH(Table4[[#This Row],[Column2]],0),EOMONTH(Table4[[#This Row],[Column2]],-1)))","v":""},{"$f":"IF(SUM('Energy Data Entry'!C27,'Energy Data Entry'!H27,'Energy Data Entry'!M27,'Energy Data Entry'!R27,'Energy Data Entry'!W27)=0,\"\",SUM('Energy Data Entry'!C27,'Energy Data Entry'!H27,'Energy Data Entry'!M27,'Energy Data Entry'!R27,'Energy Data Entry'!W27))","v":""},{"$f":"'Energy Data Entry'!AG27","v":0},{"$f":"IF(Table4[[#This Row],[Electric kWh usage]]=\"\",\"\",Table4[[#This Row],[Gas kWh usage]]+Table4[[#This Row],[Electric kWh usage]])","v":""},{"$f":"IF(OR(Table4[[#This Row],[Electric kWh usage]]=\"\",Table4[[#This Row],[Monthly Flow]]=\"\"),\"\",(Table4[[#This Row],[Electric kWh usage]]+Table4[[#This Row],[Gas kWh usage]])/Table4[[#This Row],[Monthly Flow]])","v":""},{"$f":"IFERROR(IF(Table4[[#This Row],[Electric kWh usage]]=\"\",\"\",(Table4[[#This Row],[Electric kWh usage]]+Table4[[#This Row],[Gas kWh usage]])/Table4[[#This Row],[Total BOD removed]]),\"\")","v":""},{"$f":"IF('Energy Data Entry'!E27+'Energy Data Entry'!J27+'Energy Data Entry'!O27+'Energy Data Entry'!T27+'Energy Data Entry'!Y27=0,\"\",'Energy Data Entry'!E27+'Energy Data Entry'!J27+'Energy Data Entry'!O27+'Energy Data Entry'!T27+'Energy Data Entry'!Y27)","v":""},{"$f":"IF('Energy Data Entry'!F27+'Energy Data Entry'!K27+'Energy Data Entry'!P27++'Energy Data Entry'!U27+'Energy Data Entry'!Z27=0,\"\",'Energy Data Entry'!F27+'Energy Data Entry'!K27+'Energy Data Entry'!P27++'Energy Data Entry'!U27+'Energy Data Entry'!Z27)","v":""},{"$f":"IF('Energy Data Entry'!G27+'Energy Data Entry'!L27+'Energy Data Entry'!Q27+'Energy Data Entry'!V27+'Energy Data Entry'!AA27=0,\"\",'Energy Data Entry'!G27+'Energy Data Entry'!L27+'Energy Data Entry'!Q27+'Energy Data Entry'!V27+'Energy Data Entry'!AA27)","v":""},{"$f":"IF('Energy Data Entry'!D27+'Energy Data Entry'!I27+'Energy Data Entry'!N27+'Energy Data Entry'!S27+'Energy Data Entry'!X27=0,\"\",'Energy Data Entry'!D27+'Energy Data Entry'!I27+'Energy Data Entry'!N27+'Energy Data Entry'!S27+'Energy Data Entry'!X27)","v":""},{"$f":"'Energy Data Entry'!AF27","v":0},{"$f":"IFERROR(Table4[[#This Row],[Total electric cost]]/Table4[[#This Row],[Electric kWh usage]],\"\")","v":""},{"$f":"IFERROR(Table4[[#This Row],[Electric Demand Cost]]/Table4[[#This Row],[Total Electric Demand (Billed)]],IFERROR(Table4[[#This Row],[Electric Demand Cost]]/Table4[[#This Row],[Total Electric Demand (Actual)]],\"\"))","v":""},{"$f":"IFERROR(Table4[[#This Row],[Total Gas cost]]+Table4[[#This Row],[Total electric cost]],\"\")","v":""},null,{"$f":"IFERROR(Table4[[#This Row],[Total Energy Cost]]/Table4[[#This Row],[Monthly Flow]],\"\")","v":""},{"$f":"IFERROR(Table4[[#This Row],[Total Energy Cost]]/Table4[[#This Row],[Total BOD removed]],\"\")","v":""},null,{"$f":"IF('Process Data Entry'!G8=\"\",\"\",'Process Data Entry'!G8)","v":""},{"$f":"IF('Process Data Entry'!H8=\"\",\"\",'Process Data Entry'!H8)","v":""},{"$f":"IF('Process Data Entry'!I8=\"\",0,'Process Data Entry'!I8)","v":0},{"$f":"IF('Process Data Entry'!J8=\"\",\"\",'Process Data Entry'!J8)","v":""},{"$f":"IF('Process Data Entry'!K8=\"\",\"\",'Process Data Entry'!K8)","v":""},{"$f":"IF('Process Data Entry'!L8=\"\",\"\",'Process Data Entry'!L8)","v":""},"","",{"$f":"IF('Process Data Entry'!M8=\"\",\"\",'Process Data Entry'!M8)","v":""},{"$f":"IF('Process Data Entry'!N8=\"\",\"\",'Process Data Entry'!N8)","v":""},""]
[1,{"$f":"'Energy Data Entry'!B28","v":"2017-11-01"},{"$f":"IF(OR('Process Data Entry'!C9=\"\",'Process Data Entry'!C9=0),\"\",'Process Data Entry'!C9)","v":""},{"$f":"IF(Table4[Avg Daily Flow]=\"\",\"\",_xlfn.DAYS(EOMONTH(B7,0),EOMONTH(B7,-1))*C7)","v":""},{"$f":"IF('Process Data Entry'!F9=\"\",\"\",'Process Data Entry'!F9)","v":""},{"$f":"IF(Table4[BOD removed]=\"\",\"\",Table4[BOD removed]*_xlfn.DAYS(EOMONTH(Table4[[#This Row],[Column2]],0),EOMONTH(Table4[[#This Row],[Column2]],-1)))","v":""},{"$f":"IF(SUM('Energy Data Entry'!C28,'Energy Data Entry'!H28,'Energy Data Entry'!M28,'Energy Data Entry'!R28,'Energy Data Entry'!W28)=0,\"\",SUM('Energy Data Entry'!C28,'Energy Data Entry'!H28,'Energy Data Entry'!M28,'Energy Data Entry'!R28,'Energy Data Entry'!W28))","v":""},{"$f":"'Energy Data Entry'!AG28","v":0},{"$f":"IF(Table4[[#This Row],[Electric kWh usage]]=\"\",\"\",Table4[[#This Row],[Gas kWh usage]]+Table4[[#This Row],[Electric kWh usage]])","v":""},{"$f":"IF(OR(Table4[[#This Row],[Electric kWh usage]]=\"\",Table4[[#This Row],[Monthly Flow]]=\"\"),\"\",(Table4[[#This Row],[Electric kWh usage]]+Table4[[#This Row],[Gas kWh usage]])/Table4[[#This Row],[Monthly Flow]])","v":""},{"$f":"IFERROR(IF(Table4[[#This Row],[Electric kWh usage]]=\"\",\"\",(Table4[[#This Row],[Electric kWh usage]]+Table4[[#This Row],[Gas kWh usage]])/Table4[[#This Row],[Total BOD removed]]),\"\")","v":""},{"$f":"IF('Energy Data Entry'!E28+'Energy Data Entry'!J28+'Energy Data Entry'!O28+'Energy Data Entry'!T28+'Energy Data Entry'!Y28=0,\"\",'Energy Data Entry'!E28+'Energy Data Entry'!J28+'Energy Data Entry'!O28+'Energy Data Entry'!T28+'Energy Data Entry'!Y28)","v":""},{"$f":"IF('Energy Data Entry'!F28+'Energy Data Entry'!K28+'Energy Data Entry'!P28++'Energy Data Entry'!U28+'Energy Data Entry'!Z28=0,\"\",'Energy Data Entry'!F28+'Energy Data Entry'!K28+'Energy Data Entry'!P28++'Energy Data Entry'!U28+'Energy Data Entry'!Z28)","v":""},{"$f":"IF('Energy Data Entry'!G28+'Energy Data Entry'!L28+'Energy Data Entry'!Q28+'Energy Data Entry'!V28+'Energy Data Entry'!AA28=0,\"\",'Energy Data Entry'!G28+'Energy Data Entry'!L28+'Energy Data Entry'!Q28+'Energy Data Entry'!V28+'Energy Data Entry'!AA28)","v":""},{"$f":"IF('Energy Data Entry'!D28+'Energy Data Entry'!I28+'Energy Data Entry'!N28+'Energy Data Entry'!S28+'Energy Data Entry'!X28=0,\"\",'Energy Data Entry'!D28+'Energy Data Entry'!I28+'Energy Data Entry'!N28+'Energy Data Entry'!S28+'Energy Data Entry'!X28)","v":""},{"$f":"'Energy Data Entry'!AF28","v":0},{"$f":"IFERROR(Table4[[#This Row],[Total electric cost]]/Table4[[#This Row],[Electric kWh usage]],\"\")","v":""},{"$f":"IFERROR(Table4[[#This Row],[Electric Demand Cost]]/Table4[[#This Row],[Total Electric Demand (Billed)]],IFERROR(Table4[[#This Row],[Electric Demand Cost]]/Table4[[#This Row],[Total Electric Demand (Actual)]],\"\"))","v":""},{"$f":"IFERROR(Table4[[#This Row],[Total Gas cost]]+Table4[[#This Row],[Total electric cost]],\"\")","v":""},null,{"$f":"IFERROR(Table4[[#This Row],[Total Energy Cost]]/Table4[[#This Row],[Monthly Flow]],\"\")","v":""},{"$f":"IFERROR(Table4[[#This Row],[Total Energy Cost]]/Table4[[#This Row],[Total BOD removed]],\"\")","v":""},null,{"$f":"IF('Process Data Entry'!G9=\"\",\"\",'Process Data Entry'!G9)","v":""},{"$f":"IF('Process Data Entry'!H9=\"\",\"\",'Process Data Entry'!H9)","v":""},{"$f":"IF('Process Data Entry'!I9=\"\",0,'Process Data Entry'!I9)","v":0},{"$f":"IF('Process Data Entry'!J9=\"\",\"\",'Process Data Entry'!J9)","v":""},{"$f":"IF('Process Data Entry'!K9=\"\",\"\",'Process Data Entry'!K9)","v":""},{"$f":"IF('Process Data Entry'!L9=\"\",\"\",'Process Data Entry'!L9)","v":""},"","",{"$f":"IF('Process Data Entry'!M9=\"\",\"\",'Process Data Entry'!M9)","v":""},{"$f":"IF('Process Data Entry'!N9=\"\",\"\",'Process Data Entry'!N9)","v":""},""]
[1,{"$f":"'Energy Data Entry'!B29","v":"2017-12-01"},{"$f":"IF(OR('Process Data Entry'!C10=\"\",'Process Data Entry'!C10=0),\"\",'Process Data Entry'!C10)","v":""},{"$f":"IF(Table4[Avg Daily Flow]=\"\",\"\",_xlfn.DAYS(EOMONTH(B8,0),EOMONTH(B8,-1))*C8)","v":""},{"$f":"IF('Process Data Entry'!F10=\"\",\"\",'Process Data Entry'!F10)","v":""},{"$f":"IF(Table4[BOD removed]=\"\",\"\",Table4[BOD removed]*_xlfn.DAYS(EOMONTH(Table4[[#This Row],[Column2]],0),EOMONTH(Table4[[#This Row],[Column2]],-1)))","v":""},{"$f":"IF(SUM('Energy Data Entry'!C29,'Energy Data Entry'!H29,'Energy Data Entry'!M29,'Energy Data Entry'!R29,'Energy Data Entry'!W29)=0,\"\",SUM('Energy Data Entry'!C29,'Energy Data Entry'!H29,'Energy Data Entry'!M29,'Energy Data Entry'!R29,'Energy Data Entry'!W29))","v":""},{"$f":"'Energy Data Entry'!AG29","v":0},{"$f":"IF(Table4[[#This Row],[Electric kWh usage]]=\"\",\"\",Table4[[#This Row],[Gas kWh usage]]+Table4[[#This Row],[Electric kWh usage]])","v":""},{"$f":"IF(OR(Table4[[#This Row],[Electric kWh usage]]=\"\",Table4[[#This Row],[Monthly Flow]]=\"\"),\"\",(Table4[[#This Row],[Electric kWh usage]]+Table4[[#This Row],[Gas kWh usage]])/Table4[[#This Row],[Monthly Flow]])","v":""},{"$f":"IFERROR(IF(Table4[[#This Row],[Electric kWh usage]]=\"\",\"\",(Table4[[#This Row],[Electric kWh usage]]+Table4[[#This Row],[Gas kWh usage]])/Table4[[#This Row],[Total BOD removed]]),\"\")","v":""},{"$f":"IF('Energy Data Entry'!E29+'Energy Data Entry'!J29+'Energy Data Entry'!O29+'Energy Data Entry'!T29+'Energy Data Entry'!Y29=0,\"\",'Energy Data Entry'!E29+'Energy Data Entry'!J29+'Energy Data Entry'!O29+'Energy Data Entry'!T29+'Energy Data Entry'!Y29)","v":""},{"$f":"IF('Energy Data Entry'!F29+'Energy Data Entry'!K29+'Energy Data Entry'!P29++'Energy Data Entry'!U29+'Energy Data Entry'!Z29=0,\"\",'Energy Data Entry'!F29+'Energy Data Entry'!K29+'Energy Data Entry'!P29++'Energy Data Entry'!U29+'Energy Data Entry'!Z29)","v":""},{"$f":"IF('Energy Data Entry'!G29+'Energy Data Entry'!L29+'Energy Data Entry'!Q29+'Energy Data Entry'!V29+'Energy Data Entry'!AA29=0,\"\",'Energy Data Entry'!G29+'Energy Data Entry'!L29+'Energy Data Entry'!Q29+'Energy Data Entry'!V29+'Energy Data Entry'!AA29)","v":""},{"$f":"IF('Energy Data Entry'!D29+'Energy Data Entry'!I29+'Energy Data Entry'!N29+'Energy Data Entry'!S29+'Energy Data Entry'!X29=0,\"\",'Energy Data Entry'!D29+'Energy Data Entry'!I29+'Energy Data Entry'!N29+'Energy Data Entry'!S29+'Energy Data Entry'!X29)","v":""},{"$f":"'Energy Data Entry'!AF29","v":0},{"$f":"IFERROR(Table4[[#This Row],[Total electric cost]]/Table4[[#This Row],[Electric kWh usage]],\"\")","v":""},{"$f":"IFERROR(Table4[[#This Row],[Electric Demand Cost]]/Table4[[#This Row],[Total Electric Demand (Billed)]],IFERROR(Table4[[#This Row],[Electric Demand Cost]]/Table4[[#This Row],[Total Electric Demand (Actual)]],\"\"))","v":""},{"$f":"IFERROR(Table4[[#This Row],[Total Gas cost]]+Table4[[#This Row],[Total electric cost]],\"\")","v":""},null,{"$f":"IFERROR(Table4[[#This Row],[Total Energy Cost]]/Table4[[#This Row],[Monthly Flow]],\"\")","v":""},{"$f":"IFERROR(Table4[[#This Row],[Total Energy Cost]]/Table4[[#This Row],[Total BOD removed]],\"\")","v":""},null,{"$f":"IF('Process Data Entry'!G10=\"\",\"\",'Process Data Entry'!G10)","v":""},{"$f":"IF('Process Data Entry'!H10=\"\",\"\",'Process Data Entry'!H10)","v":""},{"$f":"IF('Process Data Entry'!I10=\"\",0,'Process Data Entry'!I10)","v":0},{"$f":"IF('Process Data Entry'!J10=\"\",\"\",'Process Data Entry'!J10)","v":""},{"$f":"IF('Process Data Entry'!K10=\"\",\"\",'Process Data Entry'!K10)","v":""},{"$f":"IF('Process Data Entry'!L10=\"\",\"\",'Process Data Entry'!L10)","v":""},"","",{"$f":"IF('Process Data Entry'!M10=\"\",\"\",'Process Data Entry'!M10)","v":""},{"$f":"IF('Process Data Entry'!N10=\"\",\"\",'Process Data Entry'!N10)","v":""},""]
[1,{"$f":"'Energy Data Entry'!B30","v":"2018-01-01"},{"$f":"IF(OR('Process Data Entry'!C11=\"\",'Process Data Entry'!C11=0),\"\",'Process Data Entry'!C11)","v":""},{"$f":"IF(Table4[Avg Daily Flow]=\"\",\"\",_xlfn.DAYS(EOMONTH(B9,0),EOMONTH(B9,-1))*C9)","v":""},{"$f":"IF('Process Data Entry'!F11=\"\",\"\",'Process Data Entry'!F11)","v":""},{"$f":"IF(Table4[BOD removed]=\"\",\"\",Table4[BOD removed]*_xlfn.DAYS(EOMONTH(Table4[[#This Row],[Column2]],0),EOMONTH(Table4[[#This Row],[Column2]],-1)))","v":""},{"$f":"IF(SUM('Energy Data Entry'!C30,'Energy Data Entry'!H30,'Energy Data Entry'!M30,'Energy Data Entry'!R30,'Energy Data Entry'!W30)=0,\"\",SUM('Energy Data Entry'!C30,'Energy Data Entry'!H30,'Energy Data Entry'!M30,'Energy Data Entry'!R30,'Energy Data Entry'!W30))","v":""},{"$f":"'Energy Data Entry'!AG30","v":0},{"$f":"IF(Table4[[#This Row],[Electric kWh usage]]=\"\",\"\",Table4[[#This Row],[Gas kWh usage]]+Table4[[#This Row],[Electric kWh usage]])","v":""},{"$f":"IF(OR(Table4[[#This Row],[Electric kWh usage]]=\"\",Table4[[#This Row],[Monthly Flow]]=\"\"),\"\",(Table4[[#This Row],[Electric kWh usage]]+Table4[[#This Row],[Gas kWh usage]])/Table4[[#This Row],[Monthly Flow]])","v":""},{"$f":"IFERROR(IF(Table4[[#This Row],[Electric kWh usage]]=\"\",\"\",(Table4[[#This Row],[Electric kWh usage]]+Table4[[#This Row],[Gas kWh usage]])/Table4[[#This Row],[Total BOD removed]]),\"\")","v":""},{"$f":"IF('Energy Data Entry'!E30+'Energy Data Entry'!J30+'Energy Data Entry'!O30+'Energy Data Entry'!T30+'Energy Data Entry'!Y30=0,\"\",'Energy Data Entry'!E30+'Energy Data Entry'!J30+'Energy Data Entry'!O30+'Energy Data Entry'!T30+'Energy Data Entry'!Y30)","v":""},{"$f":"IF('Energy Data Entry'!F30+'Energy Data Entry'!K30+'Energy Data Entry'!P30++'Energy Data Entry'!U30+'Energy Data Entry'!Z30=0,\"\",'Energy Data Entry'!F30+'Energy Data Entry'!K30+'Energy Data Entry'!P30++'Energy Data Entry'!U30+'Energy Data Entry'!Z30)","v":""},{"$f":"IF('Energy Data Entry'!G30+'Energy Data Entry'!L30+'Energy Data Entry'!Q30+'Energy Data Entry'!V30+'Energy Data Entry'!AA30=0,\"\",'Energy Data Entry'!G30+'Energy Data Entry'!L30+'Energy Data Entry'!Q30+'Energy Data Entry'!V30+'Energy Data Entry'!AA30)","v":""},{"$f":"IF('Energy Data Entry'!D30+'Energy Data Entry'!I30+'Energy Data Entry'!N30+'Energy Data Entry'!S30+'Energy Data Entry'!X30=0,\"\",'Energy Data Entry'!D30+'Energy Data Entry'!I30+'Energy Data Entry'!N30+'Energy Data Entry'!S30+'Energy Data Entry'!X30)","v":""},{"$f":"'Energy Data Entry'!AF30","v":0},{"$f":"IFERROR(Table4[[#This Row],[Total electric cost]]/Table4[[#This Row],[Electric kWh usage]],\"\")","v":""},{"$f":"IFERROR(Table4[[#This Row],[Electric Demand Cost]]/Table4[[#This Row],[Total Electric Demand (Billed)]],IFERROR(Table4[[#This Row],[Electric Demand Cost]]/Table4[[#This Row],[Total Electric Demand (Actual)]],\"\"))","v":""},{"$f":"IFERROR(Table4[[#This Row],[Total Gas cost]]+Table4[[#This Row],[Total electric cost]],\"\")","v":""},null,{"$f":"IFERROR(Table4[[#This Row],[Total Energy Cost]]/Table4[[#This Row],[Monthly Flow]],\"\")","v":""},{"$f":"IFERROR(Table4[[#This Row],[Total Energy Cost]]/Table4[[#This Row],[Total BOD removed]],\"\")","v":""},null,{"$f":"IF('Process Data Entry'!G11=\"\",\"\",'Process Data Entry'!G11)","v":""},{"$f":"IF('Process Data Entry'!H11=\"\",\"\",'Process Data Entry'!H11)","v":""},{"$f":"IF('Process Data Entry'!I11=\"\",0,'Process Data Entry'!I11)","v":0},{"$f":"IF('Process Data Entry'!J11=\"\",\"\",'Process Data Entry'!J11)","v":""},{"$f":"IF('Process Data Entry'!K11=\"\",\"\",'Process Data Entry'!K11)","v":""},{"$f":"IF('Process Data Entry'!L11=\"\",\"\",'Process Data Entry'!L11)","v":""},"","",{"$f":"IF('Process Data Entry'!M11=\"\",\"\",'Process Data Entry'!M11)","v":""},{"$f":"IF('Process Data Entry'!N11=\"\",\"\",'Process Data Entry'!N11)","v":""},""]
[1,{"$f":"'Energy Data Entry'!B31","v":"2018-02-01"},{"$f":"IF(OR('Process Data Entry'!C12=\"\",'Process Data Entry'!C12=0),\"\",'Process Data Entry'!C12)","v":""},{"$f":"IF(Table4[Avg Daily Flow]=\"\",\"\",_xlfn.DAYS(EOMONTH(B10,0),EOMONTH(B10,-1))*C10)","v":""},{"$f":"IF('Process Data Entry'!F12=\"\",\"\",'Process Data Entry'!F12)","v":""},{"$f":"IF(Table4[BOD removed]=\"\",\"\",Table4[BOD removed]*_xlfn.DAYS(EOMONTH(Table4[[#This Row],[Column2]],0),EOMONTH(Table4[[#This Row],[Column2]],-1)))","v":""},{"$f":"IF(SUM('Energy Data Entry'!C31,'Energy Data Entry'!H31,'Energy Data Entry'!M31,'Energy Data Entry'!R31,'Energy Data Entry'!W31)=0,\"\",SUM('Energy Data Entry'!C31,'Energy Data Entry'!H31,'Energy Data Entry'!M31,'Energy Data Entry'!R31,'Energy Data Entry'!W31))","v":""},{"$f":"'Energy Data Entry'!AG31","v":0},{"$f":"IF(Table4[[#This Row],[Electric kWh usage]]=\"\",\"\",Table4[[#This Row],[Gas kWh usage]]+Table4[[#This Row],[Electric kWh usage]])","v":""},{"$f":"IF(OR(Table4[[#This Row],[Electric kWh usage]]=\"\",Table4[[#This Row],[Monthly Flow]]=\"\"),\"\",(Table4[[#This Row],[Electric kWh usage]]+Table4[[#This Row],[Gas kWh usage]])/Table4[[#This Row],[Monthly Flow]])","v":""},{"$f":"IFERROR(IF(Table4[[#This Row],[Electric kWh usage]]=\"\",\"\",(Table4[[#This Row],[Electric kWh usage]]+Table4[[#This Row],[Gas kWh usage]])/Table4[[#This Row],[Total BOD removed]]),\"\")","v":""},{"$f":"IF('Energy Data Entry'!E31+'Energy Data Entry'!J31+'Energy Data Entry'!O31+'Energy Data Entry'!T31+'Energy Data Entry'!Y31=0,\"\",'Energy Data Entry'!E31+'Energy Data Entry'!J31+'Energy Data Entry'!O31+'Energy Data Entry'!T31+'Energy Data Entry'!Y31)","v":""},{"$f":"IF('Energy Data Entry'!F31+'Energy Data Entry'!K31+'Energy Data Entry'!P31++'Energy Data Entry'!U31+'Energy Data Entry'!Z31=0,\"\",'Energy Data Entry'!F31+'Energy Data Entry'!K31+'Energy Data Entry'!P31++'Energy Data Entry'!U31+'Energy Data Entry'!Z31)","v":""},{"$f":"IF('Energy Data Entry'!G31+'Energy Data Entry'!L31+'Energy Data Entry'!Q31+'Energy Data Entry'!V31+'Energy Data Entry'!AA31=0,\"\",'Energy Data Entry'!G31+'Energy Data Entry'!L31+'Energy Data Entry'!Q31+'Energy Data Entry'!V31+'Energy Data Entry'!AA31)","v":""},{"$f":"IF('Energy Data Entry'!D31+'Energy Data Entry'!I31+'Energy Data Entry'!N31+'Energy Data Entry'!S31+'Energy Data Entry'!X31=0,\"\",'Energy Data Entry'!D31+'Energy Data Entry'!I31+'Energy Data Entry'!N31+'Energy Data Entry'!S31+'Energy Data Entry'!X31)","v":""},{"$f":"'Energy Data Entry'!AF31","v":0},{"$f":"IFERROR(Table4[[#This Row],[Total electric cost]]/Table4[[#This Row],[Electric kWh usage]],\"\")","v":""},{"$f":"IFERROR(Table4[[#This Row],[Electric Demand Cost]]/Table4[[#This Row],[Total Electric Demand (Billed)]],IFERROR(Table4[[#This Row],[Electric Demand Cost]]/Table4[[#This Row],[Total Electric Demand (Actual)]],\"\"))","v":""},{"$f":"IFERROR(Table4[[#This Row],[Total Gas cost]]+Table4[[#This Row],[Total electric cost]],\"\")","v":""},null,{"$f":"IFERROR(Table4[[#This Row],[Total Energy Cost]]/Table4[[#This Row],[Monthly Flow]],\"\")","v":""},{"$f":"IFERROR(Table4[[#This Row],[Total Energy Cost]]/Table4[[#This Row],[Total BOD removed]],\"\")","v":""},null,{"$f":"IF('Process Data Entry'!G12=\"\",\"\",'Process Data Entry'!G12)","v":""},{"$f":"IF('Process Data Entry'!H12=\"\",\"\",'Process Data Entry'!H12)","v":""},{"$f":"IF('Process Data Entry'!I12=\"\",0,'Process Data Entry'!I12)","v":0},{"$f":"IF('Process Data Entry'!J12=\"\",\"\",'Process Data Entry'!J12)","v":""},{"$f":"IF('Process Data Entry'!K12=\"\",\"\",'Process Data Entry'!K12)","v":""},{"$f":"IF('Process Data Entry'!L12=\"\",\"\",'Process Data Entry'!L12)","v":""},"","",{"$f":"IF('Process Data Entry'!M12=\"\",\"\",'Process Data Entry'!M12)","v":""},{"$f":"IF('Process Data Entry'!N12=\"\",\"\",'Process Data Entry'!N12)","v":""},""]
[1,{"$f":"'Energy Data Entry'!B32","v":"2018-03-01"},{"$f":"IF(OR('Process Data Entry'!C13=\"\",'Process Data Entry'!C13=0),\"\",'Process Data Entry'!C13)","v":""},{"$f":"IF(Table4[Avg Daily Flow]=\"\",\"\",_xlfn.DAYS(EOMONTH(B11,0),EOMONTH(B11,-1))*C11)","v":""},{"$f":"IF('Process Data Entry'!F13=\"\",\"\",'Process Data Entry'!F13)","v":""},{"$f":"IF(Table4[BOD removed]=\"\",\"\",Table4[BOD removed]*_xlfn.DAYS(EOMONTH(Table4[[#This Row],[Column2]],0),EOMONTH(Table4[[#This Row],[Column2]],-1)))","v":""},{"$f":"IF(SUM('Energy Data Entry'!C32,'Energy Data Entry'!H32,'Energy Data Entry'!M32,'Energy Data Entry'!R32,'Energy Data Entry'!W32)=0,\"\",SUM('Energy Data Entry'!C32,'Energy Data Entry'!H32,'Energy Data Entry'!M32,'Energy Data Entry'!R32,'Energy Data Entry'!W32))","v":""},{"$f":"'Energy Data Entry'!AG32","v":0},{"$f":"IF(Table4[[#This Row],[Electric kWh usage]]=\"\",\"\",Table4[[#This Row],[Gas kWh usage]]+Table4[[#This Row],[Electric kWh usage]])","v":""},{"$f":"IF(OR(Table4[[#This Row],[Electric kWh usage]]=\"\",Table4[[#This Row],[Monthly Flow]]=\"\"),\"\",(Table4[[#This Row],[Electric kWh usage]]+Table4[[#This Row],[Gas kWh usage]])/Table4[[#This Row],[Monthly Flow]])","v":""},{"$f":"IFERROR(IF(Table4[[#This Row],[Electric kWh usage]]=\"\",\"\",(Table4[[#This Row],[Electric kWh usage]]+Table4[[#This Row],[Gas kWh usage]])/Table4[[#This Row],[Total BOD removed]]),\"\")","v":""},{"$f":"IF('Energy Data Entry'!E32+'Energy Data Entry'!J32+'Energy Data Entry'!O32+'Energy Data Entry'!T32+'Energy Data Entry'!Y32=0,\"\",'Energy Data Entry'!E32+'Energy Data Entry'!J32+'Energy Data Entry'!O32+'Energy Data Entry'!T32+'Energy Data Entry'!Y32)","v":""},{"$f":"IF('Energy Data Entry'!F32+'Energy Data Entry'!K32+'Energy Data Entry'!P32++'Energy Data Entry'!U32+'Energy Data Entry'!Z32=0,\"\",'Energy Data Entry'!F32+'Energy Data Entry'!K32+'Energy Data Entry'!P32++'Energy Data Entry'!U32+'Energy Data Entry'!Z32)","v":""},{"$f":"IF('Energy Data Entry'!G32+'Energy Data Entry'!L32+'Energy Data Entry'!Q32+'Energy Data Entry'!V32+'Energy Data Entry'!AA32=0,\"\",'Energy Data Entry'!G32+'Energy Data Entry'!L32+'Energy Data Entry'!Q32+'Energy Data Entry'!V32+'Energy Data Entry'!AA32)","v":""},{"$f":"IF('Energy Data Entry'!D32+'Energy Data Entry'!I32+'Energy Data Entry'!N32+'Energy Data Entry'!S32+'Energy Data Entry'!X32=0,\"\",'Energy Data Entry'!D32+'Energy Data Entry'!I32+'Energy Data Entry'!N32+'Energy Data Entry'!S32+'Energy Data Entry'!X32)","v":""},{"$f":"'Energy Data Entry'!AF32","v":0},{"$f":"IFERROR(Table4[[#This Row],[Total electric cost]]/Table4[[#This Row],[Electric kWh usage]],\"\")","v":""},{"$f":"IFERROR(Table4[[#This Row],[Electric Demand Cost]]/Table4[[#This Row],[Total Electric Demand (Billed)]],IFERROR(Table4[[#This Row],[Electric Demand Cost]]/Table4[[#This Row],[Total Electric Demand (Actual)]],\"\"))","v":""},{"$f":"IFERROR(Table4[[#This Row],[Total Gas cost]]+Table4[[#This Row],[Total electric cost]],\"\")","v":""},null,{"$f":"IFERROR(Table4[[#This Row],[Total Energy Cost]]/Table4[[#This Row],[Monthly Flow]],\"\")","v":""},{"$f":"IFERROR(Table4[[#This Row],[Total Energy Cost]]/Table4[[#This Row],[Total BOD removed]],\"\")","v":""},null,{"$f":"IF('Process Data Entry'!G13=\"\",\"\",'Process Data Entry'!G13)","v":""},{"$f":"IF('Process Data Entry'!H13=\"\",\"\",'Process Data Entry'!H13)","v":""},{"$f":"IF('Process Data Entry'!I13=\"\",0,'Process Data Entry'!I13)","v":0},{"$f":"IF('Process Data Entry'!J13=\"\",\"\",'Process Data Entry'!J13)","v":""},{"$f":"IF('Process Data Entry'!K13=\"\",\"\",'Process Data Entry'!K13)","v":""},{"$f":"IF('Process Data Entry'!L13=\"\",\"\",'Process Data Entry'!L13)","v":""},"","",{"$f":"IF('Process Data Entry'!M13=\"\",\"\",'Process Data Entry'!M13)","v":""},{"$f":"IF('Process Data Entry'!N13=\"\",\"\",'Process Data Entry'!N13)","v":""},""]
[1,{"$f":"'Energy Data Entry'!B33","v":"2018-04-01"},{"$f":"IF(OR('Process Data Entry'!C14=\"\",'Process Data Entry'!C14=0),\"\",'Process Data Entry'!C14)","v":""},{"$f":"IF(Table4[Avg Daily Flow]=\"\",\"\",_xlfn.DAYS(EOMONTH(B12,0),EOMONTH(B12,-1))*C12)","v":""},{"$f":"IF('Process Data Entry'!F14=\"\",\"\",'Process Data Entry'!F14)","v":""},{"$f":"IF(Table4[BOD removed]=\"\",\"\",Table4[BOD removed]*_xlfn.DAYS(EOMONTH(Table4[[#This Row],[Column2]],0),EOMONTH(Table4[[#This Row],[Column2]],-1)))","v":""},{"$f":"IF(SUM('Energy Data Entry'!C33,'Energy Data Entry'!H33,'Energy Data Entry'!M33,'Energy Data Entry'!R33,'Energy Data Entry'!W33)=0,\"\",SUM('Energy Data Entry'!C33,'Energy Data Entry'!H33,'Energy Data Entry'!M33,'Energy Data Entry'!R33,'Energy Data Entry'!W33))","v":""},{"$f":"'Energy Data Entry'!AG33","v":0},{"$f":"IF(Table4[[#This Row],[Electric kWh usage]]=\"\",\"\",Table4[[#This Row],[Gas kWh usage]]+Table4[[#This Row],[Electric kWh usage]])","v":""},{"$f":"IF(OR(Table4[[#This Row],[Electric kWh usage]]=\"\",Table4[[#This Row],[Monthly Flow]]=\"\"),\"\",(Table4[[#This Row],[Electric kWh usage]]+Table4[[#This Row],[Gas kWh usage]])/Table4[[#This Row],[Monthly Flow]])","v":""},{"$f":"IFERROR(IF(Table4[[#This Row],[Electric kWh usage]]=\"\",\"\",(Table4[[#This Row],[Electric kWh usage]]+Table4[[#This Row],[Gas kWh usage]])/Table4[[#This Row],[Total BOD removed]]),\"\")","v":""},{"$f":"IF('Energy Data Entry'!E33+'Energy Data Entry'!J33+'Energy Data Entry'!O33+'Energy Data Entry'!T33+'Energy Data Entry'!Y33=0,\"\",'Energy Data Entry'!E33+'Energy Data Entry'!J33+'Energy Data Entry'!O33+'Energy Data Entry'!T33+'Energy Data Entry'!Y33)","v":""},{"$f":"IF('Energy Data Entry'!F33+'Energy Data Entry'!K33+'Energy Data Entry'!P33++'Energy Data Entry'!U33+'Energy Data Entry'!Z33=0,\"\",'Energy Data Entry'!F33+'Energy Data Entry'!K33+'Energy Data Entry'!P33++'Energy Data Entry'!U33+'Energy Data Entry'!Z33)","v":""},{"$f":"IF('Energy Data Entry'!G33+'Energy Data Entry'!L33+'Energy Data Entry'!Q33+'Energy Data Entry'!V33+'Energy Data Entry'!AA33=0,\"\",'Energy Data Entry'!G33+'Energy Data Entry'!L33+'Energy Data Entry'!Q33+'Energy Data Entry'!V33+'Energy Data Entry'!AA33)","v":""},{"$f":"IF('Energy Data Entry'!D33+'Energy Data Entry'!I33+'Energy Data Entry'!N33+'Energy Data Entry'!S33+'Energy Data Entry'!X33=0,\"\",'Energy Data Entry'!D33+'Energy Data Entry'!I33+'Energy Data Entry'!N33+'Energy Data Entry'!S33+'Energy Data Entry'!X33)","v":""},{"$f":"'Energy Data Entry'!AF33","v":0},{"$f":"IFERROR(Table4[[#This Row],[Total electric cost]]/Table4[[#This Row],[Electric kWh usage]],\"\")","v":""},{"$f":"IFERROR(Table4[[#This Row],[Electric Demand Cost]]/Table4[[#This Row],[Total Electric Demand (Billed)]],IFERROR(Table4[[#This Row],[Electric Demand Cost]]/Table4[[#This Row],[Total Electric Demand (Actual)]],\"\"))","v":""},{"$f":"IFERROR(Table4[[#This Row],[Total Gas cost]]+Table4[[#This Row],[Total electric cost]],\"\")","v":""},null,{"$f":"IFERROR(Table4[[#This Row],[Total Energy Cost]]/Table4[[#This Row],[Monthly Flow]],\"\")","v":""},{"$f":"IFERROR(Table4[[#This Row],[Total Energy Cost]]/Table4[[#This Row],[Total BOD removed]],\"\")","v":""},null,{"$f":"IF('Process Data Entry'!G14=\"\",\"\",'Process Data Entry'!G14)","v":""},{"$f":"IF('Process Data Entry'!H14=\"\",\"\",'Process Data Entry'!H14)","v":""},{"$f":"IF('Process Data Entry'!I14=\"\",0,'Process Data Entry'!I14)","v":0},{"$f":"IF('Process Data Entry'!J14=\"\",\"\",'Process Data Entry'!J14)","v":""},{"$f":"IF('Process Data Entry'!K14=\"\",\"\",'Process Data Entry'!K14)","v":""},{"$f":"IF('Process Data Entry'!L14=\"\",\"\",'Process Data Entry'!L14)","v":""},"","",{"$f":"IF('Process Data Entry'!M14=\"\",\"\",'Process Data Entry'!M14)","v":""},{"$f":"IF('Process Data Entry'!N14=\"\",\"\",'Process Data Entry'!N14)","v":""},""]
[1,{"$f":"'Energy Data Entry'!B34","v":"2018-05-01"},{"$f":"IF(OR('Process Data Entry'!C15=\"\",'Process Data Entry'!C15=0),\"\",'Process Data Entry'!C15)","v":""},{"$f":"IF(Table4[Avg Daily Flow]=\"\",\"\",_xlfn.DAYS(EOMONTH(B13,0),EOMONTH(B13,-1))*C13)","v":""},{"$f":"IF('Process Data Entry'!F15=\"\",\"\",'Process Data Entry'!F15)","v":""},{"$f":"IF(Table4[BOD removed]=\"\",\"\",Table4[BOD removed]*_xlfn.DAYS(EOMONTH(Table4[[#This Row],[Column2]],0),EOMONTH(Table4[[#This Row],[Column2]],-1)))","v":""},{"$f":"IF(SUM('Energy Data Entry'!C34,'Energy Data Entry'!H34,'Energy Data Entry'!M34,'Energy Data Entry'!R34,'Energy Data Entry'!W34)=0,\"\",SUM('Energy Data Entry'!C34,'Energy Data Entry'!H34,'Energy Data Entry'!M34,'Energy Data Entry'!R34,'Energy Data Entry'!W34))","v":""},{"$f":"'Energy Data Entry'!AG34","v":0},{"$f":"IF(Table4[[#This Row],[Electric kWh usage]]=\"\",\"\",Table4[[#This Row],[Gas kWh usage]]+Table4[[#This Row],[Electric kWh usage]])","v":""},{"$f":"IF(OR(Table4[[#This Row],[Electric kWh usage]]=\"\",Table4[[#This Row],[Monthly Flow]]=\"\"),\"\",(Table4[[#This Row],[Electric kWh usage]]+Table4[[#This Row],[Gas kWh usage]])/Table4[[#This Row],[Monthly Flow]])","v":""},{"$f":"IFERROR(IF(Table4[[#This Row],[Electric kWh usage]]=\"\",\"\",(Table4[[#This Row],[Electric kWh usage]]+Table4[[#This Row],[Gas kWh usage]])/Table4[[#This Row],[Total BOD removed]]),\"\")","v":""},{"$f":"IF('Energy Data Entry'!E34+'Energy Data Entry'!J34+'Energy Data Entry'!O34+'Energy Data Entry'!T34+'Energy Data Entry'!Y34=0,\"\",'Energy Data Entry'!E34+'Energy Data Entry'!J34+'Energy Data Entry'!O34+'Energy Data Entry'!T34+'Energy Data Entry'!Y34)","v":""},{"$f":"IF('Energy Data Entry'!F34+'Energy Data Entry'!K34+'Energy Data Entry'!P34++'Energy Data Entry'!U34+'Energy Data Entry'!Z34=0,\"\",'Energy Data Entry'!F34+'Energy Data Entry'!K34+'Energy Data Entry'!P34++'Energy Data Entry'!U34+'Energy Data Entry'!Z34)","v":""},{"$f":"IF('Energy Data Entry'!G34+'Energy Data Entry'!L34+'Energy Data Entry'!Q34+'Energy Data Entry'!V34+'Energy Data Entry'!AA34=0,\"\",'Energy Data Entry'!G34+'Energy Data Entry'!L34+'Energy Data Entry'!Q34+'Energy Data Entry'!V34+'Energy Data Entry'!AA34)","v":""},{"$f":"IF('Energy Data Entry'!D34+'Energy Data Entry'!I34+'Energy Data Entry'!N34+'Energy Data Entry'!S34+'Energy Data Entry'!X34=0,\"\",'Energy Data Entry'!D34+'Energy Data Entry'!I34+'Energy Data Entry'!N34+'Energy Data Entry'!S34+'Energy Data Entry'!X34)","v":""},{"$f":"'Energy Data Entry'!AF34","v":0},{"$f":"IFERROR(Table4[[#This Row],[Total electric cost]]/Table4[[#This Row],[Electric kWh usage]],\"\")","v":""},{"$f":"IFERROR(Table4[[#This Row],[Electric Demand Cost]]/Table4[[#This Row],[Total Electric Demand (Billed)]],IFERROR(Table4[[#This Row],[Electric Demand Cost]]/Table4[[#This Row],[Total Electric Demand (Actual)]],\"\"))","v":""},{"$f":"IFERROR(Table4[[#This Row],[Total Gas cost]]+Table4[[#This Row],[Total electric cost]],\"\")","v":""},null,{"$f":"IFERROR(Table4[[#This Row],[Total Energy Cost]]/Table4[[#This Row],[Monthly Flow]],\"\")","v":""},{"$f":"IFERROR(Table4[[#This Row],[Total Energy Cost]]/Table4[[#This Row],[Total BOD removed]],\"\")","v":""},null,{"$f":"IF('Process Data Entry'!G15=\"\",\"\",'Process Data Entry'!G15)","v":""},{"$f":"IF('Process Data Entry'!H15=\"\",\"\",'Process Data Entry'!H15)","v":""},{"$f":"IF('Process Data Entry'!I15=\"\",0,'Process Data Entry'!I15)","v":0},{"$f":"IF('Process Data Entry'!J15=\"\",\"\",'Process Data Entry'!J15)","v":""},{"$f":"IF('Process Data Entry'!K15=\"\",\"\",'Process Data Entry'!K15)","v":""},{"$f":"IF('Process Data Entry'!L15=\"\",\"\",'Process Data Entry'!L15)","v":""},"","",{"$f":"IF('Process Data Entry'!M15=\"\",\"\",'Process Data Entry'!M15)","v":""},{"$f":"IF('Process Data Entry'!N15=\"\",\"\",'Process Data Entry'!N15)","v":""},""]
[1,{"$f":"'Energy Data Entry'!B35","v":"2018-06-01"},{"$f":"IF(OR('Process Data Entry'!C16=\"\",'Process Data Entry'!C16=0),\"\",'Process Data Entry'!C16)","v":""},{"$f":"IF(Table4[Avg Daily Flow]=\"\",\"\",_xlfn.DAYS(EOMONTH(B14,0),EOMONTH(B14,-1))*C14)","v":""},{"$f":"IF('Process Data Entry'!F16=\"\",\"\",'Process Data Entry'!F16)","v":""},{"$f":"IF(Table4[BOD removed]=\"\",\"\",Table4[BOD removed]*_xlfn.DAYS(EOMONTH(Table4[[#This Row],[Column2]],0),EOMONTH(Table4[[#This Row],[Column2]],-1)))","v":""},{"$f":"IF(SUM('Energy Data Entry'!C35,'Energy Data Entry'!H35,'Energy Data Entry'!M35,'Energy Data Entry'!R35,'Energy Data Entry'!W35)=0,\"\",SUM('Energy Data Entry'!C35,'Energy Data Entry'!H35,'Energy Data Entry'!M35,'Energy Data Entry'!R35,'Energy Data Entry'!W35))","v":""},{"$f":"'Energy Data Entry'!AG35","v":0},{"$f":"IF(Table4[[#This Row],[Electric kWh usage]]=\"\",\"\",Table4[[#This Row],[Gas kWh usage]]+Table4[[#This Row],[Electric kWh usage]])","v":""},{"$f":"IF(OR(Table4[[#This Row],[Electric kWh usage]]=\"\",Table4[[#This Row],[Monthly Flow]]=\"\"),\"\",(Table4[[#This Row],[Electric kWh usage]]+Table4[[#This Row],[Gas kWh usage]])/Table4[[#This Row],[Monthly Flow]])","v":""},{"$f":"IFERROR(IF(Table4[[#This Row],[Electric kWh usage]]=\"\",\"\",(Table4[[#This Row],[Electric kWh usage]]+Table4[[#This Row],[Gas kWh usage]])/Table4[[#This Row],[Total BOD removed]]),\"\")","v":""},{"$f":"IF('Energy Data Entry'!E35+'Energy Data Entry'!J35+'Energy Data Entry'!O35+'Energy Data Entry'!T35+'Energy Data Entry'!Y35=0,\"\",'Energy Data Entry'!E35+'Energy Data Entry'!J35+'Energy Data Entry'!O35+'Energy Data Entry'!T35+'Energy Data Entry'!Y35)","v":""},{"$f":"IF('Energy Data Entry'!F35+'Energy Data Entry'!K35+'Energy Data Entry'!P35++'Energy Data Entry'!U35+'Energy Data Entry'!Z35=0,\"\",'Energy Data Entry'!F35+'Energy Data Entry'!K35+'Energy Data Entry'!P35++'Energy Data Entry'!U35+'Energy Data Entry'!Z35)","v":""},{"$f":"IF('Energy Data Entry'!G35+'Energy Data Entry'!L35+'Energy Data Entry'!Q35+'Energy Data Entry'!V35+'Energy Data Entry'!AA35=0,\"\",'Energy Data Entry'!G35+'Energy Data Entry'!L35+'Energy Data Entry'!Q35+'Energy Data Entry'!V35+'Energy Data Entry'!AA35)","v":""},{"$f":"IF('Energy Data Entry'!D35+'Energy Data Entry'!I35+'Energy Data Entry'!N35+'Energy Data Entry'!S35+'Energy Data Entry'!X35=0,\"\",'Energy Data Entry'!D35+'Energy Data Entry'!I35+'Energy Data Entry'!N35+'Energy Data Entry'!S35+'Energy Data Entry'!X35)","v":""},{"$f":"'Energy Data Entry'!AF35","v":0},{"$f":"IFERROR(Table4[[#This Row],[Total electric cost]]/Table4[[#This Row],[Electric kWh usage]],\"\")","v":""},{"$f":"IFERROR(Table4[[#This Row],[Electric Demand Cost]]/Table4[[#This Row],[Total Electric Demand (Billed)]],IFERROR(Table4[[#This Row],[Electric Demand Cost]]/Table4[[#This Row],[Total Electric Demand (Actual)]],\"\"))","v":""},{"$f":"IFERROR(Table4[[#This Row],[Total Gas cost]]+Table4[[#This Row],[Total electric cost]],\"\")","v":""},null,{"$f":"IFERROR(Table4[[#This Row],[Total Energy Cost]]/Table4[[#This Row],[Monthly Flow]],\"\")","v":""},{"$f":"IFERROR(Table4[[#This Row],[Total Energy Cost]]/Table4[[#This Row],[Total BOD removed]],\"\")","v":""},null,{"$f":"IF('Process Data Entry'!G16=\"\",\"\",'Process Data Entry'!G16)","v":""},{"$f":"IF('Process Data Entry'!H16=\"\",\"\",'Process Data Entry'!H16)","v":""},{"$f":"IF('Process Data Entry'!I16=\"\",0,'Process Data Entry'!I16)","v":0},{"$f":"IF('Process Data Entry'!J16=\"\",\"\",'Process Data Entry'!J16)","v":""},{"$f":"IF('Process Data Entry'!K16=\"\",\"\",'Process Data Entry'!K16)","v":""},{"$f":"IF('Process Data Entry'!L16=\"\",\"\",'Process Data Entry'!L16)","v":""},"","",{"$f":"IF('Process Data Entry'!M16=\"\",\"\",'Process Data Entry'!M16)","v":""},{"$f":"IF('Process Data Entry'!N16=\"\",\"\",'Process Data Entry'!N16)","v":""},""]
[1,{"$f":"'Energy Data Entry'!B36","v":"2018-07-01"},{"$f":"IF(OR('Process Data Entry'!C17=\"\",'Process Data Entry'!C17=0),\"\",'Process Data Entry'!C17)","v":""},{"$f":"IF(Table4[Avg Daily Flow]=\"\",\"\",_xlfn.DAYS(EOMONTH(B15,0),EOMONTH(B15,-1))*C15)","v":""},{"$f":"IF('Process Data Entry'!F17=\"\",\"\",'Process Data Entry'!F17)","v":""},{"$f":"IF(Table4[BOD removed]=\"\",\"\",Table4[BOD removed]*_xlfn.DAYS(EOMONTH(Table4[[#This Row],[Column2]],0),EOMONTH(Table4[[#This Row],[Column2]],-1)))","v":""},{"$f":"IF(SUM('Energy Data Entry'!C36,'Energy Data Entry'!H36,'Energy Data Entry'!M36,'Energy Data Entry'!R36,'Energy Data Entry'!W36)=0,\"\",SUM('Energy Data Entry'!C36,'Energy Data Entry'!H36,'Energy Data Entry'!M36,'Energy Data Entry'!R36,'Energy Data Entry'!W36))","v":""},{"$f":"'Energy Data Entry'!AG36","v":0},{"$f":"IF(Table4[[#This Row],[Electric kWh usage]]=\"\",\"\",Table4[[#This Row],[Gas kWh usage]]+Table4[[#This Row],[Electric kWh usage]])","v":""},{"$f":"IF(OR(Table4[[#This Row],[Electric kWh usage]]=\"\",Table4[[#This Row],[Monthly Flow]]=\"\"),\"\",(Table4[[#This Row],[Electric kWh usage]]+Table4[[#This Row],[Gas kWh usage]])/Table4[[#This Row],[Monthly Flow]])","v":""},{"$f":"IFERROR(IF(Table4[[#This Row],[Electric kWh usage]]=\"\",\"\",(Table4[[#This Row],[Electric kWh usage]]+Table4[[#This Row],[Gas kWh usage]])/Table4[[#This Row],[Total BOD removed]]),\"\")","v":""},{"$f":"IF('Energy Data Entry'!E36+'Energy Data Entry'!J36+'Energy Data Entry'!O36+'Energy Data Entry'!T36+'Energy Data Entry'!Y36=0,\"\",'Energy Data Entry'!E36+'Energy Data Entry'!J36+'Energy Data Entry'!O36+'Energy Data Entry'!T36+'Energy Data Entry'!Y36)","v":""},{"$f":"IF('Energy Data Entry'!F36+'Energy Data Entry'!K36+'Energy Data Entry'!P36++'Energy Data Entry'!U36+'Energy Data Entry'!Z36=0,\"\",'Energy Data Entry'!F36+'Energy Data Entry'!K36+'Energy Data Entry'!P36++'Energy Data Entry'!U36+'Energy Data Entry'!Z36)","v":""},{"$f":"IF('Energy Data Entry'!G36+'Energy Data Entry'!L36+'Energy Data Entry'!Q36+'Energy Data Entry'!V36+'Energy Data Entry'!AA36=0,\"\",'Energy Data Entry'!G36+'Energy Data Entry'!L36+'Energy Data Entry'!Q36+'Energy Data Entry'!V36+'Energy Data Entry'!AA36)","v":""},{"$f":"IF('Energy Data Entry'!D36+'Energy Data Entry'!I36+'Energy Data Entry'!N36+'Energy Data Entry'!S36+'Energy Data Entry'!X36=0,\"\",'Energy Data Entry'!D36+'Energy Data Entry'!I36+'Energy Data Entry'!N36+'Energy Data Entry'!S36+'Energy Data Entry'!X36)","v":""},{"$f":"'Energy Data Entry'!AF36","v":0},{"$f":"IFERROR(Table4[[#This Row],[Total electric cost]]/Table4[[#This Row],[Electric kWh usage]],\"\")","v":""},{"$f":"IFERROR(Table4[[#This Row],[Electric Demand Cost]]/Table4[[#This Row],[Total Electric Demand (Billed)]],IFERROR(Table4[[#This Row],[Electric Demand Cost]]/Table4[[#This Row],[Total Electric Demand (Actual)]],\"\"))","v":""},{"$f":"IFERROR(Table4[[#This Row],[Total Gas cost]]+Table4[[#This Row],[Total electric cost]],\"\")","v":""},null,{"$f":"IFERROR(Table4[[#This Row],[Total Energy Cost]]/Table4[[#This Row],[Monthly Flow]],\"\")","v":""},{"$f":"IFERROR(Table4[[#This Row],[Total Energy Cost]]/Table4[[#This Row],[Total BOD removed]],\"\")","v":""},null,{"$f":"IF('Process Data Entry'!G17=\"\",\"\",'Process Data Entry'!G17)","v":""},{"$f":"IF('Process Data Entry'!H17=\"\",\"\",'Process Data Entry'!H17)","v":""},{"$f":"IF('Process Data Entry'!I17=\"\",0,'Process Data Entry'!I17)","v":0},{"$f":"IF('Process Data Entry'!J17=\"\",\"\",'Process Data Entry'!J17)","v":""},{"$f":"IF('Process Data Entry'!K17=\"\",\"\",'Process Data Entry'!K17)","v":""},{"$f":"IF('Process Data Entry'!L17=\"\",\"\",'Process Data Entry'!L17)","v":""},"","",{"$f":"IF('Process Data Entry'!M17=\"\",\"\",'Process Data Entry'!M17)","v":""},{"$f":"IF('Process Data Entry'!N17=\"\",\"\",'Process Data Entry'!N17)","v":""},""]
[2,{"$f":"'Energy Data Entry'!B37","v":"2018-08-01"},{"$f":"IF(OR('Process Data Entry'!C18=\"\",'Process Data Entry'!C18=0),\"\",'Process Data Entry'!C18)","v":""},{"$f":"IF(Table4[Avg Daily Flow]=\"\",\"\",_xlfn.DAYS(EOMONTH(B16,0),EOMONTH(B16,-1))*C16)","v":""},{"$f":"IF('Process Data Entry'!F18=\"\",\"\",'Process Data Entry'!F18)","v":""},{"$f":"IF(Table4[BOD removed]=\"\",\"\",Table4[BOD removed]*_xlfn.DAYS(EOMONTH(Table4[[#This Row],[Column2]],0),EOMONTH(Table4[[#This Row],[Column2]],-1)))","v":""},{"$f":"IF(SUM('Energy Data Entry'!C37,'Energy Data Entry'!H37,'Energy Data Entry'!M37,'Energy Data Entry'!R37,'Energy Data Entry'!W37)=0,\"\",SUM('Energy Data Entry'!C37,'Energy Data Entry'!H37,'Energy Data Entry'!M37,'Energy Data Entry'!R37,'Energy Data Entry'!W37))","v":""},{"$f":"'Energy Data Entry'!AG37","v":0},{"$f":"IF(Table4[[#This Row],[Electric kWh usage]]=\"\",\"\",Table4[[#This Row],[Gas kWh usage]]+Table4[[#This Row],[Electric kWh usage]])","v":""},{"$f":"IF(OR(Table4[[#This Row],[Electric kWh usage]]=\"\",Table4[[#This Row],[Monthly Flow]]=\"\"),\"\",(Table4[[#This Row],[Electric kWh usage]]+Table4[[#This Row],[Gas kWh usage]])/Table4[[#This Row],[Monthly Flow]])","v":""},{"$f":"IFERROR(IF(Table4[[#This Row],[Electric kWh usage]]=\"\",\"\",(Table4[[#This Row],[Electric kWh usage]]+Table4[[#This Row],[Gas kWh usage]])/Table4[[#This Row],[Total BOD removed]]),\"\")","v":""},{"$f":"IF('Energy Data Entry'!E37+'Energy Data Entry'!J37+'Energy Data Entry'!O37+'Energy Data Entry'!T37+'Energy Data Entry'!Y37=0,\"\",'Energy Data Entry'!E37+'Energy Data Entry'!J37+'Energy Data Entry'!O37+'Energy Data Entry'!T37+'Energy Data Entry'!Y37)","v":""},{"$f":"IF('Energy Data Entry'!F37+'Energy Data Entry'!K37+'Energy Data Entry'!P37++'Energy Data Entry'!U37+'Energy Data Entry'!Z37=0,\"\",'Energy Data Entry'!F37+'Energy Data Entry'!K37+'Energy Data Entry'!P37++'Energy Data Entry'!U37+'Energy Data Entry'!Z37)","v":""},{"$f":"IF('Energy Data Entry'!G37+'Energy Data Entry'!L37+'Energy Data Entry'!Q37+'Energy Data Entry'!V37+'Energy Data Entry'!AA37=0,\"\",'Energy Data Entry'!G37+'Energy Data Entry'!L37+'Energy Data Entry'!Q37+'Energy Data Entry'!V37+'Energy Data Entry'!AA37)","v":""},{"$f":"IF('Energy Data Entry'!D37+'Energy Data Entry'!I37+'Energy Data Entry'!N37+'Energy Data Entry'!S37+'Energy Data Entry'!X37=0,\"\",'Energy Data Entry'!D37+'Energy Data Entry'!I37+'Energy Data Entry'!N37+'Energy Data Entry'!S37+'Energy Data Entry'!X37)","v":""},{"$f":"'Energy Data Entry'!AF37","v":0},{"$f":"IFERROR(Table4[[#This Row],[Total electric cost]]/Table4[[#This Row],[Electric kWh usage]],\"\")","v":""},{"$f":"IFERROR(Table4[[#This Row],[Electric Demand Cost]]/Table4[[#This Row],[Total Electric Demand (Billed)]],IFERROR(Table4[[#This Row],[Electric Demand Cost]]/Table4[[#This Row],[Total Electric Demand (Actual)]],\"\"))","v":""},{"$f":"IFERROR(Table4[[#This Row],[Total Gas cost]]+Table4[[#This Row],[Total electric cost]],\"\")","v":""},null,{"$f":"IFERROR(Table4[[#This Row],[Total Energy Cost]]/Table4[[#This Row],[Monthly Flow]],\"\")","v":""},{"$f":"IFERROR(Table4[[#This Row],[Total Energy Cost]]/Table4[[#This Row],[Total BOD removed]],\"\")","v":""},null,{"$f":"IF('Process Data Entry'!G18=\"\",\"\",'Process Data Entry'!G18)","v":""},{"$f":"IF('Process Data Entry'!H18=\"\",\"\",'Process Data Entry'!H18)","v":""},{"$f":"IF('Process Data Entry'!I18=\"\",0,'Process Data Entry'!I18)","v":0},{"$f":"IF('Process Data Entry'!J18=\"\",\"\",'Process Data Entry'!J18)","v":""},{"$f":"IF('Process Data Entry'!K18=\"\",\"\",'Process Data Entry'!K18)","v":""},{"$f":"IF('Process Data Entry'!L18=\"\",\"\",'Process Data Entry'!L18)","v":""},"","",{"$f":"IF('Process Data Entry'!M18=\"\",\"\",'Process Data Entry'!M18)","v":""},{"$f":"IF('Process Data Entry'!N18=\"\",\"\",'Process Data Entry'!N18)","v":""},""]
[2,{"$f":"'Energy Data Entry'!B38","v":"2018-09-01"},{"$f":"IF(OR('Process Data Entry'!C19=\"\",'Process Data Entry'!C19=0),\"\",'Process Data Entry'!C19)","v":""},{"$f":"IF(Table4[Avg Daily Flow]=\"\",\"\",_xlfn.DAYS(EOMONTH(B17,0),EOMONTH(B17,-1))*C17)","v":""},{"$f":"IF('Process Data Entry'!F19=\"\",\"\",'Process Data Entry'!F19)","v":""},{"$f":"IF(Table4[BOD removed]=\"\",\"\",Table4[BOD removed]*_xlfn.DAYS(EOMONTH(Table4[[#This Row],[Column2]],0),EOMONTH(Table4[[#This Row],[Column2]],-1)))","v":""},{"$f":"IF(SUM('Energy Data Entry'!C38,'Energy Data Entry'!H38,'Energy Data Entry'!M38,'Energy Data Entry'!R38,'Energy Data Entry'!W38)=0,\"\",SUM('Energy Data Entry'!C38,'Energy Data Entry'!H38,'Energy Data Entry'!M38,'Energy Data Entry'!R38,'Energy Data Entry'!W38))","v":""},{"$f":"'Energy Data Entry'!AG38","v":0},{"$f":"IF(Table4[[#This Row],[Electric kWh usage]]=\"\",\"\",Table4[[#This Row],[Gas kWh usage]]+Table4[[#This Row],[Electric kWh usage]])","v":""},{"$f":"IF(OR(Table4[[#This Row],[Electric kWh usage]]=\"\",Table4[[#This Row],[Monthly Flow]]=\"\"),\"\",(Table4[[#This Row],[Electric kWh usage]]+Table4[[#This Row],[Gas kWh usage]])/Table4[[#This Row],[Monthly Flow]])","v":""},{"$f":"IFERROR(IF(Table4[[#This Row],[Electric kWh usage]]=\"\",\"\",(Table4[[#This Row],[Electric kWh usage]]+Table4[[#This Row],[Gas kWh usage]])/Table4[[#This Row],[Total BOD removed]]),\"\")","v":""},{"$f":"IF('Energy Data Entry'!E38+'Energy Data Entry'!J38+'Energy Data Entry'!O38+'Energy Data Entry'!T38+'Energy Data Entry'!Y38=0,\"\",'Energy Data Entry'!E38+'Energy Data Entry'!J38+'Energy Data Entry'!O38+'Energy Data Entry'!T38+'Energy Data Entry'!Y38)","v":""},{"$f":"IF('Energy Data Entry'!F38+'Energy Data Entry'!K38+'Energy Data Entry'!P38++'Energy Data Entry'!U38+'Energy Data Entry'!Z38=0,\"\",'Energy Data Entry'!F38+'Energy Data Entry'!K38+'Energy Data Entry'!P38++'Energy Data Entry'!U38+'Energy Data Entry'!Z38)","v":""},{"$f":"IF('Energy Data Entry'!G38+'Energy Data Entry'!L38+'Energy Data Entry'!Q38+'Energy Data Entry'!V38+'Energy Data Entry'!AA38=0,\"\",'Energy Data Entry'!G38+'Energy Data Entry'!L38+'Energy Data Entry'!Q38+'Energy Data Entry'!V38+'Energy Data Entry'!AA38)","v":""},{"$f":"IF('Energy Data Entry'!D38+'Energy Data Entry'!I38+'Energy Data Entry'!N38+'Energy Data Entry'!S38+'Energy Data Entry'!X38=0,\"\",'Energy Data Entry'!D38+'Energy Data Entry'!I38+'Energy Data Entry'!N38+'Energy Data Entry'!S38+'Energy Data Entry'!X38)","v":""},{"$f":"'Energy Data Entry'!AF38","v":0},{"$f":"IFERROR(Table4[[#This Row],[Total electric cost]]/Table4[[#This Row],[Electric kWh usage]],\"\")","v":""},{"$f":"IFERROR(Table4[[#This Row],[Electric Demand Cost]]/Table4[[#This Row],[Total Electric Demand (Billed)]],IFERROR(Table4[[#This Row],[Electric Demand Cost]]/Table4[[#This Row],[Total Electric Demand (Actual)]],\"\"))","v":""},{"$f":"IFERROR(Table4[[#This Row],[Total Gas cost]]+Table4[[#This Row],[Total electric cost]],\"\")","v":""},null,{"$f":"IFERROR(Table4[[#This Row],[Total Energy Cost]]/Table4[[#This Row],[Monthly Flow]],\"\")","v":""},{"$f":"IFERROR(Table4[[#This Row],[Total Energy Cost]]/Table4[[#This Row],[Total BOD removed]],\"\")","v":""},null,{"$f":"IF('Process Data Entry'!G19=\"\",\"\",'Process Data Entry'!G19)","v":""},{"$f":"IF('Process Data Entry'!H19=\"\",\"\",'Process Data Entry'!H19)","v":""},{"$f":"IF('Process Data Entry'!I19=\"\",0,'Process Data Entry'!I19)","v":0},{"$f":"IF('Process Data Entry'!J19=\"\",\"\",'Process Data Entry'!J19)","v":""},{"$f":"IF('Process Data Entry'!K19=\"\",\"\",'Process Data Entry'!K19)","v":""},{"$f":"IF('Process Data Entry'!L19=\"\",\"\",'Process Data Entry'!L19)","v":""},"","",{"$f":"IF('Process Data Entry'!M19=\"\",\"\",'Process Data Entry'!M19)","v":""},{"$f":"IF('Process Data Entry'!N19=\"\",\"\",'Process Data Entry'!N19)","v":""},""]
[2,{"$f":"'Energy Data Entry'!B39","v":"2018-10-01"},{"$f":"IF(OR('Process Data Entry'!C20=\"\",'Process Data Entry'!C20=0),\"\",'Process Data Entry'!C20)","v":""},{"$f":"IF(Table4[Avg Daily Flow]=\"\",\"\",_xlfn.DAYS(EOMONTH(B18,0),EOMONTH(B18,-1))*C18)","v":""},{"$f":"IF('Process Data Entry'!F20=\"\",\"\",'Process Data Entry'!F20)","v":""},{"$f":"IF(Table4[BOD removed]=\"\",\"\",Table4[BOD removed]*_xlfn.DAYS(EOMONTH(Table4[[#This Row],[Column2]],0),EOMONTH(Table4[[#This Row],[Column2]],-1)))","v":""},{"$f":"IF(SUM('Energy Data Entry'!C39,'Energy Data Entry'!H39,'Energy Data Entry'!M39,'Energy Data Entry'!R39,'Energy Data Entry'!W39)=0,\"\",SUM('Energy Data Entry'!C39,'Energy Data Entry'!H39,'Energy Data Entry'!M39,'Energy Data Entry'!R39,'Energy Data Entry'!W39))","v":""},{"$f":"'Energy Data Entry'!AG39","v":0},{"$f":"IF(Table4[[#This Row],[Electric kWh usage]]=\"\",\"\",Table4[[#This Row],[Gas kWh usage]]+Table4[[#This Row],[Electric kWh usage]])","v":""},{"$f":"IF(OR(Table4[[#This Row],[Electric kWh usage]]=\"\",Table4[[#This Row],[Monthly Flow]]=\"\"),\"\",(Table4[[#This Row],[Electric kWh usage]]+Table4[[#This Row],[Gas kWh usage]])/Table4[[#This Row],[Monthly Flow]])","v":""},{"$f":"IFERROR(IF(Table4[[#This Row],[Electric kWh usage]]=\"\",\"\",(Table4[[#This Row],[Electric kWh usage]]+Table4[[#This Row],[Gas kWh usage]])/Table4[[#This Row],[Total BOD removed]]),\"\")","v":""},{"$f":"IF('Energy Data Entry'!E39+'Energy Data Entry'!J39+'Energy Data Entry'!O39+'Energy Data Entry'!T39+'Energy Data Entry'!Y39=0,\"\",'Energy Data Entry'!E39+'Energy Data Entry'!J39+'Energy Data Entry'!O39+'Energy Data Entry'!T39+'Energy Data Entry'!Y39)","v":""},{"$f":"IF('Energy Data Entry'!F39+'Energy Data Entry'!K39+'Energy Data Entry'!P39++'Energy Data Entry'!U39+'Energy Data Entry'!Z39=0,\"\",'Energy Data Entry'!F39+'Energy Data Entry'!K39+'Energy Data Entry'!P39++'Energy Data Entry'!U39+'Energy Data Entry'!Z39)","v":""},{"$f":"IF('Energy Data Entry'!G39+'Energy Data Entry'!L39+'Energy Data Entry'!Q39+'Energy Data Entry'!V39+'Energy Data Entry'!AA39=0,\"\",'Energy Data Entry'!G39+'Energy Data Entry'!L39+'Energy Data Entry'!Q39+'Energy Data Entry'!V39+'Energy Data Entry'!AA39)","v":""},{"$f":"IF('Energy Data Entry'!D39+'Energy Data Entry'!I39+'Energy Data Entry'!N39+'Energy Data Entry'!S39+'Energy Data Entry'!X39=0,\"\",'Energy Data Entry'!D39+'Energy Data Entry'!I39+'Energy Data Entry'!N39+'Energy Data Entry'!S39+'Energy Data Entry'!X39)","v":""},{"$f":"'Energy Data Entry'!AF39","v":0},{"$f":"IFERROR(Table4[[#This Row],[Total electric cost]]/Table4[[#This Row],[Electric kWh usage]],\"\")","v":""},{"$f":"IFERROR(Table4[[#This Row],[Electric Demand Cost]]/Table4[[#This Row],[Total Electric Demand (Billed)]],IFERROR(Table4[[#This Row],[Electric Demand Cost]]/Table4[[#This Row],[Total Electric Demand (Actual)]],\"\"))","v":""},{"$f":"IFERROR(Table4[[#This Row],[Total Gas cost]]+Table4[[#This Row],[Total electric cost]],\"\")","v":""},null,{"$f":"IFERROR(Table4[[#This Row],[Total Energy Cost]]/Table4[[#This Row],[Monthly Flow]],\"\")","v":""},{"$f":"IFERROR(Table4[[#This Row],[Total Energy Cost]]/Table4[[#This Row],[Total BOD removed]],\"\")","v":""},null,{"$f":"IF('Process Data Entry'!G20=\"\",\"\",'Process Data Entry'!G20)","v":""},{"$f":"IF('Process Data Entry'!H20=\"\",\"\",'Process Data Entry'!H20)","v":""},{"$f":"IF('Process Data Entry'!I20=\"\",0,'Process Data Entry'!I20)","v":0},{"$f":"IF('Process Data Entry'!J20=\"\",\"\",'Process Data Entry'!J20)","v":""},{"$f":"IF('Process Data Entry'!K20=\"\",\"\",'Process Data Entry'!K20)","v":""},{"$f":"IF('Process Data Entry'!L20=\"\",\"\",'Process Data Entry'!L20)","v":""},"","",{"$f":"IF('Process Data Entry'!M20=\"\",\"\",'Process Data Entry'!M20)","v":""},{"$f":"IF('Process Data Entry'!N20=\"\",\"\",'Process Data Entry'!N20)","v":""},""]
[2,{"$f":"'Energy Data Entry'!B40","v":"2018-11-01"},{"$f":"IF(OR('Process Data Entry'!C21=\"\",'Process Data Entry'!C21=0),\"\",'Process Data Entry'!C21)","v":""},{"$f":"IF(Table4[Avg Daily Flow]=\"\",\"\",_xlfn.DAYS(EOMONTH(B19,0),EOMONTH(B19,-1))*C19)","v":""},{"$f":"IF('Process Data Entry'!F21=\"\",\"\",'Process Data Entry'!F21)","v":""},{"$f":"IF(Table4[BOD removed]=\"\",\"\",Table4[BOD removed]*_xlfn.DAYS(EOMONTH(Table4[[#This Row],[Column2]],0),EOMONTH(Table4[[#This Row],[Column2]],-1)))","v":""},{"$f":"IF(SUM('Energy Data Entry'!C40,'Energy Data Entry'!H40,'Energy Data Entry'!M40,'Energy Data Entry'!R40,'Energy Data Entry'!W40)=0,\"\",SUM('Energy Data Entry'!C40,'Energy Data Entry'!H40,'Energy Data Entry'!M40,'Energy Data Entry'!R40,'Energy Data Entry'!W40))","v":""},{"$f":"'Energy Data Entry'!AG40","v":0},{"$f":"IF(Table4[[#This Row],[Electric kWh usage]]=\"\",\"\",Table4[[#This Row],[Gas kWh usage]]+Table4[[#This Row],[Electric kWh usage]])","v":""},{"$f":"IF(OR(Table4[[#This Row],[Electric kWh usage]]=\"\",Table4[[#This Row],[Monthly Flow]]=\"\"),\"\",(Table4[[#This Row],[Electric kWh usage]]+Table4[[#This Row],[Gas kWh usage]])/Table4[[#This Row],[Monthly Flow]])","v":""},{"$f":"IFERROR(IF(Table4[[#This Row],[Electric kWh usage]]=\"\",\"\",(Table4[[#This Row],[Electric kWh usage]]+Table4[[#This Row],[Gas kWh usage]])/Table4[[#This Row],[Total BOD removed]]),\"\")","v":""},{"$f":"IF('Energy Data Entry'!E40+'Energy Data Entry'!J40+'Energy Data Entry'!O40+'Energy Data Entry'!T40+'Energy Data Entry'!Y40=0,\"\",'Energy Data Entry'!E40+'Energy Data Entry'!J40+'Energy Data Entry'!O40+'Energy Data Entry'!T40+'Energy Data Entry'!Y40)","v":""},{"$f":"IF('Energy Data Entry'!F40+'Energy Data Entry'!K40+'Energy Data Entry'!P40++'Energy Data Entry'!U40+'Energy Data Entry'!Z40=0,\"\",'Energy Data Entry'!F40+'Energy Data Entry'!K40+'Energy Data Entry'!P40++'Energy Data Entry'!U40+'Energy Data Entry'!Z40)","v":""},{"$f":"IF('Energy Data Entry'!G40+'Energy Data Entry'!L40+'Energy Data Entry'!Q40+'Energy Data Entry'!V40+'Energy Data Entry'!AA40=0,\"\",'Energy Data Entry'!G40+'Energy Data Entry'!L40+'Energy Data Entry'!Q40+'Energy Data Entry'!V40+'Energy Data Entry'!AA40)","v":""},{"$f":"IF('Energy Data Entry'!D40+'Energy Data Entry'!I40+'Energy Data Entry'!N40+'Energy Data Entry'!S40+'Energy Data Entry'!X40=0,\"\",'Energy Data Entry'!D40+'Energy Data Entry'!I40+'Energy Data Entry'!N40+'Energy Data Entry'!S40+'Energy Data Entry'!X40)","v":""},{"$f":"'Energy Data Entry'!AF40","v":0},{"$f":"IFERROR(Table4[[#This Row],[Total electric cost]]/Table4[[#This Row],[Electric kWh usage]],\"\")","v":""},{"$f":"IFERROR(Table4[[#This Row],[Electric Demand Cost]]/Table4[[#This Row],[Total Electric Demand (Billed)]],IFERROR(Table4[[#This Row],[Electric Demand Cost]]/Table4[[#This Row],[Total Electric Demand (Actual)]],\"\"))","v":""},{"$f":"IFERROR(Table4[[#This Row],[Total Gas cost]]+Table4[[#This Row],[Total electric cost]],\"\")","v":""},null,{"$f":"IFERROR(Table4[[#This Row],[Total Energy Cost]]/Table4[[#This Row],[Monthly Flow]],\"\")","v":""},{"$f":"IFERROR(Table4[[#This Row],[Total Energy Cost]]/Table4[[#This Row],[Total BOD removed]],\"\")","v":""},null,{"$f":"IF('Process Data Entry'!G21=\"\",\"\",'Process Data Entry'!G21)","v":""},{"$f":"IF('Process Data Entry'!H21=\"\",\"\",'Process Data Entry'!H21)","v":""},{"$f":"IF('Process Data Entry'!I21=\"\",0,'Process Data Entry'!I21)","v":0},{"$f":"IF('Process Data Entry'!J21=\"\",\"\",'Process Data Entry'!J21)","v":""},{"$f":"IF('Process Data Entry'!K21=\"\",\"\",'Process Data Entry'!K21)","v":""},{"$f":"IF('Process Data Entry'!L21=\"\",\"\",'Process Data Entry'!L21)","v":""},"","",{"$f":"IF('Process Data Entry'!M21=\"\",\"\",'Process Data Entry'!M21)","v":""},{"$f":"IF('Process Data Entry'!N21=\"\",\"\",'Process Data Entry'!N21)","v":""},""]
[2,{"$f":"'Energy Data Entry'!B41","v":"2018-12-01"},{"$f":"IF(OR('Process Data Entry'!C22=\"\",'Process Data Entry'!C22=0),\"\",'Process Data Entry'!C22)","v":""},{"$f":"IF(Table4[Avg Daily Flow]=\"\",\"\",_xlfn.DAYS(EOMONTH(B20,0),EOMONTH(B20,-1))*C20)","v":""},{"$f":"IF('Process Data Entry'!F22=\"\",\"\",'Process Data Entry'!F22)","v":""},{"$f":"IF(Table4[BOD removed]=\"\",\"\",Table4[BOD removed]*_xlfn.DAYS(EOMONTH(Table4[[#This Row],[Column2]],0),EOMONTH(Table4[[#This Row],[Column2]],-1)))","v":""},{"$f":"IF(SUM('Energy Data Entry'!C41,'Energy Data Entry'!H41,'Energy Data Entry'!M41,'Energy Data Entry'!R41,'Energy Data Entry'!W41)=0,\"\",SUM('Energy Data Entry'!C41,'Energy Data Entry'!H41,'Energy Data Entry'!M41,'Energy Data Entry'!R41,'Energy Data Entry'!W41))","v":""},{"$f":"'Energy Data Entry'!AG41","v":0},{"$f":"IF(Table4[[#This Row],[Electric kWh usage]]=\"\",\"\",Table4[[#This Row],[Gas kWh usage]]+Table4[[#This Row],[Electric kWh usage]])","v":""},{"$f":"IF(OR(Table4[[#This Row],[Electric kWh usage]]=\"\",Table4[[#This Row],[Monthly Flow]]=\"\"),\"\",(Table4[[#This Row],[Electric kWh usage]]+Table4[[#This Row],[Gas kWh usage]])/Table4[[#This Row],[Monthly Flow]])","v":""},{"$f":"IFERROR(IF(Table4[[#This Row],[Electric kWh usage]]=\"\",\"\",(Table4[[#This Row],[Electric kWh usage]]+Table4[[#This Row],[Gas kWh usage]])/Table4[[#This Row],[Total BOD removed]]),\"\")","v":""},{"$f":"IF('Energy Data Entry'!E41+'Energy Data Entry'!J41+'Energy Data Entry'!O41+'Energy Data Entry'!T41+'Energy Data Entry'!Y41=0,\"\",'Energy Data Entry'!E41+'Energy Data Entry'!J41+'Energy Data Entry'!O41+'Energy Data Entry'!T41+'Energy Data Entry'!Y41)","v":""},{"$f":"IF('Energy Data Entry'!F41+'Energy Data Entry'!K41+'Energy Data Entry'!P41++'Energy Data Entry'!U41+'Energy Data Entry'!Z41=0,\"\",'Energy Data Entry'!F41+'Energy Data Entry'!K41+'Energy Data Entry'!P41++'Energy Data Entry'!U41+'Energy Data Entry'!Z41)","v":""},{"$f":"IF('Energy Data Entry'!G41+'Energy Data Entry'!L41+'Energy Data Entry'!Q41+'Energy Data Entry'!V41+'Energy Data Entry'!AA41=0,\"\",'Energy Data Entry'!G41+'Energy Data Entry'!L41+'Energy Data Entry'!Q41+'Energy Data Entry'!V41+'Energy Data Entry'!AA41)","v":""},{"$f":"IF('Energy Data Entry'!D41+'Energy Data Entry'!I41+'Energy Data Entry'!N41+'Energy Data Entry'!S41+'Energy Data Entry'!X41=0,\"\",'Energy Data Entry'!D41+'Energy Data Entry'!I41+'Energy Data Entry'!N41+'Energy Data Entry'!S41+'Energy Data Entry'!X41)","v":""},{"$f":"'Energy Data Entry'!AF41","v":0},{"$f":"IFERROR(Table4[[#This Row],[Total electric cost]]/Table4[[#This Row],[Electric kWh usage]],\"\")","v":""},{"$f":"IFERROR(Table4[[#This Row],[Electric Demand Cost]]/Table4[[#This Row],[Total Electric Demand (Billed)]],IFERROR(Table4[[#This Row],[Electric Demand Cost]]/Table4[[#This Row],[Total Electric Demand (Actual)]],\"\"))","v":""},{"$f":"IFERROR(Table4[[#This Row],[Total Gas cost]]+Table4[[#This Row],[Total electric cost]],\"\")","v":""},null,{"$f":"IFERROR(Table4[[#This Row],[Total Energy Cost]]/Table4[[#This Row],[Monthly Flow]],\"\")","v":""},{"$f":"IFERROR(Table4[[#This Row],[Total Energy Cost]]/Table4[[#This Row],[Total BOD removed]],\"\")","v":""},null,{"$f":"IF('Process Data Entry'!G22=\"\",\"\",'Process Data Entry'!G22)","v":""},{"$f":"IF('Process Data Entry'!H22=\"\",\"\",'Process Data Entry'!H22)","v":""},{"$f":"IF('Process Data Entry'!I22=\"\",0,'Process Data Entry'!I22)","v":0},{"$f":"IF('Process Data Entry'!J22=\"\",\"\",'Process Data Entry'!J22)","v":""},{"$f":"IF('Process Data Entry'!K22=\"\",\"\",'Process Data Entry'!K22)","v":""},{"$f":"IF('Process Data Entry'!L22=\"\",\"\",'Process Data Entry'!L22)","v":""},"","",{"$f":"IF('Process Data Entry'!M22=\"\",\"\",'Process Data Entry'!M22)","v":""},{"$f":"IF('Process Data Entry'!N22=\"\",\"\",'Process Data Entry'!N22)","v":""},""]
[2,{"$f":"'Energy Data Entry'!B42","v":"2019-01-01"},{"$f":"IF(OR('Process Data Entry'!C23=\"\",'Process Data Entry'!C23=0),\"\",'Process Data Entry'!C23)","v":""},{"$f":"IF(Table4[Avg Daily Flow]=\"\",\"\",_xlfn.DAYS(EOMONTH(B21,0),EOMONTH(B21,-1))*C21)","v":""},{"$f":"IF('Process Data Entry'!F23=\"\",\"\",'Process Data Entry'!F23)","v":""},{"$f":"IF(Table4[BOD removed]=\"\",\"\",Table4[BOD removed]*_xlfn.DAYS(EOMONTH(Table4[[#This Row],[Column2]],0),EOMONTH(Table4[[#This Row],[Column2]],-1)))","v":""},{"$f":"IF(SUM('Energy Data Entry'!C42,'Energy Data Entry'!H42,'Energy Data Entry'!M42,'Energy Data Entry'!R42,'Energy Data Entry'!W42)=0,\"\",SUM('Energy Data Entry'!C42,'Energy Data Entry'!H42,'Energy Data Entry'!M42,'Energy Data Entry'!R42,'Energy Data Entry'!W42))","v":""},{"$f":"'Energy Data Entry'!AG42","v":0},{"$f":"IF(Table4[[#This Row],[Electric kWh usage]]=\"\",\"\",Table4[[#This Row],[Gas kWh usage]]+Table4[[#This Row],[Electric kWh usage]])","v":""},{"$f":"IF(OR(Table4[[#This Row],[Electric kWh usage]]=\"\",Table4[[#This Row],[Monthly Flow]]=\"\"),\"\",(Table4[[#This Row],[Electric kWh usage]]+Table4[[#This Row],[Gas kWh usage]])/Table4[[#This Row],[Monthly Flow]])","v":""},{"$f":"IFERROR(IF(Table4[[#This Row],[Electric kWh usage]]=\"\",\"\",(Table4[[#This Row],[Electric kWh usage]]+Table4[[#This Row],[Gas kWh usage]])/Table4[[#This Row],[Total BOD removed]]),\"\")","v":""},{"$f":"IF('Energy Data Entry'!E42+'Energy Data Entry'!J42+'Energy Data Entry'!O42+'Energy Data Entry'!T42+'Energy Data Entry'!Y42=0,\"\",'Energy Data Entry'!E42+'Energy Data Entry'!J42+'Energy Data Entry'!O42+'Energy Data Entry'!T42+'Energy Data Entry'!Y42)","v":""},{"$f":"IF('Energy Data Entry'!F42+'Energy Data Entry'!K42+'Energy Data Entry'!P42++'Energy Data Entry'!U42+'Energy Data Entry'!Z42=0,\"\",'Energy Data Entry'!F42+'Energy Data Entry'!K42+'Energy Data Entry'!P42++'Energy Data Entry'!U42+'Energy Data Entry'!Z42)","v":""},{"$f":"IF('Energy Data Entry'!G42+'Energy Data Entry'!L42+'Energy Data Entry'!Q42+'Energy Data Entry'!V42+'Energy Data Entry'!AA42=0,\"\",'Energy Data Entry'!G42+'Energy Data Entry'!L42+'Energy Data Entry'!Q42+'Energy Data Entry'!V42+'Energy Data Entry'!AA42)","v":""},{"$f":"IF('Energy Data Entry'!D42+'Energy Data Entry'!I42+'Energy Data Entry'!N42+'Energy Data Entry'!S42+'Energy Data Entry'!X42=0,\"\",'Energy Data Entry'!D42+'Energy Data Entry'!I42+'Energy Data Entry'!N42+'Energy Data Entry'!S42+'Energy Data Entry'!X42)","v":""},{"$f":"'Energy Data Entry'!AF42","v":0},{"$f":"IFERROR(Table4[[#This Row],[Total electric cost]]/Table4[[#This Row],[Electric kWh usage]],\"\")","v":""},{"$f":"IFERROR(Table4[[#This Row],[Electric Demand Cost]]/Table4[[#This Row],[Total Electric Demand (Billed)]],IFERROR(Table4[[#This Row],[Electric Demand Cost]]/Table4[[#This Row],[Total Electric Demand (Actual)]],\"\"))","v":""},{"$f":"IFERROR(Table4[[#This Row],[Total Gas cost]]+Table4[[#This Row],[Total electric cost]],\"\")","v":""},null,{"$f":"IFERROR(Table4[[#This Row],[Total Energy Cost]]/Table4[[#This Row],[Monthly Flow]],\"\")","v":""},{"$f":"IFERROR(Table4[[#This Row],[Total Energy Cost]]/Table4[[#This Row],[Total BOD removed]],\"\")","v":""},null,{"$f":"IF('Process Data Entry'!G23=\"\",\"\",'Process Data Entry'!G23)","v":""},{"$f":"IF('Process Data Entry'!H23=\"\",\"\",'Process Data Entry'!H23)","v":""},{"$f":"IF('Process Data Entry'!I23=\"\",0,'Process Data Entry'!I23)","v":0},{"$f":"IF('Process Data Entry'!J23=\"\",\"\",'Process Data Entry'!J23)","v":""},{"$f":"IF('Process Data Entry'!K23=\"\",\"\",'Process Data Entry'!K23)","v":""},{"$f":"IF('Process Data Entry'!L23=\"\",\"\",'Process Data Entry'!L23)","v":""},"","",{"$f":"IF('Process Data Entry'!M23=\"\",\"\",'Process Data Entry'!M23)","v":""},{"$f":"IF('Process Data Entry'!N23=\"\",\"\",'Process Data Entry'!N23)","v":""},""]
[2,{"$f":"'Energy Data Entry'!B43","v":"2019-02-01"},{"$f":"IF(OR('Process Data Entry'!C24=\"\",'Process Data Entry'!C24=0),\"\",'Process Data Entry'!C24)","v":""},{"$f":"IF(Table4[Avg Daily Flow]=\"\",\"\",_xlfn.DAYS(EOMONTH(B22,0),EOMONTH(B22,-1))*C22)","v":""},{"$f":"IF('Process Data Entry'!F24=\"\",\"\",'Process Data Entry'!F24)","v":""},{"$f":"IF(Table4[BOD removed]=\"\",\"\",Table4[BOD removed]*_xlfn.DAYS(EOMONTH(Table4[[#This Row],[Column2]],0),EOMONTH(Table4[[#This Row],[Column2]],-1)))","v":""},{"$f":"IF(SUM('Energy Data Entry'!C43,'Energy Data Entry'!H43,'Energy Data Entry'!M43,'Energy Data Entry'!R43,'Energy Data Entry'!W43)=0,\"\",SUM('Energy Data Entry'!C43,'Energy Data Entry'!H43,'Energy Data Entry'!M43,'Energy Data Entry'!R43,'Energy Data Entry'!W43))","v":""},{"$f":"'Energy Data Entry'!AG43","v":0},{"$f":"IF(Table4[[#This Row],[Electric kWh usage]]=\"\",\"\",Table4[[#This Row],[Gas kWh usage]]+Table4[[#This Row],[Electric kWh usage]])","v":""},{"$f":"IF(OR(Table4[[#This Row],[Electric kWh usage]]=\"\",Table4[[#This Row],[Monthly Flow]]=\"\"),\"\",(Table4[[#This Row],[Electric kWh usage]]+Table4[[#This Row],[Gas kWh usage]])/Table4[[#This Row],[Monthly Flow]])","v":""},{"$f":"IFERROR(IF(Table4[[#This Row],[Electric kWh usage]]=\"\",\"\",(Table4[[#This Row],[Electric kWh usage]]+Table4[[#This Row],[Gas kWh usage]])/Table4[[#This Row],[Total BOD removed]]),\"\")","v":""},{"$f":"IF('Energy Data Entry'!E43+'Energy Data Entry'!J43+'Energy Data Entry'!O43+'Energy Data Entry'!T43+'Energy Data Entry'!Y43=0,\"\",'Energy Data Entry'!E43+'Energy Data Entry'!J43+'Energy Data Entry'!O43+'Energy Data Entry'!T43+'Energy Data Entry'!Y43)","v":""},{"$f":"IF('Energy Data Entry'!F43+'Energy Data Entry'!K43+'Energy Data Entry'!P43++'Energy Data Entry'!U43+'Energy Data Entry'!Z43=0,\"\",'Energy Data Entry'!F43+'Energy Data Entry'!K43+'Energy Data Entry'!P43++'Energy Data Entry'!U43+'Energy Data Entry'!Z43)","v":""},{"$f":"IF('Energy Data Entry'!G43+'Energy Data Entry'!L43+'Energy Data Entry'!Q43+'Energy Data Entry'!V43+'Energy Data Entry'!AA43=0,\"\",'Energy Data Entry'!G43+'Energy Data Entry'!L43+'Energy Data Entry'!Q43+'Energy Data Entry'!V43+'Energy Data Entry'!AA43)","v":""},{"$f":"IF('Energy Data Entry'!D43+'Energy Data Entry'!I43+'Energy Data Entry'!N43+'Energy Data Entry'!S43+'Energy Data Entry'!X43=0,\"\",'Energy Data Entry'!D43+'Energy Data Entry'!I43+'Energy Data Entry'!N43+'Energy Data Entry'!S43+'Energy Data Entry'!X43)","v":""},{"$f":"'Energy Data Entry'!AF43","v":0},{"$f":"IFERROR(Table4[[#This Row],[Total electric cost]]/Table4[[#This Row],[Electric kWh usage]],\"\")","v":""},{"$f":"IFERROR(Table4[[#This Row],[Electric Demand Cost]]/Table4[[#This Row],[Total Electric Demand (Billed)]],IFERROR(Table4[[#This Row],[Electric Demand Cost]]/Table4[[#This Row],[Total Electric Demand (Actual)]],\"\"))","v":""},{"$f":"IFERROR(Table4[[#This Row],[Total Gas cost]]+Table4[[#This Row],[Total electric cost]],\"\")","v":""},null,{"$f":"IFERROR(Table4[[#This Row],[Total Energy Cost]]/Table4[[#This Row],[Monthly Flow]],\"\")","v":""},{"$f":"IFERROR(Table4[[#This Row],[Total Energy Cost]]/Table4[[#This Row],[Total BOD removed]],\"\")","v":""},null,{"$f":"IF('Process Data Entry'!G24=\"\",\"\",'Process Data Entry'!G24)","v":""},{"$f":"IF('Process Data Entry'!H24=\"\",\"\",'Process Data Entry'!H24)","v":""},{"$f":"IF('Process Data Entry'!I24=\"\",0,'Process Data Entry'!I24)","v":0},{"$f":"IF('Process Data Entry'!J24=\"\",\"\",'Process Data Entry'!J24)","v":""},{"$f":"IF('Process Data Entry'!K24=\"\",\"\",'Process Data Entry'!K24)","v":""},{"$f":"IF('Process Data Entry'!L24=\"\",\"\",'Process Data Entry'!L24)","v":""},"","",{"$f":"IF('Process Data Entry'!M24=\"\",\"\",'Process Data Entry'!M24)","v":""},{"$f":"IF('Process Data Entry'!N24=\"\",\"\",'Process Data Entry'!N24)","v":""},""]
[2,{"$f":"'Energy Data Entry'!B44","v":"2019-03-01"},{"$f":"IF(OR('Process Data Entry'!C25=\"\",'Process Data Entry'!C25=0),\"\",'Process Data Entry'!C25)","v":""},{"$f":"IF(Table4[Avg Daily Flow]=\"\",\"\",_xlfn.DAYS(EOMONTH(B23,0),EOMONTH(B23,-1))*C23)","v":""},{"$f":"IF('Process Data Entry'!F25=\"\",\"\",'Process Data Entry'!F25)","v":""},{"$f":"IF(Table4[BOD removed]=\"\",\"\",Table4[BOD removed]*_xlfn.DAYS(EOMONTH(Table4[[#This Row],[Column2]],0),EOMONTH(Table4[[#This Row],[Column2]],-1)))","v":""},{"$f":"IF(SUM('Energy Data Entry'!C44,'Energy Data Entry'!H44,'Energy Data Entry'!M44,'Energy Data Entry'!R44,'Energy Data Entry'!W44)=0,\"\",SUM('Energy Data Entry'!C44,'Energy Data Entry'!H44,'Energy Data Entry'!M44,'Energy Data Entry'!R44,'Energy Data Entry'!W44))","v":""},{"$f":"'Energy Data Entry'!AG44","v":0},{"$f":"IF(Table4[[#This Row],[Electric kWh usage]]=\"\",\"\",Table4[[#This Row],[Gas kWh usage]]+Table4[[#This Row],[Electric kWh usage]])","v":""},{"$f":"IF(OR(Table4[[#This Row],[Electric kWh usage]]=\"\",Table4[[#This Row],[Monthly Flow]]=\"\"),\"\",(Table4[[#This Row],[Electric kWh usage]]+Table4[[#This Row],[Gas kWh usage]])/Table4[[#This Row],[Monthly Flow]])","v":""},{"$f":"IFERROR(IF(Table4[[#This Row],[Electric kWh usage]]=\"\",\"\",(Table4[[#This Row],[Electric kWh usage]]+Table4[[#This Row],[Gas kWh usage]])/Table4[[#This Row],[Total BOD removed]]),\"\")","v":""},{"$f":"IF('Energy Data Entry'!E44+'Energy Data Entry'!J44+'Energy Data Entry'!O44+'Energy Data Entry'!T44+'Energy Data Entry'!Y44=0,\"\",'Energy Data Entry'!E44+'Energy Data Entry'!J44+'Energy Data Entry'!O44+'Energy Data Entry'!T44+'Energy Data Entry'!Y44)","v":""},{"$f":"IF('Energy Data Entry'!F44+'Energy Data Entry'!K44+'Energy Data Entry'!P44++'Energy Data Entry'!U44+'Energy Data Entry'!Z44=0,\"\",'Energy Data Entry'!F44+'Energy Data Entry'!K44+'Energy Data Entry'!P44++'Energy Data Entry'!U44+'Energy Data Entry'!Z44)","v":""},{"$f":"IF('Energy Data Entry'!G44+'Energy Data Entry'!L44+'Energy Data Entry'!Q44+'Energy Data Entry'!V44+'Energy Data Entry'!AA44=0,\"\",'Energy Data Entry'!G44+'Energy Data Entry'!L44+'Energy Data Entry'!Q44+'Energy Data Entry'!V44+'Energy Data Entry'!AA44)","v":""},{"$f":"IF('Energy Data Entry'!D44+'Energy Data Entry'!I44+'Energy Data Entry'!N44+'Energy Data Entry'!S44+'Energy Data Entry'!X44=0,\"\",'Energy Data Entry'!D44+'Energy Data Entry'!I44+'Energy Data Entry'!N44+'Energy Data Entry'!S44+'Energy Data Entry'!X44)","v":""},{"$f":"'Energy Data Entry'!AF44","v":0},{"$f":"IFERROR(Table4[[#This Row],[Total electric cost]]/Table4[[#This Row],[Electric kWh usage]],\"\")","v":""},{"$f":"IFERROR(Table4[[#This Row],[Electric Demand Cost]]/Table4[[#This Row],[Total Electric Demand (Billed)]],IFERROR(Table4[[#This Row],[Electric Demand Cost]]/Table4[[#This Row],[Total Electric Demand (Actual)]],\"\"))","v":""},{"$f":"IFERROR(Table4[[#This Row],[Total Gas cost]]+Table4[[#This Row],[Total electric cost]],\"\")","v":""},null,{"$f":"IFERROR(Table4[[#This Row],[Total Energy Cost]]/Table4[[#This Row],[Monthly Flow]],\"\")","v":""},{"$f":"IFERROR(Table4[[#This Row],[Total Energy Cost]]/Table4[[#This Row],[Total BOD removed]],\"\")","v":""},null,{"$f":"IF('Process Data Entry'!G25=\"\",\"\",'Process Data Entry'!G25)","v":""},{"$f":"IF('Process Data Entry'!H25=\"\",\"\",'Process Data Entry'!H25)","v":""},{"$f":"IF('Process Data Entry'!I25=\"\",0,'Process Data Entry'!I25)","v":0},{"$f":"IF('Process Data Entry'!J25=\"\",\"\",'Process Data Entry'!J25)","v":""},{"$f":"IF('Process Data Entry'!K25=\"\",\"\",'Process Data Entry'!K25)","v":""},{"$f":"IF('Process Data Entry'!L25=\"\",\"\",'Process Data Entry'!L25)","v":""},"","",{"$f":"IF('Process Data Entry'!M25=\"\",\"\",'Process Data Entry'!M25)","v":""},{"$f":"IF('Process Data Entry'!N25=\"\",\"\",'Process Data Entry'!N25)","v":""},""]
[2,{"$f":"'Energy Data Entry'!B45","v":"2019-04-01"},{"$f":"IF(OR('Process Data Entry'!C26=\"\",'Process Data Entry'!C26=0),\"\",'Process Data Entry'!C26)","v":""},{"$f":"IF(Table4[Avg Daily Flow]=\"\",\"\",_xlfn.DAYS(EOMONTH(B24,0),EOMONTH(B24,-1))*C24)","v":""},{"$f":"IF('Process Data Entry'!F26=\"\",\"\",'Process Data Entry'!F26)","v":""},{"$f":"IF(Table4[BOD removed]=\"\",\"\",Table4[BOD removed]*_xlfn.DAYS(EOMONTH(Table4[[#This Row],[Column2]],0),EOMONTH(Table4[[#This Row],[Column2]],-1)))","v":""},{"$f":"IF(SUM('Energy Data Entry'!C45,'Energy Data Entry'!H45,'Energy Data Entry'!M45,'Energy Data Entry'!R45,'Energy Data Entry'!W45)=0,\"\",SUM('Energy Data Entry'!C45,'Energy Data Entry'!H45,'Energy Data Entry'!M45,'Energy Data Entry'!R45,'Energy Data Entry'!W45))","v":""},{"$f":"'Energy Data Entry'!AG45","v":0},{"$f":"IF(Table4[[#This Row],[Electric kWh usage]]=\"\",\"\",Table4[[#This Row],[Gas kWh usage]]+Table4[[#This Row],[Electric kWh usage]])","v":""},{"$f":"IF(OR(Table4[[#This Row],[Electric kWh usage]]=\"\",Table4[[#This Row],[Monthly Flow]]=\"\"),\"\",(Table4[[#This Row],[Electric kWh usage]]+Table4[[#This Row],[Gas kWh usage]])/Table4[[#This Row],[Monthly Flow]])","v":""},{"$f":"IFERROR(IF(Table4[[#This Row],[Electric kWh usage]]=\"\",\"\",(Table4[[#This Row],[Electric kWh usage]]+Table4[[#This Row],[Gas kWh usage]])/Table4[[#This Row],[Total BOD removed]]),\"\")","v":""},{"$f":"IF('Energy Data Entry'!E45+'Energy Data Entry'!J45+'Energy Data Entry'!O45+'Energy Data Entry'!T45+'Energy Data Entry'!Y45=0,\"\",'Energy Data Entry'!E45+'Energy Data Entry'!J45+'Energy Data Entry'!O45+'Energy Data Entry'!T45+'Energy Data Entry'!Y45)","v":""},{"$f":"IF('Energy Data Entry'!F45+'Energy Data Entry'!K45+'Energy Data Entry'!P45++'Energy Data Entry'!U45+'Energy Data Entry'!Z45=0,\"\",'Energy Data Entry'!F45+'Energy Data Entry'!K45+'Energy Data Entry'!P45++'Energy Data Entry'!U45+'Energy Data Entry'!Z45)","v":""},{"$f":"IF('Energy Data Entry'!G45+'Energy Data Entry'!L45+'Energy Data Entry'!Q45+'Energy Data Entry'!V45+'Energy Data Entry'!AA45=0,\"\",'Energy Data Entry'!G45+'Energy Data Entry'!L45+'Energy Data Entry'!Q45+'Energy Data Entry'!V45+'Energy Data Entry'!AA45)","v":""},{"$f":"IF('Energy Data Entry'!D45+'Energy Data Entry'!I45+'Energy Data Entry'!N45+'Energy Data Entry'!S45+'Energy Data Entry'!X45=0,\"\",'Energy Data Entry'!D45+'Energy Data Entry'!I45+'Energy Data Entry'!N45+'Energy Data Entry'!S45+'Energy Data Entry'!X45)","v":""},{"$f":"'Energy Data Entry'!AF45","v":0},{"$f":"IFERROR(Table4[[#This Row],[Total electric cost]]/Table4[[#This Row],[Electric kWh usage]],\"\")","v":""},{"$f":"IFERROR(Table4[[#This Row],[Electric Demand Cost]]/Table4[[#This Row],[Total Electric Demand (Billed)]],IFERROR(Table4[[#This Row],[Electric Demand Cost]]/Table4[[#This Row],[Total Electric Demand (Actual)]],\"\"))","v":""},{"$f":"IFERROR(Table4[[#This Row],[Total Gas cost]]+Table4[[#This Row],[Total electric cost]],\"\")","v":""},null,{"$f":"IFERROR(Table4[[#This Row],[Total Energy Cost]]/Table4[[#This Row],[Monthly Flow]],\"\")","v":""},{"$f":"IFERROR(Table4[[#This Row],[Total Energy Cost]]/Table4[[#This Row],[Total BOD removed]],\"\")","v":""},null,{"$f":"IF('Process Data Entry'!G26=\"\",\"\",'Process Data Entry'!G26)","v":""},{"$f":"IF('Process Data Entry'!H26=\"\",\"\",'Process Data Entry'!H26)","v":""},{"$f":"IF('Process Data Entry'!I26=\"\",0,'Process Data Entry'!I26)","v":0},{"$f":"IF('Process Data Entry'!J26=\"\",\"\",'Process Data Entry'!J26)","v":""},{"$f":"IF('Process Data Entry'!K26=\"\",\"\",'Process Data Entry'!K26)","v":""},{"$f":"IF('Process Data Entry'!L26=\"\",\"\",'Process Data Entry'!L26)","v":""},"","",{"$f":"IF('Process Data Entry'!M26=\"\",\"\",'Process Data Entry'!M26)","v":""},{"$f":"IF('Process Data Entry'!N26=\"\",\"\",'Process Data Entry'!N26)","v":""},""]
[2,{"$f":"'Energy Data Entry'!B46","v":"2019-05-01"},{"$f":"IF(OR('Process Data Entry'!C27=\"\",'Process Data Entry'!C27=0),\"\",'Process Data Entry'!C27)","v":""},{"$f":"IF(Table4[Avg Daily Flow]=\"\",\"\",_xlfn.DAYS(EOMONTH(B25,0),EOMONTH(B25,-1))*C25)","v":""},{"$f":"IF('Process Data Entry'!F27=\"\",\"\",'Process Data Entry'!F27)","v":""},{"$f":"IF(Table4[BOD removed]=\"\",\"\",Table4[BOD removed]*_xlfn.DAYS(EOMONTH(Table4[[#This Row],[Column2]],0),EOMONTH(Table4[[#This Row],[Column2]],-1)))","v":""},{"$f":"IF(SUM('Energy Data Entry'!C46,'Energy Data Entry'!H46,'Energy Data Entry'!M46,'Energy Data Entry'!R46,'Energy Data Entry'!W46)=0,\"\",SUM('Energy Data Entry'!C46,'Energy Data Entry'!H46,'Energy Data Entry'!M46,'Energy Data Entry'!R46,'Energy Data Entry'!W46))","v":""},{"$f":"'Energy Data Entry'!AG46","v":0},{"$f":"IF(Table4[[#This Row],[Electric kWh usage]]=\"\",\"\",Table4[[#This Row],[Gas kWh usage]]+Table4[[#This Row],[Electric kWh usage]])","v":""},{"$f":"IF(OR(Table4[[#This Row],[Electric kWh usage]]=\"\",Table4[[#This Row],[Monthly Flow]]=\"\"),\"\",(Table4[[#This Row],[Electric kWh usage]]+Table4[[#This Row],[Gas kWh usage]])/Table4[[#This Row],[Monthly Flow]])","v":""},{"$f":"IFERROR(IF(Table4[[#This Row],[Electric kWh usage]]=\"\",\"\",(Table4[[#This Row],[Electric kWh usage]]+Table4[[#This Row],[Gas kWh usage]])/Table4[[#This Row],[Total BOD removed]]),\"\")","v":""},{"$f":"IF('Energy Data Entry'!E46+'Energy Data Entry'!J46+'Energy Data Entry'!O46+'Energy Data Entry'!T46+'Energy Data Entry'!Y46=0,\"\",'Energy Data Entry'!E46+'Energy Data Entry'!J46+'Energy Data Entry'!O46+'Energy Data Entry'!T46+'Energy Data Entry'!Y46)","v":""},{"$f":"IF('Energy Data Entry'!F46+'Energy Data Entry'!K46+'Energy Data Entry'!P46++'Energy Data Entry'!U46+'Energy Data Entry'!Z46=0,\"\",'Energy Data Entry'!F46+'Energy Data Entry'!K46+'Energy Data Entry'!P46++'Energy Data Entry'!U46+'Energy Data Entry'!Z46)","v":""},{"$f":"IF('Energy Data Entry'!G46+'Energy Data Entry'!L46+'Energy Data Entry'!Q46+'Energy Data Entry'!V46+'Energy Data Entry'!AA46=0,\"\",'Energy Data Entry'!G46+'Energy Data Entry'!L46+'Energy Data Entry'!Q46+'Energy Data Entry'!V46+'Energy Data Entry'!AA46)","v":""},{"$f":"IF('Energy Data Entry'!D46+'Energy Data Entry'!I46+'Energy Data Entry'!N46+'Energy Data Entry'!S46+'Energy Data Entry'!X46=0,\"\",'Energy Data Entry'!D46+'Energy Data Entry'!I46+'Energy Data Entry'!N46+'Energy Data Entry'!S46+'Energy Data Entry'!X46)","v":""},{"$f":"'Energy Data Entry'!AF46","v":0},{"$f":"IFERROR(Table4[[#This Row],[Total electric cost]]/Table4[[#This Row],[Electric kWh usage]],\"\")","v":""},{"$f":"IFERROR(Table4[[#This Row],[Electric Demand Cost]]/Table4[[#This Row],[Total Electric Demand (Billed)]],IFERROR(Table4[[#This Row],[Electric Demand Cost]]/Table4[[#This Row],[Total Electric Demand (Actual)]],\"\"))","v":""},{"$f":"IFERROR(Table4[[#This Row],[Total Gas cost]]+Table4[[#This Row],[Total electric cost]],\"\")","v":""},null,{"$f":"IFERROR(Table4[[#This Row],[Total Energy Cost]]/Table4[[#This Row],[Monthly Flow]],\"\")","v":""},{"$f":"IFERROR(Table4[[#This Row],[Total Energy Cost]]/Table4[[#This Row],[Total BOD removed]],\"\")","v":""},null,{"$f":"IF('Process Data Entry'!G27=\"\",\"\",'Process Data Entry'!G27)","v":""},{"$f":"IF('Process Data Entry'!H27=\"\",\"\",'Process Data Entry'!H27)","v":""},{"$f":"IF('Process Data Entry'!I27=\"\",0,'Process Data Entry'!I27)","v":0},{"$f":"IF('Process Data Entry'!J27=\"\",\"\",'Process Data Entry'!J27)","v":""},{"$f":"IF('Process Data Entry'!K27=\"\",\"\",'Process Data Entry'!K27)","v":""},{"$f":"IF('Process Data Entry'!L27=\"\",\"\",'Process Data Entry'!L27)","v":""},"","",{"$f":"IF('Process Data Entry'!M27=\"\",\"\",'Process Data Entry'!M27)","v":""},{"$f":"IF('Process Data Entry'!N27=\"\",\"\",'Process Data Entry'!N27)","v":""},""]
[2,{"$f":"'Energy Data Entry'!B47","v":"2019-06-01"},{"$f":"IF(OR('Process Data Entry'!C28=\"\",'Process Data Entry'!C28=0),\"\",'Process Data Entry'!C28)","v":""},{"$f":"IF(Table4[Avg Daily Flow]=\"\",\"\",_xlfn.DAYS(EOMONTH(B26,0),EOMONTH(B26,-1))*C26)","v":""},{"$f":"IF('Process Data Entry'!F28=\"\",\"\",'Process Data Entry'!F28)","v":""},{"$f":"IF(Table4[BOD removed]=\"\",\"\",Table4[BOD removed]*_xlfn.DAYS(EOMONTH(Table4[[#This Row],[Column2]],0),EOMONTH(Table4[[#This Row],[Column2]],-1)))","v":""},{"$f":"IF(SUM('Energy Data Entry'!C47,'Energy Data Entry'!H47,'Energy Data Entry'!M47,'Energy Data Entry'!R47,'Energy Data Entry'!W47)=0,\"\",SUM('Energy Data Entry'!C47,'Energy Data Entry'!H47,'Energy Data Entry'!M47,'Energy Data Entry'!R47,'Energy Data Entry'!W47))","v":""},{"$f":"'Energy Data Entry'!AG47","v":0},{"$f":"IF(Table4[[#This Row],[Electric kWh usage]]=\"\",\"\",Table4[[#This Row],[Gas kWh usage]]+Table4[[#This Row],[Electric kWh usage]])","v":""},{"$f":"IF(OR(Table4[[#This Row],[Electric kWh usage]]=\"\",Table4[[#This Row],[Monthly Flow]]=\"\"),\"\",(Table4[[#This Row],[Electric kWh usage]]+Table4[[#This Row],[Gas kWh usage]])/Table4[[#This Row],[Monthly Flow]])","v":""},{"$f":"IFERROR(IF(Table4[[#This Row],[Electric kWh usage]]=\"\",\"\",(Table4[[#This Row],[Electric kWh usage]]+Table4[[#This Row],[Gas kWh usage]])/Table4[[#This Row],[Total BOD removed]]),\"\")","v":""},{"$f":"IF('Energy Data Entry'!E47+'Energy Data Entry'!J47+'Energy Data Entry'!O47+'Energy Data Entry'!T47+'Energy Data Entry'!Y47=0,\"\",'Energy Data Entry'!E47+'Energy Data Entry'!J47+'Energy Data Entry'!O47+'Energy Data Entry'!T47+'Energy Data Entry'!Y47)","v":""},{"$f":"IF('Energy Data Entry'!F47+'Energy Data Entry'!K47+'Energy Data Entry'!P47++'Energy Data Entry'!U47+'Energy Data Entry'!Z47=0,\"\",'Energy Data Entry'!F47+'Energy Data Entry'!K47+'Energy Data Entry'!P47++'Energy Data Entry'!U47+'Energy Data Entry'!Z47)","v":""},{"$f":"IF('Energy Data Entry'!G47+'Energy Data Entry'!L47+'Energy Data Entry'!Q47+'Energy Data Entry'!V47+'Energy Data Entry'!AA47=0,\"\",'Energy Data Entry'!G47+'Energy Data Entry'!L47+'Energy Data Entry'!Q47+'Energy Data Entry'!V47+'Energy Data Entry'!AA47)","v":""},{"$f":"IF('Energy Data Entry'!D47+'Energy Data Entry'!I47+'Energy Data Entry'!N47+'Energy Data Entry'!S47+'Energy Data Entry'!X47=0,\"\",'Energy Data Entry'!D47+'Energy Data Entry'!I47+'Energy Data Entry'!N47+'Energy Data Entry'!S47+'Energy Data Entry'!X47)","v":""},{"$f":"'Energy Data Entry'!AF47","v":0},{"$f":"IFERROR(Table4[[#This Row],[Total electric cost]]/Table4[[#This Row],[Electric kWh usage]],\"\")","v":""},{"$f":"IFERROR(Table4[[#This Row],[Electric Demand Cost]]/Table4[[#This Row],[Total Electric Demand (Billed)]],IFERROR(Table4[[#This Row],[Electric Demand Cost]]/Table4[[#This Row],[Total Electric Demand (Actual)]],\"\"))","v":""},{"$f":"IFERROR(Table4[[#This Row],[Total Gas cost]]+Table4[[#This Row],[Total electric cost]],\"\")","v":""},null,{"$f":"IFERROR(Table4[[#This Row],[Total Energy Cost]]/Table4[[#This Row],[Monthly Flow]],\"\")","v":""},{"$f":"IFERROR(Table4[[#This Row],[Total Energy Cost]]/Table4[[#This Row],[Total BOD removed]],\"\")","v":""},null,{"$f":"IF('Process Data Entry'!G28=\"\",\"\",'Process Data Entry'!G28)","v":""},{"$f":"IF('Process Data Entry'!H28=\"\",\"\",'Process Data Entry'!H28)","v":""},{"$f":"IF('Process Data Entry'!I28=\"\",0,'Process Data Entry'!I28)","v":0},{"$f":"IF('Process Data Entry'!J28=\"\",\"\",'Process Data Entry'!J28)","v":""},{"$f":"IF('Process Data Entry'!K28=\"\",\"\",'Process Data Entry'!K28)","v":""},{"$f":"IF('Process Data Entry'!L28=\"\",\"\",'Process Data Entry'!L28)","v":""},"","",{"$f":"IF('Process Data Entry'!M28=\"\",\"\",'Process Data Entry'!M28)","v":""},{"$f":"IF('Process Data Entry'!N28=\"\",\"\",'Process Data Entry'!N28)","v":""},""]
[2,{"$f":"'Energy Data Entry'!B48","v":"2019-07-01"},{"$f":"IF(OR('Process Data Entry'!C29=\"\",'Process Data Entry'!C29=0),\"\",'Process Data Entry'!C29)","v":""},{"$f":"IF(Table4[Avg Daily Flow]=\"\",\"\",_xlfn.DAYS(EOMONTH(B27,0),EOMONTH(B27,-1))*C27)","v":""},{"$f":"IF('Process Data Entry'!F29=\"\",\"\",'Process Data Entry'!F29)","v":""},{"$f":"IF(Table4[BOD removed]=\"\",\"\",Table4[BOD removed]*_xlfn.DAYS(EOMONTH(Table4[[#This Row],[Column2]],0),EOMONTH(Table4[[#This Row],[Column2]],-1)))","v":""},{"$f":"IF(SUM('Energy Data Entry'!C48,'Energy Data Entry'!H48,'Energy Data Entry'!M48,'Energy Data Entry'!R48,'Energy Data Entry'!W48)=0,\"\",SUM('Energy Data Entry'!C48,'Energy Data Entry'!H48,'Energy Data Entry'!M48,'Energy Data Entry'!R48,'Energy Data Entry'!W48))","v":""},{"$f":"'Energy Data Entry'!AG48","v":0},{"$f":"IF(Table4[[#This Row],[Electric kWh usage]]=\"\",\"\",Table4[[#This Row],[Gas kWh usage]]+Table4[[#This Row],[Electric kWh usage]])","v":""},{"$f":"IF(OR(Table4[[#This Row],[Electric kWh usage]]=\"\",Table4[[#This Row],[Monthly Flow]]=\"\"),\"\",(Table4[[#This Row],[Electric kWh usage]]+Table4[[#This Row],[Gas kWh usage]])/Table4[[#This Row],[Monthly Flow]])","v":""},{"$f":"IFERROR(IF(Table4[[#This Row],[Electric kWh usage]]=\"\",\"\",(Table4[[#This Row],[Electric kWh usage]]+Table4[[#This Row],[Gas kWh usage]])/Table4[[#This Row],[Total BOD removed]]),\"\")","v":""},{"$f":"IF('Energy Data Entry'!E48+'Energy Data Entry'!J48+'Energy Data Entry'!O48+'Energy Data Entry'!T48+'Energy Data Entry'!Y48=0,\"\",'Energy Data Entry'!E48+'Energy Data Entry'!J48+'Energy Data Entry'!O48+'Energy Data Entry'!T48+'Energy Data Entry'!Y48)","v":""},{"$f":"IF('Energy Data Entry'!F48+'Energy Data Entry'!K48+'Energy Data Entry'!P48++'Energy Data Entry'!U48+'Energy Data Entry'!Z48=0,\"\",'Energy Data Entry'!F48+'Energy Data Entry'!K48+'Energy Data Entry'!P48++'Energy Data Entry'!U48+'Energy Data Entry'!Z48)","v":""},{"$f":"IF('Energy Data Entry'!G48+'Energy Data Entry'!L48+'Energy Data Entry'!Q48+'Energy Data Entry'!V48+'Energy Data Entry'!AA48=0,\"\",'Energy Data Entry'!G48+'Energy Data Entry'!L48+'Energy Data Entry'!Q48+'Energy Data Entry'!V48+'Energy Data Entry'!AA48)","v":""},{"$f":"IF('Energy Data Entry'!D48+'Energy Data Entry'!I48+'Energy Data Entry'!N48+'Energy Data Entry'!S48+'Energy Data Entry'!X48=0,\"\",'Energy Data Entry'!D48+'Energy Data Entry'!I48+'Energy Data Entry'!N48+'Energy Data Entry'!S48+'Energy Data Entry'!X48)","v":""},{"$f":"'Energy Data Entry'!AF48","v":0},{"$f":"IFERROR(Table4[[#This Row],[Total electric cost]]/Table4[[#This Row],[Electric kWh usage]],\"\")","v":""},{"$f":"IFERROR(Table4[[#This Row],[Electric Demand Cost]]/Table4[[#This Row],[Total Electric Demand (Billed)]],IFERROR(Table4[[#This Row],[Electric Demand Cost]]/Table4[[#This Row],[Total Electric Demand (Actual)]],\"\"))","v":""},{"$f":"IFERROR(Table4[[#This Row],[Total Gas cost]]+Table4[[#This Row],[Total electric cost]],\"\")","v":""},null,{"$f":"IFERROR(Table4[[#This Row],[Total Energy Cost]]/Table4[[#This Row],[Monthly Flow]],\"\")","v":""},{"$f":"IFERROR(Table4[[#This Row],[Total Energy Cost]]/Table4[[#This Row],[Total BOD removed]],\"\")","v":""},null,{"$f":"IF('Process Data Entry'!G29=\"\",\"\",'Process Data Entry'!G29)","v":""},{"$f":"IF('Process Data Entry'!H29=\"\",\"\",'Process Data Entry'!H29)","v":""},{"$f":"IF('Process Data Entry'!I29=\"\",0,'Process Data Entry'!I29)","v":0},{"$f":"IF('Process Data Entry'!J29=\"\",\"\",'Process Data Entry'!J29)","v":""},{"$f":"IF('Process Data Entry'!K29=\"\",\"\",'Process Data Entry'!K29)","v":""},{"$f":"IF('Process Data Entry'!L29=\"\",\"\",'Process Data Entry'!L29)","v":""},"","",{"$f":"IF('Process Data Entry'!M29=\"\",\"\",'Process Data Entry'!M29)","v":""},{"$f":"IF('Process Data Entry'!N29=\"\",\"\",'Process Data Entry'!N29)","v":""},""]
[3,{"$f":"'Energy Data Entry'!B49","v":"2019-08-01"},{"$f":"IF(OR('Process Data Entry'!C30=\"\",'Process Data Entry'!C30=0),\"\",'Process Data Entry'!C30)","v":""},{"$f":"IF(Table4[Avg Daily Flow]=\"\",\"\",_xlfn.DAYS(EOMONTH(B28,0),EOMONTH(B28,-1))*C28)","v":""},{"$f":"IF('Process Data Entry'!F30=\"\",\"\",'Process Data Entry'!F30)","v":""},{"$f":"IF(Table4[BOD removed]=\"\",\"\",Table4[BOD removed]*_xlfn.DAYS(EOMONTH(Table4[[#This Row],[Column2]],0),EOMONTH(Table4[[#This Row],[Column2]],-1)))","v":""},{"$f":"IF(SUM('Energy Data Entry'!C49,'Energy Data Entry'!H49,'Energy Data Entry'!M49,'Energy Data Entry'!R49,'Energy Data Entry'!W49)=0,\"\",SUM('Energy Data Entry'!C49,'Energy Data Entry'!H49,'Energy Data Entry'!M49,'Energy Data Entry'!R49,'Energy Data Entry'!W49))","v":""},{"$f":"'Energy Data Entry'!AG49","v":0},{"$f":"IF(Table4[[#This Row],[Electric kWh usage]]=\"\",\"\",Table4[[#This Row],[Gas kWh usage]]+Table4[[#This Row],[Electric kWh usage]])","v":""},{"$f":"IF(OR(Table4[[#This Row],[Electric kWh usage]]=\"\",Table4[[#This Row],[Monthly Flow]]=\"\"),\"\",(Table4[[#This Row],[Electric kWh usage]]+Table4[[#This Row],[Gas kWh usage]])/Table4[[#This Row],[Monthly Flow]])","v":""},{"$f":"IFERROR(IF(Table4[[#This Row],[Electric kWh usage]]=\"\",\"\",(Table4[[#This Row],[Electric kWh usage]]+Table4[[#This Row],[Gas kWh usage]])/Table4[[#This Row],[Total BOD removed]]),\"\")","v":""},{"$f":"IF('Energy Data Entry'!E49+'Energy Data Entry'!J49+'Energy Data Entry'!O49+'Energy Data Entry'!T49+'Energy Data Entry'!Y49=0,\"\",'Energy Data Entry'!E49+'Energy Data Entry'!J49+'Energy Data Entry'!O49+'Energy Data Entry'!T49+'Energy Data Entry'!Y49)","v":""},{"$f":"IF('Energy Data Entry'!F49+'Energy Data Entry'!K49+'Energy Data Entry'!P49++'Energy Data Entry'!U49+'Energy Data Entry'!Z49=0,\"\",'Energy Data Entry'!F49+'Energy Data Entry'!K49+'Energy Data Entry'!P49++'Energy Data Entry'!U49+'Energy Data Entry'!Z49)","v":""},{"$f":"IF('Energy Data Entry'!G49+'Energy Data Entry'!L49+'Energy Data Entry'!Q49+'Energy Data Entry'!V49+'Energy Data Entry'!AA49=0,\"\",'Energy Data Entry'!G49+'Energy Data Entry'!L49+'Energy Data Entry'!Q49+'Energy Data Entry'!V49+'Energy Data Entry'!AA49)","v":""},{"$f":"IF('Energy Data Entry'!D49+'Energy Data Entry'!I49+'Energy Data Entry'!N49+'Energy Data Entry'!S49+'Energy Data Entry'!X49=0,\"\",'Energy Data Entry'!D49+'Energy Data Entry'!I49+'Energy Data Entry'!N49+'Energy Data Entry'!S49+'Energy Data Entry'!X49)","v":""},{"$f":"'Energy Data Entry'!AF49","v":0},{"$f":"IFERROR(Table4[[#This Row],[Total electric cost]]/Table4[[#This Row],[Electric kWh usage]],\"\")","v":""},{"$f":"IFERROR(Table4[[#This Row],[Electric Demand Cost]]/Table4[[#This Row],[Total Electric Demand (Billed)]],IFERROR(Table4[[#This Row],[Electric Demand Cost]]/Table4[[#This Row],[Total Electric Demand (Actual)]],\"\"))","v":""},{"$f":"IFERROR(Table4[[#This Row],[Total Gas cost]]+Table4[[#This Row],[Total electric cost]],\"\")","v":""},null,{"$f":"IFERROR(Table4[[#This Row],[Total Energy Cost]]/Table4[[#This Row],[Monthly Flow]],\"\")","v":""},{"$f":"IFERROR(Table4[[#This Row],[Total Energy Cost]]/Table4[[#This Row],[Total BOD removed]],\"\")","v":""},null,{"$f":"IF('Process Data Entry'!G30=\"\",\"\",'Process Data Entry'!G30)","v":""},{"$f":"IF('Process Data Entry'!H30=\"\",\"\",'Process Data Entry'!H30)","v":""},{"$f":"IF('Process Data Entry'!I30=\"\",0,'Process Data Entry'!I30)","v":0},{"$f":"IF('Process Data Entry'!J30=\"\",\"\",'Process Data Entry'!J30)","v":""},{"$f":"IF('Process Data Entry'!K30=\"\",\"\",'Process Data Entry'!K30)","v":""},{"$f":"IF('Process Data Entry'!L30=\"\",\"\",'Process Data Entry'!L30)","v":""},"","",{"$f":"IF('Process Data Entry'!M30=\"\",\"\",'Process Data Entry'!M30)","v":""},{"$f":"IF('Process Data Entry'!N30=\"\",\"\",'Process Data Entry'!N30)","v":""},""]
[3,{"$f":"'Energy Data Entry'!B50","v":"2019-09-01"},{"$f":"IF(OR('Process Data Entry'!C31=\"\",'Process Data Entry'!C31=0),\"\",'Process Data Entry'!C31)","v":""},{"$f":"IF(Table4[Avg Daily Flow]=\"\",\"\",_xlfn.DAYS(EOMONTH(B29,0),EOMONTH(B29,-1))*C29)","v":""},{"$f":"IF('Process Data Entry'!F31=\"\",\"\",'Process Data Entry'!F31)","v":""},{"$f":"IF(Table4[BOD removed]=\"\",\"\",Table4[BOD removed]*_xlfn.DAYS(EOMONTH(Table4[[#This Row],[Column2]],0),EOMONTH(Table4[[#This Row],[Column2]],-1)))","v":""},{"$f":"IF(SUM('Energy Data Entry'!C50,'Energy Data Entry'!H50,'Energy Data Entry'!M50,'Energy Data Entry'!R50,'Energy Data Entry'!W50)=0,\"\",SUM('Energy Data Entry'!C50,'Energy Data Entry'!H50,'Energy Data Entry'!M50,'Energy Data Entry'!R50,'Energy Data Entry'!W50))","v":""},{"$f":"'Energy Data Entry'!AG50","v":0},{"$f":"IF(Table4[[#This Row],[Electric kWh usage]]=\"\",\"\",Table4[[#This Row],[Gas kWh usage]]+Table4[[#This Row],[Electric kWh usage]])","v":""},{"$f":"IF(OR(Table4[[#This Row],[Electric kWh usage]]=\"\",Table4[[#This Row],[Monthly Flow]]=\"\"),\"\",(Table4[[#This Row],[Electric kWh usage]]+Table4[[#This Row],[Gas kWh usage]])/Table4[[#This Row],[Monthly Flow]])","v":""},{"$f":"IFERROR(IF(Table4[[#This Row],[Electric kWh usage]]=\"\",\"\",(Table4[[#This Row],[Electric kWh usage]]+Table4[[#This Row],[Gas kWh usage]])/Table4[[#This Row],[Total BOD removed]]),\"\")","v":""},{"$f":"IF('Energy Data Entry'!E50+'Energy Data Entry'!J50+'Energy Data Entry'!O50+'Energy Data Entry'!T50+'Energy Data Entry'!Y50=0,\"\",'Energy Data Entry'!E50+'Energy Data Entry'!J50+'Energy Data Entry'!O50+'Energy Data Entry'!T50+'Energy Data Entry'!Y50)","v":""},{"$f":"IF('Energy Data Entry'!F50+'Energy Data Entry'!K50+'Energy Data Entry'!P50++'Energy Data Entry'!U50+'Energy Data Entry'!Z50=0,\"\",'Energy Data Entry'!F50+'Energy Data Entry'!K50+'Energy Data Entry'!P50++'Energy Data Entry'!U50+'Energy Data Entry'!Z50)","v":""},{"$f":"IF('Energy Data Entry'!G50+'Energy Data Entry'!L50+'Energy Data Entry'!Q50+'Energy Data Entry'!V50+'Energy Data Entry'!AA50=0,\"\",'Energy Data Entry'!G50+'Energy Data Entry'!L50+'Energy Data Entry'!Q50+'Energy Data Entry'!V50+'Energy Data Entry'!AA50)","v":""},{"$f":"IF('Energy Data Entry'!D50+'Energy Data Entry'!I50+'Energy Data Entry'!N50+'Energy Data Entry'!S50+'Energy Data Entry'!X50=0,\"\",'Energy Data Entry'!D50+'Energy Data Entry'!I50+'Energy Data Entry'!N50+'Energy Data Entry'!S50+'Energy Data Entry'!X50)","v":""},{"$f":"'Energy Data Entry'!AF50","v":0},{"$f":"IFERROR(Table4[[#This Row],[Total electric cost]]/Table4[[#This Row],[Electric kWh usage]],\"\")","v":""},{"$f":"IFERROR(Table4[[#This Row],[Electric Demand Cost]]/Table4[[#This Row],[Total Electric Demand (Billed)]],IFERROR(Table4[[#This Row],[Electric Demand Cost]]/Table4[[#This Row],[Total Electric Demand (Actual)]],\"\"))","v":""},{"$f":"IFERROR(Table4[[#This Row],[Total Gas cost]]+Table4[[#This Row],[Total electric cost]],\"\")","v":""},null,{"$f":"IFERROR(Table4[[#This Row],[Total Energy Cost]]/Table4[[#This Row],[Monthly Flow]],\"\")","v":""},{"$f":"IFERROR(Table4[[#This Row],[Total Energy Cost]]/Table4[[#This Row],[Total BOD removed]],\"\")","v":""},null,{"$f":"IF('Process Data Entry'!G31=\"\",\"\",'Process Data Entry'!G31)","v":""},{"$f":"IF('Process Data Entry'!H31=\"\",\"\",'Process Data Entry'!H31)","v":""},{"$f":"IF('Process Data Entry'!I31=\"\",0,'Process Data Entry'!I31)","v":0},{"$f":"IF('Process Data Entry'!J31=\"\",\"\",'Process Data Entry'!J31)","v":""},{"$f":"IF('Process Data Entry'!K31=\"\",\"\",'Process Data Entry'!K31)","v":""},{"$f":"IF('Process Data Entry'!L31=\"\",\"\",'Process Data Entry'!L31)","v":""},"","",{"$f":"IF('Process Data Entry'!M31=\"\",\"\",'Process Data Entry'!M31)","v":""},{"$f":"IF('Process Data Entry'!N31=\"\",\"\",'Process Data Entry'!N31)","v":""},""]
[3,{"$f":"'Energy Data Entry'!B51","v":"2019-10-01"},{"$f":"IF(OR('Process Data Entry'!C32=\"\",'Process Data Entry'!C32=0),\"\",'Process Data Entry'!C32)","v":""},{"$f":"IF(Table4[Avg Daily Flow]=\"\",\"\",_xlfn.DAYS(EOMONTH(B30,0),EOMONTH(B30,-1))*C30)","v":""},{"$f":"IF('Process Data Entry'!F32=\"\",\"\",'Process Data Entry'!F32)","v":""},{"$f":"IF(Table4[BOD removed]=\"\",\"\",Table4[BOD removed]*_xlfn.DAYS(EOMONTH(Table4[[#This Row],[Column2]],0),EOMONTH(Table4[[#This Row],[Column2]],-1)))","v":""},{"$f":"IF(SUM('Energy Data Entry'!C51,'Energy Data Entry'!H51,'Energy Data Entry'!M51,'Energy Data Entry'!R51,'Energy Data Entry'!W51)=0,\"\",SUM('Energy Data Entry'!C51,'Energy Data Entry'!H51,'Energy Data Entry'!M51,'Energy Data Entry'!R51,'Energy Data Entry'!W51))","v":""},{"$f":"'Energy Data Entry'!AG51","v":0},{"$f":"IF(Table4[[#This Row],[Electric kWh usage]]=\"\",\"\",Table4[[#This Row],[Gas kWh usage]]+Table4[[#This Row],[Electric kWh usage]])","v":""},{"$f":"IF(OR(Table4[[#This Row],[Electric kWh usage]]=\"\",Table4[[#This Row],[Monthly Flow]]=\"\"),\"\",(Table4[[#This Row],[Electric kWh usage]]+Table4[[#This Row],[Gas kWh usage]])/Table4[[#This Row],[Monthly Flow]])","v":""},{"$f":"IFERROR(IF(Table4[[#This Row],[Electric kWh usage]]=\"\",\"\",(Table4[[#This Row],[Electric kWh usage]]+Table4[[#This Row],[Gas kWh usage]])/Table4[[#This Row],[Total BOD removed]]),\"\")","v":""},{"$f":"IF('Energy Data Entry'!E51+'Energy Data Entry'!J51+'Energy Data Entry'!O51+'Energy Data Entry'!T51+'Energy Data Entry'!Y51=0,\"\",'Energy Data Entry'!E51+'Energy Data Entry'!J51+'Energy Data Entry'!O51+'Energy Data Entry'!T51+'Energy Data Entry'!Y51)","v":""},{"$f":"IF('Energy Data Entry'!F51+'Energy Data Entry'!K51+'Energy Data Entry'!P51++'Energy Data Entry'!U51+'Energy Data Entry'!Z51=0,\"\",'Energy Data Entry'!F51+'Energy Data Entry'!K51+'Energy Data Entry'!P51++'Energy Data Entry'!U51+'Energy Data Entry'!Z51)","v":""},{"$f":"IF('Energy Data Entry'!G51+'Energy Data Entry'!L51+'Energy Data Entry'!Q51+'Energy Data Entry'!V51+'Energy Data Entry'!AA51=0,\"\",'Energy Data Entry'!G51+'Energy Data Entry'!L51+'Energy Data Entry'!Q51+'Energy Data Entry'!V51+'Energy Data Entry'!AA51)","v":""},{"$f":"IF('Energy Data Entry'!D51+'Energy Data Entry'!I51+'Energy Data Entry'!N51+'Energy Data Entry'!S51+'Energy Data Entry'!X51=0,\"\",'Energy Data Entry'!D51+'Energy Data Entry'!I51+'Energy Data Entry'!N51+'Energy Data Entry'!S51+'Energy Data Entry'!X51)","v":""},{"$f":"'Energy Data Entry'!AF51","v":0},{"$f":"IFERROR(Table4[[#This Row],[Total electric cost]]/Table4[[#This Row],[Electric kWh usage]],\"\")","v":""},{"$f":"IFERROR(Table4[[#This Row],[Electric Demand Cost]]/Table4[[#This Row],[Total Electric Demand (Billed)]],IFERROR(Table4[[#This Row],[Electric Demand Cost]]/Table4[[#This Row],[Total Electric Demand (Actual)]],\"\"))","v":""},{"$f":"IFERROR(Table4[[#This Row],[Total Gas cost]]+Table4[[#This Row],[Total electric cost]],\"\")","v":""},null,{"$f":"IFERROR(Table4[[#This Row],[Total Energy Cost]]/Table4[[#This Row],[Monthly Flow]],\"\")","v":""},{"$f":"IFERROR(Table4[[#This Row],[Total Energy Cost]]/Table4[[#This Row],[Total BOD removed]],\"\")","v":""},null,{"$f":"IF('Process Data Entry'!G32=\"\",\"\",'Process Data Entry'!G32)","v":""},{"$f":"IF('Process Data Entry'!H32=\"\",\"\",'Process Data Entry'!H32)","v":""},{"$f":"IF('Process Data Entry'!I32=\"\",0,'Process Data Entry'!I32)","v":0},{"$f":"IF('Process Data Entry'!J32=\"\",\"\",'Process Data Entry'!J32)","v":""},{"$f":"IF('Process Data Entry'!K32=\"\",\"\",'Process Data Entry'!K32)","v":""},{"$f":"IF('Process Data Entry'!L32=\"\",\"\",'Process Data Entry'!L32)","v":""},"","",{"$f":"IF('Process Data Entry'!M32=\"\",\"\",'Process Data Entry'!M32)","v":""},{"$f":"IF('Process Data Entry'!N32=\"\",\"\",'Process Data Entry'!N32)","v":""},""]
[3,{"$f":"'Energy Data Entry'!B52","v":"2019-11-01"},{"$f":"IF(OR('Process Data Entry'!C33=\"\",'Process Data Entry'!C33=0),\"\",'Process Data Entry'!C33)","v":""},{"$f":"IF(Table4[Avg Daily Flow]=\"\",\"\",_xlfn.DAYS(EOMONTH(B31,0),EOMONTH(B31,-1))*C31)","v":""},{"$f":"IF('Process Data Entry'!F33=\"\",\"\",'Process Data Entry'!F33)","v":""},{"$f":"IF(Table4[BOD removed]=\"\",\"\",Table4[BOD removed]*_xlfn.DAYS(EOMONTH(Table4[[#This Row],[Column2]],0),EOMONTH(Table4[[#This Row],[Column2]],-1)))","v":""},{"$f":"IF(SUM('Energy Data Entry'!C52,'Energy Data Entry'!H52,'Energy Data Entry'!M52,'Energy Data Entry'!R52,'Energy Data Entry'!W52)=0,\"\",SUM('Energy Data Entry'!C52,'Energy Data Entry'!H52,'Energy Data Entry'!M52,'Energy Data Entry'!R52,'Energy Data Entry'!W52))","v":""},{"$f":"'Energy Data Entry'!AG52","v":0},{"$f":"IF(Table4[[#This Row],[Electric kWh usage]]=\"\",\"\",Table4[[#This Row],[Gas kWh usage]]+Table4[[#This Row],[Electric kWh usage]])","v":""},{"$f":"IF(OR(Table4[[#This Row],[Electric kWh usage]]=\"\",Table4[[#This Row],[Monthly Flow]]=\"\"),\"\",(Table4[[#This Row],[Electric kWh usage]]+Table4[[#This Row],[Gas kWh usage]])/Table4[[#This Row],[Monthly Flow]])","v":""},{"$f":"IFERROR(IF(Table4[[#This Row],[Electric kWh usage]]=\"\",\"\",(Table4[[#This Row],[Electric kWh usage]]+Table4[[#This Row],[Gas kWh usage]])/Table4[[#This Row],[Total BOD removed]]),\"\")","v":""},{"$f":"IF('Energy Data Entry'!E52+'Energy Data Entry'!J52+'Energy Data Entry'!O52+'Energy Data Entry'!T52+'Energy Data Entry'!Y52=0,\"\",'Energy Data Entry'!E52+'Energy Data Entry'!J52+'Energy Data Entry'!O52+'Energy Data Entry'!T52+'Energy Data Entry'!Y52)","v":""},{"$f":"IF('Energy Data Entry'!F52+'Energy Data Entry'!K52+'Energy Data Entry'!P52++'Energy Data Entry'!U52+'Energy Data Entry'!Z52=0,\"\",'Energy Data Entry'!F52+'Energy Data Entry'!K52+'Energy Data Entry'!P52++'Energy Data Entry'!U52+'Energy Data Entry'!Z52)","v":""},{"$f":"IF('Energy Data Entry'!G52+'Energy Data Entry'!L52+'Energy Data Entry'!Q52+'Energy Data Entry'!V52+'Energy Data Entry'!AA52=0,\"\",'Energy Data Entry'!G52+'Energy Data Entry'!L52+'Energy Data Entry'!Q52+'Energy Data Entry'!V52+'Energy Data Entry'!AA52)","v":""},{"$f":"IF('Energy Data Entry'!D52+'Energy Data Entry'!I52+'Energy Data Entry'!N52+'Energy Data Entry'!S52+'Energy Data Entry'!X52=0,\"\",'Energy Data Entry'!D52+'Energy Data Entry'!I52+'Energy Data Entry'!N52+'Energy Data Entry'!S52+'Energy Data Entry'!X52)","v":""},{"$f":"'Energy Data Entry'!AF52","v":0},{"$f":"IFERROR(Table4[[#This Row],[Total electric cost]]/Table4[[#This Row],[Electric kWh usage]],\"\")","v":""},{"$f":"IFERROR(Table4[[#This Row],[Electric Demand Cost]]/Table4[[#This Row],[Total Electric Demand (Billed)]],IFERROR(Table4[[#This Row],[Electric Demand Cost]]/Table4[[#This Row],[Total Electric Demand (Actual)]],\"\"))","v":""},{"$f":"IFERROR(Table4[[#This Row],[Total Gas cost]]+Table4[[#This Row],[Total electric cost]],\"\")","v":""},null,{"$f":"IFERROR(Table4[[#This Row],[Total Energy Cost]]/Table4[[#This Row],[Monthly Flow]],\"\")","v":""},{"$f":"IFERROR(Table4[[#This Row],[Total Energy Cost]]/Table4[[#This Row],[Total BOD removed]],\"\")","v":""},null,{"$f":"IF('Process Data Entry'!G33=\"\",\"\",'Process Data Entry'!G33)","v":""},{"$f":"IF('Process Data Entry'!H33=\"\",\"\",'Process Data Entry'!H33)","v":""},{"$f":"IF('Process Data Entry'!I33=\"\",0,'Process Data Entry'!I33)","v":0},{"$f":"IF('Process Data Entry'!J33=\"\",\"\",'Process Data Entry'!J33)","v":""},{"$f":"IF('Process Data Entry'!K33=\"\",\"\",'Process Data Entry'!K33)","v":""},{"$f":"IF('Process Data Entry'!L33=\"\",\"\",'Process Data Entry'!L33)","v":""},"","",{"$f":"IF('Process Data Entry'!M33=\"\",\"\",'Process Data Entry'!M33)","v":""},{"$f":"IF('Process Data Entry'!N33=\"\",\"\",'Process Data Entry'!N33)","v":""},""]
[3,{"$f":"'Energy Data Entry'!B53","v":"2019-12-01"},{"$f":"IF(OR('Process Data Entry'!C34=\"\",'Process Data Entry'!C34=0),\"\",'Process Data Entry'!C34)","v":""},{"$f":"IF(Table4[Avg Daily Flow]=\"\",\"\",_xlfn.DAYS(EOMONTH(B32,0),EOMONTH(B32,-1))*C32)","v":""},{"$f":"IF('Process Data Entry'!F34=\"\",\"\",'Process Data Entry'!F34)","v":""},{"$f":"IF(Table4[BOD removed]=\"\",\"\",Table4[BOD removed]*_xlfn.DAYS(EOMONTH(Table4[[#This Row],[Column2]],0),EOMONTH(Table4[[#This Row],[Column2]],-1)))","v":""},{"$f":"IF(SUM('Energy Data Entry'!C53,'Energy Data Entry'!H53,'Energy Data Entry'!M53,'Energy Data Entry'!R53,'Energy Data Entry'!W53)=0,\"\",SUM('Energy Data Entry'!C53,'Energy Data Entry'!H53,'Energy Data Entry'!M53,'Energy Data Entry'!R53,'Energy Data Entry'!W53))","v":""},{"$f":"'Energy Data Entry'!AG53","v":0},{"$f":"IF(Table4[[#This Row],[Electric kWh usage]]=\"\",\"\",Table4[[#This Row],[Gas kWh usage]]+Table4[[#This Row],[Electric kWh usage]])","v":""},{"$f":"IF(OR(Table4[[#This Row],[Electric kWh usage]]=\"\",Table4[[#This Row],[Monthly Flow]]=\"\"),\"\",(Table4[[#This Row],[Electric kWh usage]]+Table4[[#This Row],[Gas kWh usage]])/Table4[[#This Row],[Monthly Flow]])","v":""},{"$f":"IFERROR(IF(Table4[[#This Row],[Electric kWh usage]]=\"\",\"\",(Table4[[#This Row],[Electric kWh usage]]+Table4[[#This Row],[Gas kWh usage]])/Table4[[#This Row],[Total BOD removed]]),\"\")","v":""},{"$f":"IF('Energy Data Entry'!E53+'Energy Data Entry'!J53+'Energy Data Entry'!O53+'Energy Data Entry'!T53+'Energy Data Entry'!Y53=0,\"\",'Energy Data Entry'!E53+'Energy Data Entry'!J53+'Energy Data Entry'!O53+'Energy Data Entry'!T53+'Energy Data Entry'!Y53)","v":""},{"$f":"IF('Energy Data Entry'!F53+'Energy Data Entry'!K53+'Energy Data Entry'!P53++'Energy Data Entry'!U53+'Energy Data Entry'!Z53=0,\"\",'Energy Data Entry'!F53+'Energy Data Entry'!K53+'Energy Data Entry'!P53++'Energy Data Entry'!U53+'Energy Data Entry'!Z53)","v":""},{"$f":"IF('Energy Data Entry'!G53+'Energy Data Entry'!L53+'Energy Data Entry'!Q53+'Energy Data Entry'!V53+'Energy Data Entry'!AA53=0,\"\",'Energy Data Entry'!G53+'Energy Data Entry'!L53+'Energy Data Entry'!Q53+'Energy Data Entry'!V53+'Energy Data Entry'!AA53)","v":""},{"$f":"IF('Energy Data Entry'!D53+'Energy Data Entry'!I53+'Energy Data Entry'!N53+'Energy Data Entry'!S53+'Energy Data Entry'!X53=0,\"\",'Energy Data Entry'!D53+'Energy Data Entry'!I53+'Energy Data Entry'!N53+'Energy Data Entry'!S53+'Energy Data Entry'!X53)","v":""},{"$f":"'Energy Data Entry'!AF53","v":0},{"$f":"IFERROR(Table4[[#This Row],[Total electric cost]]/Table4[[#This Row],[Electric kWh usage]],\"\")","v":""},{"$f":"IFERROR(Table4[[#This Row],[Electric Demand Cost]]/Table4[[#This Row],[Total Electric Demand (Billed)]],IFERROR(Table4[[#This Row],[Electric Demand Cost]]/Table4[[#This Row],[Total Electric Demand (Actual)]],\"\"))","v":""},{"$f":"IFERROR(Table4[[#This Row],[Total Gas cost]]+Table4[[#This Row],[Total electric cost]],\"\")","v":""},null,{"$f":"IFERROR(Table4[[#This Row],[Total Energy Cost]]/Table4[[#This Row],[Monthly Flow]],\"\")","v":""},{"$f":"IFERROR(Table4[[#This Row],[Total Energy Cost]]/Table4[[#This Row],[Total BOD removed]],\"\")","v":""},null,{"$f":"IF('Process Data Entry'!G34=\"\",\"\",'Process Data Entry'!G34)","v":""},{"$f":"IF('Process Data Entry'!H34=\"\",\"\",'Process Data Entry'!H34)","v":""},{"$f":"IF('Process Data Entry'!I34=\"\",0,'Process Data Entry'!I34)","v":0},{"$f":"IF('Process Data Entry'!J34=\"\",\"\",'Process Data Entry'!J34)","v":""},{"$f":"IF('Process Data Entry'!K34=\"\",\"\",'Process Data Entry'!K34)","v":""},{"$f":"IF('Process Data Entry'!L34=\"\",\"\",'Process Data Entry'!L34)","v":""},"","",{"$f":"IF('Process Data Entry'!M34=\"\",\"\",'Process Data Entry'!M34)","v":""},{"$f":"IF('Process Data Entry'!N34=\"\",\"\",'Process Data Entry'!N34)","v":""},""]
[3,{"$f":"'Energy Data Entry'!B54","v":"2020-01-01"},{"$f":"IF(OR('Process Data Entry'!C35=\"\",'Process Data Entry'!C35=0),\"\",'Process Data Entry'!C35)","v":""},{"$f":"IF(Table4[Avg Daily Flow]=\"\",\"\",_xlfn.DAYS(EOMONTH(B33,0),EOMONTH(B33,-1))*C33)","v":""},{"$f":"IF('Process Data Entry'!F35=\"\",\"\",'Process Data Entry'!F35)","v":""},{"$f":"IF(Table4[BOD removed]=\"\",\"\",Table4[BOD removed]*_xlfn.DAYS(EOMONTH(Table4[[#This Row],[Column2]],0),EOMONTH(Table4[[#This Row],[Column2]],-1)))","v":""},{"$f":"IF(SUM('Energy Data Entry'!C54,'Energy Data Entry'!H54,'Energy Data Entry'!M54,'Energy Data Entry'!R54,'Energy Data Entry'!W54)=0,\"\",SUM('Energy Data Entry'!C54,'Energy Data Entry'!H54,'Energy Data Entry'!M54,'Energy Data Entry'!R54,'Energy Data Entry'!W54))","v":""},{"$f":"'Energy Data Entry'!AG54","v":0},{"$f":"IF(Table4[[#This Row],[Electric kWh usage]]=\"\",\"\",Table4[[#This Row],[Gas kWh usage]]+Table4[[#This Row],[Electric kWh usage]])","v":""},{"$f":"IF(OR(Table4[[#This Row],[Electric kWh usage]]=\"\",Table4[[#This Row],[Monthly Flow]]=\"\"),\"\",(Table4[[#This Row],[Electric kWh usage]]+Table4[[#This Row],[Gas kWh usage]])/Table4[[#This Row],[Monthly Flow]])","v":""},{"$f":"IFERROR(IF(Table4[[#This Row],[Electric kWh usage]]=\"\",\"\",(Table4[[#This Row],[Electric kWh usage]]+Table4[[#This Row],[Gas kWh usage]])/Table4[[#This Row],[Total BOD removed]]),\"\")","v":""},{"$f":"IF('Energy Data Entry'!E54+'Energy Data Entry'!J54+'Energy Data Entry'!O54+'Energy Data Entry'!T54+'Energy Data Entry'!Y54=0,\"\",'Energy Data Entry'!E54+'Energy Data Entry'!J54+'Energy Data Entry'!O54+'Energy Data Entry'!T54+'Energy Data Entry'!Y54)","v":""},{"$f":"IF('Energy Data Entry'!F54+'Energy Data Entry'!K54+'Energy Data Entry'!P54++'Energy Data Entry'!U54+'Energy Data Entry'!Z54=0,\"\",'Energy Data Entry'!F54+'Energy Data Entry'!K54+'Energy Data Entry'!P54++'Energy Data Entry'!U54+'Energy Data Entry'!Z54)","v":""},{"$f":"IF('Energy Data Entry'!G54+'Energy Data Entry'!L54+'Energy Data Entry'!Q54+'Energy Data Entry'!V54+'Energy Data Entry'!AA54=0,\"\",'Energy Data Entry'!G54+'Energy Data Entry'!L54+'Energy Data Entry'!Q54+'Energy Data Entry'!V54+'Energy Data Entry'!AA54)","v":""},{"$f":"IF('Energy Data Entry'!D54+'Energy Data Entry'!I54+'Energy Data Entry'!N54+'Energy Data Entry'!S54+'Energy Data Entry'!X54=0,\"\",'Energy Data Entry'!D54+'Energy Data Entry'!I54+'Energy Data Entry'!N54+'Energy Data Entry'!S54+'Energy Data Entry'!X54)","v":""},{"$f":"'Energy Data Entry'!AF54","v":0},{"$f":"IFERROR(Table4[[#This Row],[Total electric cost]]/Table4[[#This Row],[Electric kWh usage]],\"\")","v":""},{"$f":"IFERROR(Table4[[#This Row],[Electric Demand Cost]]/Table4[[#This Row],[Total Electric Demand (Billed)]],IFERROR(Table4[[#This Row],[Electric Demand Cost]]/Table4[[#This Row],[Total Electric Demand (Actual)]],\"\"))","v":""},{"$f":"IFERROR(Table4[[#This Row],[Total Gas cost]]+Table4[[#This Row],[Total electric cost]],\"\")","v":""},null,{"$f":"IFERROR(Table4[[#This Row],[Total Energy Cost]]/Table4[[#This Row],[Monthly Flow]],\"\")","v":""},{"$f":"IFERROR(Table4[[#This Row],[Total Energy Cost]]/Table4[[#This Row],[Total BOD removed]],\"\")","v":""},null,{"$f":"IF('Process Data Entry'!G35=\"\",\"\",'Process Data Entry'!G35)","v":""},{"$f":"IF('Process Data Entry'!H35=\"\",\"\",'Process Data Entry'!H35)","v":""},{"$f":"IF('Process Data Entry'!I35=\"\",0,'Process Data Entry'!I35)","v":0},{"$f":"IF('Process Data Entry'!J35=\"\",\"\",'Process Data Entry'!J35)","v":""},{"$f":"IF('Process Data Entry'!K35=\"\",\"\",'Process Data Entry'!K35)","v":""},{"$f":"IF('Process Data Entry'!L35=\"\",\"\",'Process Data Entry'!L35)","v":""},"","",{"$f":"IF('Process Data Entry'!M35=\"\",\"\",'Process Data Entry'!M35)","v":""},{"$f":"IF('Process Data Entry'!N35=\"\",\"\",'Process Data Entry'!N35)","v":""},""]
[3,{"$f":"'Energy Data Entry'!B55","v":"2020-02-01"},{"$f":"IF(OR('Process Data Entry'!C36=\"\",'Process Data Entry'!C36=0),\"\",'Process Data Entry'!C36)","v":""},{"$f":"IF(Table4[Avg Daily Flow]=\"\",\"\",_xlfn.DAYS(EOMONTH(B34,0),EOMONTH(B34,-1))*C34)","v":""},{"$f":"IF('Process Data Entry'!F36=\"\",\"\",'Process Data Entry'!F36)","v":""},{"$f":"IF(Table4[BOD removed]=\"\",\"\",Table4[BOD removed]*_xlfn.DAYS(EOMONTH(Table4[[#This Row],[Column2]],0),EOMONTH(Table4[[#This Row],[Column2]],-1)))","v":""},{"$f":"IF(SUM('Energy Data Entry'!C55,'Energy Data Entry'!H55,'Energy Data Entry'!M55,'Energy Data Entry'!R55,'Energy Data Entry'!W55)=0,\"\",SUM('Energy Data Entry'!C55,'Energy Data Entry'!H55,'Energy Data Entry'!M55,'Energy Data Entry'!R55,'Energy Data Entry'!W55))","v":""},{"$f":"'Energy Data Entry'!AG55","v":0},{"$f":"IF(Table4[[#This Row],[Electric kWh usage]]=\"\",\"\",Table4[[#This Row],[Gas kWh usage]]+Table4[[#This Row],[Electric kWh usage]])","v":""},{"$f":"IF(OR(Table4[[#This Row],[Electric kWh usage]]=\"\",Table4[[#This Row],[Monthly Flow]]=\"\"),\"\",(Table4[[#This Row],[Electric kWh usage]]+Table4[[#This Row],[Gas kWh usage]])/Table4[[#This Row],[Monthly Flow]])","v":""},{"$f":"IFERROR(IF(Table4[[#This Row],[Electric kWh usage]]=\"\",\"\",(Table4[[#This Row],[Electric kWh usage]]+Table4[[#This Row],[Gas kWh usage]])/Table4[[#This Row],[Total BOD removed]]),\"\")","v":""},{"$f":"IF('Energy Data Entry'!E55+'Energy Data Entry'!J55+'Energy Data Entry'!O55+'Energy Data Entry'!T55+'Energy Data Entry'!Y55=0,\"\",'Energy Data Entry'!E55+'Energy Data Entry'!J55+'Energy Data Entry'!O55+'Energy Data Entry'!T55+'Energy Data Entry'!Y55)","v":""},{"$f":"IF('Energy Data Entry'!F55+'Energy Data Entry'!K55+'Energy Data Entry'!P55++'Energy Data Entry'!U55+'Energy Data Entry'!Z55=0,\"\",'Energy Data Entry'!F55+'Energy Data Entry'!K55+'Energy Data Entry'!P55++'Energy Data Entry'!U55+'Energy Data Entry'!Z55)","v":""},{"$f":"IF('Energy Data Entry'!G55+'Energy Data Entry'!L55+'Energy Data Entry'!Q55+'Energy Data Entry'!V55+'Energy Data Entry'!AA55=0,\"\",'Energy Data Entry'!G55+'Energy Data Entry'!L55+'Energy Data Entry'!Q55+'Energy Data Entry'!V55+'Energy Data Entry'!AA55)","v":""},{"$f":"IF('Energy Data Entry'!D55+'Energy Data Entry'!I55+'Energy Data Entry'!N55+'Energy Data Entry'!S55+'Energy Data Entry'!X55=0,\"\",'Energy Data Entry'!D55+'Energy Data Entry'!I55+'Energy Data Entry'!N55+'Energy Data Entry'!S55+'Energy Data Entry'!X55)","v":""},{"$f":"'Energy Data Entry'!AF55","v":0},{"$f":"IFERROR(Table4[[#This Row],[Total electric cost]]/Table4[[#This Row],[Electric kWh usage]],\"\")","v":""},{"$f":"IFERROR(Table4[[#This Row],[Electric Demand Cost]]/Table4[[#This Row],[Total Electric Demand (Billed)]],IFERROR(Table4[[#This Row],[Electric Demand Cost]]/Table4[[#This Row],[Total Electric Demand (Actual)]],\"\"))","v":""},{"$f":"IFERROR(Table4[[#This Row],[Total Gas cost]]+Table4[[#This Row],[Total electric cost]],\"\")","v":""},null,{"$f":"IFERROR(Table4[[#This Row],[Total Energy Cost]]/Table4[[#This Row],[Monthly Flow]],\"\")","v":""},{"$f":"IFERROR(Table4[[#This Row],[Total Energy Cost]]/Table4[[#This Row],[Total BOD removed]],\"\")","v":""},null,{"$f":"IF('Process Data Entry'!G36=\"\",\"\",'Process Data Entry'!G36)","v":""},{"$f":"IF('Process Data Entry'!H36=\"\",\"\",'Process Data Entry'!H36)","v":""},{"$f":"IF('Process Data Entry'!I36=\"\",0,'Process Data Entry'!I36)","v":0},{"$f":"IF('Process Data Entry'!J36=\"\",\"\",'Process Data Entry'!J36)","v":""},{"$f":"IF('Process Data Entry'!K36=\"\",\"\",'Process Data Entry'!K36)","v":""},{"$f":"IF('Process Data Entry'!L36=\"\",\"\",'Process Data Entry'!L36)","v":""},"","",{"$f":"IF('Process Data Entry'!M36=\"\",\"\",'Process Data Entry'!M36)","v":""},{"$f":"IF('Process Data Entry'!N36=\"\",\"\",'Process Data Entry'!N36)","v":""},""]
[3,{"$f":"'Energy Data Entry'!B56","v":"2020-03-01"},{"$f":"IF(OR('Process Data Entry'!C37=\"\",'Process Data Entry'!C37=0),\"\",'Process Data Entry'!C37)","v":""},{"$f":"IF(Table4[Avg Daily Flow]=\"\",\"\",_xlfn.DAYS(EOMONTH(B35,0),EOMONTH(B35,-1))*C35)","v":""},{"$f":"IF('Process Data Entry'!F37=\"\",\"\",'Process Data Entry'!F37)","v":""},{"$f":"IF(Table4[BOD removed]=\"\",\"\",Table4[BOD removed]*_xlfn.DAYS(EOMONTH(Table4[[#This Row],[Column2]],0),EOMONTH(Table4[[#This Row],[Column2]],-1)))","v":""},{"$f":"IF(SUM('Energy Data Entry'!C56,'Energy Data Entry'!H56,'Energy Data Entry'!M56,'Energy Data Entry'!R56,'Energy Data Entry'!W56)=0,\"\",SUM('Energy Data Entry'!C56,'Energy Data Entry'!H56,'Energy Data Entry'!M56,'Energy Data Entry'!R56,'Energy Data Entry'!W56))","v":""},{"$f":"'Energy Data Entry'!AG56","v":0},{"$f":"IF(Table4[[#This Row],[Electric kWh usage]]=\"\",\"\",Table4[[#This Row],[Gas kWh usage]]+Table4[[#This Row],[Electric kWh usage]])","v":""},{"$f":"IF(OR(Table4[[#This Row],[Electric kWh usage]]=\"\",Table4[[#This Row],[Monthly Flow]]=\"\"),\"\",(Table4[[#This Row],[Electric kWh usage]]+Table4[[#This Row],[Gas kWh usage]])/Table4[[#This Row],[Monthly Flow]])","v":""},{"$f":"IFERROR(IF(Table4[[#This Row],[Electric kWh usage]]=\"\",\"\",(Table4[[#This Row],[Electric kWh usage]]+Table4[[#This Row],[Gas kWh usage]])/Table4[[#This Row],[Total BOD removed]]),\"\")","v":""},{"$f":"IF('Energy Data Entry'!E56+'Energy Data Entry'!J56+'Energy Data Entry'!O56+'Energy Data Entry'!T56+'Energy Data Entry'!Y56=0,\"\",'Energy Data Entry'!E56+'Energy Data Entry'!J56+'Energy Data Entry'!O56+'Energy Data Entry'!T56+'Energy Data Entry'!Y56)","v":""},{"$f":"IF('Energy Data Entry'!F56+'Energy Data Entry'!K56+'Energy Data Entry'!P56++'Energy Data Entry'!U56+'Energy Data Entry'!Z56=0,\"\",'Energy Data Entry'!F56+'Energy Data Entry'!K56+'Energy Data Entry'!P56++'Energy Data Entry'!U56+'Energy Data Entry'!Z56)","v":""},{"$f":"IF('Energy Data Entry'!G56+'Energy Data Entry'!L56+'Energy Data Entry'!Q56+'Energy Data Entry'!V56+'Energy Data Entry'!AA56=0,\"\",'Energy Data Entry'!G56+'Energy Data Entry'!L56+'Energy Data Entry'!Q56+'Energy Data Entry'!V56+'Energy Data Entry'!AA56)","v":""},{"$f":"IF('Energy Data Entry'!D56+'Energy Data Entry'!I56+'Energy Data Entry'!N56+'Energy Data Entry'!S56+'Energy Data Entry'!X56=0,\"\",'Energy Data Entry'!D56+'Energy Data Entry'!I56+'Energy Data Entry'!N56+'Energy Data Entry'!S56+'Energy Data Entry'!X56)","v":""},{"$f":"'Energy Data Entry'!AF56","v":0},{"$f":"IFERROR(Table4[[#This Row],[Total electric cost]]/Table4[[#This Row],[Electric kWh usage]],\"\")","v":""},{"$f":"IFERROR(Table4[[#This Row],[Electric Demand Cost]]/Table4[[#This Row],[Total Electric Demand (Billed)]],IFERROR(Table4[[#This Row],[Electric Demand Cost]]/Table4[[#This Row],[Total Electric Demand (Actual)]],\"\"))","v":""},{"$f":"IFERROR(Table4[[#This Row],[Total Gas cost]]+Table4[[#This Row],[Total electric cost]],\"\")","v":""},null,{"$f":"IFERROR(Table4[[#This Row],[Total Energy Cost]]/Table4[[#This Row],[Monthly Flow]],\"\")","v":""},{"$f":"IFERROR(Table4[[#This Row],[Total Energy Cost]]/Table4[[#This Row],[Total BOD removed]],\"\")","v":""},null,{"$f":"IF('Process Data Entry'!G37=\"\",\"\",'Process Data Entry'!G37)","v":""},{"$f":"IF('Process Data Entry'!H37=\"\",\"\",'Process Data Entry'!H37)","v":""},{"$f":"IF('Process Data Entry'!I37=\"\",0,'Process Data Entry'!I37)","v":0},{"$f":"IF('Process Data Entry'!J37=\"\",\"\",'Process Data Entry'!J37)","v":""},{"$f":"IF('Process Data Entry'!K37=\"\",\"\",'Process Data Entry'!K37)","v":""},{"$f":"IF('Process Data Entry'!L37=\"\",\"\",'Process Data Entry'!L37)","v":""},"","",{"$f":"IF('Process Data Entry'!M37=\"\",\"\",'Process Data Entry'!M37)","v":""},{"$f":"IF('Process Data Entry'!N37=\"\",\"\",'Process Data Entry'!N37)","v":""},""]
[3,{"$f":"'Energy Data Entry'!B57","v":"2020-04-01"},{"$f":"IF(OR('Process Data Entry'!C38=\"\",'Process Data Entry'!C38=0),\"\",'Process Data Entry'!C38)","v":""},{"$f":"IF(Table4[Avg Daily Flow]=\"\",\"\",_xlfn.DAYS(EOMONTH(B36,0),EOMONTH(B36,-1))*C36)","v":""},{"$f":"IF('Process Data Entry'!F38=\"\",\"\",'Process Data Entry'!F38)","v":""},{"$f":"IF(Table4[BOD removed]=\"\",\"\",Table4[BOD removed]*_xlfn.DAYS(EOMONTH(Table4[[#This Row],[Column2]],0),EOMONTH(Table4[[#This Row],[Column2]],-1)))","v":""},{"$f":"IF(SUM('Energy Data Entry'!C57,'Energy Data Entry'!H57,'Energy Data Entry'!M57,'Energy Data Entry'!R57,'Energy Data Entry'!W57)=0,\"\",SUM('Energy Data Entry'!C57,'Energy Data Entry'!H57,'Energy Data Entry'!M57,'Energy Data Entry'!R57,'Energy Data Entry'!W57))","v":""},{"$f":"'Energy Data Entry'!AG57","v":0},{"$f":"IF(Table4[[#This Row],[Electric kWh usage]]=\"\",\"\",Table4[[#This Row],[Gas kWh usage]]+Table4[[#This Row],[Electric kWh usage]])","v":""},{"$f":"IF(OR(Table4[[#This Row],[Electric kWh usage]]=\"\",Table4[[#This Row],[Monthly Flow]]=\"\"),\"\",(Table4[[#This Row],[Electric kWh usage]]+Table4[[#This Row],[Gas kWh usage]])/Table4[[#This Row],[Monthly Flow]])","v":""},{"$f":"IFERROR(IF(Table4[[#This Row],[Electric kWh usage]]=\"\",\"\",(Table4[[#This Row],[Electric kWh usage]]+Table4[[#This Row],[Gas kWh usage]])/Table4[[#This Row],[Total BOD removed]]),\"\")","v":""},{"$f":"IF('Energy Data Entry'!E57+'Energy Data Entry'!J57+'Energy Data Entry'!O57+'Energy Data Entry'!T57+'Energy Data Entry'!Y57=0,\"\",'Energy Data Entry'!E57+'Energy Data Entry'!J57+'Energy Data Entry'!O57+'Energy Data Entry'!T57+'Energy Data Entry'!Y57)","v":""},{"$f":"IF('Energy Data Entry'!F57+'Energy Data Entry'!K57+'Energy Data Entry'!P57++'Energy Data Entry'!U57+'Energy Data Entry'!Z57=0,\"\",'Energy Data Entry'!F57+'Energy Data Entry'!K57+'Energy Data Entry'!P57++'Energy Data Entry'!U57+'Energy Data Entry'!Z57)","v":""},{"$f":"IF('Energy Data Entry'!G57+'Energy Data Entry'!L57+'Energy Data Entry'!Q57+'Energy Data Entry'!V57+'Energy Data Entry'!AA57=0,\"\",'Energy Data Entry'!G57+'Energy Data Entry'!L57+'Energy Data Entry'!Q57+'Energy Data Entry'!V57+'Energy Data Entry'!AA57)","v":""},{"$f":"IF('Energy Data Entry'!D57+'Energy Data Entry'!I57+'Energy Data Entry'!N57+'Energy Data Entry'!S57+'Energy Data Entry'!X57=0,\"\",'Energy Data Entry'!D57+'Energy Data Entry'!I57+'Energy Data Entry'!N57+'Energy Data Entry'!S57+'Energy Data Entry'!X57)","v":""},{"$f":"'Energy Data Entry'!AF57","v":0},{"$f":"IFERROR(Table4[[#This Row],[Total electric cost]]/Table4[[#This Row],[Electric kWh usage]],\"\")","v":""},{"$f":"IFERROR(Table4[[#This Row],[Electric Demand Cost]]/Table4[[#This Row],[Total Electric Demand (Billed)]],IFERROR(Table4[[#This Row],[Electric Demand Cost]]/Table4[[#This Row],[Total Electric Demand (Actual)]],\"\"))","v":""},{"$f":"IFERROR(Table4[[#This Row],[Total Gas cost]]+Table4[[#This Row],[Total electric cost]],\"\")","v":""},null,{"$f":"IFERROR(Table4[[#This Row],[Total Energy Cost]]/Table4[[#This Row],[Monthly Flow]],\"\")","v":""},{"$f":"IFERROR(Table4[[#This Row],[Total Energy Cost]]/Table4[[#This Row],[Total BOD removed]],\"\")","v":""},null,{"$f":"IF('Process Data Entry'!G38=\"\",\"\",'Process Data Entry'!G38)","v":""},{"$f":"IF('Process Data Entry'!H38=\"\",\"\",'Process Data Entry'!H38)","v":""},{"$f":"IF('Process Data Entry'!I38=\"\",0,'Process Data Entry'!I38)","v":0},{"$f":"IF('Process Data Entry'!J38=\"\",\"\",'Process Data Entry'!J38)","v":""},{"$f":"IF('Process Data Entry'!K38=\"\",\"\",'Process Data Entry'!K38)","v":""},{"$f":"IF('Process Data Entry'!L38=\"\",\"\",'Process Data Entry'!L38)","v":""},{"$f":"IFERROR(IF(OR(X36=\"\",AC36=\"\",AND(AA36=\"\",AB36=\"\"),((X36+Z36)-(MAX(AA36,AB36)+AC36))<0),\"\",(X36+Z36)-(MAX(AA36,AB36)+AC36)),\"\")","v":""},{"$f":"IF(OR(AD36=\"\",D36=\"\"),\"\",AD36*D36*8.34)","v":""},{"$f":"IF('Process Data Entry'!M38=\"\",\"\",'Process Data Entry'!M38)","v":""},{"$f":"IF('Process Data Entry'!N38=\"\",\"\",'Process Data Entry'!N38)","v":""},{"$f":"IF(OR(AF36=\"\",AG36=\"\",D36=\"\"),\"\",8.34*D36*(AF36-AG36))","v":""}]
[3,{"$f":"'Energy Data Entry'!B58","v":"2020-05-01"},{"$f":"IF(OR('Process Data Entry'!C39=\"\",'Process Data Entry'!C39=0),\"\",'Process Data Entry'!C39)","v":""},{"$f":"IF(Table4[Avg Daily Flow]=\"\",\"\",_xlfn.DAYS(EOMONTH(B37,0),EOMONTH(B37,-1))*C37)","v":""},{"$f":"IF('Process Data Entry'!F39=\"\",\"\",'Process Data Entry'!F39)","v":""},{"$f":"IF(Table4[BOD removed]=\"\",\"\",Table4[BOD removed]*_xlfn.DAYS(EOMONTH(Table4[[#This Row],[Column2]],0),EOMONTH(Table4[[#This Row],[Column2]],-1)))","v":""},{"$f":"IF(SUM('Energy Data Entry'!C58,'Energy Data Entry'!H58,'Energy Data Entry'!M58,'Energy Data Entry'!R58,'Energy Data Entry'!W58)=0,\"\",SUM('Energy Data Entry'!C58,'Energy Data Entry'!H58,'Energy Data Entry'!M58,'Energy Data Entry'!R58,'Energy Data Entry'!W58))","v":""},{"$f":"'Energy Data Entry'!AG58","v":0},{"$f":"IF(Table4[[#This Row],[Electric kWh usage]]=\"\",\"\",Table4[[#This Row],[Gas kWh usage]]+Table4[[#This Row],[Electric kWh usage]])","v":""},{"$f":"IF(OR(Table4[[#This Row],[Electric kWh usage]]=\"\",Table4[[#This Row],[Monthly Flow]]=\"\"),\"\",(Table4[[#This Row],[Electric kWh usage]]+Table4[[#This Row],[Gas kWh usage]])/Table4[[#This Row],[Monthly Flow]])","v":""},{"$f":"IFERROR(IF(Table4[[#This Row],[Electric kWh usage]]=\"\",\"\",(Table4[[#This Row],[Electric kWh usage]]+Table4[[#This Row],[Gas kWh usage]])/Table4[[#This Row],[Total BOD removed]]),\"\")","v":""},{"$f":"IF('Energy Data Entry'!E58+'Energy Data Entry'!J58+'Energy Data Entry'!O58+'Energy Data Entry'!T58+'Energy Data Entry'!Y58=0,\"\",'Energy Data Entry'!E58+'Energy Data Entry'!J58+'Energy Data Entry'!O58+'Energy Data Entry'!T58+'Energy Data Entry'!Y58)","v":""},{"$f":"IF('Energy Data Entry'!F58+'Energy Data Entry'!K58+'Energy Data Entry'!P58++'Energy Data Entry'!U58+'Energy Data Entry'!Z58=0,\"\",'Energy Data Entry'!F58+'Energy Data Entry'!K58+'Energy Data Entry'!P58++'Energy Data Entry'!U58+'Energy Data Entry'!Z58)","v":""},{"$f":"IF('Energy Data Entry'!G58+'Energy Data Entry'!L58+'Energy Data Entry'!Q58+'Energy Data Entry'!V58+'Energy Data Entry'!AA58=0,\"\",'Energy Data Entry'!G58+'Energy Data Entry'!L58+'Energy Data Entry'!Q58+'Energy Data Entry'!V58+'Energy Data Entry'!AA58)","v":""},{"$f":"IF('Energy Data Entry'!D58+'Energy Data Entry'!I58+'Energy Data Entry'!N58+'Energy Data Entry'!S58+'Energy Data Entry'!X58=0,\"\",'Energy Data Entry'!D58+'Energy Data Entry'!I58+'Energy Data Entry'!N58+'Energy Data Entry'!S58+'Energy Data Entry'!X58)","v":""},{"$f":"'Energy Data Entry'!AF58","v":0},{"$f":"IFERROR(Table4[[#This Row],[Total electric cost]]/Table4[[#This Row],[Electric kWh usage]],\"\")","v":""},{"$f":"IFERROR(Table4[[#This Row],[Electric Demand Cost]]/Table4[[#This Row],[Total Electric Demand (Billed)]],IFERROR(Table4[[#This Row],[Electric Demand Cost]]/Table4[[#This Row],[Total Electric Demand (Actual)]],\"\"))","v":""},{"$f":"IFERROR(Table4[[#This Row],[Total Gas cost]]+Table4[[#This Row],[Total electric cost]],\"\")","v":""},null,{"$f":"IFERROR(Table4[[#This Row],[Total Energy Cost]]/Table4[[#This Row],[Monthly Flow]],\"\")","v":""},{"$f":"IFERROR(Table4[[#This Row],[Total Energy Cost]]/Table4[[#This Row],[Total BOD removed]],\"\")","v":""},null,{"$f":"IF('Process Data Entry'!G39=\"\",\"\",'Process Data Entry'!G39)","v":""},{"$f":"IF('Process Data Entry'!H39=\"\",\"\",'Process Data Entry'!H39)","v":""},{"$f":"IF('Process Data Entry'!I39=\"\",0,'Process Data Entry'!I39)","v":0},{"$f":"IF('Process Data Entry'!J39=\"\",\"\",'Process Data Entry'!J39)","v":""},{"$f":"IF('Process Data Entry'!K39=\"\",\"\",'Process Data Entry'!K39)","v":""},{"$f":"IF('Process Data Entry'!L39=\"\",\"\",'Process Data Entry'!L39)","v":""},"","",{"$f":"IF('Process Data Entry'!M39=\"\",\"\",'Process Data Entry'!M39)","v":""},{"$f":"IF('Process Data Entry'!N39=\"\",\"\",'Process Data Entry'!N39)","v":""},""]
[3,{"$f":"'Energy Data Entry'!B59","v":"2020-06-01"},{"$f":"IF(OR('Process Data Entry'!C40=\"\",'Process Data Entry'!C40=0),\"\",'Process Data Entry'!C40)","v":""},{"$f":"IF(Table4[Avg Daily Flow]=\"\",\"\",_xlfn.DAYS(EOMONTH(B38,0),EOMONTH(B38,-1))*C38)","v":""},{"$f":"IF('Process Data Entry'!F40=\"\",\"\",'Process Data Entry'!F40)","v":""},{"$f":"IF(Table4[BOD removed]=\"\",\"\",Table4[BOD removed]*_xlfn.DAYS(EOMONTH(Table4[[#This Row],[Column2]],0),EOMONTH(Table4[[#This Row],[Column2]],-1)))","v":""},{"$f":"IF(SUM('Energy Data Entry'!C59,'Energy Data Entry'!H59,'Energy Data Entry'!M59,'Energy Data Entry'!R59,'Energy Data Entry'!W59)=0,\"\",SUM('Energy Data Entry'!C59,'Energy Data Entry'!H59,'Energy Data Entry'!M59,'Energy Data Entry'!R59,'Energy Data Entry'!W59))","v":""},{"$f":"'Energy Data Entry'!AG59","v":0},{"$f":"IF(Table4[[#This Row],[Electric kWh usage]]=\"\",\"\",Table4[[#This Row],[Gas kWh usage]]+Table4[[#This Row],[Electric kWh usage]])","v":""},{"$f":"IF(OR(Table4[[#This Row],[Electric kWh usage]]=\"\",Table4[[#This Row],[Monthly Flow]]=\"\"),\"\",(Table4[[#This Row],[Electric kWh usage]]+Table4[[#This Row],[Gas kWh usage]])/Table4[[#This Row],[Monthly Flow]])","v":""},{"$f":"IFERROR(IF(Table4[[#This Row],[Electric kWh usage]]=\"\",\"\",(Table4[[#This Row],[Electric kWh usage]]+Table4[[#This Row],[Gas kWh usage]])/Table4[[#This Row],[Total BOD removed]]),\"\")","v":""},{"$f":"IF('Energy Data Entry'!E59+'Energy Data Entry'!J59+'Energy Data Entry'!O59+'Energy Data Entry'!T59+'Energy Data Entry'!Y59=0,\"\",'Energy Data Entry'!E59+'Energy Data Entry'!J59+'Energy Data Entry'!O59+'Energy Data Entry'!T59+'Energy Data Entry'!Y59)","v":""},{"$f":"IF('Energy Data Entry'!F59+'Energy Data Entry'!K59+'Energy Data Entry'!P59++'Energy Data Entry'!U59+'Energy Data Entry'!Z59=0,\"\",'Energy Data Entry'!F59+'Energy Data Entry'!K59+'Energy Data Entry'!P59++'Energy Data Entry'!U59+'Energy Data Entry'!Z59)","v":""},{"$f":"IF('Energy Data Entry'!G59+'Energy Data Entry'!L59+'Energy Data Entry'!Q59+'Energy Data Entry'!V59+'Energy Data Entry'!AA59=0,\"\",'Energy Data Entry'!G59+'Energy Data Entry'!L59+'Energy Data Entry'!Q59+'Energy Data Entry'!V59+'Energy Data Entry'!AA59)","v":""},{"$f":"IF('Energy Data Entry'!D59+'Energy Data Entry'!I59+'Energy Data Entry'!N59+'Energy Data Entry'!S59+'Energy Data Entry'!X59=0,\"\",'Energy Data Entry'!D59+'Energy Data Entry'!I59+'Energy Data Entry'!N59+'Energy Data Entry'!S59+'Energy Data Entry'!X59)","v":""},{"$f":"'Energy Data Entry'!AF59","v":0},{"$f":"IFERROR(Table4[[#This Row],[Total electric cost]]/Table4[[#This Row],[Electric kWh usage]],\"\")","v":""},{"$f":"IFERROR(Table4[[#This Row],[Electric Demand Cost]]/Table4[[#This Row],[Total Electric Demand (Billed)]],IFERROR(Table4[[#This Row],[Electric Demand Cost]]/Table4[[#This Row],[Total Electric Demand (Actual)]],\"\"))","v":""},{"$f":"IFERROR(Table4[[#This Row],[Total Gas cost]]+Table4[[#This Row],[Total electric cost]],\"\")","v":""},null,{"$f":"IFERROR(Table4[[#This Row],[Total Energy Cost]]/Table4[[#This Row],[Monthly Flow]],\"\")","v":""},{"$f":"IFERROR(Table4[[#This Row],[Total Energy Cost]]/Table4[[#This Row],[Total BOD removed]],\"\")","v":""},null,{"$f":"IF('Process Data Entry'!G40=\"\",\"\",'Process Data Entry'!G40)","v":""},{"$f":"IF('Process Data Entry'!H40=\"\",\"\",'Process Data Entry'!H40)","v":""},{"$f":"IF('Process Data Entry'!I40=\"\",0,'Process Data Entry'!I40)","v":0},{"$f":"IF('Process Data Entry'!J40=\"\",\"\",'Process Data Entry'!J40)","v":""},{"$f":"IF('Process Data Entry'!K40=\"\",\"\",'Process Data Entry'!K40)","v":""},{"$f":"IF('Process Data Entry'!L40=\"\",\"\",'Process Data Entry'!L40)","v":""},"","",{"$f":"IF('Process Data Entry'!M40=\"\",\"\",'Process Data Entry'!M40)","v":""},{"$f":"IF('Process Data Entry'!N40=\"\",\"\",'Process Data Entry'!N40)","v":""},""]
[3,{"$f":"'Energy Data Entry'!B60","v":"2020-07-01"},{"$f":"IF(OR('Process Data Entry'!C41=\"\",'Process Data Entry'!C41=0),\"\",'Process Data Entry'!C41)","v":""},{"$f":"IF(Table4[Avg Daily Flow]=\"\",\"\",_xlfn.DAYS(EOMONTH(B39,0),EOMONTH(B39,-1))*C39)","v":""},{"$f":"IF('Process Data Entry'!F41=\"\",\"\",'Process Data Entry'!F41)","v":""},{"$f":"IF(Table4[BOD removed]=\"\",\"\",Table4[BOD removed]*_xlfn.DAYS(EOMONTH(Table4[[#This Row],[Column2]],0),EOMONTH(Table4[[#This Row],[Column2]],-1)))","v":""},{"$f":"IF(SUM('Energy Data Entry'!C60,'Energy Data Entry'!H60,'Energy Data Entry'!M60,'Energy Data Entry'!R60,'Energy Data Entry'!W60)=0,\"\",SUM('Energy Data Entry'!C60,'Energy Data Entry'!H60,'Energy Data Entry'!M60,'Energy Data Entry'!R60,'Energy Data Entry'!W60))","v":""},{"$f":"'Energy Data Entry'!AG60","v":0},{"$f":"IF(Table4[[#This Row],[Electric kWh usage]]=\"\",\"\",Table4[[#This Row],[Gas kWh usage]]+Table4[[#This Row],[Electric kWh usage]])","v":""},{"$f":"IF(OR(Table4[[#This Row],[Electric kWh usage]]=\"\",Table4[[#This Row],[Monthly Flow]]=\"\"),\"\",(Table4[[#This Row],[Electric kWh usage]]+Table4[[#This Row],[Gas kWh usage]])/Table4[[#This Row],[Monthly Flow]])","v":""},{"$f":"IFERROR(IF(Table4[[#This Row],[Electric kWh usage]]=\"\",\"\",(Table4[[#This Row],[Electric kWh usage]]+Table4[[#This Row],[Gas kWh usage]])/Table4[[#This Row],[Total BOD removed]]),\"\")","v":""},{"$f":"IF('Energy Data Entry'!E60+'Energy Data Entry'!J60+'Energy Data Entry'!O60+'Energy Data Entry'!T60+'Energy Data Entry'!Y60=0,\"\",'Energy Data Entry'!E60+'Energy Data Entry'!J60+'Energy Data Entry'!O60+'Energy Data Entry'!T60+'Energy Data Entry'!Y60)","v":""},{"$f":"IF('Energy Data Entry'!F60+'Energy Data Entry'!K60+'Energy Data Entry'!P60++'Energy Data Entry'!U60+'Energy Data Entry'!Z60=0,\"\",'Energy Data Entry'!F60+'Energy Data Entry'!K60+'Energy Data Entry'!P60++'Energy Data Entry'!U60+'Energy Data Entry'!Z60)","v":""},{"$f":"IF('Energy Data Entry'!G60+'Energy Data Entry'!L60+'Energy Data Entry'!Q60+'Energy Data Entry'!V60+'Energy Data Entry'!AA60=0,\"\",'Energy Data Entry'!G60+'Energy Data Entry'!L60+'Energy Data Entry'!Q60+'Energy Data Entry'!V60+'Energy Data Entry'!AA60)","v":""},{"$f":"IF('Energy Data Entry'!D60+'Energy Data Entry'!I60+'Energy Data Entry'!N60+'Energy Data Entry'!S60+'Energy Data Entry'!X60=0,\"\",'Energy Data Entry'!D60+'Energy Data Entry'!I60+'Energy Data Entry'!N60+'Energy Data Entry'!S60+'Energy Data Entry'!X60)","v":""},{"$f":"'Energy Data Entry'!AF60","v":0},{"$f":"IFERROR(Table4[[#This Row],[Total electric cost]]/Table4[[#This Row],[Electric kWh usage]],\"\")","v":""},{"$f":"IFERROR(Table4[[#This Row],[Electric Demand Cost]]/Table4[[#This Row],[Total Electric Demand (Billed)]],IFERROR(Table4[[#This Row],[Electric Demand Cost]]/Table4[[#This Row],[Total Electric Demand (Actual)]],\"\"))","v":""},{"$f":"IFERROR(Table4[[#This Row],[Total Gas cost]]+Table4[[#This Row],[Total electric cost]],\"\")","v":""},null,{"$f":"IFERROR(Table4[[#This Row],[Total Energy Cost]]/Table4[[#This Row],[Monthly Flow]],\"\")","v":""},{"$f":"IFERROR(Table4[[#This Row],[Total Energy Cost]]/Table4[[#This Row],[Total BOD removed]],\"\")","v":""},null,{"$f":"IF('Process Data Entry'!G41=\"\",\"\",'Process Data Entry'!G41)","v":""},{"$f":"IF('Process Data Entry'!H41=\"\",\"\",'Process Data Entry'!H41)","v":""},{"$f":"IF('Process Data Entry'!I41=\"\",0,'Process Data Entry'!I41)","v":0},{"$f":"IF('Process Data Entry'!J41=\"\",\"\",'Process Data Entry'!J41)","v":""},{"$f":"IF('Process Data Entry'!K41=\"\",\"\",'Process Data Entry'!K41)","v":""},{"$f":"IF('Process Data Entry'!L41=\"\",\"\",'Process Data Entry'!L41)","v":""},"","",{"$f":"IF('Process Data Entry'!M41=\"\",\"\",'Process Data Entry'!M41)","v":""},{"$f":"IF('Process Data Entry'!N41=\"\",\"\",'Process Data Entry'!N41)","v":""},""]
[4,{"$f":"'Energy Data Entry'!B61","v":"2020-08-01"},{"$f":"IF(OR('Process Data Entry'!C42=\"\",'Process Data Entry'!C42=0),\"\",'Process Data Entry'!C42)","v":""},{"$f":"IF(Table4[Avg Daily Flow]=\"\",\"\",_xlfn.DAYS(EOMONTH(B40,0),EOMONTH(B40,-1))*C40)","v":""},{"$f":"IF('Process Data Entry'!F42=\"\",\"\",'Process Data Entry'!F42)","v":""},{"$f":"IF(Table4[BOD removed]=\"\",\"\",Table4[BOD removed]*_xlfn.DAYS(EOMONTH(Table4[[#This Row],[Column2]],0),EOMONTH(Table4[[#This Row],[Column2]],-1)))","v":""},{"$f":"IF(SUM('Energy Data Entry'!C61,'Energy Data Entry'!H61,'Energy Data Entry'!M61,'Energy Data Entry'!R61,'Energy Data Entry'!W61)=0,\"\",SUM('Energy Data Entry'!C61,'Energy Data Entry'!H61,'Energy Data Entry'!M61,'Energy Data Entry'!R61,'Energy Data Entry'!W61))","v":""},{"$f":"'Energy Data Entry'!AG61","v":0},{"$f":"IF(Table4[[#This Row],[Electric kWh usage]]=\"\",\"\",Table4[[#This Row],[Gas kWh usage]]+Table4[[#This Row],[Electric kWh usage]])","v":""},{"$f":"IF(OR(Table4[[#This Row],[Electric kWh usage]]=\"\",Table4[[#This Row],[Monthly Flow]]=\"\"),\"\",(Table4[[#This Row],[Electric kWh usage]]+Table4[[#This Row],[Gas kWh usage]])/Table4[[#This Row],[Monthly Flow]])","v":""},{"$f":"IFERROR(IF(Table4[[#This Row],[Electric kWh usage]]=\"\",\"\",(Table4[[#This Row],[Electric kWh usage]]+Table4[[#This Row],[Gas kWh usage]])/Table4[[#This Row],[Total BOD removed]]),\"\")","v":""},{"$f":"IF('Energy Data Entry'!E61+'Energy Data Entry'!J61+'Energy Data Entry'!O61+'Energy Data Entry'!T61+'Energy Data Entry'!Y61=0,\"\",'Energy Data Entry'!E61+'Energy Data Entry'!J61+'Energy Data Entry'!O61+'Energy Data Entry'!T61+'Energy Data Entry'!Y61)","v":""},{"$f":"IF('Energy Data Entry'!F61+'Energy Data Entry'!K61+'Energy Data Entry'!P61++'Energy Data Entry'!U61+'Energy Data Entry'!Z61=0,\"\",'Energy Data Entry'!F61+'Energy Data Entry'!K61+'Energy Data Entry'!P61++'Energy Data Entry'!U61+'Energy Data Entry'!Z61)","v":""},{"$f":"IF('Energy Data Entry'!G61+'Energy Data Entry'!L61+'Energy Data Entry'!Q61+'Energy Data Entry'!V61+'Energy Data Entry'!AA61=0,\"\",'Energy Data Entry'!G61+'Energy Data Entry'!L61+'Energy Data Entry'!Q61+'Energy Data Entry'!V61+'Energy Data Entry'!AA61)","v":""},{"$f":"IF('Energy Data Entry'!D61+'Energy Data Entry'!I61+'Energy Data Entry'!N61+'Energy Data Entry'!S61+'Energy Data Entry'!X61=0,\"\",'Energy Data Entry'!D61+'Energy Data Entry'!I61+'Energy Data Entry'!N61+'Energy Data Entry'!S61+'Energy Data Entry'!X61)","v":""},{"$f":"'Energy Data Entry'!AF61","v":0},{"$f":"IFERROR(Table4[[#This Row],[Total electric cost]]/Table4[[#This Row],[Electric kWh usage]],\"\")","v":""},{"$f":"IFERROR(Table4[[#This Row],[Electric Demand Cost]]/Table4[[#This Row],[Total Electric Demand (Billed)]],IFERROR(Table4[[#This Row],[Electric Demand Cost]]/Table4[[#This Row],[Total Electric Demand (Actual)]],\"\"))","v":""},{"$f":"IFERROR(Table4[[#This Row],[Total Gas cost]]+Table4[[#This Row],[Total electric cost]],\"\")","v":""},null,{"$f":"IFERROR(Table4[[#This Row],[Total Energy Cost]]/Table4[[#This Row],[Monthly Flow]],\"\")","v":""},{"$f":"IFERROR(Table4[[#This Row],[Total Energy Cost]]/Table4[[#This Row],[Total BOD removed]],\"\")","v":""},null,{"$f":"IF('Process Data Entry'!G42=\"\",\"\",'Process Data Entry'!G42)","v":""},{"$f":"IF('Process Data Entry'!H42=\"\",\"\",'Process Data Entry'!H42)","v":""},{"$f":"IF('Process Data Entry'!I42=\"\",0,'Process Data Entry'!I42)","v":0},{"$f":"IF('Process Data Entry'!J42=\"\",\"\",'Process Data Entry'!J42)","v":""},{"$f":"IF('Process Data Entry'!K42=\"\",\"\",'Process Data Entry'!K42)","v":""},{"$f":"IF('Process Data Entry'!L42=\"\",\"\",'Process Data Entry'!L42)","v":""},"","",{"$f":"IF('Process Data Entry'!M42=\"\",\"\",'Process Data Entry'!M42)","v":""},{"$f":"IF('Process Data Entry'!N42=\"\",\"\",'Process Data Entry'!N42)","v":""},""]
[4,{"$f":"'Energy Data Entry'!B62","v":"2020-09-01"},{"$f":"IF(OR('Process Data Entry'!C43=\"\",'Process Data Entry'!C43=0),\"\",'Process Data Entry'!C43)","v":""},{"$f":"IF(Table4[Avg Daily Flow]=\"\",\"\",_xlfn.DAYS(EOMONTH(B41,0),EOMONTH(B41,-1))*C41)","v":""},{"$f":"IF('Process Data Entry'!F43=\"\",\"\",'Process Data Entry'!F43)","v":""},{"$f":"IF(Table4[BOD removed]=\"\",\"\",Table4[BOD removed]*_xlfn.DAYS(EOMONTH(Table4[[#This Row],[Column2]],0),EOMONTH(Table4[[#This Row],[Column2]],-1)))","v":""},{"$f":"IF(SUM('Energy Data Entry'!C62,'Energy Data Entry'!H62,'Energy Data Entry'!M62,'Energy Data Entry'!R62,'Energy Data Entry'!W62)=0,\"\",SUM('Energy Data Entry'!C62,'Energy Data Entry'!H62,'Energy Data Entry'!M62,'Energy Data Entry'!R62,'Energy Data Entry'!W62))","v":""},{"$f":"'Energy Data Entry'!AG62","v":0},{"$f":"IF(Table4[[#This Row],[Electric kWh usage]]=\"\",\"\",Table4[[#This Row],[Gas kWh usage]]+Table4[[#This Row],[Electric kWh usage]])","v":""},{"$f":"IF(OR(Table4[[#This Row],[Electric kWh usage]]=\"\",Table4[[#This Row],[Monthly Flow]]=\"\"),\"\",(Table4[[#This Row],[Electric kWh usage]]+Table4[[#This Row],[Gas kWh usage]])/Table4[[#This Row],[Monthly Flow]])","v":""},{"$f":"IFERROR(IF(Table4[[#This Row],[Electric kWh usage]]=\"\",\"\",(Table4[[#This Row],[Electric kWh usage]]+Table4[[#This Row],[Gas kWh usage]])/Table4[[#This Row],[Total BOD removed]]),\"\")","v":""},{"$f":"IF('Energy Data Entry'!E62+'Energy Data Entry'!J62+'Energy Data Entry'!O62+'Energy Data Entry'!T62+'Energy Data Entry'!Y62=0,\"\",'Energy Data Entry'!E62+'Energy Data Entry'!J62+'Energy Data Entry'!O62+'Energy Data Entry'!T62+'Energy Data Entry'!Y62)","v":""},{"$f":"IF('Energy Data Entry'!F62+'Energy Data Entry'!K62+'Energy Data Entry'!P62++'Energy Data Entry'!U62+'Energy Data Entry'!Z62=0,\"\",'Energy Data Entry'!F62+'Energy Data Entry'!K62+'Energy Data Entry'!P62++'Energy Data Entry'!U62+'Energy Data Entry'!Z62)","v":""},{"$f":"IF('Energy Data Entry'!G62+'Energy Data Entry'!L62+'Energy Data Entry'!Q62+'Energy Data Entry'!V62+'Energy Data Entry'!AA62=0,\"\",'Energy Data Entry'!G62+'Energy Data Entry'!L62+'Energy Data Entry'!Q62+'Energy Data Entry'!V62+'Energy Data Entry'!AA62)","v":""},{"$f":"IF('Energy Data Entry'!D62+'Energy Data Entry'!I62+'Energy Data Entry'!N62+'Energy Data Entry'!S62+'Energy Data Entry'!X62=0,\"\",'Energy Data Entry'!D62+'Energy Data Entry'!I62+'Energy Data Entry'!N62+'Energy Data Entry'!S62+'Energy Data Entry'!X62)","v":""},{"$f":"'Energy Data Entry'!AF62","v":0},{"$f":"IFERROR(Table4[[#This Row],[Total electric cost]]/Table4[[#This Row],[Electric kWh usage]],\"\")","v":""},{"$f":"IFERROR(Table4[[#This Row],[Electric Demand Cost]]/Table4[[#This Row],[Total Electric Demand (Billed)]],IFERROR(Table4[[#This Row],[Electric Demand Cost]]/Table4[[#This Row],[Total Electric Demand (Actual)]],\"\"))","v":""},{"$f":"IFERROR(Table4[[#This Row],[Total Gas cost]]+Table4[[#This Row],[Total electric cost]],\"\")","v":""},null,{"$f":"IFERROR(Table4[[#This Row],[Total Energy Cost]]/Table4[[#This Row],[Monthly Flow]],\"\")","v":""},{"$f":"IFERROR(Table4[[#This Row],[Total Energy Cost]]/Table4[[#This Row],[Total BOD removed]],\"\")","v":""},null,{"$f":"IF('Process Data Entry'!G43=\"\",\"\",'Process Data Entry'!G43)","v":""},{"$f":"IF('Process Data Entry'!H43=\"\",\"\",'Process Data Entry'!H43)","v":""},{"$f":"IF('Process Data Entry'!I43=\"\",0,'Process Data Entry'!I43)","v":0},{"$f":"IF('Process Data Entry'!J43=\"\",\"\",'Process Data Entry'!J43)","v":""},{"$f":"IF('Process Data Entry'!K43=\"\",\"\",'Process Data Entry'!K43)","v":""},{"$f":"IF('Process Data Entry'!L43=\"\",\"\",'Process Data Entry'!L43)","v":""},"","",{"$f":"IF('Process Data Entry'!M43=\"\",\"\",'Process Data Entry'!M43)","v":""},{"$f":"IF('Process Data Entry'!N43=\"\",\"\",'Process Data Entry'!N43)","v":""},""]
[4,{"$f":"'Energy Data Entry'!B63","v":"2020-10-01"},{"$f":"IF(OR('Process Data Entry'!C44=\"\",'Process Data Entry'!C44=0),\"\",'Process Data Entry'!C44)","v":""},{"$f":"IF(Table4[Avg Daily Flow]=\"\",\"\",_xlfn.DAYS(EOMONTH(B42,0),EOMONTH(B42,-1))*C42)","v":""},{"$f":"IF('Process Data Entry'!F44=\"\",\"\",'Process Data Entry'!F44)","v":""},{"$f":"IF(Table4[BOD removed]=\"\",\"\",Table4[BOD removed]*_xlfn.DAYS(EOMONTH(Table4[[#This Row],[Column2]],0),EOMONTH(Table4[[#This Row],[Column2]],-1)))","v":""},{"$f":"IF(SUM('Energy Data Entry'!C63,'Energy Data Entry'!H63,'Energy Data Entry'!M63,'Energy Data Entry'!R63,'Energy Data Entry'!W63)=0,\"\",SUM('Energy Data Entry'!C63,'Energy Data Entry'!H63,'Energy Data Entry'!M63,'Energy Data Entry'!R63,'Energy Data Entry'!W63))","v":""},{"$f":"'Energy Data Entry'!AG63","v":0},{"$f":"IF(Table4[[#This Row],[Electric kWh usage]]=\"\",\"\",Table4[[#This Row],[Gas kWh usage]]+Table4[[#This Row],[Electric kWh usage]])","v":""},{"$f":"IF(OR(Table4[[#This Row],[Electric kWh usage]]=\"\",Table4[[#This Row],[Monthly Flow]]=\"\"),\"\",(Table4[[#This Row],[Electric kWh usage]]+Table4[[#This Row],[Gas kWh usage]])/Table4[[#This Row],[Monthly Flow]])","v":""},{"$f":"IFERROR(IF(Table4[[#This Row],[Electric kWh usage]]=\"\",\"\",(Table4[[#This Row],[Electric kWh usage]]+Table4[[#This Row],[Gas kWh usage]])/Table4[[#This Row],[Total BOD removed]]),\"\")","v":""},{"$f":"IF('Energy Data Entry'!E63+'Energy Data Entry'!J63+'Energy Data Entry'!O63+'Energy Data Entry'!T63+'Energy Data Entry'!Y63=0,\"\",'Energy Data Entry'!E63+'Energy Data Entry'!J63+'Energy Data Entry'!O63+'Energy Data Entry'!T63+'Energy Data Entry'!Y63)","v":""},{"$f":"IF('Energy Data Entry'!F63+'Energy Data Entry'!K63+'Energy Data Entry'!P63++'Energy Data Entry'!U63+'Energy Data Entry'!Z63=0,\"\",'Energy Data Entry'!F63+'Energy Data Entry'!K63+'Energy Data Entry'!P63++'Energy Data Entry'!U63+'Energy Data Entry'!Z63)","v":""},{"$f":"IF('Energy Data Entry'!G63+'Energy Data Entry'!L63+'Energy Data Entry'!Q63+'Energy Data Entry'!V63+'Energy Data Entry'!AA63=0,\"\",'Energy Data Entry'!G63+'Energy Data Entry'!L63+'Energy Data Entry'!Q63+'Energy Data Entry'!V63+'Energy Data Entry'!AA63)","v":""},{"$f":"IF('Energy Data Entry'!D63+'Energy Data Entry'!I63+'Energy Data Entry'!N63+'Energy Data Entry'!S63+'Energy Data Entry'!X63=0,\"\",'Energy Data Entry'!D63+'Energy Data Entry'!I63+'Energy Data Entry'!N63+'Energy Data Entry'!S63+'Energy Data Entry'!X63)","v":""},{"$f":"'Energy Data Entry'!AF63","v":0},{"$f":"IFERROR(Table4[[#This Row],[Total electric cost]]/Table4[[#This Row],[Electric kWh usage]],\"\")","v":""},{"$f":"IFERROR(Table4[[#This Row],[Electric Demand Cost]]/Table4[[#This Row],[Total Electric Demand (Billed)]],IFERROR(Table4[[#This Row],[Electric Demand Cost]]/Table4[[#This Row],[Total Electric Demand (Actual)]],\"\"))","v":""},{"$f":"IFERROR(Table4[[#This Row],[Total Gas cost]]+Table4[[#This Row],[Total electric cost]],\"\")","v":""},null,{"$f":"IFERROR(Table4[[#This Row],[Total Energy Cost]]/Table4[[#This Row],[Monthly Flow]],\"\")","v":""},{"$f":"IFERROR(Table4[[#This Row],[Total Energy Cost]]/Table4[[#This Row],[Total BOD removed]],\"\")","v":""},null,{"$f":"IF('Process Data Entry'!G44=\"\",\"\",'Process Data Entry'!G44)","v":""},{"$f":"IF('Process Data Entry'!H44=\"\",\"\",'Process Data Entry'!H44)","v":""},{"$f":"IF('Process Data Entry'!I44=\"\",0,'Process Data Entry'!I44)","v":0},{"$f":"IF('Process Data Entry'!J44=\"\",\"\",'Process Data Entry'!J44)","v":""},{"$f":"IF('Process Data Entry'!K44=\"\",\"\",'Process Data Entry'!K44)","v":""},{"$f":"IF('Process Data Entry'!L44=\"\",\"\",'Process Data Entry'!L44)","v":""},"","",{"$f":"IF('Process Data Entry'!M44=\"\",\"\",'Process Data Entry'!M44)","v":""},{"$f":"IF('Process Data Entry'!N44=\"\",\"\",'Process Data Entry'!N44)","v":""},""]
[4,{"$f":"'Energy Data Entry'!B64","v":"2020-11-01"},{"$f":"IF(OR('Process Data Entry'!C45=\"\",'Process Data Entry'!C45=0),\"\",'Process Data Entry'!C45)","v":""},{"$f":"IF(Table4[Avg Daily Flow]=\"\",\"\",_xlfn.DAYS(EOMONTH(B43,0),EOMONTH(B43,-1))*C43)","v":""},{"$f":"IF('Process Data Entry'!F45=\"\",\"\",'Process Data Entry'!F45)","v":""},{"$f":"IF(Table4[BOD removed]=\"\",\"\",Table4[BOD removed]*_xlfn.DAYS(EOMONTH(Table4[[#This Row],[Column2]],0),EOMONTH(Table4[[#This Row],[Column2]],-1)))","v":""},{"$f":"IF(SUM('Energy Data Entry'!C64,'Energy Data Entry'!H64,'Energy Data Entry'!M64,'Energy Data Entry'!R64,'Energy Data Entry'!W64)=0,\"\",SUM('Energy Data Entry'!C64,'Energy Data Entry'!H64,'Energy Data Entry'!M64,'Energy Data Entry'!R64,'Energy Data Entry'!W64))","v":""},{"$f":"'Energy Data Entry'!AG64","v":0},{"$f":"IF(Table4[[#This Row],[Electric kWh usage]]=\"\",\"\",Table4[[#This Row],[Gas kWh usage]]+Table4[[#This Row],[Electric kWh usage]])","v":""},{"$f":"IF(OR(Table4[[#This Row],[Electric kWh usage]]=\"\",Table4[[#This Row],[Monthly Flow]]=\"\"),\"\",(Table4[[#This Row],[Electric kWh usage]]+Table4[[#This Row],[Gas kWh usage]])/Table4[[#This Row],[Monthly Flow]])","v":""},{"$f":"IFERROR(IF(Table4[[#This Row],[Electric kWh usage]]=\"\",\"\",(Table4[[#This Row],[Electric kWh usage]]+Table4[[#This Row],[Gas kWh usage]])/Table4[[#This Row],[Total BOD removed]]),\"\")","v":""},{"$f":"IF('Energy Data Entry'!E64+'Energy Data Entry'!J64+'Energy Data Entry'!O64+'Energy Data Entry'!T64+'Energy Data Entry'!Y64=0,\"\",'Energy Data Entry'!E64+'Energy Data Entry'!J64+'Energy Data Entry'!O64+'Energy Data Entry'!T64+'Energy Data Entry'!Y64)","v":""},{"$f":"IF('Energy Data Entry'!F64+'Energy Data Entry'!K64+'Energy Data Entry'!P64++'Energy Data Entry'!U64+'Energy Data Entry'!Z64=0,\"\",'Energy Data Entry'!F64+'Energy Data Entry'!K64+'Energy Data Entry'!P64++'Energy Data Entry'!U64+'Energy Data Entry'!Z64)","v":""},{"$f":"IF('Energy Data Entry'!G64+'Energy Data Entry'!L64+'Energy Data Entry'!Q64+'Energy Data Entry'!V64+'Energy Data Entry'!AA64=0,\"\",'Energy Data Entry'!G64+'Energy Data Entry'!L64+'Energy Data Entry'!Q64+'Energy Data Entry'!V64+'Energy Data Entry'!AA64)","v":""},{"$f":"IF('Energy Data Entry'!D64+'Energy Data Entry'!I64+'Energy Data Entry'!N64+'Energy Data Entry'!S64+'Energy Data Entry'!X64=0,\"\",'Energy Data Entry'!D64+'Energy Data Entry'!I64+'Energy Data Entry'!N64+'Energy Data Entry'!S64+'Energy Data Entry'!X64)","v":""},{"$f":"'Energy Data Entry'!AF64","v":0},{"$f":"IFERROR(Table4[[#This Row],[Total electric cost]]/Table4[[#This Row],[Electric kWh usage]],\"\")","v":""},{"$f":"IFERROR(Table4[[#This Row],[Electric Demand Cost]]/Table4[[#This Row],[Total Electric Demand (Billed)]],IFERROR(Table4[[#This Row],[Electric Demand Cost]]/Table4[[#This Row],[Total Electric Demand (Actual)]],\"\"))","v":""},{"$f":"IFERROR(Table4[[#This Row],[Total Gas cost]]+Table4[[#This Row],[Total electric cost]],\"\")","v":""},null,{"$f":"IFERROR(Table4[[#This Row],[Total Energy Cost]]/Table4[[#This Row],[Monthly Flow]],\"\")","v":""},{"$f":"IFERROR(Table4[[#This Row],[Total Energy Cost]]/Table4[[#This Row],[Total BOD removed]],\"\")","v":""},null,{"$f":"IF('Process Data Entry'!G45=\"\",\"\",'Process Data Entry'!G45)","v":""},{"$f":"IF('Process Data Entry'!H45=\"\",\"\",'Process Data Entry'!H45)","v":""},{"$f":"IF('Process Data Entry'!I45=\"\",0,'Process Data Entry'!I45)","v":0},{"$f":"IF('Process Data Entry'!J45=\"\",\"\",'Process Data Entry'!J45)","v":""},{"$f":"IF('Process Data Entry'!K45=\"\",\"\",'Process Data Entry'!K45)","v":""},{"$f":"IF('Process Data Entry'!L45=\"\",\"\",'Process Data Entry'!L45)","v":""},"","",{"$f":"IF('Process Data Entry'!M45=\"\",\"\",'Process Data Entry'!M45)","v":""},{"$f":"IF('Process Data Entry'!N45=\"\",\"\",'Process Data Entry'!N45)","v":""},""]
[4,{"$f":"'Energy Data Entry'!B65","v":"2020-12-01"},{"$f":"IF(OR('Process Data Entry'!C46=\"\",'Process Data Entry'!C46=0),\"\",'Process Data Entry'!C46)","v":""},{"$f":"IF(Table4[Avg Daily Flow]=\"\",\"\",_xlfn.DAYS(EOMONTH(B44,0),EOMONTH(B44,-1))*C44)","v":""},{"$f":"IF('Process Data Entry'!F46=\"\",\"\",'Process Data Entry'!F46)","v":""},{"$f":"IF(Table4[BOD removed]=\"\",\"\",Table4[BOD removed]*_xlfn.DAYS(EOMONTH(Table4[[#This Row],[Column2]],0),EOMONTH(Table4[[#This Row],[Column2]],-1)))","v":""},{"$f":"IF(SUM('Energy Data Entry'!C65,'Energy Data Entry'!H65,'Energy Data Entry'!M65,'Energy Data Entry'!R65,'Energy Data Entry'!W65)=0,\"\",SUM('Energy Data Entry'!C65,'Energy Data Entry'!H65,'Energy Data Entry'!M65,'Energy Data Entry'!R65,'Energy Data Entry'!W65))","v":""},{"$f":"'Energy Data Entry'!AG65","v":0},{"$f":"IF(Table4[[#This Row],[Electric kWh usage]]=\"\",\"\",Table4[[#This Row],[Gas kWh usage]]+Table4[[#This Row],[Electric kWh usage]])","v":""},{"$f":"IF(OR(Table4[[#This Row],[Electric kWh usage]]=\"\",Table4[[#This Row],[Monthly Flow]]=\"\"),\"\",(Table4[[#This Row],[Electric kWh usage]]+Table4[[#This Row],[Gas kWh usage]])/Table4[[#This Row],[Monthly Flow]])","v":""},{"$f":"IFERROR(IF(Table4[[#This Row],[Electric kWh usage]]=\"\",\"\",(Table4[[#This Row],[Electric kWh usage]]+Table4[[#This Row],[Gas kWh usage]])/Table4[[#This Row],[Total BOD removed]]),\"\")","v":""},{"$f":"IF('Energy Data Entry'!E65+'Energy Data Entry'!J65+'Energy Data Entry'!O65+'Energy Data Entry'!T65+'Energy Data Entry'!Y65=0,\"\",'Energy Data Entry'!E65+'Energy Data Entry'!J65+'Energy Data Entry'!O65+'Energy Data Entry'!T65+'Energy Data Entry'!Y65)","v":""},{"$f":"IF('Energy Data Entry'!F65+'Energy Data Entry'!K65+'Energy Data Entry'!P65++'Energy Data Entry'!U65+'Energy Data Entry'!Z65=0,\"\",'Energy Data Entry'!F65+'Energy Data Entry'!K65+'Energy Data Entry'!P65++'Energy Data Entry'!U65+'Energy Data Entry'!Z65)","v":""},{"$f":"IF('Energy Data Entry'!G65+'Energy Data Entry'!L65+'Energy Data Entry'!Q65+'Energy Data Entry'!V65+'Energy Data Entry'!AA65=0,\"\",'Energy Data Entry'!G65+'Energy Data Entry'!L65+'Energy Data Entry'!Q65+'Energy Data Entry'!V65+'Energy Data Entry'!AA65)","v":""},{"$f":"IF('Energy Data Entry'!D65+'Energy Data Entry'!I65+'Energy Data Entry'!N65+'Energy Data Entry'!S65+'Energy Data Entry'!X65=0,\"\",'Energy Data Entry'!D65+'Energy Data Entry'!I65+'Energy Data Entry'!N65+'Energy Data Entry'!S65+'Energy Data Entry'!X65)","v":""},{"$f":"'Energy Data Entry'!AF65","v":0},{"$f":"IFERROR(Table4[[#This Row],[Total electric cost]]/Table4[[#This Row],[Electric kWh usage]],\"\")","v":""},{"$f":"IFERROR(Table4[[#This Row],[Electric Demand Cost]]/Table4[[#This Row],[Total Electric Demand (Billed)]],IFERROR(Table4[[#This Row],[Electric Demand Cost]]/Table4[[#This Row],[Total Electric Demand (Actual)]],\"\"))","v":""},{"$f":"IFERROR(Table4[[#This Row],[Total Gas cost]]+Table4[[#This Row],[Total electric cost]],\"\")","v":""},null,{"$f":"IFERROR(Table4[[#This Row],[Total Energy Cost]]/Table4[[#This Row],[Monthly Flow]],\"\")","v":""},{"$f":"IFERROR(Table4[[#This Row],[Total Energy Cost]]/Table4[[#This Row],[Total BOD removed]],\"\")","v":""},null,{"$f":"IF('Process Data Entry'!G46=\"\",\"\",'Process Data Entry'!G46)","v":""},{"$f":"IF('Process Data Entry'!H46=\"\",\"\",'Process Data Entry'!H46)","v":""},{"$f":"IF('Process Data Entry'!I46=\"\",0,'Process Data Entry'!I46)","v":0},{"$f":"IF('Process Data Entry'!J46=\"\",\"\",'Process Data Entry'!J46)","v":""},{"$f":"IF('Process Data Entry'!K46=\"\",\"\",'Process Data Entry'!K46)","v":""},{"$f":"IF('Process Data Entry'!L46=\"\",\"\",'Process Data Entry'!L46)","v":""},"","",{"$f":"IF('Process Data Entry'!M46=\"\",\"\",'Process Data Entry'!M46)","v":""},{"$f":"IF('Process Data Entry'!N46=\"\",\"\",'Process Data Entry'!N46)","v":""},""]
[4,{"$f":"'Energy Data Entry'!B66","v":"2021-01-01"},{"$f":"IF(OR('Process Data Entry'!C47=\"\",'Process Data Entry'!C47=0),\"\",'Process Data Entry'!C47)","v":""},{"$f":"IF(Table4[Avg Daily Flow]=\"\",\"\",_xlfn.DAYS(EOMONTH(B45,0),EOMONTH(B45,-1))*C45)","v":""},{"$f":"IF('Process Data Entry'!F47=\"\",\"\",'Process Data Entry'!F47)","v":""},{"$f":"IF(Table4[BOD removed]=\"\",\"\",Table4[BOD removed]*_xlfn.DAYS(EOMONTH(Table4[[#This Row],[Column2]],0),EOMONTH(Table4[[#This Row],[Column2]],-1)))","v":""},{"$f":"IF(SUM('Energy Data Entry'!C66,'Energy Data Entry'!H66,'Energy Data Entry'!M66,'Energy Data Entry'!R66,'Energy Data Entry'!W66)=0,\"\",SUM('Energy Data Entry'!C66,'Energy Data Entry'!H66,'Energy Data Entry'!M66,'Energy Data Entry'!R66,'Energy Data Entry'!W66))","v":""},{"$f":"'Energy Data Entry'!AG66","v":0},{"$f":"IF(Table4[[#This Row],[Electric kWh usage]]=\"\",\"\",Table4[[#This Row],[Gas kWh usage]]+Table4[[#This Row],[Electric kWh usage]])","v":""},{"$f":"IF(OR(Table4[[#This Row],[Electric kWh usage]]=\"\",Table4[[#This Row],[Monthly Flow]]=\"\"),\"\",(Table4[[#This Row],[Electric kWh usage]]+Table4[[#This Row],[Gas kWh usage]])/Table4[[#This Row],[Monthly Flow]])","v":""},{"$f":"IFERROR(IF(Table4[[#This Row],[Electric kWh usage]]=\"\",\"\",(Table4[[#This Row],[Electric kWh usage]]+Table4[[#This Row],[Gas kWh usage]])/Table4[[#This Row],[Total BOD removed]]),\"\")","v":""},{"$f":"IF('Energy Data Entry'!E66+'Energy Data Entry'!J66+'Energy Data Entry'!O66+'Energy Data Entry'!T66+'Energy Data Entry'!Y66=0,\"\",'Energy Data Entry'!E66+'Energy Data Entry'!J66+'Energy Data Entry'!O66+'Energy Data Entry'!T66+'Energy Data Entry'!Y66)","v":""},{"$f":"IF('Energy Data Entry'!F66+'Energy Data Entry'!K66+'Energy Data Entry'!P66++'Energy Data Entry'!U66+'Energy Data Entry'!Z66=0,\"\",'Energy Data Entry'!F66+'Energy Data Entry'!K66+'Energy Data Entry'!P66++'Energy Data Entry'!U66+'Energy Data Entry'!Z66)","v":""},{"$f":"IF('Energy Data Entry'!G66+'Energy Data Entry'!L66+'Energy Data Entry'!Q66+'Energy Data Entry'!V66+'Energy Data Entry'!AA66=0,\"\",'Energy Data Entry'!G66+'Energy Data Entry'!L66+'Energy Data Entry'!Q66+'Energy Data Entry'!V66+'Energy Data Entry'!AA66)","v":""},{"$f":"IF('Energy Data Entry'!D66+'Energy Data Entry'!I66+'Energy Data Entry'!N66+'Energy Data Entry'!S66+'Energy Data Entry'!X66=0,\"\",'Energy Data Entry'!D66+'Energy Data Entry'!I66+'Energy Data Entry'!N66+'Energy Data Entry'!S66+'Energy Data Entry'!X66)","v":""},{"$f":"'Energy Data Entry'!AF66","v":0},{"$f":"IFERROR(Table4[[#This Row],[Total electric cost]]/Table4[[#This Row],[Electric kWh usage]],\"\")","v":""},{"$f":"IFERROR(Table4[[#This Row],[Electric Demand Cost]]/Table4[[#This Row],[Total Electric Demand (Billed)]],IFERROR(Table4[[#This Row],[Electric Demand Cost]]/Table4[[#This Row],[Total Electric Demand (Actual)]],\"\"))","v":""},{"$f":"IFERROR(Table4[[#This Row],[Total Gas cost]]+Table4[[#This Row],[Total electric cost]],\"\")","v":""},null,{"$f":"IFERROR(Table4[[#This Row],[Total Energy Cost]]/Table4[[#This Row],[Monthly Flow]],\"\")","v":""},{"$f":"IFERROR(Table4[[#This Row],[Total Energy Cost]]/Table4[[#This Row],[Total BOD removed]],\"\")","v":""},null,{"$f":"IF('Process Data Entry'!G47=\"\",\"\",'Process Data Entry'!G47)","v":""},{"$f":"IF('Process Data Entry'!H47=\"\",\"\",'Process Data Entry'!H47)","v":""},{"$f":"IF('Process Data Entry'!I47=\"\",0,'Process Data Entry'!I47)","v":0},{"$f":"IF('Process Data Entry'!J47=\"\",\"\",'Process Data Entry'!J47)","v":""},{"$f":"IF('Process Data Entry'!K47=\"\",\"\",'Process Data Entry'!K47)","v":""},{"$f":"IF('Process Data Entry'!L47=\"\",\"\",'Process Data Entry'!L47)","v":""},"","",{"$f":"IF('Process Data Entry'!M47=\"\",\"\",'Process Data Entry'!M47)","v":""},{"$f":"IF('Process Data Entry'!N47=\"\",\"\",'Process Data Entry'!N47)","v":""},""]
[4,{"$f":"'Energy Data Entry'!B67","v":"2021-02-01"},{"$f":"IF(OR('Process Data Entry'!C48=\"\",'Process Data Entry'!C48=0),\"\",'Process Data Entry'!C48)","v":""},{"$f":"IF(Table4[Avg Daily Flow]=\"\",\"\",_xlfn.DAYS(EOMONTH(B46,0),EOMONTH(B46,-1))*C46)","v":""},{"$f":"IF('Process Data Entry'!F48=\"\",\"\",'Process Data Entry'!F48)","v":""},{"$f":"IF(Table4[BOD removed]=\"\",\"\",Table4[BOD removed]*_xlfn.DAYS(EOMONTH(Table4[[#This Row],[Column2]],0),EOMONTH(Table4[[#This Row],[Column2]],-1)))","v":""},{"$f":"IF(SUM('Energy Data Entry'!C67,'Energy Data Entry'!H67,'Energy Data Entry'!M67,'Energy Data Entry'!R67,'Energy Data Entry'!W67)=0,\"\",SUM('Energy Data Entry'!C67,'Energy Data Entry'!H67,'Energy Data Entry'!M67,'Energy Data Entry'!R67,'Energy Data Entry'!W67))","v":""},{"$f":"'Energy Data Entry'!AG67","v":0},{"$f":"IF(Table4[[#This Row],[Electric kWh usage]]=\"\",\"\",Table4[[#This Row],[Gas kWh usage]]+Table4[[#This Row],[Electric kWh usage]])","v":""},{"$f":"IF(OR(Table4[[#This Row],[Electric kWh usage]]=\"\",Table4[[#This Row],[Monthly Flow]]=\"\"),\"\",(Table4[[#This Row],[Electric kWh usage]]+Table4[[#This Row],[Gas kWh usage]])/Table4[[#This Row],[Monthly Flow]])","v":""},{"$f":"IFERROR(IF(Table4[[#This Row],[Electric kWh usage]]=\"\",\"\",(Table4[[#This Row],[Electric kWh usage]]+Table4[[#This Row],[Gas kWh usage]])/Table4[[#This Row],[Total BOD removed]]),\"\")","v":""},{"$f":"IF('Energy Data Entry'!E67+'Energy Data Entry'!J67+'Energy Data Entry'!O67+'Energy Data Entry'!T67+'Energy Data Entry'!Y67=0,\"\",'Energy Data Entry'!E67+'Energy Data Entry'!J67+'Energy Data Entry'!O67+'Energy Data Entry'!T67+'Energy Data Entry'!Y67)","v":""},{"$f":"IF('Energy Data Entry'!F67+'Energy Data Entry'!K67+'Energy Data Entry'!P67++'Energy Data Entry'!U67+'Energy Data Entry'!Z67=0,\"\",'Energy Data Entry'!F67+'Energy Data Entry'!K67+'Energy Data Entry'!P67++'Energy Data Entry'!U67+'Energy Data Entry'!Z67)","v":""},{"$f":"IF('Energy Data Entry'!G67+'Energy Data Entry'!L67+'Energy Data Entry'!Q67+'Energy Data Entry'!V67+'Energy Data Entry'!AA67=0,\"\",'Energy Data Entry'!G67+'Energy Data Entry'!L67+'Energy Data Entry'!Q67+'Energy Data Entry'!V67+'Energy Data Entry'!AA67)","v":""},{"$f":"IF('Energy Data Entry'!D67+'Energy Data Entry'!I67+'Energy Data Entry'!N67+'Energy Data Entry'!S67+'Energy Data Entry'!X67=0,\"\",'Energy Data Entry'!D67+'Energy Data Entry'!I67+'Energy Data Entry'!N67+'Energy Data Entry'!S67+'Energy Data Entry'!X67)","v":""},{"$f":"'Energy Data Entry'!AF67","v":0},{"$f":"IFERROR(Table4[[#This Row],[Total electric cost]]/Table4[[#This Row],[Electric kWh usage]],\"\")","v":""},{"$f":"IFERROR(Table4[[#This Row],[Electric Demand Cost]]/Table4[[#This Row],[Total Electric Demand (Billed)]],IFERROR(Table4[[#This Row],[Electric Demand Cost]]/Table4[[#This Row],[Total Electric Demand (Actual)]],\"\"))","v":""},{"$f":"IFERROR(Table4[[#This Row],[Total Gas cost]]+Table4[[#This Row],[Total electric cost]],\"\")","v":""},null,{"$f":"IFERROR(Table4[[#This Row],[Total Energy Cost]]/Table4[[#This Row],[Monthly Flow]],\"\")","v":""},{"$f":"IFERROR(Table4[[#This Row],[Total Energy Cost]]/Table4[[#This Row],[Total BOD removed]],\"\")","v":""},null,{"$f":"IF('Process Data Entry'!G48=\"\",\"\",'Process Data Entry'!G48)","v":""},{"$f":"IF('Process Data Entry'!H48=\"\",\"\",'Process Data Entry'!H48)","v":""},{"$f":"IF('Process Data Entry'!I48=\"\",0,'Process Data Entry'!I48)","v":0},{"$f":"IF('Process Data Entry'!J48=\"\",\"\",'Process Data Entry'!J48)","v":""},{"$f":"IF('Process Data Entry'!K48=\"\",\"\",'Process Data Entry'!K48)","v":""},{"$f":"IF('Process Data Entry'!L48=\"\",\"\",'Process Data Entry'!L48)","v":""},"","",{"$f":"IF('Process Data Entry'!M48=\"\",\"\",'Process Data Entry'!M48)","v":""},{"$f":"IF('Process Data Entry'!N48=\"\",\"\",'Process Data Entry'!N48)","v":""},""]
[4,{"$f":"'Energy Data Entry'!B68","v":"2021-03-01"},{"$f":"IF(OR('Process Data Entry'!C49=\"\",'Process Data Entry'!C49=0),\"\",'Process Data Entry'!C49)","v":""},{"$f":"IF(Table4[Avg Daily Flow]=\"\",\"\",_xlfn.DAYS(EOMONTH(B47,0),EOMONTH(B47,-1))*C47)","v":""},{"$f":"IF('Process Data Entry'!F49=\"\",\"\",'Process Data Entry'!F49)","v":""},{"$f":"IF(Table4[BOD removed]=\"\",\"\",Table4[BOD removed]*_xlfn.DAYS(EOMONTH(Table4[[#This Row],[Column2]],0),EOMONTH(Table4[[#This Row],[Column2]],-1)))","v":""},{"$f":"IF(SUM('Energy Data Entry'!C68,'Energy Data Entry'!H68,'Energy Data Entry'!M68,'Energy Data Entry'!R68,'Energy Data Entry'!W68)=0,\"\",SUM('Energy Data Entry'!C68,'Energy Data Entry'!H68,'Energy Data Entry'!M68,'Energy Data Entry'!R68,'Energy Data Entry'!W68))","v":""},{"$f":"'Energy Data Entry'!AG68","v":0},{"$f":"IF(Table4[[#This Row],[Electric kWh usage]]=\"\",\"\",Table4[[#This Row],[Gas kWh usage]]+Table4[[#This Row],[Electric kWh usage]])","v":""},{"$f":"IF(OR(Table4[[#This Row],[Electric kWh usage]]=\"\",Table4[[#This Row],[Monthly Flow]]=\"\"),\"\",(Table4[[#This Row],[Electric kWh usage]]+Table4[[#This Row],[Gas kWh usage]])/Table4[[#This Row],[Monthly Flow]])","v":""},{"$f":"IFERROR(IF(Table4[[#This Row],[Electric kWh usage]]=\"\",\"\",(Table4[[#This Row],[Electric kWh usage]]+Table4[[#This Row],[Gas kWh usage]])/Table4[[#This Row],[Total BOD removed]]),\"\")","v":""},{"$f":"IF('Energy Data Entry'!E68+'Energy Data Entry'!J68+'Energy Data Entry'!O68+'Energy Data Entry'!T68+'Energy Data Entry'!Y68=0,\"\",'Energy Data Entry'!E68+'Energy Data Entry'!J68+'Energy Data Entry'!O68+'Energy Data Entry'!T68+'Energy Data Entry'!Y68)","v":""},{"$f":"IF('Energy Data Entry'!F68+'Energy Data Entry'!K68+'Energy Data Entry'!P68++'Energy Data Entry'!U68+'Energy Data Entry'!Z68=0,\"\",'Energy Data Entry'!F68+'Energy Data Entry'!K68+'Energy Data Entry'!P68++'Energy Data Entry'!U68+'Energy Data Entry'!Z68)","v":""},{"$f":"IF('Energy Data Entry'!G68+'Energy Data Entry'!L68+'Energy Data Entry'!Q68+'Energy Data Entry'!V68+'Energy Data Entry'!AA68=0,\"\",'Energy Data Entry'!G68+'Energy Data Entry'!L68+'Energy Data Entry'!Q68+'Energy Data Entry'!V68+'Energy Data Entry'!AA68)","v":""},{"$f":"IF('Energy Data Entry'!D68+'Energy Data Entry'!I68+'Energy Data Entry'!N68+'Energy Data Entry'!S68+'Energy Data Entry'!X68=0,\"\",'Energy Data Entry'!D68+'Energy Data Entry'!I68+'Energy Data Entry'!N68+'Energy Data Entry'!S68+'Energy Data Entry'!X68)","v":""},{"$f":"'Energy Data Entry'!AF68","v":0},{"$f":"IFERROR(Table4[[#This Row],[Total electric cost]]/Table4[[#This Row],[Electric kWh usage]],\"\")","v":""},{"$f":"IFERROR(Table4[[#This Row],[Electric Demand Cost]]/Table4[[#This Row],[Total Electric Demand (Billed)]],IFERROR(Table4[[#This Row],[Electric Demand Cost]]/Table4[[#This Row],[Total Electric Demand (Actual)]],\"\"))","v":""},{"$f":"IFERROR(Table4[[#This Row],[Total Gas cost]]+Table4[[#This Row],[Total electric cost]],\"\")","v":""},null,{"$f":"IFERROR(Table4[[#This Row],[Total Energy Cost]]/Table4[[#This Row],[Monthly Flow]],\"\")","v":""},{"$f":"IFERROR(Table4[[#This Row],[Total Energy Cost]]/Table4[[#This Row],[Total BOD removed]],\"\")","v":""},null,{"$f":"IF('Process Data Entry'!G49=\"\",\"\",'Process Data Entry'!G49)","v":""},{"$f":"IF('Process Data Entry'!H49=\"\",\"\",'Process Data Entry'!H49)","v":""},{"$f":"IF('Process Data Entry'!I49=\"\",0,'Process Data Entry'!I49)","v":0},{"$f":"IF('Process Data Entry'!J49=\"\",\"\",'Process Data Entry'!J49)","v":""},{"$f":"IF('Process Data Entry'!K49=\"\",\"\",'Process Data Entry'!K49)","v":""},{"$f":"IF('Process Data Entry'!L49=\"\",\"\",'Process Data Entry'!L49)","v":""},"","",{"$f":"IF('Process Data Entry'!M49=\"\",\"\",'Process Data Entry'!M49)","v":""},{"$f":"IF('Process Data Entry'!N49=\"\",\"\",'Process Data Entry'!N49)","v":""},""]
[4,{"$f":"'Energy Data Entry'!B69","v":"2021-04-01"},{"$f":"IF(OR('Process Data Entry'!C50=\"\",'Process Data Entry'!C50=0),\"\",'Process Data Entry'!C50)","v":""},{"$f":"IF(Table4[Avg Daily Flow]=\"\",\"\",_xlfn.DAYS(EOMONTH(B48,0),EOMONTH(B48,-1))*C48)","v":""},{"$f":"IF('Process Data Entry'!F50=\"\",\"\",'Process Data Entry'!F50)","v":""},{"$f":"IF(Table4[BOD removed]=\"\",\"\",Table4[BOD removed]*_xlfn.DAYS(EOMONTH(Table4[[#This Row],[Column2]],0),EOMONTH(Table4[[#This Row],[Column2]],-1)))","v":""},{"$f":"IF(SUM('Energy Data Entry'!C69,'Energy Data Entry'!H69,'Energy Data Entry'!M69,'Energy Data Entry'!R69,'Energy Data Entry'!W69)=0,\"\",SUM('Energy Data Entry'!C69,'Energy Data Entry'!H69,'Energy Data Entry'!M69,'Energy Data Entry'!R69,'Energy Data Entry'!W69))","v":""},{"$f":"'Energy Data Entry'!AG69","v":0},{"$f":"IF(Table4[[#This Row],[Electric kWh usage]]=\"\",\"\",Table4[[#This Row],[Gas kWh usage]]+Table4[[#This Row],[Electric kWh usage]])","v":""},{"$f":"IF(OR(Table4[[#This Row],[Electric kWh usage]]=\"\",Table4[[#This Row],[Monthly Flow]]=\"\"),\"\",(Table4[[#This Row],[Electric kWh usage]]+Table4[[#This Row],[Gas kWh usage]])/Table4[[#This Row],[Monthly Flow]])","v":""},{"$f":"IFERROR(IF(Table4[[#This Row],[Electric kWh usage]]=\"\",\"\",(Table4[[#This Row],[Electric kWh usage]]+Table4[[#This Row],[Gas kWh usage]])/Table4[[#This Row],[Total BOD removed]]),\"\")","v":""},{"$f":"IF('Energy Data Entry'!E69+'Energy Data Entry'!J69+'Energy Data Entry'!O69+'Energy Data Entry'!T69+'Energy Data Entry'!Y69=0,\"\",'Energy Data Entry'!E69+'Energy Data Entry'!J69+'Energy Data Entry'!O69+'Energy Data Entry'!T69+'Energy Data Entry'!Y69)","v":""},{"$f":"IF('Energy Data Entry'!F69+'Energy Data Entry'!K69+'Energy Data Entry'!P69++'Energy Data Entry'!U69+'Energy Data Entry'!Z69=0,\"\",'Energy Data Entry'!F69+'Energy Data Entry'!K69+'Energy Data Entry'!P69++'Energy Data Entry'!U69+'Energy Data Entry'!Z69)","v":""},{"$f":"IF('Energy Data Entry'!G69+'Energy Data Entry'!L69+'Energy Data Entry'!Q69+'Energy Data Entry'!V69+'Energy Data Entry'!AA69=0,\"\",'Energy Data Entry'!G69+'Energy Data Entry'!L69+'Energy Data Entry'!Q69+'Energy Data Entry'!V69+'Energy Data Entry'!AA69)","v":""},{"$f":"IF('Energy Data Entry'!D69+'Energy Data Entry'!I69+'Energy Data Entry'!N69+'Energy Data Entry'!S69+'Energy Data Entry'!X69=0,\"\",'Energy Data Entry'!D69+'Energy Data Entry'!I69+'Energy Data Entry'!N69+'Energy Data Entry'!S69+'Energy Data Entry'!X69)","v":""},{"$f":"'Energy Data Entry'!AF69","v":0},{"$f":"IFERROR(Table4[[#This Row],[Total electric cost]]/Table4[[#This Row],[Electric kWh usage]],\"\")","v":""},{"$f":"IFERROR(Table4[[#This Row],[Electric Demand Cost]]/Table4[[#This Row],[Total Electric Demand (Billed)]],IFERROR(Table4[[#This Row],[Electric Demand Cost]]/Table4[[#This Row],[Total Electric Demand (Actual)]],\"\"))","v":""},{"$f":"IFERROR(Table4[[#This Row],[Total Gas cost]]+Table4[[#This Row],[Total electric cost]],\"\")","v":""},null,{"$f":"IFERROR(Table4[[#This Row],[Total Energy Cost]]/Table4[[#This Row],[Monthly Flow]],\"\")","v":""},{"$f":"IFERROR(Table4[[#This Row],[Total Energy Cost]]/Table4[[#This Row],[Total BOD removed]],\"\")","v":""},null,{"$f":"IF('Process Data Entry'!G50=\"\",\"\",'Process Data Entry'!G50)","v":""},{"$f":"IF('Process Data Entry'!H50=\"\",\"\",'Process Data Entry'!H50)","v":""},{"$f":"IF('Process Data Entry'!I50=\"\",0,'Process Data Entry'!I50)","v":0},{"$f":"IF('Process Data Entry'!J50=\"\",\"\",'Process Data Entry'!J50)","v":""},{"$f":"IF('Process Data Entry'!K50=\"\",\"\",'Process Data Entry'!K50)","v":""},{"$f":"IF('Process Data Entry'!L50=\"\",\"\",'Process Data Entry'!L50)","v":""},"","",{"$f":"IF('Process Data Entry'!M50=\"\",\"\",'Process Data Entry'!M50)","v":""},{"$f":"IF('Process Data Entry'!N50=\"\",\"\",'Process Data Entry'!N50)","v":""},""]
[4,{"$f":"'Energy Data Entry'!B70","v":"2021-05-01"},{"$f":"IF(OR('Process Data Entry'!C51=\"\",'Process Data Entry'!C51=0),\"\",'Process Data Entry'!C51)","v":""},{"$f":"IF(Table4[Avg Daily Flow]=\"\",\"\",_xlfn.DAYS(EOMONTH(B49,0),EOMONTH(B49,-1))*C49)","v":""},{"$f":"IF('Process Data Entry'!F51=\"\",\"\",'Process Data Entry'!F51)","v":""},{"$f":"IF(Table4[BOD removed]=\"\",\"\",Table4[BOD removed]*_xlfn.DAYS(EOMONTH(Table4[[#This Row],[Column2]],0),EOMONTH(Table4[[#This Row],[Column2]],-1)))","v":""},{"$f":"IF(SUM('Energy Data Entry'!C70,'Energy Data Entry'!H70,'Energy Data Entry'!M70,'Energy Data Entry'!R70,'Energy Data Entry'!W70)=0,\"\",SUM('Energy Data Entry'!C70,'Energy Data Entry'!H70,'Energy Data Entry'!M70,'Energy Data Entry'!R70,'Energy Data Entry'!W70))","v":""},{"$f":"'Energy Data Entry'!AG70","v":0},{"$f":"IF(Table4[[#This Row],[Electric kWh usage]]=\"\",\"\",Table4[[#This Row],[Gas kWh usage]]+Table4[[#This Row],[Electric kWh usage]])","v":""},{"$f":"IF(OR(Table4[[#This Row],[Electric kWh usage]]=\"\",Table4[[#This Row],[Monthly Flow]]=\"\"),\"\",(Table4[[#This Row],[Electric kWh usage]]+Table4[[#This Row],[Gas kWh usage]])/Table4[[#This Row],[Monthly Flow]])","v":""},{"$f":"IFERROR(IF(Table4[[#This Row],[Electric kWh usage]]=\"\",\"\",(Table4[[#This Row],[Electric kWh usage]]+Table4[[#This Row],[Gas kWh usage]])/Table4[[#This Row],[Total BOD removed]]),\"\")","v":""},{"$f":"IF('Energy Data Entry'!E70+'Energy Data Entry'!J70+'Energy Data Entry'!O70+'Energy Data Entry'!T70+'Energy Data Entry'!Y70=0,\"\",'Energy Data Entry'!E70+'Energy Data Entry'!J70+'Energy Data Entry'!O70+'Energy Data Entry'!T70+'Energy Data Entry'!Y70)","v":""},{"$f":"IF('Energy Data Entry'!F70+'Energy Data Entry'!K70+'Energy Data Entry'!P70++'Energy Data Entry'!U70+'Energy Data Entry'!Z70=0,\"\",'Energy Data Entry'!F70+'Energy Data Entry'!K70+'Energy Data Entry'!P70++'Energy Data Entry'!U70+'Energy Data Entry'!Z70)","v":""},{"$f":"IF('Energy Data Entry'!G70+'Energy Data Entry'!L70+'Energy Data Entry'!Q70+'Energy Data Entry'!V70+'Energy Data Entry'!AA70=0,\"\",'Energy Data Entry'!G70+'Energy Data Entry'!L70+'Energy Data Entry'!Q70+'Energy Data Entry'!V70+'Energy Data Entry'!AA70)","v":""},{"$f":"IF('Energy Data Entry'!D70+'Energy Data Entry'!I70+'Energy Data Entry'!N70+'Energy Data Entry'!S70+'Energy Data Entry'!X70=0,\"\",'Energy Data Entry'!D70+'Energy Data Entry'!I70+'Energy Data Entry'!N70+'Energy Data Entry'!S70+'Energy Data Entry'!X70)","v":""},{"$f":"'Energy Data Entry'!AF70","v":0},{"$f":"IFERROR(Table4[[#This Row],[Total electric cost]]/Table4[[#This Row],[Electric kWh usage]],\"\")","v":""},{"$f":"IFERROR(Table4[[#This Row],[Electric Demand Cost]]/Table4[[#This Row],[Total Electric Demand (Billed)]],IFERROR(Table4[[#This Row],[Electric Demand Cost]]/Table4[[#This Row],[Total Electric Demand (Actual)]],\"\"))","v":""},{"$f":"IFERROR(Table4[[#This Row],[Total Gas cost]]+Table4[[#This Row],[Total electric cost]],\"\")","v":""},null,{"$f":"IFERROR(Table4[[#This Row],[Total Energy Cost]]/Table4[[#This Row],[Monthly Flow]],\"\")","v":""},{"$f":"IFERROR(Table4[[#This Row],[Total Energy Cost]]/Table4[[#This Row],[Total BOD removed]],\"\")","v":""},null,{"$f":"IF('Process Data Entry'!G51=\"\",\"\",'Process Data Entry'!G51)","v":""},{"$f":"IF('Process Data Entry'!H51=\"\",\"\",'Process Data Entry'!H51)","v":""},{"$f":"IF('Process Data Entry'!I51=\"\",0,'Process Data Entry'!I51)","v":0},{"$f":"IF('Process Data Entry'!J51=\"\",\"\",'Process Data Entry'!J51)","v":""},{"$f":"IF('Process Data Entry'!K51=\"\",\"\",'Process Data Entry'!K51)","v":""},{"$f":"IF('Process Data Entry'!L51=\"\",\"\",'Process Data Entry'!L51)","v":""},"","",{"$f":"IF('Process Data Entry'!M51=\"\",\"\",'Process Data Entry'!M51)","v":""},{"$f":"IF('Process Data Entry'!N51=\"\",\"\",'Process Data Entry'!N51)","v":""},""]
[4,{"$f":"'Energy Data Entry'!B71","v":"2021-06-01"},{"$f":"IF(OR('Process Data Entry'!C52=\"\",'Process Data Entry'!C52=0),\"\",'Process Data Entry'!C52)","v":""},{"$f":"IF(Table4[Avg Daily Flow]=\"\",\"\",_xlfn.DAYS(EOMONTH(B50,0),EOMONTH(B50,-1))*C50)","v":""},{"$f":"IF('Process Data Entry'!F52=\"\",\"\",'Process Data Entry'!F52)","v":""},{"$f":"IF(Table4[BOD removed]=\"\",\"\",Table4[BOD removed]*_xlfn.DAYS(EOMONTH(Table4[[#This Row],[Column2]],0),EOMONTH(Table4[[#This Row],[Column2]],-1)))","v":""},{"$f":"IF(SUM('Energy Data Entry'!C71,'Energy Data Entry'!H71,'Energy Data Entry'!M71,'Energy Data Entry'!R71,'Energy Data Entry'!W71)=0,\"\",SUM('Energy Data Entry'!C71,'Energy Data Entry'!H71,'Energy Data Entry'!M71,'Energy Data Entry'!R71,'Energy Data Entry'!W71))","v":""},{"$f":"'Energy Data Entry'!AG71","v":0},{"$f":"IF(Table4[[#This Row],[Electric kWh usage]]=\"\",\"\",Table4[[#This Row],[Gas kWh usage]]+Table4[[#This Row],[Electric kWh usage]])","v":""},{"$f":"IF(OR(Table4[[#This Row],[Electric kWh usage]]=\"\",Table4[[#This Row],[Monthly Flow]]=\"\"),\"\",(Table4[[#This Row],[Electric kWh usage]]+Table4[[#This Row],[Gas kWh usage]])/Table4[[#This Row],[Monthly Flow]])","v":""},{"$f":"IFERROR(IF(Table4[[#This Row],[Electric kWh usage]]=\"\",\"\",(Table4[[#This Row],[Electric kWh usage]]+Table4[[#This Row],[Gas kWh usage]])/Table4[[#This Row],[Total BOD removed]]),\"\")","v":""},{"$f":"IF('Energy Data Entry'!E71+'Energy Data Entry'!J71+'Energy Data Entry'!O71+'Energy Data Entry'!T71+'Energy Data Entry'!Y71=0,\"\",'Energy Data Entry'!E71+'Energy Data Entry'!J71+'Energy Data Entry'!O71+'Energy Data Entry'!T71+'Energy Data Entry'!Y71)","v":""},{"$f":"IF('Energy Data Entry'!F71+'Energy Data Entry'!K71+'Energy Data Entry'!P71++'Energy Data Entry'!U71+'Energy Data Entry'!Z71=0,\"\",'Energy Data Entry'!F71+'Energy Data Entry'!K71+'Energy Data Entry'!P71++'Energy Data Entry'!U71+'Energy Data Entry'!Z71)","v":""},{"$f":"IF('Energy Data Entry'!G71+'Energy Data Entry'!L71+'Energy Data Entry'!Q71+'Energy Data Entry'!V71+'Energy Data Entry'!AA71=0,\"\",'Energy Data Entry'!G71+'Energy Data Entry'!L71+'Energy Data Entry'!Q71+'Energy Data Entry'!V71+'Energy Data Entry'!AA71)","v":""},{"$f":"IF('Energy Data Entry'!D71+'Energy Data Entry'!I71+'Energy Data Entry'!N71+'Energy Data Entry'!S71+'Energy Data Entry'!X71=0,\"\",'Energy Data Entry'!D71+'Energy Data Entry'!I71+'Energy Data Entry'!N71+'Energy Data Entry'!S71+'Energy Data Entry'!X71)","v":""},{"$f":"'Energy Data Entry'!AF71","v":0},{"$f":"IFERROR(Table4[[#This Row],[Total electric cost]]/Table4[[#This Row],[Electric kWh usage]],\"\")","v":""},{"$f":"IFERROR(Table4[[#This Row],[Electric Demand Cost]]/Table4[[#This Row],[Total Electric Demand (Billed)]],IFERROR(Table4[[#This Row],[Electric Demand Cost]]/Table4[[#This Row],[Total Electric Demand (Actual)]],\"\"))","v":""},{"$f":"IFERROR(Table4[[#This Row],[Total Gas cost]]+Table4[[#This Row],[Total electric cost]],\"\")","v":""},null,{"$f":"IFERROR(Table4[[#This Row],[Total Energy Cost]]/Table4[[#This Row],[Monthly Flow]],\"\")","v":""},{"$f":"IFERROR(Table4[[#This Row],[Total Energy Cost]]/Table4[[#This Row],[Total BOD removed]],\"\")","v":""},null,{"$f":"IF('Process Data Entry'!G52=\"\",\"\",'Process Data Entry'!G52)","v":""},{"$f":"IF('Process Data Entry'!H52=\"\",\"\",'Process Data Entry'!H52)","v":""},{"$f":"IF('Process Data Entry'!I52=\"\",0,'Process Data Entry'!I52)","v":0},{"$f":"IF('Process Data Entry'!J52=\"\",\"\",'Process Data Entry'!J52)","v":""},{"$f":"IF('Process Data Entry'!K52=\"\",\"\",'Process Data Entry'!K52)","v":""},{"$f":"IF('Process Data Entry'!L52=\"\",\"\",'Process Data Entry'!L52)","v":""},"","",{"$f":"IF('Process Data Entry'!M52=\"\",\"\",'Process Data Entry'!M52)","v":""},{"$f":"IF('Process Data Entry'!N52=\"\",\"\",'Process Data Entry'!N52)","v":""},""]
[4,{"$f":"'Energy Data Entry'!B72","v":"2021-07-01"},{"$f":"IF(OR('Process Data Entry'!C53=\"\",'Process Data Entry'!C53=0),\"\",'Process Data Entry'!C53)","v":""},{"$f":"IF(Table4[Avg Daily Flow]=\"\",\"\",_xlfn.DAYS(EOMONTH(B51,0),EOMONTH(B51,-1))*C51)","v":""},{"$f":"IF('Process Data Entry'!F53=\"\",\"\",'Process Data Entry'!F53)","v":""},{"$f":"IF(Table4[BOD removed]=\"\",\"\",Table4[BOD removed]*_xlfn.DAYS(EOMONTH(Table4[[#This Row],[Column2]],0),EOMONTH(Table4[[#This Row],[Column2]],-1)))","v":""},{"$f":"IF(SUM('Energy Data Entry'!C72,'Energy Data Entry'!H72,'Energy Data Entry'!M72,'Energy Data Entry'!R72,'Energy Data Entry'!W72)=0,\"\",SUM('Energy Data Entry'!C72,'Energy Data Entry'!H72,'Energy Data Entry'!M72,'Energy Data Entry'!R72,'Energy Data Entry'!W72))","v":""},{"$f":"'Energy Data Entry'!AG72","v":0},{"$f":"IF(Table4[[#This Row],[Electric kWh usage]]=\"\",\"\",Table4[[#This Row],[Gas kWh usage]]+Table4[[#This Row],[Electric kWh usage]])","v":""},{"$f":"IF(OR(Table4[[#This Row],[Electric kWh usage]]=\"\",Table4[[#This Row],[Monthly Flow]]=\"\"),\"\",(Table4[[#This Row],[Electric kWh usage]]+Table4[[#This Row],[Gas kWh usage]])/Table4[[#This Row],[Monthly Flow]])","v":""},{"$f":"IFERROR(IF(Table4[[#This Row],[Electric kWh usage]]=\"\",\"\",(Table4[[#This Row],[Electric kWh usage]]+Table4[[#This Row],[Gas kWh usage]])/Table4[[#This Row],[Total BOD removed]]),\"\")","v":""},{"$f":"IF('Energy Data Entry'!E72+'Energy Data Entry'!J72+'Energy Data Entry'!O72+'Energy Data Entry'!T72+'Energy Data Entry'!Y72=0,\"\",'Energy Data Entry'!E72+'Energy Data Entry'!J72+'Energy Data Entry'!O72+'Energy Data Entry'!T72+'Energy Data Entry'!Y72)","v":""},{"$f":"IF('Energy Data Entry'!F72+'Energy Data Entry'!K72+'Energy Data Entry'!P72++'Energy Data Entry'!U72+'Energy Data Entry'!Z72=0,\"\",'Energy Data Entry'!F72+'Energy Data Entry'!K72+'Energy Data Entry'!P72++'Energy Data Entry'!U72+'Energy Data Entry'!Z72)","v":""},{"$f":"IF('Energy Data Entry'!G72+'Energy Data Entry'!L72+'Energy Data Entry'!Q72+'Energy Data Entry'!V72+'Energy Data Entry'!AA72=0,\"\",'Energy Data Entry'!G72+'Energy Data Entry'!L72+'Energy Data Entry'!Q72+'Energy Data Entry'!V72+'Energy Data Entry'!AA72)","v":""},{"$f":"IF('Energy Data Entry'!D72+'Energy Data Entry'!I72+'Energy Data Entry'!N72+'Energy Data Entry'!S72+'Energy Data Entry'!X72=0,\"\",'Energy Data Entry'!D72+'Energy Data Entry'!I72+'Energy Data Entry'!N72+'Energy Data Entry'!S72+'Energy Data Entry'!X72)","v":""},{"$f":"'Energy Data Entry'!AF72","v":0},{"$f":"IFERROR(Table4[[#This Row],[Total electric cost]]/Table4[[#This Row],[Electric kWh usage]],\"\")","v":""},{"$f":"IFERROR(Table4[[#This Row],[Electric Demand Cost]]/Table4[[#This Row],[Total Electric Demand (Billed)]],IFERROR(Table4[[#This Row],[Electric Demand Cost]]/Table4[[#This Row],[Total Electric Demand (Actual)]],\"\"))","v":""},{"$f":"IFERROR(Table4[[#This Row],[Total Gas cost]]+Table4[[#This Row],[Total electric cost]],\"\")","v":""},null,{"$f":"IFERROR(Table4[[#This Row],[Total Energy Cost]]/Table4[[#This Row],[Monthly Flow]],\"\")","v":""},{"$f":"IFERROR(Table4[[#This Row],[Total Energy Cost]]/Table4[[#This Row],[Total BOD removed]],\"\")","v":""},null,{"$f":"IF('Process Data Entry'!G53=\"\",\"\",'Process Data Entry'!G53)","v":""},{"$f":"IF('Process Data Entry'!H53=\"\",\"\",'Process Data Entry'!H53)","v":""},{"$f":"IF('Process Data Entry'!I53=\"\",0,'Process Data Entry'!I53)","v":0},{"$f":"IF('Process Data Entry'!J53=\"\",\"\",'Process Data Entry'!J53)","v":""},{"$f":"IF('Process Data Entry'!K53=\"\",\"\",'Process Data Entry'!K53)","v":""},{"$f":"IF('Process Data Entry'!L53=\"\",\"\",'Process Data Entry'!L53)","v":""},"","",{"$f":"IF('Process Data Entry'!M53=\"\",\"\",'Process Data Entry'!M53)","v":""},{"$f":"IF('Process Data Entry'!N53=\"\",\"\",'Process Data Entry'!N53)","v":""},""]
[5,{"$f":"'Energy Data Entry'!B73","v":"2021-08-01"},{"$f":"IF(OR('Process Data Entry'!C54=\"\",'Process Data Entry'!C54=0),\"\",'Process Data Entry'!C54)","v":""},{"$f":"IF(Table4[Avg Daily Flow]=\"\",\"\",_xlfn.DAYS(EOMONTH(B52,0),EOMONTH(B52,-1))*C52)","v":""},{"$f":"IF('Process Data Entry'!F54=\"\",\"\",'Process Data Entry'!F54)","v":""},{"$f":"IF(Table4[BOD removed]=\"\",\"\",Table4[BOD removed]*_xlfn.DAYS(EOMONTH(Table4[[#This Row],[Column2]],0),EOMONTH(Table4[[#This Row],[Column2]],-1)))","v":""},{"$f":"IF(SUM('Energy Data Entry'!C73,'Energy Data Entry'!H73,'Energy Data Entry'!M73,'Energy Data Entry'!R73,'Energy Data Entry'!W73)=0,\"\",SUM('Energy Data Entry'!C73,'Energy Data Entry'!H73,'Energy Data Entry'!M73,'Energy Data Entry'!R73,'Energy Data Entry'!W73))","v":""},{"$f":"'Energy Data Entry'!AG73","v":0},{"$f":"IF(Table4[[#This Row],[Electric kWh usage]]=\"\",\"\",Table4[[#This Row],[Gas kWh usage]]+Table4[[#This Row],[Electric kWh usage]])","v":""},{"$f":"IF(OR(Table4[[#This Row],[Electric kWh usage]]=\"\",Table4[[#This Row],[Monthly Flow]]=\"\"),\"\",(Table4[[#This Row],[Electric kWh usage]]+Table4[[#This Row],[Gas kWh usage]])/Table4[[#This Row],[Monthly Flow]])","v":""},{"$f":"IFERROR(IF(Table4[[#This Row],[Electric kWh usage]]=\"\",\"\",(Table4[[#This Row],[Electric kWh usage]]+Table4[[#This Row],[Gas kWh usage]])/Table4[[#This Row],[Total BOD removed]]),\"\")","v":""},{"$f":"IF('Energy Data Entry'!E73+'Energy Data Entry'!J73+'Energy Data Entry'!O73+'Energy Data Entry'!T73+'Energy Data Entry'!Y73=0,\"\",'Energy Data Entry'!E73+'Energy Data Entry'!J73+'Energy Data Entry'!O73+'Energy Data Entry'!T73+'Energy Data Entry'!Y73)","v":""},{"$f":"IF('Energy Data Entry'!F73+'Energy Data Entry'!K73+'Energy Data Entry'!P73++'Energy Data Entry'!U73+'Energy Data Entry'!Z73=0,\"\",'Energy Data Entry'!F73+'Energy Data Entry'!K73+'Energy Data Entry'!P73++'Energy Data Entry'!U73+'Energy Data Entry'!Z73)","v":""},{"$f":"IF('Energy Data Entry'!G73+'Energy Data Entry'!L73+'Energy Data Entry'!Q73+'Energy Data Entry'!V73+'Energy Data Entry'!AA73=0,\"\",'Energy Data Entry'!G73+'Energy Data Entry'!L73+'Energy Data Entry'!Q73+'Energy Data Entry'!V73+'Energy Data Entry'!AA73)","v":""},{"$f":"IF('Energy Data Entry'!D73+'Energy Data Entry'!I73+'Energy Data Entry'!N73+'Energy Data Entry'!S73+'Energy Data Entry'!X73=0,\"\",'Energy Data Entry'!D73+'Energy Data Entry'!I73+'Energy Data Entry'!N73+'Energy Data Entry'!S73+'Energy Data Entry'!X73)","v":""},{"$f":"'Energy Data Entry'!AF73","v":0},{"$f":"IFERROR(Table4[[#This Row],[Total electric cost]]/Table4[[#This Row],[Electric kWh usage]],\"\")","v":""},{"$f":"IFERROR(Table4[[#This Row],[Electric Demand Cost]]/Table4[[#This Row],[Total Electric Demand (Billed)]],IFERROR(Table4[[#This Row],[Electric Demand Cost]]/Table4[[#This Row],[Total Electric Demand (Actual)]],\"\"))","v":""},{"$f":"IFERROR(Table4[[#This Row],[Total Gas cost]]+Table4[[#This Row],[Total electric cost]],\"\")","v":""},null,{"$f":"IFERROR(Table4[[#This Row],[Total Energy Cost]]/Table4[[#This Row],[Monthly Flow]],\"\")","v":""},{"$f":"IFERROR(Table4[[#This Row],[Total Energy Cost]]/Table4[[#This Row],[Total BOD removed]],\"\")","v":""},null,{"$f":"IF('Process Data Entry'!G54=\"\",\"\",'Process Data Entry'!G54)","v":""},{"$f":"IF('Process Data Entry'!H54=\"\",\"\",'Process Data Entry'!H54)","v":""},{"$f":"IF('Process Data Entry'!I54=\"\",0,'Process Data Entry'!I54)","v":0},{"$f":"IF('Process Data Entry'!J54=\"\",\"\",'Process Data Entry'!J54)","v":""},{"$f":"IF('Process Data Entry'!K54=\"\",\"\",'Process Data Entry'!K54)","v":""},{"$f":"IF('Process Data Entry'!L54=\"\",\"\",'Process Data Entry'!L54)","v":""},"","",{"$f":"IF('Process Data Entry'!M54=\"\",\"\",'Process Data Entry'!M54)","v":""},{"$f":"IF('Process Data Entry'!N54=\"\",\"\",'Process Data Entry'!N54)","v":""},""]
[5,{"$f":"'Energy Data Entry'!B74","v":"2021-09-01"},{"$f":"IF(OR('Process Data Entry'!C55=\"\",'Process Data Entry'!C55=0),\"\",'Process Data Entry'!C55)","v":""},{"$f":"IF(Table4[Avg Daily Flow]=\"\",\"\",_xlfn.DAYS(EOMONTH(B53,0),EOMONTH(B53,-1))*C53)","v":""},{"$f":"IF('Process Data Entry'!F55=\"\",\"\",'Process Data Entry'!F55)","v":""},{"$f":"IF(Table4[BOD removed]=\"\",\"\",Table4[BOD removed]*_xlfn.DAYS(EOMONTH(Table4[[#This Row],[Column2]],0),EOMONTH(Table4[[#This Row],[Column2]],-1)))","v":""},{"$f":"IF(SUM('Energy Data Entry'!C74,'Energy Data Entry'!H74,'Energy Data Entry'!M74,'Energy Data Entry'!R74,'Energy Data Entry'!W74)=0,\"\",SUM('Energy Data Entry'!C74,'Energy Data Entry'!H74,'Energy Data Entry'!M74,'Energy Data Entry'!R74,'Energy Data Entry'!W74))","v":""},{"$f":"'Energy Data Entry'!AG74","v":0},{"$f":"IF(Table4[[#This Row],[Electric kWh usage]]=\"\",\"\",Table4[[#This Row],[Gas kWh usage]]+Table4[[#This Row],[Electric kWh usage]])","v":""},{"$f":"IF(OR(Table4[[#This Row],[Electric kWh usage]]=\"\",Table4[[#This Row],[Monthly Flow]]=\"\"),\"\",(Table4[[#This Row],[Electric kWh usage]]+Table4[[#This Row],[Gas kWh usage]])/Table4[[#This Row],[Monthly Flow]])","v":""},{"$f":"IFERROR(IF(Table4[[#This Row],[Electric kWh usage]]=\"\",\"\",(Table4[[#This Row],[Electric kWh usage]]+Table4[[#This Row],[Gas kWh usage]])/Table4[[#This Row],[Total BOD removed]]),\"\")","v":""},{"$f":"IF('Energy Data Entry'!E74+'Energy Data Entry'!J74+'Energy Data Entry'!O74+'Energy Data Entry'!T74+'Energy Data Entry'!Y74=0,\"\",'Energy Data Entry'!E74+'Energy Data Entry'!J74+'Energy Data Entry'!O74+'Energy Data Entry'!T74+'Energy Data Entry'!Y74)","v":""},{"$f":"IF('Energy Data Entry'!F74+'Energy Data Entry'!K74+'Energy Data Entry'!P74++'Energy Data Entry'!U74+'Energy Data Entry'!Z74=0,\"\",'Energy Data Entry'!F74+'Energy Data Entry'!K74+'Energy Data Entry'!P74++'Energy Data Entry'!U74+'Energy Data Entry'!Z74)","v":""},{"$f":"IF('Energy Data Entry'!G74+'Energy Data Entry'!L74+'Energy Data Entry'!Q74+'Energy Data Entry'!V74+'Energy Data Entry'!AA74=0,\"\",'Energy Data Entry'!G74+'Energy Data Entry'!L74+'Energy Data Entry'!Q74+'Energy Data Entry'!V74+'Energy Data Entry'!AA74)","v":""},{"$f":"IF('Energy Data Entry'!D74+'Energy Data Entry'!I74+'Energy Data Entry'!N74+'Energy Data Entry'!S74+'Energy Data Entry'!X74=0,\"\",'Energy Data Entry'!D74+'Energy Data Entry'!I74+'Energy Data Entry'!N74+'Energy Data Entry'!S74+'Energy Data Entry'!X74)","v":""},{"$f":"'Energy Data Entry'!AF74","v":0},{"$f":"IFERROR(Table4[[#This Row],[Total electric cost]]/Table4[[#This Row],[Electric kWh usage]],\"\")","v":""},{"$f":"IFERROR(Table4[[#This Row],[Electric Demand Cost]]/Table4[[#This Row],[Total Electric Demand (Billed)]],IFERROR(Table4[[#This Row],[Electric Demand Cost]]/Table4[[#This Row],[Total Electric Demand (Actual)]],\"\"))","v":""},{"$f":"IFERROR(Table4[[#This Row],[Total Gas cost]]+Table4[[#This Row],[Total electric cost]],\"\")","v":""},null,{"$f":"IFERROR(Table4[[#This Row],[Total Energy Cost]]/Table4[[#This Row],[Monthly Flow]],\"\")","v":""},{"$f":"IFERROR(Table4[[#This Row],[Total Energy Cost]]/Table4[[#This Row],[Total BOD removed]],\"\")","v":""},null,{"$f":"IF('Process Data Entry'!G55=\"\",\"\",'Process Data Entry'!G55)","v":""},{"$f":"IF('Process Data Entry'!H55=\"\",\"\",'Process Data Entry'!H55)","v":""},{"$f":"IF('Process Data Entry'!I55=\"\",0,'Process Data Entry'!I55)","v":0},{"$f":"IF('Process Data Entry'!J55=\"\",\"\",'Process Data Entry'!J55)","v":""},{"$f":"IF('Process Data Entry'!K55=\"\",\"\",'Process Data Entry'!K55)","v":""},{"$f":"IF('Process Data Entry'!L55=\"\",\"\",'Process Data Entry'!L55)","v":""},"","",{"$f":"IF('Process Data Entry'!M55=\"\",\"\",'Process Data Entry'!M55)","v":""},{"$f":"IF('Process Data Entry'!N55=\"\",\"\",'Process Data Entry'!N55)","v":""},""]
[5,{"$f":"'Energy Data Entry'!B75","v":"2021-10-01"},{"$f":"IF(OR('Process Data Entry'!C56=\"\",'Process Data Entry'!C56=0),\"\",'Process Data Entry'!C56)","v":""},{"$f":"IF(Table4[Avg Daily Flow]=\"\",\"\",_xlfn.DAYS(EOMONTH(B54,0),EOMONTH(B54,-1))*C54)","v":""},{"$f":"IF('Process Data Entry'!F56=\"\",\"\",'Process Data Entry'!F56)","v":""},{"$f":"IF(Table4[BOD removed]=\"\",\"\",Table4[BOD removed]*_xlfn.DAYS(EOMONTH(Table4[[#This Row],[Column2]],0),EOMONTH(Table4[[#This Row],[Column2]],-1)))","v":""},{"$f":"IF(SUM('Energy Data Entry'!C75,'Energy Data Entry'!H75,'Energy Data Entry'!M75,'Energy Data Entry'!R75,'Energy Data Entry'!W75)=0,\"\",SUM('Energy Data Entry'!C75,'Energy Data Entry'!H75,'Energy Data Entry'!M75,'Energy Data Entry'!R75,'Energy Data Entry'!W75))","v":""},{"$f":"'Energy Data Entry'!AG75","v":0},{"$f":"IF(Table4[[#This Row],[Electric kWh usage]]=\"\",\"\",Table4[[#This Row],[Gas kWh usage]]+Table4[[#This Row],[Electric kWh usage]])","v":""},{"$f":"IF(OR(Table4[[#This Row],[Electric kWh usage]]=\"\",Table4[[#This Row],[Monthly Flow]]=\"\"),\"\",(Table4[[#This Row],[Electric kWh usage]]+Table4[[#This Row],[Gas kWh usage]])/Table4[[#This Row],[Monthly Flow]])","v":""},{"$f":"IFERROR(IF(Table4[[#This Row],[Electric kWh usage]]=\"\",\"\",(Table4[[#This Row],[Electric kWh usage]]+Table4[[#This Row],[Gas kWh usage]])/Table4[[#This Row],[Total BOD removed]]),\"\")","v":""},{"$f":"IF('Energy Data Entry'!E75+'Energy Data Entry'!J75+'Energy Data Entry'!O75+'Energy Data Entry'!T75+'Energy Data Entry'!Y75=0,\"\",'Energy Data Entry'!E75+'Energy Data Entry'!J75+'Energy Data Entry'!O75+'Energy Data Entry'!T75+'Energy Data Entry'!Y75)","v":""},{"$f":"IF('Energy Data Entry'!F75+'Energy Data Entry'!K75+'Energy Data Entry'!P75++'Energy Data Entry'!U75+'Energy Data Entry'!Z75=0,\"\",'Energy Data Entry'!F75+'Energy Data Entry'!K75+'Energy Data Entry'!P75++'Energy Data Entry'!U75+'Energy Data Entry'!Z75)","v":""},{"$f":"IF('Energy Data Entry'!G75+'Energy Data Entry'!L75+'Energy Data Entry'!Q75+'Energy Data Entry'!V75+'Energy Data Entry'!AA75=0,\"\",'Energy Data Entry'!G75+'Energy Data Entry'!L75+'Energy Data Entry'!Q75+'Energy Data Entry'!V75+'Energy Data Entry'!AA75)","v":""},{"$f":"IF('Energy Data Entry'!D75+'Energy Data Entry'!I75+'Energy Data Entry'!N75+'Energy Data Entry'!S75+'Energy Data Entry'!X75=0,\"\",'Energy Data Entry'!D75+'Energy Data Entry'!I75+'Energy Data Entry'!N75+'Energy Data Entry'!S75+'Energy Data Entry'!X75)","v":""},{"$f":"'Energy Data Entry'!AF75","v":0},{"$f":"IFERROR(Table4[[#This Row],[Total electric cost]]/Table4[[#This Row],[Electric kWh usage]],\"\")","v":""},{"$f":"IFERROR(Table4[[#This Row],[Electric Demand Cost]]/Table4[[#This Row],[Total Electric Demand (Billed)]],IFERROR(Table4[[#This Row],[Electric Demand Cost]]/Table4[[#This Row],[Total Electric Demand (Actual)]],\"\"))","v":""},{"$f":"IFERROR(Table4[[#This Row],[Total Gas cost]]+Table4[[#This Row],[Total electric cost]],\"\")","v":""},null,{"$f":"IFERROR(Table4[[#This Row],[Total Energy Cost]]/Table4[[#This Row],[Monthly Flow]],\"\")","v":""},{"$f":"IFERROR(Table4[[#This Row],[Total Energy Cost]]/Table4[[#This Row],[Total BOD removed]],\"\")","v":""},null,{"$f":"IF('Process Data Entry'!G56=\"\",\"\",'Process Data Entry'!G56)","v":""},{"$f":"IF('Process Data Entry'!H56=\"\",\"\",'Process Data Entry'!H56)","v":""},{"$f":"IF('Process Data Entry'!I56=\"\",0,'Process Data Entry'!I56)","v":0},{"$f":"IF('Process Data Entry'!J56=\"\",\"\",'Process Data Entry'!J56)","v":""},{"$f":"IF('Process Data Entry'!K56=\"\",\"\",'Process Data Entry'!K56)","v":""},{"$f":"IF('Process Data Entry'!L56=\"\",\"\",'Process Data Entry'!L56)","v":""},"","",{"$f":"IF('Process Data Entry'!M56=\"\",\"\",'Process Data Entry'!M56)","v":""},{"$f":"IF('Process Data Entry'!N56=\"\",\"\",'Process Data Entry'!N56)","v":""},""]
[5,{"$f":"'Energy Data Entry'!B76","v":"2021-11-01"},{"$f":"IF(OR('Process Data Entry'!C57=\"\",'Process Data Entry'!C57=0),\"\",'Process Data Entry'!C57)","v":""},{"$f":"IF(Table4[Avg Daily Flow]=\"\",\"\",_xlfn.DAYS(EOMONTH(B55,0),EOMONTH(B55,-1))*C55)","v":""},{"$f":"IF('Process Data Entry'!F57=\"\",\"\",'Process Data Entry'!F57)","v":""},{"$f":"IF(Table4[BOD removed]=\"\",\"\",Table4[BOD removed]*_xlfn.DAYS(EOMONTH(Table4[[#This Row],[Column2]],0),EOMONTH(Table4[[#This Row],[Column2]],-1)))","v":""},{"$f":"IF(SUM('Energy Data Entry'!C76,'Energy Data Entry'!H76,'Energy Data Entry'!M76,'Energy Data Entry'!R76,'Energy Data Entry'!W76)=0,\"\",SUM('Energy Data Entry'!C76,'Energy Data Entry'!H76,'Energy Data Entry'!M76,'Energy Data Entry'!R76,'Energy Data Entry'!W76))","v":""},{"$f":"'Energy Data Entry'!AG76","v":0},{"$f":"IF(Table4[[#This Row],[Electric kWh usage]]=\"\",\"\",Table4[[#This Row],[Gas kWh usage]]+Table4[[#This Row],[Electric kWh usage]])","v":""},{"$f":"IF(OR(Table4[[#This Row],[Electric kWh usage]]=\"\",Table4[[#This Row],[Monthly Flow]]=\"\"),\"\",(Table4[[#This Row],[Electric kWh usage]]+Table4[[#This Row],[Gas kWh usage]])/Table4[[#This Row],[Monthly Flow]])","v":""},{"$f":"IFERROR(IF(Table4[[#This Row],[Electric kWh usage]]=\"\",\"\",(Table4[[#This Row],[Electric kWh usage]]+Table4[[#This Row],[Gas kWh usage]])/Table4[[#This Row],[Total BOD removed]]),\"\")","v":""},{"$f":"IF('Energy Data Entry'!E76+'Energy Data Entry'!J76+'Energy Data Entry'!O76+'Energy Data Entry'!T76+'Energy Data Entry'!Y76=0,\"\",'Energy Data Entry'!E76+'Energy Data Entry'!J76+'Energy Data Entry'!O76+'Energy Data Entry'!T76+'Energy Data Entry'!Y76)","v":""},{"$f":"IF('Energy Data Entry'!F76+'Energy Data Entry'!K76+'Energy Data Entry'!P76++'Energy Data Entry'!U76+'Energy Data Entry'!Z76=0,\"\",'Energy Data Entry'!F76+'Energy Data Entry'!K76+'Energy Data Entry'!P76++'Energy Data Entry'!U76+'Energy Data Entry'!Z76)","v":""},{"$f":"IF('Energy Data Entry'!G76+'Energy Data Entry'!L76+'Energy Data Entry'!Q76+'Energy Data Entry'!V76+'Energy Data Entry'!AA76=0,\"\",'Energy Data Entry'!G76+'Energy Data Entry'!L76+'Energy Data Entry'!Q76+'Energy Data Entry'!V76+'Energy Data Entry'!AA76)","v":""},{"$f":"IF('Energy Data Entry'!D76+'Energy Data Entry'!I76+'Energy Data Entry'!N76+'Energy Data Entry'!S76+'Energy Data Entry'!X76=0,\"\",'Energy Data Entry'!D76+'Energy Data Entry'!I76+'Energy Data Entry'!N76+'Energy Data Entry'!S76+'Energy Data Entry'!X76)","v":""},{"$f":"'Energy Data Entry'!AF76","v":0},{"$f":"IFERROR(Table4[[#This Row],[Total electric cost]]/Table4[[#This Row],[Electric kWh usage]],\"\")","v":""},{"$f":"IFERROR(Table4[[#This Row],[Electric Demand Cost]]/Table4[[#This Row],[Total Electric Demand (Billed)]],IFERROR(Table4[[#This Row],[Electric Demand Cost]]/Table4[[#This Row],[Total Electric Demand (Actual)]],\"\"))","v":""},{"$f":"IFERROR(Table4[[#This Row],[Total Gas cost]]+Table4[[#This Row],[Total electric cost]],\"\")","v":""},null,{"$f":"IFERROR(Table4[[#This Row],[Total Energy Cost]]/Table4[[#This Row],[Monthly Flow]],\"\")","v":""},{"$f":"IFERROR(Table4[[#This Row],[Total Energy Cost]]/Table4[[#This Row],[Total BOD removed]],\"\")","v":""},null,{"$f":"IF('Process Data Entry'!G57=\"\",\"\",'Process Data Entry'!G57)","v":""},{"$f":"IF('Process Data Entry'!H57=\"\",\"\",'Process Data Entry'!H57)","v":""},{"$f":"IF('Process Data Entry'!I57=\"\",0,'Process Data Entry'!I57)","v":0},{"$f":"IF('Process Data Entry'!J57=\"\",\"\",'Process Data Entry'!J57)","v":""},{"$f":"IF('Process Data Entry'!K57=\"\",\"\",'Process Data Entry'!K57)","v":""},{"$f":"IF('Process Data Entry'!L57=\"\",\"\",'Process Data Entry'!L57)","v":""},"","",{"$f":"IF('Process Data Entry'!M57=\"\",\"\",'Process Data Entry'!M57)","v":""},{"$f":"IF('Process Data Entry'!N57=\"\",\"\",'Process Data Entry'!N57)","v":""},""]
[5,{"$f":"'Energy Data Entry'!B77","v":"2021-12-01"},{"$f":"IF(OR('Process Data Entry'!C58=\"\",'Process Data Entry'!C58=0),\"\",'Process Data Entry'!C58)","v":""},{"$f":"IF(Table4[Avg Daily Flow]=\"\",\"\",_xlfn.DAYS(EOMONTH(B56,0),EOMONTH(B56,-1))*C56)","v":""},{"$f":"IF('Process Data Entry'!F58=\"\",\"\",'Process Data Entry'!F58)","v":""},{"$f":"IF(Table4[BOD removed]=\"\",\"\",Table4[BOD removed]*_xlfn.DAYS(EOMONTH(Table4[[#This Row],[Column2]],0),EOMONTH(Table4[[#This Row],[Column2]],-1)))","v":""},{"$f":"IF(SUM('Energy Data Entry'!C77,'Energy Data Entry'!H77,'Energy Data Entry'!M77,'Energy Data Entry'!R77,'Energy Data Entry'!W77)=0,\"\",SUM('Energy Data Entry'!C77,'Energy Data Entry'!H77,'Energy Data Entry'!M77,'Energy Data Entry'!R77,'Energy Data Entry'!W77))","v":""},{"$f":"'Energy Data Entry'!AG77","v":0},{"$f":"IF(Table4[[#This Row],[Electric kWh usage]]=\"\",\"\",Table4[[#This Row],[Gas kWh usage]]+Table4[[#This Row],[Electric kWh usage]])","v":""},{"$f":"IF(OR(Table4[[#This Row],[Electric kWh usage]]=\"\",Table4[[#This Row],[Monthly Flow]]=\"\"),\"\",(Table4[[#This Row],[Electric kWh usage]]+Table4[[#This Row],[Gas kWh usage]])/Table4[[#This Row],[Monthly Flow]])","v":""},{"$f":"IFERROR(IF(Table4[[#This Row],[Electric kWh usage]]=\"\",\"\",(Table4[[#This Row],[Electric kWh usage]]+Table4[[#This Row],[Gas kWh usage]])/Table4[[#This Row],[Total BOD removed]]),\"\")","v":""},{"$f":"IF('Energy Data Entry'!E77+'Energy Data Entry'!J77+'Energy Data Entry'!O77+'Energy Data Entry'!T77+'Energy Data Entry'!Y77=0,\"\",'Energy Data Entry'!E77+'Energy Data Entry'!J77+'Energy Data Entry'!O77+'Energy Data Entry'!T77+'Energy Data Entry'!Y77)","v":""},{"$f":"IF('Energy Data Entry'!F77+'Energy Data Entry'!K77+'Energy Data Entry'!P77++'Energy Data Entry'!U77+'Energy Data Entry'!Z77=0,\"\",'Energy Data Entry'!F77+'Energy Data Entry'!K77+'Energy Data Entry'!P77++'Energy Data Entry'!U77+'Energy Data Entry'!Z77)","v":""},{"$f":"IF('Energy Data Entry'!G77+'Energy Data Entry'!L77+'Energy Data Entry'!Q77+'Energy Data Entry'!V77+'Energy Data Entry'!AA77=0,\"\",'Energy Data Entry'!G77+'Energy Data Entry'!L77+'Energy Data Entry'!Q77+'Energy Data Entry'!V77+'Energy Data Entry'!AA77)","v":""},{"$f":"IF('Energy Data Entry'!D77+'Energy Data Entry'!I77+'Energy Data Entry'!N77+'Energy Data Entry'!S77+'Energy Data Entry'!X77=0,\"\",'Energy Data Entry'!D77+'Energy Data Entry'!I77+'Energy Data Entry'!N77+'Energy Data Entry'!S77+'Energy Data Entry'!X77)","v":""},{"$f":"'Energy Data Entry'!AF77","v":0},{"$f":"IFERROR(Table4[[#This Row],[Total electric cost]]/Table4[[#This Row],[Electric kWh usage]],\"\")","v":""},{"$f":"IFERROR(Table4[[#This Row],[Electric Demand Cost]]/Table4[[#This Row],[Total Electric Demand (Billed)]],IFERROR(Table4[[#This Row],[Electric Demand Cost]]/Table4[[#This Row],[Total Electric Demand (Actual)]],\"\"))","v":""},{"$f":"IFERROR(Table4[[#This Row],[Total Gas cost]]+Table4[[#This Row],[Total electric cost]],\"\")","v":""},null,{"$f":"IFERROR(Table4[[#This Row],[Total Energy Cost]]/Table4[[#This Row],[Monthly Flow]],\"\")","v":""},{"$f":"IFERROR(Table4[[#This Row],[Total Energy Cost]]/Table4[[#This Row],[Total BOD removed]],\"\")","v":""},null,{"$f":"IF('Process Data Entry'!G58=\"\",\"\",'Process Data Entry'!G58)","v":""},{"$f":"IF('Process Data Entry'!H58=\"\",\"\",'Process Data Entry'!H58)","v":""},{"$f":"IF('Process Data Entry'!I58=\"\",0,'Process Data Entry'!I58)","v":0},{"$f":"IF('Process Data Entry'!J58=\"\",\"\",'Process Data Entry'!J58)","v":""},{"$f":"IF('Process Data Entry'!K58=\"\",\"\",'Process Data Entry'!K58)","v":""},{"$f":"IF('Process Data Entry'!L58=\"\",\"\",'Process Data Entry'!L58)","v":""},"","",{"$f":"IF('Process Data Entry'!M58=\"\",\"\",'Process Data Entry'!M58)","v":""},{"$f":"IF('Process Data Entry'!N58=\"\",\"\",'Process Data Entry'!N58)","v":""},""]
[5,{"$f":"'Energy Data Entry'!B78","v":"2022-01-01"},{"$f":"IF(OR('Process Data Entry'!C59=\"\",'Process Data Entry'!C59=0),\"\",'Process Data Entry'!C59)","v":""},{"$f":"IF(Table4[Avg Daily Flow]=\"\",\"\",_xlfn.DAYS(EOMONTH(B57,0),EOMONTH(B57,-1))*C57)","v":""},{"$f":"IF('Process Data Entry'!F59=\"\",\"\",'Process Data Entry'!F59)","v":""},{"$f":"IF(Table4[BOD removed]=\"\",\"\",Table4[BOD removed]*_xlfn.DAYS(EOMONTH(Table4[[#This Row],[Column2]],0),EOMONTH(Table4[[#This Row],[Column2]],-1)))","v":""},{"$f":"IF(SUM('Energy Data Entry'!C78,'Energy Data Entry'!H78,'Energy Data Entry'!M78,'Energy Data Entry'!R78,'Energy Data Entry'!W78)=0,\"\",SUM('Energy Data Entry'!C78,'Energy Data Entry'!H78,'Energy Data Entry'!M78,'Energy Data Entry'!R78,'Energy Data Entry'!W78))","v":""},{"$f":"'Energy Data Entry'!AG78","v":0},{"$f":"IF(Table4[[#This Row],[Electric kWh usage]]=\"\",\"\",Table4[[#This Row],[Gas kWh usage]]+Table4[[#This Row],[Electric kWh usage]])","v":""},{"$f":"IF(OR(Table4[[#This Row],[Electric kWh usage]]=\"\",Table4[[#This Row],[Monthly Flow]]=\"\"),\"\",(Table4[[#This Row],[Electric kWh usage]]+Table4[[#This Row],[Gas kWh usage]])/Table4[[#This Row],[Monthly Flow]])","v":""},{"$f":"IFERROR(IF(Table4[[#This Row],[Electric kWh usage]]=\"\",\"\",(Table4[[#This Row],[Electric kWh usage]]+Table4[[#This Row],[Gas kWh usage]])/Table4[[#This Row],[Total BOD removed]]),\"\")","v":""},{"$f":"IF('Energy Data Entry'!E78+'Energy Data Entry'!J78+'Energy Data Entry'!O78+'Energy Data Entry'!T78+'Energy Data Entry'!Y78=0,\"\",'Energy Data Entry'!E78+'Energy Data Entry'!J78+'Energy Data Entry'!O78+'Energy Data Entry'!T78+'Energy Data Entry'!Y78)","v":""},{"$f":"IF('Energy Data Entry'!F78+'Energy Data Entry'!K78+'Energy Data Entry'!P78++'Energy Data Entry'!U78+'Energy Data Entry'!Z78=0,\"\",'Energy Data Entry'!F78+'Energy Data Entry'!K78+'Energy Data Entry'!P78++'Energy Data Entry'!U78+'Energy Data Entry'!Z78)","v":""},{"$f":"IF('Energy Data Entry'!G78+'Energy Data Entry'!L78+'Energy Data Entry'!Q78+'Energy Data Entry'!V78+'Energy Data Entry'!AA78=0,\"\",'Energy Data Entry'!G78+'Energy Data Entry'!L78+'Energy Data Entry'!Q78+'Energy Data Entry'!V78+'Energy Data Entry'!AA78)","v":""},{"$f":"IF('Energy Data Entry'!D78+'Energy Data Entry'!I78+'Energy Data Entry'!N78+'Energy Data Entry'!S78+'Energy Data Entry'!X78=0,\"\",'Energy Data Entry'!D78+'Energy Data Entry'!I78+'Energy Data Entry'!N78+'Energy Data Entry'!S78+'Energy Data Entry'!X78)","v":""},{"$f":"'Energy Data Entry'!AF78","v":0},{"$f":"IFERROR(Table4[[#This Row],[Total electric cost]]/Table4[[#This Row],[Electric kWh usage]],\"\")","v":""},{"$f":"IFERROR(Table4[[#This Row],[Electric Demand Cost]]/Table4[[#This Row],[Total Electric Demand (Billed)]],IFERROR(Table4[[#This Row],[Electric Demand Cost]]/Table4[[#This Row],[Total Electric Demand (Actual)]],\"\"))","v":""},{"$f":"IFERROR(Table4[[#This Row],[Total Gas cost]]+Table4[[#This Row],[Total electric cost]],\"\")","v":""},null,{"$f":"IFERROR(Table4[[#This Row],[Total Energy Cost]]/Table4[[#This Row],[Monthly Flow]],\"\")","v":""},{"$f":"IFERROR(Table4[[#This Row],[Total Energy Cost]]/Table4[[#This Row],[Total BOD removed]],\"\")","v":""},null,{"$f":"IF('Process Data Entry'!G59=\"\",\"\",'Process Data Entry'!G59)","v":""},{"$f":"IF('Process Data Entry'!H59=\"\",\"\",'Process Data Entry'!H59)","v":""},{"$f":"IF('Process Data Entry'!I59=\"\",0,'Process Data Entry'!I59)","v":0},{"$f":"IF('Process Data Entry'!J59=\"\",\"\",'Process Data Entry'!J59)","v":""},{"$f":"IF('Process Data Entry'!K59=\"\",\"\",'Process Data Entry'!K59)","v":""},{"$f":"IF('Process Data Entry'!L59=\"\",\"\",'Process Data Entry'!L59)","v":""},"","",{"$f":"IF('Process Data Entry'!M59=\"\",\"\",'Process Data Entry'!M59)","v":""},{"$f":"IF('Process Data Entry'!N59=\"\",\"\",'Process Data Entry'!N59)","v":""},""]
[5,{"$f":"'Energy Data Entry'!B79","v":"2022-02-01"},{"$f":"IF(OR('Process Data Entry'!C60=\"\",'Process Data Entry'!C60=0),\"\",'Process Data Entry'!C60)","v":""},{"$f":"IF(Table4[Avg Daily Flow]=\"\",\"\",_xlfn.DAYS(EOMONTH(B58,0),EOMONTH(B58,-1))*C58)","v":""},{"$f":"IF('Process Data Entry'!F60=\"\",\"\",'Process Data Entry'!F60)","v":""},{"$f":"IF(Table4[BOD removed]=\"\",\"\",Table4[BOD removed]*_xlfn.DAYS(EOMONTH(Table4[[#This Row],[Column2]],0),EOMONTH(Table4[[#This Row],[Column2]],-1)))","v":""},{"$f":"IF(SUM('Energy Data Entry'!C79,'Energy Data Entry'!H79,'Energy Data Entry'!M79,'Energy Data Entry'!R79,'Energy Data Entry'!W79)=0,\"\",SUM('Energy Data Entry'!C79,'Energy Data Entry'!H79,'Energy Data Entry'!M79,'Energy Data Entry'!R79,'Energy Data Entry'!W79))","v":""},{"$f":"'Energy Data Entry'!AG79","v":0},{"$f":"IF(Table4[[#This Row],[Electric kWh usage]]=\"\",\"\",Table4[[#This Row],[Gas kWh usage]]+Table4[[#This Row],[Electric kWh usage]])","v":""},{"$f":"IF(OR(Table4[[#This Row],[Electric kWh usage]]=\"\",Table4[[#This Row],[Monthly Flow]]=\"\"),\"\",(Table4[[#This Row],[Electric kWh usage]]+Table4[[#This Row],[Gas kWh usage]])/Table4[[#This Row],[Monthly Flow]])","v":""},{"$f":"IFERROR(IF(Table4[[#This Row],[Electric kWh usage]]=\"\",\"\",(Table4[[#This Row],[Electric kWh usage]]+Table4[[#This Row],[Gas kWh usage]])/Table4[[#This Row],[Total BOD removed]]),\"\")","v":""},{"$f":"IF('Energy Data Entry'!E79+'Energy Data Entry'!J79+'Energy Data Entry'!O79+'Energy Data Entry'!T79+'Energy Data Entry'!Y79=0,\"\",'Energy Data Entry'!E79+'Energy Data Entry'!J79+'Energy Data Entry'!O79+'Energy Data Entry'!T79+'Energy Data Entry'!Y79)","v":""},{"$f":"IF('Energy Data Entry'!F79+'Energy Data Entry'!K79+'Energy Data Entry'!P79++'Energy Data Entry'!U79+'Energy Data Entry'!Z79=0,\"\",'Energy Data Entry'!F79+'Energy Data Entry'!K79+'Energy Data Entry'!P79++'Energy Data Entry'!U79+'Energy Data Entry'!Z79)","v":""},{"$f":"IF('Energy Data Entry'!G79+'Energy Data Entry'!L79+'Energy Data Entry'!Q79+'Energy Data Entry'!V79+'Energy Data Entry'!AA79=0,\"\",'Energy Data Entry'!G79+'Energy Data Entry'!L79+'Energy Data Entry'!Q79+'Energy Data Entry'!V79+'Energy Data Entry'!AA79)","v":""},{"$f":"IF('Energy Data Entry'!D79+'Energy Data Entry'!I79+'Energy Data Entry'!N79+'Energy Data Entry'!S79+'Energy Data Entry'!X79=0,\"\",'Energy Data Entry'!D79+'Energy Data Entry'!I79+'Energy Data Entry'!N79+'Energy Data Entry'!S79+'Energy Data Entry'!X79)","v":""},{"$f":"'Energy Data Entry'!AF79","v":0},{"$f":"IFERROR(Table4[[#This Row],[Total electric cost]]/Table4[[#This Row],[Electric kWh usage]],\"\")","v":""},{"$f":"IFERROR(Table4[[#This Row],[Electric Demand Cost]]/Table4[[#This Row],[Total Electric Demand (Billed)]],IFERROR(Table4[[#This Row],[Electric Demand Cost]]/Table4[[#This Row],[Total Electric Demand (Actual)]],\"\"))","v":""},{"$f":"IFERROR(Table4[[#This Row],[Total Gas cost]]+Table4[[#This Row],[Total electric cost]],\"\")","v":""},null,{"$f":"IFERROR(Table4[[#This Row],[Total Energy Cost]]/Table4[[#This Row],[Monthly Flow]],\"\")","v":""},{"$f":"IFERROR(Table4[[#This Row],[Total Energy Cost]]/Table4[[#This Row],[Total BOD removed]],\"\")","v":""},null,{"$f":"IF('Process Data Entry'!G60=\"\",\"\",'Process Data Entry'!G60)","v":""},{"$f":"IF('Process Data Entry'!H60=\"\",\"\",'Process Data Entry'!H60)","v":""},{"$f":"IF('Process Data Entry'!I60=\"\",0,'Process Data Entry'!I60)","v":0},{"$f":"IF('Process Data Entry'!J60=\"\",\"\",'Process Data Entry'!J60)","v":""},{"$f":"IF('Process Data Entry'!K60=\"\",\"\",'Process Data Entry'!K60)","v":""},{"$f":"IF('Process Data Entry'!L60=\"\",\"\",'Process Data Entry'!L60)","v":""},"","",{"$f":"IF('Process Data Entry'!M60=\"\",\"\",'Process Data Entry'!M60)","v":""},{"$f":"IF('Process Data Entry'!N60=\"\",\"\",'Process Data Entry'!N60)","v":""},""]
[5,{"$f":"'Energy Data Entry'!B80","v":"2022-03-01"},{"$f":"IF(OR('Process Data Entry'!C61=\"\",'Process Data Entry'!C61=0),\"\",'Process Data Entry'!C61)","v":""},{"$f":"IF(Table4[Avg Daily Flow]=\"\",\"\",_xlfn.DAYS(EOMONTH(B59,0),EOMONTH(B59,-1))*C59)","v":""},{"$f":"IF('Process Data Entry'!F61=\"\",\"\",'Process Data Entry'!F61)","v":""},{"$f":"IF(Table4[BOD removed]=\"\",\"\",Table4[BOD removed]*_xlfn.DAYS(EOMONTH(Table4[[#This Row],[Column2]],0),EOMONTH(Table4[[#This Row],[Column2]],-1)))","v":""},{"$f":"IF(SUM('Energy Data Entry'!C80,'Energy Data Entry'!H80,'Energy Data Entry'!M80,'Energy Data Entry'!R80,'Energy Data Entry'!W80)=0,\"\",SUM('Energy Data Entry'!C80,'Energy Data Entry'!H80,'Energy Data Entry'!M80,'Energy Data Entry'!R80,'Energy Data Entry'!W80))","v":""},{"$f":"'Energy Data Entry'!AG80","v":0},{"$f":"IF(Table4[[#This Row],[Electric kWh usage]]=\"\",\"\",Table4[[#This Row],[Gas kWh usage]]+Table4[[#This Row],[Electric kWh usage]])","v":""},{"$f":"IF(OR(Table4[[#This Row],[Electric kWh usage]]=\"\",Table4[[#This Row],[Monthly Flow]]=\"\"),\"\",(Table4[[#This Row],[Electric kWh usage]]+Table4[[#This Row],[Gas kWh usage]])/Table4[[#This Row],[Monthly Flow]])","v":""},{"$f":"IFERROR(IF(Table4[[#This Row],[Electric kWh usage]]=\"\",\"\",(Table4[[#This Row],[Electric kWh usage]]+Table4[[#This Row],[Gas kWh usage]])/Table4[[#This Row],[Total BOD removed]]),\"\")","v":""},{"$f":"IF('Energy Data Entry'!E80+'Energy Data Entry'!J80+'Energy Data Entry'!O80+'Energy Data Entry'!T80+'Energy Data Entry'!Y80=0,\"\",'Energy Data Entry'!E80+'Energy Data Entry'!J80+'Energy Data Entry'!O80+'Energy Data Entry'!T80+'Energy Data Entry'!Y80)","v":""},{"$f":"IF('Energy Data Entry'!F80+'Energy Data Entry'!K80+'Energy Data Entry'!P80++'Energy Data Entry'!U80+'Energy Data Entry'!Z80=0,\"\",'Energy Data Entry'!F80+'Energy Data Entry'!K80+'Energy Data Entry'!P80++'Energy Data Entry'!U80+'Energy Data Entry'!Z80)","v":""},{"$f":"IF('Energy Data Entry'!G80+'Energy Data Entry'!L80+'Energy Data Entry'!Q80+'Energy Data Entry'!V80+'Energy Data Entry'!AA80=0,\"\",'Energy Data Entry'!G80+'Energy Data Entry'!L80+'Energy Data Entry'!Q80+'Energy Data Entry'!V80+'Energy Data Entry'!AA80)","v":""},{"$f":"IF('Energy Data Entry'!D80+'Energy Data Entry'!I80+'Energy Data Entry'!N80+'Energy Data Entry'!S80+'Energy Data Entry'!X80=0,\"\",'Energy Data Entry'!D80+'Energy Data Entry'!I80+'Energy Data Entry'!N80+'Energy Data Entry'!S80+'Energy Data Entry'!X80)","v":""},{"$f":"'Energy Data Entry'!AF80","v":0},{"$f":"IFERROR(Table4[[#This Row],[Total electric cost]]/Table4[[#This Row],[Electric kWh usage]],\"\")","v":""},{"$f":"IFERROR(Table4[[#This Row],[Electric Demand Cost]]/Table4[[#This Row],[Total Electric Demand (Billed)]],IFERROR(Table4[[#This Row],[Electric Demand Cost]]/Table4[[#This Row],[Total Electric Demand (Actual)]],\"\"))","v":""},{"$f":"IFERROR(Table4[[#This Row],[Total Gas cost]]+Table4[[#This Row],[Total electric cost]],\"\")","v":""},null,{"$f":"IFERROR(Table4[[#This Row],[Total Energy Cost]]/Table4[[#This Row],[Monthly Flow]],\"\")","v":""},{"$f":"IFERROR(Table4[[#This Row],[Total Energy Cost]]/Table4[[#This Row],[Total BOD removed]],\"\")","v":""},null,{"$f":"IF('Process Data Entry'!G61=\"\",\"\",'Process Data Entry'!G61)","v":""},{"$f":"IF('Process Data Entry'!H61=\"\",\"\",'Process Data Entry'!H61)","v":""},{"$f":"IF('Process Data Entry'!I61=\"\",0,'Process Data Entry'!I61)","v":0},{"$f":"IF('Process Data Entry'!J61=\"\",\"\",'Process Data Entry'!J61)","v":""},{"$f":"IF('Process Data Entry'!K61=\"\",\"\",'Process Data Entry'!K61)","v":""},{"$f":"IF('Process Data Entry'!L61=\"\",\"\",'Process Data Entry'!L61)","v":""},"","",{"$f":"IF('Process Data Entry'!M61=\"\",\"\",'Process Data Entry'!M61)","v":""},{"$f":"IF('Process Data Entry'!N61=\"\",\"\",'Process Data Entry'!N61)","v":""},""]
[5,{"$f":"'Energy Data Entry'!B81","v":"2022-04-01"},{"$f":"IF(OR('Process Data Entry'!C62=\"\",'Process Data Entry'!C62=0),\"\",'Process Data Entry'!C62)","v":""},{"$f":"IF(Table4[Avg Daily Flow]=\"\",\"\",_xlfn.DAYS(EOMONTH(B60,0),EOMONTH(B60,-1))*C60)","v":""},{"$f":"IF('Process Data Entry'!F62=\"\",\"\",'Process Data Entry'!F62)","v":""},{"$f":"IF(Table4[BOD removed]=\"\",\"\",Table4[BOD removed]*_xlfn.DAYS(EOMONTH(Table4[[#This Row],[Column2]],0),EOMONTH(Table4[[#This Row],[Column2]],-1)))","v":""},{"$f":"IF(SUM('Energy Data Entry'!C81,'Energy Data Entry'!H81,'Energy Data Entry'!M81,'Energy Data Entry'!R81,'Energy Data Entry'!W81)=0,\"\",SUM('Energy Data Entry'!C81,'Energy Data Entry'!H81,'Energy Data Entry'!M81,'Energy Data Entry'!R81,'Energy Data Entry'!W81))","v":""},{"$f":"'Energy Data Entry'!AG81","v":0},{"$f":"IF(Table4[[#This Row],[Electric kWh usage]]=\"\",\"\",Table4[[#This Row],[Gas kWh usage]]+Table4[[#This Row],[Electric kWh usage]])","v":""},{"$f":"IF(OR(Table4[[#This Row],[Electric kWh usage]]=\"\",Table4[[#This Row],[Monthly Flow]]=\"\"),\"\",(Table4[[#This Row],[Electric kWh usage]]+Table4[[#This Row],[Gas kWh usage]])/Table4[[#This Row],[Monthly Flow]])","v":""},{"$f":"IFERROR(IF(Table4[[#This Row],[Electric kWh usage]]=\"\",\"\",(Table4[[#This Row],[Electric kWh usage]]+Table4[[#This Row],[Gas kWh usage]])/Table4[[#This Row],[Total BOD removed]]),\"\")","v":""},{"$f":"IF('Energy Data Entry'!E81+'Energy Data Entry'!J81+'Energy Data Entry'!O81+'Energy Data Entry'!T81+'Energy Data Entry'!Y81=0,\"\",'Energy Data Entry'!E81+'Energy Data Entry'!J81+'Energy Data Entry'!O81+'Energy Data Entry'!T81+'Energy Data Entry'!Y81)","v":""},{"$f":"IF('Energy Data Entry'!F81+'Energy Data Entry'!K81+'Energy Data Entry'!P81++'Energy Data Entry'!U81+'Energy Data Entry'!Z81=0,\"\",'Energy Data Entry'!F81+'Energy Data Entry'!K81+'Energy Data Entry'!P81++'Energy Data Entry'!U81+'Energy Data Entry'!Z81)","v":""},{"$f":"IF('Energy Data Entry'!G81+'Energy Data Entry'!L81+'Energy Data Entry'!Q81+'Energy Data Entry'!V81+'Energy Data Entry'!AA81=0,\"\",'Energy Data Entry'!G81+'Energy Data Entry'!L81+'Energy Data Entry'!Q81+'Energy Data Entry'!V81+'Energy Data Entry'!AA81)","v":""},{"$f":"IF('Energy Data Entry'!D81+'Energy Data Entry'!I81+'Energy Data Entry'!N81+'Energy Data Entry'!S81+'Energy Data Entry'!X81=0,\"\",'Energy Data Entry'!D81+'Energy Data Entry'!I81+'Energy Data Entry'!N81+'Energy Data Entry'!S81+'Energy Data Entry'!X81)","v":""},{"$f":"'Energy Data Entry'!AF81","v":0},{"$f":"IFERROR(Table4[[#This Row],[Total electric cost]]/Table4[[#This Row],[Electric kWh usage]],\"\")","v":""},{"$f":"IFERROR(Table4[[#This Row],[Electric Demand Cost]]/Table4[[#This Row],[Total Electric Demand (Billed)]],IFERROR(Table4[[#This Row],[Electric Demand Cost]]/Table4[[#This Row],[Total Electric Demand (Actual)]],\"\"))","v":""},{"$f":"IFERROR(Table4[[#This Row],[Total Gas cost]]+Table4[[#This Row],[Total electric cost]],\"\")","v":""},null,{"$f":"IFERROR(Table4[[#This Row],[Total Energy Cost]]/Table4[[#This Row],[Monthly Flow]],\"\")","v":""},{"$f":"IFERROR(Table4[[#This Row],[Total Energy Cost]]/Table4[[#This Row],[Total BOD removed]],\"\")","v":""},null,{"$f":"IF('Process Data Entry'!G62=\"\",\"\",'Process Data Entry'!G62)","v":""},{"$f":"IF('Process Data Entry'!H62=\"\",\"\",'Process Data Entry'!H62)","v":""},{"$f":"IF('Process Data Entry'!I62=\"\",0,'Process Data Entry'!I62)","v":0},{"$f":"IF('Process Data Entry'!J62=\"\",\"\",'Process Data Entry'!J62)","v":""},{"$f":"IF('Process Data Entry'!K62=\"\",\"\",'Process Data Entry'!K62)","v":""},{"$f":"IF('Process Data Entry'!L62=\"\",\"\",'Process Data Entry'!L62)","v":""},"","",{"$f":"IF('Process Data Entry'!M62=\"\",\"\",'Process Data Entry'!M62)","v":""},{"$f":"IF('Process Data Entry'!N62=\"\",\"\",'Process Data Entry'!N62)","v":""},""]
[5,{"$f":"'Energy Data Entry'!B82","v":"2022-05-01"},{"$f":"IF(OR('Process Data Entry'!C63=\"\",'Process Data Entry'!C63=0),\"\",'Process Data Entry'!C63)","v":""},{"$f":"IF(Table4[Avg Daily Flow]=\"\",\"\",_xlfn.DAYS(EOMONTH(B61,0),EOMONTH(B61,-1))*C61)","v":""},{"$f":"IF('Process Data Entry'!F63=\"\",\"\",'Process Data Entry'!F63)","v":""},{"$f":"IF(Table4[BOD removed]=\"\",\"\",Table4[BOD removed]*_xlfn.DAYS(EOMONTH(Table4[[#This Row],[Column2]],0),EOMONTH(Table4[[#This Row],[Column2]],-1)))","v":""},{"$f":"IF(SUM('Energy Data Entry'!C82,'Energy Data Entry'!H82,'Energy Data Entry'!M82,'Energy Data Entry'!R82,'Energy Data Entry'!W82)=0,\"\",SUM('Energy Data Entry'!C82,'Energy Data Entry'!H82,'Energy Data Entry'!M82,'Energy Data Entry'!R82,'Energy Data Entry'!W82))","v":""},{"$f":"'Energy Data Entry'!AG82","v":0},{"$f":"IF(Table4[[#This Row],[Electric kWh usage]]=\"\",\"\",Table4[[#This Row],[Gas kWh usage]]+Table4[[#This Row],[Electric kWh usage]])","v":""},{"$f":"IF(OR(Table4[[#This Row],[Electric kWh usage]]=\"\",Table4[[#This Row],[Monthly Flow]]=\"\"),\"\",(Table4[[#This Row],[Electric kWh usage]]+Table4[[#This Row],[Gas kWh usage]])/Table4[[#This Row],[Monthly Flow]])","v":""},{"$f":"IFERROR(IF(Table4[[#This Row],[Electric kWh usage]]=\"\",\"\",(Table4[[#This Row],[Electric kWh usage]]+Table4[[#This Row],[Gas kWh usage]])/Table4[[#This Row],[Total BOD removed]]),\"\")","v":""},{"$f":"IF('Energy Data Entry'!E82+'Energy Data Entry'!J82+'Energy Data Entry'!O82+'Energy Data Entry'!T82+'Energy Data Entry'!Y82=0,\"\",'Energy Data Entry'!E82+'Energy Data Entry'!J82+'Energy Data Entry'!O82+'Energy Data Entry'!T82+'Energy Data Entry'!Y82)","v":""},{"$f":"IF('Energy Data Entry'!F82+'Energy Data Entry'!K82+'Energy Data Entry'!P82++'Energy Data Entry'!U82+'Energy Data Entry'!Z82=0,\"\",'Energy Data Entry'!F82+'Energy Data Entry'!K82+'Energy Data Entry'!P82++'Energy Data Entry'!U82+'Energy Data Entry'!Z82)","v":""},{"$f":"IF('Energy Data Entry'!G82+'Energy Data Entry'!L82+'Energy Data Entry'!Q82+'Energy Data Entry'!V82+'Energy Data Entry'!AA82=0,\"\",'Energy Data Entry'!G82+'Energy Data Entry'!L82+'Energy Data Entry'!Q82+'Energy Data Entry'!V82+'Energy Data Entry'!AA82)","v":""},{"$f":"IF('Energy Data Entry'!D82+'Energy Data Entry'!I82+'Energy Data Entry'!N82+'Energy Data Entry'!S82+'Energy Data Entry'!X82=0,\"\",'Energy Data Entry'!D82+'Energy Data Entry'!I82+'Energy Data Entry'!N82+'Energy Data Entry'!S82+'Energy Data Entry'!X82)","v":""},{"$f":"'Energy Data Entry'!AF82","v":0},{"$f":"IFERROR(Table4[[#This Row],[Total electric cost]]/Table4[[#This Row],[Electric kWh usage]],\"\")","v":""},{"$f":"IFERROR(Table4[[#This Row],[Electric Demand Cost]]/Table4[[#This Row],[Total Electric Demand (Billed)]],IFERROR(Table4[[#This Row],[Electric Demand Cost]]/Table4[[#This Row],[Total Electric Demand (Actual)]],\"\"))","v":""},{"$f":"IFERROR(Table4[[#This Row],[Total Gas cost]]+Table4[[#This Row],[Total electric cost]],\"\")","v":""},null,{"$f":"IFERROR(Table4[[#This Row],[Total Energy Cost]]/Table4[[#This Row],[Monthly Flow]],\"\")","v":""},{"$f":"IFERROR(Table4[[#This Row],[Total Energy Cost]]/Table4[[#This Row],[Total BOD removed]],\"\")","v":""},null,{"$f":"IF('Process Data Entry'!G63=\"\",\"\",'Process Data Entry'!G63)","v":""},{"$f":"IF('Process Data Entry'!H63=\"\",\"\",'Process Data Entry'!H63)","v":""},{"$f":"IF('Process Data Entry'!I63=\"\",0,'Process Data Entry'!I63)","v":0},{"$f":"IF('Process Data Entry'!J63=\"\",\"\",'Process Data Entry'!J63)","v":""},{"$f":"IF('Process Data Entry'!K63=\"\",\"\",'Process Data Entry'!K63)","v":""},{"$f":"IF('Process Data Entry'!L63=\"\",\"\",'Process Data Entry'!L63)","v":""},"","",{"$f":"IF('Process Data Entry'!M63=\"\",\"\",'Process Data Entry'!M63)","v":""},{"$f":"IF('Process Data Entry'!N63=\"\",\"\",'Process Data Entry'!N63)","v":""},""]
[5,{"$f":"'Energy Data Entry'!B83","v":"2022-06-01"},{"$f":"IF(OR('Process Data Entry'!C64=\"\",'Process Data Entry'!C64=0),\"\",'Process Data Entry'!C64)","v":""},{"$f":"IF(Table4[Avg Daily Flow]=\"\",\"\",_xlfn.DAYS(EOMONTH(B62,0),EOMONTH(B62,-1))*C62)","v":""},{"$f":"IF('Process Data Entry'!F64=\"\",\"\",'Process Data Entry'!F64)","v":""},{"$f":"IF(Table4[BOD removed]=\"\",\"\",Table4[BOD removed]*_xlfn.DAYS(EOMONTH(Table4[[#This Row],[Column2]],0),EOMONTH(Table4[[#This Row],[Column2]],-1)))","v":""},{"$f":"IF(SUM('Energy Data Entry'!C83,'Energy Data Entry'!H83,'Energy Data Entry'!M83,'Energy Data Entry'!R83,'Energy Data Entry'!W83)=0,\"\",SUM('Energy Data Entry'!C83,'Energy Data Entry'!H83,'Energy Data Entry'!M83,'Energy Data Entry'!R83,'Energy Data Entry'!W83))","v":""},{"$f":"'Energy Data Entry'!AG83","v":0},{"$f":"IF(Table4[[#This Row],[Electric kWh usage]]=\"\",\"\",Table4[[#This Row],[Gas kWh usage]]+Table4[[#This Row],[Electric kWh usage]])","v":""},{"$f":"IF(OR(Table4[[#This Row],[Electric kWh usage]]=\"\",Table4[[#This Row],[Monthly Flow]]=\"\"),\"\",(Table4[[#This Row],[Electric kWh usage]]+Table4[[#This Row],[Gas kWh usage]])/Table4[[#This Row],[Monthly Flow]])","v":""},{"$f":"IFERROR(IF(Table4[[#This Row],[Electric kWh usage]]=\"\",\"\",(Table4[[#This Row],[Electric kWh usage]]+Table4[[#This Row],[Gas kWh usage]])/Table4[[#This Row],[Total BOD removed]]),\"\")","v":""},{"$f":"IF('Energy Data Entry'!E83+'Energy Data Entry'!J83+'Energy Data Entry'!O83+'Energy Data Entry'!T83+'Energy Data Entry'!Y83=0,\"\",'Energy Data Entry'!E83+'Energy Data Entry'!J83+'Energy Data Entry'!O83+'Energy Data Entry'!T83+'Energy Data Entry'!Y83)","v":""},{"$f":"IF('Energy Data Entry'!F83+'Energy Data Entry'!K83+'Energy Data Entry'!P83++'Energy Data Entry'!U83+'Energy Data Entry'!Z83=0,\"\",'Energy Data Entry'!F83+'Energy Data Entry'!K83+'Energy Data Entry'!P83++'Energy Data Entry'!U83+'Energy Data Entry'!Z83)","v":""},{"$f":"IF('Energy Data Entry'!G83+'Energy Data Entry'!L83+'Energy Data Entry'!Q83+'Energy Data Entry'!V83+'Energy Data Entry'!AA83=0,\"\",'Energy Data Entry'!G83+'Energy Data Entry'!L83+'Energy Data Entry'!Q83+'Energy Data Entry'!V83+'Energy Data Entry'!AA83)","v":""},{"$f":"IF('Energy Data Entry'!D83+'Energy Data Entry'!I83+'Energy Data Entry'!N83+'Energy Data Entry'!S83+'Energy Data Entry'!X83=0,\"\",'Energy Data Entry'!D83+'Energy Data Entry'!I83+'Energy Data Entry'!N83+'Energy Data Entry'!S83+'Energy Data Entry'!X83)","v":""},{"$f":"'Energy Data Entry'!AF83","v":0},{"$f":"IFERROR(Table4[[#This Row],[Total electric cost]]/Table4[[#This Row],[Electric kWh usage]],\"\")","v":""},{"$f":"IFERROR(Table4[[#This Row],[Electric Demand Cost]]/Table4[[#This Row],[Total Electric Demand (Billed)]],IFERROR(Table4[[#This Row],[Electric Demand Cost]]/Table4[[#This Row],[Total Electric Demand (Actual)]],\"\"))","v":""},{"$f":"IFERROR(Table4[[#This Row],[Total Gas cost]]+Table4[[#This Row],[Total electric cost]],\"\")","v":""},null,{"$f":"IFERROR(Table4[[#This Row],[Total Energy Cost]]/Table4[[#This Row],[Monthly Flow]],\"\")","v":""},{"$f":"IFERROR(Table4[[#This Row],[Total Energy Cost]]/Table4[[#This Row],[Total BOD removed]],\"\")","v":""},null,{"$f":"IF('Process Data Entry'!G64=\"\",\"\",'Process Data Entry'!G64)","v":""},{"$f":"IF('Process Data Entry'!H64=\"\",\"\",'Process Data Entry'!H64)","v":""},{"$f":"IF('Process Data Entry'!I64=\"\",0,'Process Data Entry'!I64)","v":0},{"$f":"IF('Process Data Entry'!J64=\"\",\"\",'Process Data Entry'!J64)","v":""},{"$f":"IF('Process Data Entry'!K64=\"\",\"\",'Process Data Entry'!K64)","v":""},{"$f":"IF('Process Data Entry'!L64=\"\",\"\",'Process Data Entry'!L64)","v":""},"","",{"$f":"IF('Process Data Entry'!M64=\"\",\"\",'Process Data Entry'!M64)","v":""},{"$f":"IF('Process Data Entry'!N64=\"\",\"\",'Process Data Entry'!N64)","v":""},""]
[5,{"$f":"'Energy Data Entry'!B84","v":"2022-07-01"},{"$f":"IF(OR('Process Data Entry'!C65=\"\",'Process Data Entry'!C65=0),\"\",'Process Data Entry'!C65)","v":""},{"$f":"IF(Table4[Avg Daily Flow]=\"\",\"\",_xlfn.DAYS(EOMONTH(B63,0),EOMONTH(B63,-1))*C63)","v":""},{"$f":"IF('Process Data Entry'!F65=\"\",\"\",'Process Data Entry'!F65)","v":""},{"$f":"IF(Table4[BOD removed]=\"\",\"\",Table4[BOD removed]*_xlfn.DAYS(EOMONTH(Table4[[#This Row],[Column2]],0),EOMONTH(Table4[[#This Row],[Column2]],-1)))","v":""},{"$f":"IF(SUM('Energy Data Entry'!C84,'Energy Data Entry'!H84,'Energy Data Entry'!M84,'Energy Data Entry'!R84,'Energy Data Entry'!W84)=0,\"\",SUM('Energy Data Entry'!C84,'Energy Data Entry'!H84,'Energy Data Entry'!M84,'Energy Data Entry'!R84,'Energy Data Entry'!W84))","v":""},{"$f":"'Energy Data Entry'!AG84","v":0},{"$f":"IF(Table4[[#This Row],[Electric kWh usage]]=\"\",\"\",Table4[[#This Row],[Gas kWh usage]]+Table4[[#This Row],[Electric kWh usage]])","v":""},{"$f":"IF(OR(Table4[[#This Row],[Electric kWh usage]]=\"\",Table4[[#This Row],[Monthly Flow]]=\"\"),\"\",(Table4[[#This Row],[Electric kWh usage]]+Table4[[#This Row],[Gas kWh usage]])/Table4[[#This Row],[Monthly Flow]])","v":""},{"$f":"IFERROR(IF(Table4[[#This Row],[Electric kWh usage]]=\"\",\"\",(Table4[[#This Row],[Electric kWh usage]]+Table4[[#This Row],[Gas kWh usage]])/Table4[[#This Row],[Total BOD removed]]),\"\")","v":""},{"$f":"IF('Energy Data Entry'!E84+'Energy Data Entry'!J84+'Energy Data Entry'!O84+'Energy Data Entry'!T84+'Energy Data Entry'!Y84=0,\"\",'Energy Data Entry'!E84+'Energy Data Entry'!J84+'Energy Data Entry'!O84+'Energy Data Entry'!T84+'Energy Data Entry'!Y84)","v":""},{"$f":"IF('Energy Data Entry'!F84+'Energy Data Entry'!K84+'Energy Data Entry'!P84++'Energy Data Entry'!U84+'Energy Data Entry'!Z84=0,\"\",'Energy Data Entry'!F84+'Energy Data Entry'!K84+'Energy Data Entry'!P84++'Energy Data Entry'!U84+'Energy Data Entry'!Z84)","v":""},{"$f":"IF('Energy Data Entry'!G84+'Energy Data Entry'!L84+'Energy Data Entry'!Q84+'Energy Data Entry'!V84+'Energy Data Entry'!AA84=0,\"\",'Energy Data Entry'!G84+'Energy Data Entry'!L84+'Energy Data Entry'!Q84+'Energy Data Entry'!V84+'Energy Data Entry'!AA84)","v":""},{"$f":"IF('Energy Data Entry'!D84+'Energy Data Entry'!I84+'Energy Data Entry'!N84+'Energy Data Entry'!S84+'Energy Data Entry'!X84=0,\"\",'Energy Data Entry'!D84+'Energy Data Entry'!I84+'Energy Data Entry'!N84+'Energy Data Entry'!S84+'Energy Data Entry'!X84)","v":""},{"$f":"'Energy Data Entry'!AF84","v":0},{"$f":"IFERROR(Table4[[#This Row],[Total electric cost]]/Table4[[#This Row],[Electric kWh usage]],\"\")","v":""},{"$f":"IFERROR(Table4[[#This Row],[Electric Demand Cost]]/Table4[[#This Row],[Total Electric Demand (Billed)]],IFERROR(Table4[[#This Row],[Electric Demand Cost]]/Table4[[#This Row],[Total Electric Demand (Actual)]],\"\"))","v":""},{"$f":"IFERROR(Table4[[#This Row],[Total Gas cost]]+Table4[[#This Row],[Total electric cost]],\"\")","v":""},null,{"$f":"IFERROR(Table4[[#This Row],[Total Energy Cost]]/Table4[[#This Row],[Monthly Flow]],\"\")","v":""},{"$f":"IFERROR(Table4[[#This Row],[Total Energy Cost]]/Table4[[#This Row],[Total BOD removed]],\"\")","v":""},null,{"$f":"IF('Process Data Entry'!G65=\"\",\"\",'Process Data Entry'!G65)","v":""},{"$f":"IF('Process Data Entry'!H65=\"\",\"\",'Process Data Entry'!H65)","v":""},{"$f":"IF('Process Data Entry'!I65=\"\",0,'Process Data Entry'!I65)","v":0},{"$f":"IF('Process Data Entry'!J65=\"\",\"\",'Process Data Entry'!J65)","v":""},{"$f":"IF('Process Data Entry'!K65=\"\",\"\",'Process Data Entry'!K65)","v":""},{"$f":"IF('Process Data Entry'!L65=\"\",\"\",'Process Data Entry'!L65)","v":""},"","",{"$f":"IF('Process Data Entry'!M65=\"\",\"\",'Process Data Entry'!M65)","v":""},{"$f":"IF('Process Data Entry'!N65=\"\",\"\",'Process Data Entry'!N65)","v":""},""]
[6,{"$f":"'Energy Data Entry'!B85","v":"2022-08-01"},{"$f":"IF(OR('Process Data Entry'!C66=\"\",'Process Data Entry'!C66=0),\"\",'Process Data Entry'!C66)","v":""},{"$f":"IF(Table4[Avg Daily Flow]=\"\",\"\",_xlfn.DAYS(EOMONTH(B64,0),EOMONTH(B64,-1))*C64)","v":""},{"$f":"IF('Process Data Entry'!F66=\"\",\"\",'Process Data Entry'!F66)","v":""},{"$f":"IF(Table4[BOD removed]=\"\",\"\",Table4[BOD removed]*_xlfn.DAYS(EOMONTH(Table4[[#This Row],[Column2]],0),EOMONTH(Table4[[#This Row],[Column2]],-1)))","v":""},{"$f":"IF(SUM('Energy Data Entry'!C85,'Energy Data Entry'!H85,'Energy Data Entry'!M85,'Energy Data Entry'!R85,'Energy Data Entry'!W85)=0,\"\",SUM('Energy Data Entry'!C85,'Energy Data Entry'!H85,'Energy Data Entry'!M85,'Energy Data Entry'!R85,'Energy Data Entry'!W85))","v":""},{"$f":"'Energy Data Entry'!AG85","v":0},{"$f":"IF(Table4[[#This Row],[Electric kWh usage]]=\"\",\"\",Table4[[#This Row],[Gas kWh usage]]+Table4[[#This Row],[Electric kWh usage]])","v":""},{"$f":"IF(OR(Table4[[#This Row],[Electric kWh usage]]=\"\",Table4[[#This Row],[Monthly Flow]]=\"\"),\"\",(Table4[[#This Row],[Electric kWh usage]]+Table4[[#This Row],[Gas kWh usage]])/Table4[[#This Row],[Monthly Flow]])","v":""},{"$f":"IFERROR(IF(Table4[[#This Row],[Electric kWh usage]]=\"\",\"\",(Table4[[#This Row],[Electric kWh usage]]+Table4[[#This Row],[Gas kWh usage]])/Table4[[#This Row],[Total BOD removed]]),\"\")","v":""},{"$f":"IF('Energy Data Entry'!E85+'Energy Data Entry'!J85+'Energy Data Entry'!O85+'Energy Data Entry'!T85+'Energy Data Entry'!Y85=0,\"\",'Energy Data Entry'!E85+'Energy Data Entry'!J85+'Energy Data Entry'!O85+'Energy Data Entry'!T85+'Energy Data Entry'!Y85)","v":""},{"$f":"IF('Energy Data Entry'!F85+'Energy Data Entry'!K85+'Energy Data Entry'!P85++'Energy Data Entry'!U85+'Energy Data Entry'!Z85=0,\"\",'Energy Data Entry'!F85+'Energy Data Entry'!K85+'Energy Data Entry'!P85++'Energy Data Entry'!U85+'Energy Data Entry'!Z85)","v":""},{"$f":"IF('Energy Data Entry'!G85+'Energy Data Entry'!L85+'Energy Data Entry'!Q85+'Energy Data Entry'!V85+'Energy Data Entry'!AA85=0,\"\",'Energy Data Entry'!G85+'Energy Data Entry'!L85+'Energy Data Entry'!Q85+'Energy Data Entry'!V85+'Energy Data Entry'!AA85)","v":""},{"$f":"IF('Energy Data Entry'!D85+'Energy Data Entry'!I85+'Energy Data Entry'!N85+'Energy Data Entry'!S85+'Energy Data Entry'!X85=0,\"\",'Energy Data Entry'!D85+'Energy Data Entry'!I85+'Energy Data Entry'!N85+'Energy Data Entry'!S85+'Energy Data Entry'!X85)","v":""},{"$f":"'Energy Data Entry'!AF85","v":0},{"$f":"IFERROR(Table4[[#This Row],[Total electric cost]]/Table4[[#This Row],[Electric kWh usage]],\"\")","v":""},{"$f":"IFERROR(Table4[[#This Row],[Electric Demand Cost]]/Table4[[#This Row],[Total Electric Demand (Billed)]],IFERROR(Table4[[#This Row],[Electric Demand Cost]]/Table4[[#This Row],[Total Electric Demand (Actual)]],\"\"))","v":""},{"$f":"IFERROR(Table4[[#This Row],[Total Gas cost]]+Table4[[#This Row],[Total electric cost]],\"\")","v":""},null,{"$f":"IFERROR(Table4[[#This Row],[Total Energy Cost]]/Table4[[#This Row],[Monthly Flow]],\"\")","v":""},{"$f":"IFERROR(Table4[[#This Row],[Total Energy Cost]]/Table4[[#This Row],[Total BOD removed]],\"\")","v":""},null,{"$f":"IF('Process Data Entry'!G66=\"\",\"\",'Process Data Entry'!G66)","v":""},{"$f":"IF('Process Data Entry'!H66=\"\",\"\",'Process Data Entry'!H66)","v":""},{"$f":"IF('Process Data Entry'!I66=\"\",0,'Process Data Entry'!I66)","v":0},{"$f":"IF('Process Data Entry'!J66=\"\",\"\",'Process Data Entry'!J66)","v":""},{"$f":"IF('Process Data Entry'!K66=\"\",\"\",'Process Data Entry'!K66)","v":""},{"$f":"IF('Process Data Entry'!L66=\"\",\"\",'Process Data Entry'!L66)","v":""},"","",{"$f":"IF('Process Data Entry'!M66=\"\",\"\",'Process Data Entry'!M66)","v":""},{"$f":"IF('Process Data Entry'!N66=\"\",\"\",'Process Data Entry'!N66)","v":""},""]
[6,{"$f":"'Energy Data Entry'!B86","v":"2022-09-01"},{"$f":"IF(OR('Process Data Entry'!C67=\"\",'Process Data Entry'!C67=0),\"\",'Process Data Entry'!C67)","v":""},{"$f":"IF(Table4[Avg Daily Flow]=\"\",\"\",_xlfn.DAYS(EOMONTH(B65,0),EOMONTH(B65,-1))*C65)","v":""},{"$f":"IF('Process Data Entry'!F67=\"\",\"\",'Process Data Entry'!F67)","v":""},{"$f":"IF(Table4[BOD removed]=\"\",\"\",Table4[BOD removed]*_xlfn.DAYS(EOMONTH(Table4[[#This Row],[Column2]],0),EOMONTH(Table4[[#This Row],[Column2]],-1)))","v":""},{"$f":"IF(SUM('Energy Data Entry'!C86,'Energy Data Entry'!H86,'Energy Data Entry'!M86,'Energy Data Entry'!R86,'Energy Data Entry'!W86)=0,\"\",SUM('Energy Data Entry'!C86,'Energy Data Entry'!H86,'Energy Data Entry'!M86,'Energy Data Entry'!R86,'Energy Data Entry'!W86))","v":""},{"$f":"'Energy Data Entry'!AG86","v":0},{"$f":"IF(Table4[[#This Row],[Electric kWh usage]]=\"\",\"\",Table4[[#This Row],[Gas kWh usage]]+Table4[[#This Row],[Electric kWh usage]])","v":""},{"$f":"IF(OR(Table4[[#This Row],[Electric kWh usage]]=\"\",Table4[[#This Row],[Monthly Flow]]=\"\"),\"\",(Table4[[#This Row],[Electric kWh usage]]+Table4[[#This Row],[Gas kWh usage]])/Table4[[#This Row],[Monthly Flow]])","v":""},{"$f":"IFERROR(IF(Table4[[#This Row],[Electric kWh usage]]=\"\",\"\",(Table4[[#This Row],[Electric kWh usage]]+Table4[[#This Row],[Gas kWh usage]])/Table4[[#This Row],[Total BOD removed]]),\"\")","v":""},{"$f":"IF('Energy Data Entry'!E86+'Energy Data Entry'!J86+'Energy Data Entry'!O86+'Energy Data Entry'!T86+'Energy Data Entry'!Y86=0,\"\",'Energy Data Entry'!E86+'Energy Data Entry'!J86+'Energy Data Entry'!O86+'Energy Data Entry'!T86+'Energy Data Entry'!Y86)","v":""},{"$f":"IF('Energy Data Entry'!F86+'Energy Data Entry'!K86+'Energy Data Entry'!P86++'Energy Data Entry'!U86+'Energy Data Entry'!Z86=0,\"\",'Energy Data Entry'!F86+'Energy Data Entry'!K86+'Energy Data Entry'!P86++'Energy Data Entry'!U86+'Energy Data Entry'!Z86)","v":""},{"$f":"IF('Energy Data Entry'!G86+'Energy Data Entry'!L86+'Energy Data Entry'!Q86+'Energy Data Entry'!V86+'Energy Data Entry'!AA86=0,\"\",'Energy Data Entry'!G86+'Energy Data Entry'!L86+'Energy Data Entry'!Q86+'Energy Data Entry'!V86+'Energy Data Entry'!AA86)","v":""},{"$f":"IF('Energy Data Entry'!D86+'Energy Data Entry'!I86+'Energy Data Entry'!N86+'Energy Data Entry'!S86+'Energy Data Entry'!X86=0,\"\",'Energy Data Entry'!D86+'Energy Data Entry'!I86+'Energy Data Entry'!N86+'Energy Data Entry'!S86+'Energy Data Entry'!X86)","v":""},{"$f":"'Energy Data Entry'!AF86","v":0},{"$f":"IFERROR(Table4[[#This Row],[Total electric cost]]/Table4[[#This Row],[Electric kWh usage]],\"\")","v":""},{"$f":"IFERROR(Table4[[#This Row],[Electric Demand Cost]]/Table4[[#This Row],[Total Electric Demand (Billed)]],IFERROR(Table4[[#This Row],[Electric Demand Cost]]/Table4[[#This Row],[Total Electric Demand (Actual)]],\"\"))","v":""},{"$f":"IFERROR(Table4[[#This Row],[Total Gas cost]]+Table4[[#This Row],[Total electric cost]],\"\")","v":""},null,{"$f":"IFERROR(Table4[[#This Row],[Total Energy Cost]]/Table4[[#This Row],[Monthly Flow]],\"\")","v":""},{"$f":"IFERROR(Table4[[#This Row],[Total Energy Cost]]/Table4[[#This Row],[Total BOD removed]],\"\")","v":""},null,{"$f":"IF('Process Data Entry'!G67=\"\",\"\",'Process Data Entry'!G67)","v":""},{"$f":"IF('Process Data Entry'!H67=\"\",\"\",'Process Data Entry'!H67)","v":""},{"$f":"IF('Process Data Entry'!I67=\"\",0,'Process Data Entry'!I67)","v":0},{"$f":"IF('Process Data Entry'!J67=\"\",\"\",'Process Data Entry'!J67)","v":""},{"$f":"IF('Process Data Entry'!K67=\"\",\"\",'Process Data Entry'!K67)","v":""},{"$f":"IF('Process Data Entry'!L67=\"\",\"\",'Process Data Entry'!L67)","v":""},"","",{"$f":"IF('Process Data Entry'!M67=\"\",\"\",'Process Data Entry'!M67)","v":""},{"$f":"IF('Process Data Entry'!N67=\"\",\"\",'Process Data Entry'!N67)","v":""},""]
[6,{"$f":"'Energy Data Entry'!B87","v":"2022-10-01"},{"$f":"IF(OR('Process Data Entry'!C68=\"\",'Process Data Entry'!C68=0),\"\",'Process Data Entry'!C68)","v":""},{"$f":"IF(Table4[Avg Daily Flow]=\"\",\"\",_xlfn.DAYS(EOMONTH(B66,0),EOMONTH(B66,-1))*C66)","v":""},{"$f":"IF('Process Data Entry'!F68=\"\",\"\",'Process Data Entry'!F68)","v":""},{"$f":"IF(Table4[BOD removed]=\"\",\"\",Table4[BOD removed]*_xlfn.DAYS(EOMONTH(Table4[[#This Row],[Column2]],0),EOMONTH(Table4[[#This Row],[Column2]],-1)))","v":""},{"$f":"IF(SUM('Energy Data Entry'!C87,'Energy Data Entry'!H87,'Energy Data Entry'!M87,'Energy Data Entry'!R87,'Energy Data Entry'!W87)=0,\"\",SUM('Energy Data Entry'!C87,'Energy Data Entry'!H87,'Energy Data Entry'!M87,'Energy Data Entry'!R87,'Energy Data Entry'!W87))","v":""},{"$f":"'Energy Data Entry'!AG87","v":0},{"$f":"IF(Table4[[#This Row],[Electric kWh usage]]=\"\",\"\",Table4[[#This Row],[Gas kWh usage]]+Table4[[#This Row],[Electric kWh usage]])","v":""},{"$f":"IF(OR(Table4[[#This Row],[Electric kWh usage]]=\"\",Table4[[#This Row],[Monthly Flow]]=\"\"),\"\",(Table4[[#This Row],[Electric kWh usage]]+Table4[[#This Row],[Gas kWh usage]])/Table4[[#This Row],[Monthly Flow]])","v":""},{"$f":"IFERROR(IF(Table4[[#This Row],[Electric kWh usage]]=\"\",\"\",(Table4[[#This Row],[Electric kWh usage]]+Table4[[#This Row],[Gas kWh usage]])/Table4[[#This Row],[Total BOD removed]]),\"\")","v":""},{"$f":"IF('Energy Data Entry'!E87+'Energy Data Entry'!J87+'Energy Data Entry'!O87+'Energy Data Entry'!T87+'Energy Data Entry'!Y87=0,\"\",'Energy Data Entry'!E87+'Energy Data Entry'!J87+'Energy Data Entry'!O87+'Energy Data Entry'!T87+'Energy Data Entry'!Y87)","v":""},{"$f":"IF('Energy Data Entry'!F87+'Energy Data Entry'!K87+'Energy Data Entry'!P87++'Energy Data Entry'!U87+'Energy Data Entry'!Z87=0,\"\",'Energy Data Entry'!F87+'Energy Data Entry'!K87+'Energy Data Entry'!P87++'Energy Data Entry'!U87+'Energy Data Entry'!Z87)","v":""},{"$f":"IF('Energy Data Entry'!G87+'Energy Data Entry'!L87+'Energy Data Entry'!Q87+'Energy Data Entry'!V87+'Energy Data Entry'!AA87=0,\"\",'Energy Data Entry'!G87+'Energy Data Entry'!L87+'Energy Data Entry'!Q87+'Energy Data Entry'!V87+'Energy Data Entry'!AA87)","v":""},{"$f":"IF('Energy Data Entry'!D87+'Energy Data Entry'!I87+'Energy Data Entry'!N87+'Energy Data Entry'!S87+'Energy Data Entry'!X87=0,\"\",'Energy Data Entry'!D87+'Energy Data Entry'!I87+'Energy Data Entry'!N87+'Energy Data Entry'!S87+'Energy Data Entry'!X87)","v":""},{"$f":"'Energy Data Entry'!AF87","v":0},{"$f":"IFERROR(Table4[[#This Row],[Total electric cost]]/Table4[[#This Row],[Electric kWh usage]],\"\")","v":""},{"$f":"IFERROR(Table4[[#This Row],[Electric Demand Cost]]/Table4[[#This Row],[Total Electric Demand (Billed)]],IFERROR(Table4[[#This Row],[Electric Demand Cost]]/Table4[[#This Row],[Total Electric Demand (Actual)]],\"\"))","v":""},{"$f":"IFERROR(Table4[[#This Row],[Total Gas cost]]+Table4[[#This Row],[Total electric cost]],\"\")","v":""},null,{"$f":"IFERROR(Table4[[#This Row],[Total Energy Cost]]/Table4[[#This Row],[Monthly Flow]],\"\")","v":""},{"$f":"IFERROR(Table4[[#This Row],[Total Energy Cost]]/Table4[[#This Row],[Total BOD removed]],\"\")","v":""},null,{"$f":"IF('Process Data Entry'!G68=\"\",\"\",'Process Data Entry'!G68)","v":""},{"$f":"IF('Process Data Entry'!H68=\"\",\"\",'Process Data Entry'!H68)","v":""},{"$f":"IF('Process Data Entry'!I68=\"\",0,'Process Data Entry'!I68)","v":0},{"$f":"IF('Process Data Entry'!J68=\"\",\"\",'Process Data Entry'!J68)","v":""},{"$f":"IF('Process Data Entry'!K68=\"\",\"\",'Process Data Entry'!K68)","v":""},{"$f":"IF('Process Data Entry'!L68=\"\",\"\",'Process Data Entry'!L68)","v":""},"","",{"$f":"IF('Process Data Entry'!M68=\"\",\"\",'Process Data Entry'!M68)","v":""},{"$f":"IF('Process Data Entry'!N68=\"\",\"\",'Process Data Entry'!N68)","v":""},""]
[6,{"$f":"'Energy Data Entry'!B88","v":"2022-11-01"},{"$f":"IF(OR('Process Data Entry'!C69=\"\",'Process Data Entry'!C69=0),\"\",'Process Data Entry'!C69)","v":""},{"$f":"IF(Table4[Avg Daily Flow]=\"\",\"\",_xlfn.DAYS(EOMONTH(B67,0),EOMONTH(B67,-1))*C67)","v":""},{"$f":"IF('Process Data Entry'!F69=\"\",\"\",'Process Data Entry'!F69)","v":""},{"$f":"IF(Table4[BOD removed]=\"\",\"\",Table4[BOD removed]*_xlfn.DAYS(EOMONTH(Table4[[#This Row],[Column2]],0),EOMONTH(Table4[[#This Row],[Column2]],-1)))","v":""},{"$f":"IF(SUM('Energy Data Entry'!C88,'Energy Data Entry'!H88,'Energy Data Entry'!M88,'Energy Data Entry'!R88,'Energy Data Entry'!W88)=0,\"\",SUM('Energy Data Entry'!C88,'Energy Data Entry'!H88,'Energy Data Entry'!M88,'Energy Data Entry'!R88,'Energy Data Entry'!W88))","v":""},{"$f":"'Energy Data Entry'!AG88","v":0},{"$f":"IF(Table4[[#This Row],[Electric kWh usage]]=\"\",\"\",Table4[[#This Row],[Gas kWh usage]]+Table4[[#This Row],[Electric kWh usage]])","v":""},{"$f":"IF(OR(Table4[[#This Row],[Electric kWh usage]]=\"\",Table4[[#This Row],[Monthly Flow]]=\"\"),\"\",(Table4[[#This Row],[Electric kWh usage]]+Table4[[#This Row],[Gas kWh usage]])/Table4[[#This Row],[Monthly Flow]])","v":""},{"$f":"IFERROR(IF(Table4[[#This Row],[Electric kWh usage]]=\"\",\"\",(Table4[[#This Row],[Electric kWh usage]]+Table4[[#This Row],[Gas kWh usage]])/Table4[[#This Row],[Total BOD removed]]),\"\")","v":""},{"$f":"IF('Energy Data Entry'!E88+'Energy Data Entry'!J88+'Energy Data Entry'!O88+'Energy Data Entry'!T88+'Energy Data Entry'!Y88=0,\"\",'Energy Data Entry'!E88+'Energy Data Entry'!J88+'Energy Data Entry'!O88+'Energy Data Entry'!T88+'Energy Data Entry'!Y88)","v":""},{"$f":"IF('Energy Data Entry'!F88+'Energy Data Entry'!K88+'Energy Data Entry'!P88++'Energy Data Entry'!U88+'Energy Data Entry'!Z88=0,\"\",'Energy Data Entry'!F88+'Energy Data Entry'!K88+'Energy Data Entry'!P88++'Energy Data Entry'!U88+'Energy Data Entry'!Z88)","v":""},{"$f":"IF('Energy Data Entry'!G88+'Energy Data Entry'!L88+'Energy Data Entry'!Q88+'Energy Data Entry'!V88+'Energy Data Entry'!AA88=0,\"\",'Energy Data Entry'!G88+'Energy Data Entry'!L88+'Energy Data Entry'!Q88+'Energy Data Entry'!V88+'Energy Data Entry'!AA88)","v":""},{"$f":"IF('Energy Data Entry'!D88+'Energy Data Entry'!I88+'Energy Data Entry'!N88+'Energy Data Entry'!S88+'Energy Data Entry'!X88=0,\"\",'Energy Data Entry'!D88+'Energy Data Entry'!I88+'Energy Data Entry'!N88+'Energy Data Entry'!S88+'Energy Data Entry'!X88)","v":""},{"$f":"'Energy Data Entry'!AF88","v":0},{"$f":"IFERROR(Table4[[#This Row],[Total electric cost]]/Table4[[#This Row],[Electric kWh usage]],\"\")","v":""},{"$f":"IFERROR(Table4[[#This Row],[Electric Demand Cost]]/Table4[[#This Row],[Total Electric Demand (Billed)]],IFERROR(Table4[[#This Row],[Electric Demand Cost]]/Table4[[#This Row],[Total Electric Demand (Actual)]],\"\"))","v":""},{"$f":"IFERROR(Table4[[#This Row],[Total Gas cost]]+Table4[[#This Row],[Total electric cost]],\"\")","v":""},null,{"$f":"IFERROR(Table4[[#This Row],[Total Energy Cost]]/Table4[[#This Row],[Monthly Flow]],\"\")","v":""},{"$f":"IFERROR(Table4[[#This Row],[Total Energy Cost]]/Table4[[#This Row],[Total BOD removed]],\"\")","v":""},null,{"$f":"IF('Process Data Entry'!G69=\"\",\"\",'Process Data Entry'!G69)","v":""},{"$f":"IF('Process Data Entry'!H69=\"\",\"\",'Process Data Entry'!H69)","v":""},{"$f":"IF('Process Data Entry'!I69=\"\",0,'Process Data Entry'!I69)","v":0},{"$f":"IF('Process Data Entry'!J69=\"\",\"\",'Process Data Entry'!J69)","v":""},{"$f":"IF('Process Data Entry'!K69=\"\",\"\",'Process Data Entry'!K69)","v":""},{"$f":"IF('Process Data Entry'!L69=\"\",\"\",'Process Data Entry'!L69)","v":""},"","",{"$f":"IF('Process Data Entry'!M69=\"\",\"\",'Process Data Entry'!M69)","v":""},{"$f":"IF('Process Data Entry'!N69=\"\",\"\",'Process Data Entry'!N69)","v":""},""]
[6,{"$f":"'Energy Data Entry'!B89","v":"2022-12-01"},{"$f":"IF(OR('Process Data Entry'!C70=\"\",'Process Data Entry'!C70=0),\"\",'Process Data Entry'!C70)","v":""},{"$f":"IF(Table4[Avg Daily Flow]=\"\",\"\",_xlfn.DAYS(EOMONTH(B68,0),EOMONTH(B68,-1))*C68)","v":""},{"$f":"IF('Process Data Entry'!F70=\"\",\"\",'Process Data Entry'!F70)","v":""},{"$f":"IF(Table4[BOD removed]=\"\",\"\",Table4[BOD removed]*_xlfn.DAYS(EOMONTH(Table4[[#This Row],[Column2]],0),EOMONTH(Table4[[#This Row],[Column2]],-1)))","v":""},{"$f":"IF(SUM('Energy Data Entry'!C89,'Energy Data Entry'!H89,'Energy Data Entry'!M89,'Energy Data Entry'!R89,'Energy Data Entry'!W89)=0,\"\",SUM('Energy Data Entry'!C89,'Energy Data Entry'!H89,'Energy Data Entry'!M89,'Energy Data Entry'!R89,'Energy Data Entry'!W89))","v":""},{"$f":"'Energy Data Entry'!AG89","v":0},{"$f":"IF(Table4[[#This Row],[Electric kWh usage]]=\"\",\"\",Table4[[#This Row],[Gas kWh usage]]+Table4[[#This Row],[Electric kWh usage]])","v":""},{"$f":"IF(OR(Table4[[#This Row],[Electric kWh usage]]=\"\",Table4[[#This Row],[Monthly Flow]]=\"\"),\"\",(Table4[[#This Row],[Electric kWh usage]]+Table4[[#This Row],[Gas kWh usage]])/Table4[[#This Row],[Monthly Flow]])","v":""},{"$f":"IFERROR(IF(Table4[[#This Row],[Electric kWh usage]]=\"\",\"\",(Table4[[#This Row],[Electric kWh usage]]+Table4[[#This Row],[Gas kWh usage]])/Table4[[#This Row],[Total BOD removed]]),\"\")","v":""},{"$f":"IF('Energy Data Entry'!E89+'Energy Data Entry'!J89+'Energy Data Entry'!O89+'Energy Data Entry'!T89+'Energy Data Entry'!Y89=0,\"\",'Energy Data Entry'!E89+'Energy Data Entry'!J89+'Energy Data Entry'!O89+'Energy Data Entry'!T89+'Energy Data Entry'!Y89)","v":""},{"$f":"IF('Energy Data Entry'!F89+'Energy Data Entry'!K89+'Energy Data Entry'!P89++'Energy Data Entry'!U89+'Energy Data Entry'!Z89=0,\"\",'Energy Data Entry'!F89+'Energy Data Entry'!K89+'Energy Data Entry'!P89++'Energy Data Entry'!U89+'Energy Data Entry'!Z89)","v":""},{"$f":"IF('Energy Data Entry'!G89+'Energy Data Entry'!L89+'Energy Data Entry'!Q89+'Energy Data Entry'!V89+'Energy Data Entry'!AA89=0,\"\",'Energy Data Entry'!G89+'Energy Data Entry'!L89+'Energy Data Entry'!Q89+'Energy Data Entry'!V89+'Energy Data Entry'!AA89)","v":""},{"$f":"IF('Energy Data Entry'!D89+'Energy Data Entry'!I89+'Energy Data Entry'!N89+'Energy Data Entry'!S89+'Energy Data Entry'!X89=0,\"\",'Energy Data Entry'!D89+'Energy Data Entry'!I89+'Energy Data Entry'!N89+'Energy Data Entry'!S89+'Energy Data Entry'!X89)","v":""},{"$f":"'Energy Data Entry'!AF89","v":0},{"$f":"IFERROR(Table4[[#This Row],[Total electric cost]]/Table4[[#This Row],[Electric kWh usage]],\"\")","v":""},{"$f":"IFERROR(Table4[[#This Row],[Electric Demand Cost]]/Table4[[#This Row],[Total Electric Demand (Billed)]],IFERROR(Table4[[#This Row],[Electric Demand Cost]]/Table4[[#This Row],[Total Electric Demand (Actual)]],\"\"))","v":""},{"$f":"IFERROR(Table4[[#This Row],[Total Gas cost]]+Table4[[#This Row],[Total electric cost]],\"\")","v":""},null,{"$f":"IFERROR(Table4[[#This Row],[Total Energy Cost]]/Table4[[#This Row],[Monthly Flow]],\"\")","v":""},{"$f":"IFERROR(Table4[[#This Row],[Total Energy Cost]]/Table4[[#This Row],[Total BOD removed]],\"\")","v":""},null,{"$f":"IF('Process Data Entry'!G70=\"\",\"\",'Process Data Entry'!G70)","v":""},{"$f":"IF('Process Data Entry'!H70=\"\",\"\",'Process Data Entry'!H70)","v":""},{"$f":"IF('Process Data Entry'!I70=\"\",0,'Process Data Entry'!I70)","v":0},{"$f":"IF('Process Data Entry'!J70=\"\",\"\",'Process Data Entry'!J70)","v":""},{"$f":"IF('Process Data Entry'!K70=\"\",\"\",'Process Data Entry'!K70)","v":""},{"$f":"IF('Process Data Entry'!L70=\"\",\"\",'Process Data Entry'!L70)","v":""},{"$f":"IFERROR(IF(OR(X68=\"\",AC68=\"\",AND(AA68=\"\",AB68=\"\"),((X68+Z68)-(MAX(AA68,AB68)+AC68))<0),\"\",(X68+Z68)-(MAX(AA68,AB68)+AC68)),\"\")","v":""},{"$f":"IF(OR(AD68=\"\",D68=\"\"),\"\",AD68*D68*8.34)","v":""},{"$f":"IF('Process Data Entry'!M70=\"\",\"\",'Process Data Entry'!M70)","v":""},{"$f":"IF('Process Data Entry'!N70=\"\",\"\",'Process Data Entry'!N70)","v":""},{"$f":"IF(OR(AF68=\"\",AG68=\"\",D68=\"\"),\"\",8.34*D68*(AF68-AG68))","v":""}]
[6,{"$f":"'Energy Data Entry'!B90","v":"2023-01-01"},{"$f":"IF(OR('Process Data Entry'!C71=\"\",'Process Data Entry'!C71=0),\"\",'Process Data Entry'!C71)","v":""},{"$f":"IF(Table4[Avg Daily Flow]=\"\",\"\",_xlfn.DAYS(EOMONTH(B69,0),EOMONTH(B69,-1))*C69)","v":""},{"$f":"IF('Process Data Entry'!F71=\"\",\"\",'Process Data Entry'!F71)","v":""},{"$f":"IF(Table4[BOD removed]=\"\",\"\",Table4[BOD removed]*_xlfn.DAYS(EOMONTH(Table4[[#This Row],[Column2]],0),EOMONTH(Table4[[#This Row],[Column2]],-1)))","v":""},{"$f":"IF(SUM('Energy Data Entry'!C90,'Energy Data Entry'!H90,'Energy Data Entry'!M90,'Energy Data Entry'!R90,'Energy Data Entry'!W90)=0,\"\",SUM('Energy Data Entry'!C90,'Energy Data Entry'!H90,'Energy Data Entry'!M90,'Energy Data Entry'!R90,'Energy Data Entry'!W90))","v":""},{"$f":"'Energy Data Entry'!AG90","v":0},{"$f":"IF(Table4[[#This Row],[Electric kWh usage]]=\"\",\"\",Table4[[#This Row],[Gas kWh usage]]+Table4[[#This Row],[Electric kWh usage]])","v":""},{"$f":"IF(OR(Table4[[#This Row],[Electric kWh usage]]=\"\",Table4[[#This Row],[Monthly Flow]]=\"\"),\"\",(Table4[[#This Row],[Electric kWh usage]]+Table4[[#This Row],[Gas kWh usage]])/Table4[[#This Row],[Monthly Flow]])","v":""},{"$f":"IFERROR(IF(Table4[[#This Row],[Electric kWh usage]]=\"\",\"\",(Table4[[#This Row],[Electric kWh usage]]+Table4[[#This Row],[Gas kWh usage]])/Table4[[#This Row],[Total BOD removed]]),\"\")","v":""},{"$f":"IF('Energy Data Entry'!E90+'Energy Data Entry'!J90+'Energy Data Entry'!O90+'Energy Data Entry'!T90+'Energy Data Entry'!Y90=0,\"\",'Energy Data Entry'!E90+'Energy Data Entry'!J90+'Energy Data Entry'!O90+'Energy Data Entry'!T90+'Energy Data Entry'!Y90)","v":""},{"$f":"IF('Energy Data Entry'!F90+'Energy Data Entry'!K90+'Energy Data Entry'!P90++'Energy Data Entry'!U90+'Energy Data Entry'!Z90=0,\"\",'Energy Data Entry'!F90+'Energy Data Entry'!K90+'Energy Data Entry'!P90++'Energy Data Entry'!U90+'Energy Data Entry'!Z90)","v":""},{"$f":"IF('Energy Data Entry'!G90+'Energy Data Entry'!L90+'Energy Data Entry'!Q90+'Energy Data Entry'!V90+'Energy Data Entry'!AA90=0,\"\",'Energy Data Entry'!G90+'Energy Data Entry'!L90+'Energy Data Entry'!Q90+'Energy Data Entry'!V90+'Energy Data Entry'!AA90)","v":""},{"$f":"IF('Energy Data Entry'!D90+'Energy Data Entry'!I90+'Energy Data Entry'!N90+'Energy Data Entry'!S90+'Energy Data Entry'!X90=0,\"\",'Energy Data Entry'!D90+'Energy Data Entry'!I90+'Energy Data Entry'!N90+'Energy Data Entry'!S90+'Energy Data Entry'!X90)","v":""},{"$f":"'Energy Data Entry'!AF90","v":0},{"$f":"IFERROR(Table4[[#This Row],[Total electric cost]]/Table4[[#This Row],[Electric kWh usage]],\"\")","v":""},{"$f":"IFERROR(Table4[[#This Row],[Electric Demand Cost]]/Table4[[#This Row],[Total Electric Demand (Billed)]],IFERROR(Table4[[#This Row],[Electric Demand Cost]]/Table4[[#This Row],[Total Electric Demand (Actual)]],\"\"))","v":""},{"$f":"IFERROR(Table4[[#This Row],[Total Gas cost]]+Table4[[#This Row],[Total electric cost]],\"\")","v":""},null,{"$f":"IFERROR(Table4[[#This Row],[Total Energy Cost]]/Table4[[#This Row],[Monthly Flow]],\"\")","v":""},{"$f":"IFERROR(Table4[[#This Row],[Total Energy Cost]]/Table4[[#This Row],[Total BOD removed]],\"\")","v":""},null,{"$f":"IF('Process Data Entry'!G71=\"\",\"\",'Process Data Entry'!G71)","v":""},{"$f":"IF('Process Data Entry'!H71=\"\",\"\",'Process Data Entry'!H71)","v":""},{"$f":"IF('Process Data Entry'!I71=\"\",0,'Process Data Entry'!I71)","v":0},{"$f":"IF('Process Data Entry'!J71=\"\",\"\",'Process Data Entry'!J71)","v":""},{"$f":"IF('Process Data Entry'!K71=\"\",\"\",'Process Data Entry'!K71)","v":""},{"$f":"IF('Process Data Entry'!L71=\"\",\"\",'Process Data Entry'!L71)","v":""},"","",{"$f":"IF('Process Data Entry'!M71=\"\",\"\",'Process Data Entry'!M71)","v":""},{"$f":"IF('Process Data Entry'!N71=\"\",\"\",'Process Data Entry'!N71)","v":""},""]
[6,{"$f":"'Energy Data Entry'!B91","v":"2023-02-01"},{"$f":"IF(OR('Process Data Entry'!C72=\"\",'Process Data Entry'!C72=0),\"\",'Process Data Entry'!C72)","v":""},{"$f":"IF(Table4[Avg Daily Flow]=\"\",\"\",_xlfn.DAYS(EOMONTH(B70,0),EOMONTH(B70,-1))*C70)","v":""},{"$f":"IF('Process Data Entry'!F72=\"\",\"\",'Process Data Entry'!F72)","v":""},{"$f":"IF(Table4[BOD removed]=\"\",\"\",Table4[BOD removed]*_xlfn.DAYS(EOMONTH(Table4[[#This Row],[Column2]],0),EOMONTH(Table4[[#This Row],[Column2]],-1)))","v":""},{"$f":"IF(SUM('Energy Data Entry'!C91,'Energy Data Entry'!H91,'Energy Data Entry'!M91,'Energy Data Entry'!R91,'Energy Data Entry'!W91)=0,\"\",SUM('Energy Data Entry'!C91,'Energy Data Entry'!H91,'Energy Data Entry'!M91,'Energy Data Entry'!R91,'Energy Data Entry'!W91))","v":""},{"$f":"'Energy Data Entry'!AG91","v":0},{"$f":"IF(Table4[[#This Row],[Electric kWh usage]]=\"\",\"\",Table4[[#This Row],[Gas kWh usage]]+Table4[[#This Row],[Electric kWh usage]])","v":""},{"$f":"IF(OR(Table4[[#This Row],[Electric kWh usage]]=\"\",Table4[[#This Row],[Monthly Flow]]=\"\"),\"\",(Table4[[#This Row],[Electric kWh usage]]+Table4[[#This Row],[Gas kWh usage]])/Table4[[#This Row],[Monthly Flow]])","v":""},{"$f":"IFERROR(IF(Table4[[#This Row],[Electric kWh usage]]=\"\",\"\",(Table4[[#This Row],[Electric kWh usage]]+Table4[[#This Row],[Gas kWh usage]])/Table4[[#This Row],[Total BOD removed]]),\"\")","v":""},{"$f":"IF('Energy Data Entry'!E91+'Energy Data Entry'!J91+'Energy Data Entry'!O91+'Energy Data Entry'!T91+'Energy Data Entry'!Y91=0,\"\",'Energy Data Entry'!E91+'Energy Data Entry'!J91+'Energy Data Entry'!O91+'Energy Data Entry'!T91+'Energy Data Entry'!Y91)","v":""},{"$f":"IF('Energy Data Entry'!F91+'Energy Data Entry'!K91+'Energy Data Entry'!P91++'Energy Data Entry'!U91+'Energy Data Entry'!Z91=0,\"\",'Energy Data Entry'!F91+'Energy Data Entry'!K91+'Energy Data Entry'!P91++'Energy Data Entry'!U91+'Energy Data Entry'!Z91)","v":""},{"$f":"IF('Energy Data Entry'!G91+'Energy Data Entry'!L91+'Energy Data Entry'!Q91+'Energy Data Entry'!V91+'Energy Data Entry'!AA91=0,\"\",'Energy Data Entry'!G91+'Energy Data Entry'!L91+'Energy Data Entry'!Q91+'Energy Data Entry'!V91+'Energy Data Entry'!AA91)","v":""},{"$f":"IF('Energy Data Entry'!D91+'Energy Data Entry'!I91+'Energy Data Entry'!N91+'Energy Data Entry'!S91+'Energy Data Entry'!X91=0,\"\",'Energy Data Entry'!D91+'Energy Data Entry'!I91+'Energy Data Entry'!N91+'Energy Data Entry'!S91+'Energy Data Entry'!X91)","v":""},{"$f":"'Energy Data Entry'!AF91","v":0},{"$f":"IFERROR(Table4[[#This Row],[Total electric cost]]/Table4[[#This Row],[Electric kWh usage]],\"\")","v":""},{"$f":"IFERROR(Table4[[#This Row],[Electric Demand Cost]]/Table4[[#This Row],[Total Electric Demand (Billed)]],IFERROR(Table4[[#This Row],[Electric Demand Cost]]/Table4[[#This Row],[Total Electric Demand (Actual)]],\"\"))","v":""},{"$f":"IFERROR(Table4[[#This Row],[Total Gas cost]]+Table4[[#This Row],[Total electric cost]],\"\")","v":""},null,{"$f":"IFERROR(Table4[[#This Row],[Total Energy Cost]]/Table4[[#This Row],[Monthly Flow]],\"\")","v":""},{"$f":"IFERROR(Table4[[#This Row],[Total Energy Cost]]/Table4[[#This Row],[Total BOD removed]],\"\")","v":""},null,{"$f":"IF('Process Data Entry'!G72=\"\",\"\",'Process Data Entry'!G72)","v":""},{"$f":"IF('Process Data Entry'!H72=\"\",\"\",'Process Data Entry'!H72)","v":""},{"$f":"IF('Process Data Entry'!I72=\"\",0,'Process Data Entry'!I72)","v":0},{"$f":"IF('Process Data Entry'!J72=\"\",\"\",'Process Data Entry'!J72)","v":""},{"$f":"IF('Process Data Entry'!K72=\"\",\"\",'Process Data Entry'!K72)","v":""},{"$f":"IF('Process Data Entry'!L72=\"\",\"\",'Process Data Entry'!L72)","v":""},"","",{"$f":"IF('Process Data Entry'!M72=\"\",\"\",'Process Data Entry'!M72)","v":""},{"$f":"IF('Process Data Entry'!N72=\"\",\"\",'Process Data Entry'!N72)","v":""},""]
[6,{"$f":"'Energy Data Entry'!B92","v":"2023-03-01"},{"$f":"IF(OR('Process Data Entry'!C73=\"\",'Process Data Entry'!C73=0),\"\",'Process Data Entry'!C73)","v":""},{"$f":"IF(Table4[Avg Daily Flow]=\"\",\"\",_xlfn.DAYS(EOMONTH(B71,0),EOMONTH(B71,-1))*C71)","v":""},{"$f":"IF('Process Data Entry'!F73=\"\",\"\",'Process Data Entry'!F73)","v":""},{"$f":"IF(Table4[BOD removed]=\"\",\"\",Table4[BOD removed]*_xlfn.DAYS(EOMONTH(Table4[[#This Row],[Column2]],0),EOMONTH(Table4[[#This Row],[Column2]],-1)))","v":""},{"$f":"IF(SUM('Energy Data Entry'!C92,'Energy Data Entry'!H92,'Energy Data Entry'!M92,'Energy Data Entry'!R92,'Energy Data Entry'!W92)=0,\"\",SUM('Energy Data Entry'!C92,'Energy Data Entry'!H92,'Energy Data Entry'!M92,'Energy Data Entry'!R92,'Energy Data Entry'!W92))","v":""},{"$f":"'Energy Data Entry'!AG92","v":0},{"$f":"IF(Table4[[#This Row],[Electric kWh usage]]=\"\",\"\",Table4[[#This Row],[Gas kWh usage]]+Table4[[#This Row],[Electric kWh usage]])","v":""},{"$f":"IF(OR(Table4[[#This Row],[Electric kWh usage]]=\"\",Table4[[#This Row],[Monthly Flow]]=\"\"),\"\",(Table4[[#This Row],[Electric kWh usage]]+Table4[[#This Row],[Gas kWh usage]])/Table4[[#This Row],[Monthly Flow]])","v":""},{"$f":"IFERROR(IF(Table4[[#This Row],[Electric kWh usage]]=\"\",\"\",(Table4[[#This Row],[Electric kWh usage]]+Table4[[#This Row],[Gas kWh usage]])/Table4[[#This Row],[Total BOD removed]]),\"\")","v":""},{"$f":"IF('Energy Data Entry'!E92+'Energy Data Entry'!J92+'Energy Data Entry'!O92+'Energy Data Entry'!T92+'Energy Data Entry'!Y92=0,\"\",'Energy Data Entry'!E92+'Energy Data Entry'!J92+'Energy Data Entry'!O92+'Energy Data Entry'!T92+'Energy Data Entry'!Y92)","v":""},{"$f":"IF('Energy Data Entry'!F92+'Energy Data Entry'!K92+'Energy Data Entry'!P92++'Energy Data Entry'!U92+'Energy Data Entry'!Z92=0,\"\",'Energy Data Entry'!F92+'Energy Data Entry'!K92+'Energy Data Entry'!P92++'Energy Data Entry'!U92+'Energy Data Entry'!Z92)","v":""},{"$f":"IF('Energy Data Entry'!G92+'Energy Data Entry'!L92+'Energy Data Entry'!Q92+'Energy Data Entry'!V92+'Energy Data Entry'!AA92=0,\"\",'Energy Data Entry'!G92+'Energy Data Entry'!L92+'Energy Data Entry'!Q92+'Energy Data Entry'!V92+'Energy Data Entry'!AA92)","v":""},{"$f":"IF('Energy Data Entry'!D92+'Energy Data Entry'!I92+'Energy Data Entry'!N92+'Energy Data Entry'!S92+'Energy Data Entry'!X92=0,\"\",'Energy Data Entry'!D92+'Energy Data Entry'!I92+'Energy Data Entry'!N92+'Energy Data Entry'!S92+'Energy Data Entry'!X92)","v":""},{"$f":"'Energy Data Entry'!AF92","v":0},{"$f":"IFERROR(Table4[[#This Row],[Total electric cost]]/Table4[[#This Row],[Electric kWh usage]],\"\")","v":""},{"$f":"IFERROR(Table4[[#This Row],[Electric Demand Cost]]/Table4[[#This Row],[Total Electric Demand (Billed)]],IFERROR(Table4[[#This Row],[Electric Demand Cost]]/Table4[[#This Row],[Total Electric Demand (Actual)]],\"\"))","v":""},{"$f":"IFERROR(Table4[[#This Row],[Total Gas cost]]+Table4[[#This Row],[Total electric cost]],\"\")","v":""},null,{"$f":"IFERROR(Table4[[#This Row],[Total Energy Cost]]/Table4[[#This Row],[Monthly Flow]],\"\")","v":""},{"$f":"IFERROR(Table4[[#This Row],[Total Energy Cost]]/Table4[[#This Row],[Total BOD removed]],\"\")","v":""},null,{"$f":"IF('Process Data Entry'!G73=\"\",\"\",'Process Data Entry'!G73)","v":""},{"$f":"IF('Process Data Entry'!H73=\"\",\"\",'Process Data Entry'!H73)","v":""},{"$f":"IF('Process Data Entry'!I73=\"\",0,'Process Data Entry'!I73)","v":0},{"$f":"IF('Process Data Entry'!J73=\"\",\"\",'Process Data Entry'!J73)","v":""},{"$f":"IF('Process Data Entry'!K73=\"\",\"\",'Process Data Entry'!K73)","v":""},{"$f":"IF('Process Data Entry'!L73=\"\",\"\",'Process Data Entry'!L73)","v":""},"","",{"$f":"IF('Process Data Entry'!M73=\"\",\"\",'Process Data Entry'!M73)","v":""},{"$f":"IF('Process Data Entry'!N73=\"\",\"\",'Process Data Entry'!N73)","v":""},""]
[6,{"$f":"'Energy Data Entry'!B93","v":"2023-04-01"},{"$f":"IF(OR('Process Data Entry'!C74=\"\",'Process Data Entry'!C74=0),\"\",'Process Data Entry'!C74)","v":""},{"$f":"IF(Table4[Avg Daily Flow]=\"\",\"\",_xlfn.DAYS(EOMONTH(B72,0),EOMONTH(B72,-1))*C72)","v":""},{"$f":"IF('Process Data Entry'!F74=\"\",\"\",'Process Data Entry'!F74)","v":""},{"$f":"IF(Table4[BOD removed]=\"\",\"\",Table4[BOD removed]*_xlfn.DAYS(EOMONTH(Table4[[#This Row],[Column2]],0),EOMONTH(Table4[[#This Row],[Column2]],-1)))","v":""},{"$f":"IF(SUM('Energy Data Entry'!C93,'Energy Data Entry'!H93,'Energy Data Entry'!M93,'Energy Data Entry'!R93,'Energy Data Entry'!W93)=0,\"\",SUM('Energy Data Entry'!C93,'Energy Data Entry'!H93,'Energy Data Entry'!M93,'Energy Data Entry'!R93,'Energy Data Entry'!W93))","v":""},{"$f":"'Energy Data Entry'!AG93","v":0},{"$f":"IF(Table4[[#This Row],[Electric kWh usage]]=\"\",\"\",Table4[[#This Row],[Gas kWh usage]]+Table4[[#This Row],[Electric kWh usage]])","v":""},{"$f":"IF(OR(Table4[[#This Row],[Electric kWh usage]]=\"\",Table4[[#This Row],[Monthly Flow]]=\"\"),\"\",(Table4[[#This Row],[Electric kWh usage]]+Table4[[#This Row],[Gas kWh usage]])/Table4[[#This Row],[Monthly Flow]])","v":""},{"$f":"IFERROR(IF(Table4[[#This Row],[Electric kWh usage]]=\"\",\"\",(Table4[[#This Row],[Electric kWh usage]]+Table4[[#This Row],[Gas kWh usage]])/Table4[[#This Row],[Total BOD removed]]),\"\")","v":""},{"$f":"IF('Energy Data Entry'!E93+'Energy Data Entry'!J93+'Energy Data Entry'!O93+'Energy Data Entry'!T93+'Energy Data Entry'!Y93=0,\"\",'Energy Data Entry'!E93+'Energy Data Entry'!J93+'Energy Data Entry'!O93+'Energy Data Entry'!T93+'Energy Data Entry'!Y93)","v":""},{"$f":"IF('Energy Data Entry'!F93+'Energy Data Entry'!K93+'Energy Data Entry'!P93++'Energy Data Entry'!U93+'Energy Data Entry'!Z93=0,\"\",'Energy Data Entry'!F93+'Energy Data Entry'!K93+'Energy Data Entry'!P93++'Energy Data Entry'!U93+'Energy Data Entry'!Z93)","v":""},{"$f":"IF('Energy Data Entry'!G93+'Energy Data Entry'!L93+'Energy Data Entry'!Q93+'Energy Data Entry'!V93+'Energy Data Entry'!AA93=0,\"\",'Energy Data Entry'!G93+'Energy Data Entry'!L93+'Energy Data Entry'!Q93+'Energy Data Entry'!V93+'Energy Data Entry'!AA93)","v":""},{"$f":"IF('Energy Data Entry'!D93+'Energy Data Entry'!I93+'Energy Data Entry'!N93+'Energy Data Entry'!S93+'Energy Data Entry'!X93=0,\"\",'Energy Data Entry'!D93+'Energy Data Entry'!I93+'Energy Data Entry'!N93+'Energy Data Entry'!S93+'Energy Data Entry'!X93)","v":""},{"$f":"'Energy Data Entry'!AF93","v":0},{"$f":"IFERROR(Table4[[#This Row],[Total electric cost]]/Table4[[#This Row],[Electric kWh usage]],\"\")","v":""},{"$f":"IFERROR(Table4[[#This Row],[Electric Demand Cost]]/Table4[[#This Row],[Total Electric Demand (Billed)]],IFERROR(Table4[[#This Row],[Electric Demand Cost]]/Table4[[#This Row],[Total Electric Demand (Actual)]],\"\"))","v":""},{"$f":"IFERROR(Table4[[#This Row],[Total Gas cost]]+Table4[[#This Row],[Total electric cost]],\"\")","v":""},null,{"$f":"IFERROR(Table4[[#This Row],[Total Energy Cost]]/Table4[[#This Row],[Monthly Flow]],\"\")","v":""},{"$f":"IFERROR(Table4[[#This Row],[Total Energy Cost]]/Table4[[#This Row],[Total BOD removed]],\"\")","v":""},null,{"$f":"IF('Process Data Entry'!G74=\"\",\"\",'Process Data Entry'!G74)","v":""},{"$f":"IF('Process Data Entry'!H74=\"\",\"\",'Process Data Entry'!H74)","v":""},{"$f":"IF('Process Data Entry'!I74=\"\",0,'Process Data Entry'!I74)","v":0},{"$f":"IF('Process Data Entry'!J74=\"\",\"\",'Process Data Entry'!J74)","v":""},{"$f":"IF('Process Data Entry'!K74=\"\",\"\",'Process Data Entry'!K74)","v":""},{"$f":"IF('Process Data Entry'!L74=\"\",\"\",'Process Data Entry'!L74)","v":""},"","",{"$f":"IF('Process Data Entry'!M74=\"\",\"\",'Process Data Entry'!M74)","v":""},{"$f":"IF('Process Data Entry'!N74=\"\",\"\",'Process Data Entry'!N74)","v":""},""]
[6,{"$f":"'Energy Data Entry'!B94","v":"2023-05-01"},{"$f":"IF(OR('Process Data Entry'!C75=\"\",'Process Data Entry'!C75=0),\"\",'Process Data Entry'!C75)","v":""},{"$f":"IF(Table4[Avg Daily Flow]=\"\",\"\",_xlfn.DAYS(EOMONTH(B73,0),EOMONTH(B73,-1))*C73)","v":""},{"$f":"IF('Process Data Entry'!F75=\"\",\"\",'Process Data Entry'!F75)","v":""},{"$f":"IF(Table4[BOD removed]=\"\",\"\",Table4[BOD removed]*_xlfn.DAYS(EOMONTH(Table4[[#This Row],[Column2]],0),EOMONTH(Table4[[#This Row],[Column2]],-1)))","v":""},{"$f":"IF(SUM('Energy Data Entry'!C94,'Energy Data Entry'!H94,'Energy Data Entry'!M94,'Energy Data Entry'!R94,'Energy Data Entry'!W94)=0,\"\",SUM('Energy Data Entry'!C94,'Energy Data Entry'!H94,'Energy Data Entry'!M94,'Energy Data Entry'!R94,'Energy Data Entry'!W94))","v":""},{"$f":"'Energy Data Entry'!AG94","v":0},{"$f":"IF(Table4[[#This Row],[Electric kWh usage]]=\"\",\"\",Table4[[#This Row],[Gas kWh usage]]+Table4[[#This Row],[Electric kWh usage]])","v":""},{"$f":"IF(OR(Table4[[#This Row],[Electric kWh usage]]=\"\",Table4[[#This Row],[Monthly Flow]]=\"\"),\"\",(Table4[[#This Row],[Electric kWh usage]]+Table4[[#This Row],[Gas kWh usage]])/Table4[[#This Row],[Monthly Flow]])","v":""},{"$f":"IFERROR(IF(Table4[[#This Row],[Electric kWh usage]]=\"\",\"\",(Table4[[#This Row],[Electric kWh usage]]+Table4[[#This Row],[Gas kWh usage]])/Table4[[#This Row],[Total BOD removed]]),\"\")","v":""},{"$f":"IF('Energy Data Entry'!E94+'Energy Data Entry'!J94+'Energy Data Entry'!O94+'Energy Data Entry'!T94+'Energy Data Entry'!Y94=0,\"\",'Energy Data Entry'!E94+'Energy Data Entry'!J94+'Energy Data Entry'!O94+'Energy Data Entry'!T94+'Energy Data Entry'!Y94)","v":""},{"$f":"IF('Energy Data Entry'!F94+'Energy Data Entry'!K94+'Energy Data Entry'!P94++'Energy Data Entry'!U94+'Energy Data Entry'!Z94=0,\"\",'Energy Data Entry'!F94+'Energy Data Entry'!K94+'Energy Data Entry'!P94++'Energy Data Entry'!U94+'Energy Data Entry'!Z94)","v":""},{"$f":"IF('Energy Data Entry'!G94+'Energy Data Entry'!L94+'Energy Data Entry'!Q94+'Energy Data Entry'!V94+'Energy Data Entry'!AA94=0,\"\",'Energy Data Entry'!G94+'Energy Data Entry'!L94+'Energy Data Entry'!Q94+'Energy Data Entry'!V94+'Energy Data Entry'!AA94)","v":""},{"$f":"IF('Energy Data Entry'!D94+'Energy Data Entry'!I94+'Energy Data Entry'!N94+'Energy Data Entry'!S94+'Energy Data Entry'!X94=0,\"\",'Energy Data Entry'!D94+'Energy Data Entry'!I94+'Energy Data Entry'!N94+'Energy Data Entry'!S94+'Energy Data Entry'!X94)","v":""},{"$f":"'Energy Data Entry'!AF94","v":0},{"$f":"IFERROR(Table4[[#This Row],[Total electric cost]]/Table4[[#This Row],[Electric kWh usage]],\"\")","v":""},{"$f":"IFERROR(Table4[[#This Row],[Electric Demand Cost]]/Table4[[#This Row],[Total Electric Demand (Billed)]],IFERROR(Table4[[#This Row],[Electric Demand Cost]]/Table4[[#This Row],[Total Electric Demand (Actual)]],\"\"))","v":""},{"$f":"IFERROR(Table4[[#This Row],[Total Gas cost]]+Table4[[#This Row],[Total electric cost]],\"\")","v":""},null,{"$f":"IFERROR(Table4[[#This Row],[Total Energy Cost]]/Table4[[#This Row],[Monthly Flow]],\"\")","v":""},{"$f":"IFERROR(Table4[[#This Row],[Total Energy Cost]]/Table4[[#This Row],[Total BOD removed]],\"\")","v":""},null,{"$f":"IF('Process Data Entry'!G75=\"\",\"\",'Process Data Entry'!G75)","v":""},{"$f":"IF('Process Data Entry'!H75=\"\",\"\",'Process Data Entry'!H75)","v":""},{"$f":"IF('Process Data Entry'!I75=\"\",0,'Process Data Entry'!I75)","v":0},{"$f":"IF('Process Data Entry'!J75=\"\",\"\",'Process Data Entry'!J75)","v":""},{"$f":"IF('Process Data Entry'!K75=\"\",\"\",'Process Data Entry'!K75)","v":""},{"$f":"IF('Process Data Entry'!L75=\"\",\"\",'Process Data Entry'!L75)","v":""},"","",{"$f":"IF('Process Data Entry'!M75=\"\",\"\",'Process Data Entry'!M75)","v":""},{"$f":"IF('Process Data Entry'!N75=\"\",\"\",'Process Data Entry'!N75)","v":""},""]
[6,{"$f":"'Energy Data Entry'!B95","v":"2023-06-01"},{"$f":"IF(OR('Process Data Entry'!C76=\"\",'Process Data Entry'!C76=0),\"\",'Process Data Entry'!C76)","v":""},{"$f":"IF(Table4[Avg Daily Flow]=\"\",\"\",_xlfn.DAYS(EOMONTH(B74,0),EOMONTH(B74,-1))*C74)","v":""},{"$f":"IF('Process Data Entry'!F76=\"\",\"\",'Process Data Entry'!F76)","v":""},{"$f":"IF(Table4[BOD removed]=\"\",\"\",Table4[BOD removed]*_xlfn.DAYS(EOMONTH(Table4[[#This Row],[Column2]],0),EOMONTH(Table4[[#This Row],[Column2]],-1)))","v":""},{"$f":"IF(SUM('Energy Data Entry'!C95,'Energy Data Entry'!H95,'Energy Data Entry'!M95,'Energy Data Entry'!R95,'Energy Data Entry'!W95)=0,\"\",SUM('Energy Data Entry'!C95,'Energy Data Entry'!H95,'Energy Data Entry'!M95,'Energy Data Entry'!R95,'Energy Data Entry'!W95))","v":""},{"$f":"'Energy Data Entry'!AG95","v":0},{"$f":"IF(Table4[[#This Row],[Electric kWh usage]]=\"\",\"\",Table4[[#This Row],[Gas kWh usage]]+Table4[[#This Row],[Electric kWh usage]])","v":""},{"$f":"IF(OR(Table4[[#This Row],[Electric kWh usage]]=\"\",Table4[[#This Row],[Monthly Flow]]=\"\"),\"\",(Table4[[#This Row],[Electric kWh usage]]+Table4[[#This Row],[Gas kWh usage]])/Table4[[#This Row],[Monthly Flow]])","v":""},{"$f":"IFERROR(IF(Table4[[#This Row],[Electric kWh usage]]=\"\",\"\",(Table4[[#This Row],[Electric kWh usage]]+Table4[[#This Row],[Gas kWh usage]])/Table4[[#This Row],[Total BOD removed]]),\"\")","v":""},{"$f":"IF('Energy Data Entry'!E95+'Energy Data Entry'!J95+'Energy Data Entry'!O95+'Energy Data Entry'!T95+'Energy Data Entry'!Y95=0,\"\",'Energy Data Entry'!E95+'Energy Data Entry'!J95+'Energy Data Entry'!O95+'Energy Data Entry'!T95+'Energy Data Entry'!Y95)","v":""},{"$f":"IF('Energy Data Entry'!F95+'Energy Data Entry'!K95+'Energy Data Entry'!P95++'Energy Data Entry'!U95+'Energy Data Entry'!Z95=0,\"\",'Energy Data Entry'!F95+'Energy Data Entry'!K95+'Energy Data Entry'!P95++'Energy Data Entry'!U95+'Energy Data Entry'!Z95)","v":""},{"$f":"IF('Energy Data Entry'!G95+'Energy Data Entry'!L95+'Energy Data Entry'!Q95+'Energy Data Entry'!V95+'Energy Data Entry'!AA95=0,\"\",'Energy Data Entry'!G95+'Energy Data Entry'!L95+'Energy Data Entry'!Q95+'Energy Data Entry'!V95+'Energy Data Entry'!AA95)","v":""},{"$f":"IF('Energy Data Entry'!D95+'Energy Data Entry'!I95+'Energy Data Entry'!N95+'Energy Data Entry'!S95+'Energy Data Entry'!X95=0,\"\",'Energy Data Entry'!D95+'Energy Data Entry'!I95+'Energy Data Entry'!N95+'Energy Data Entry'!S95+'Energy Data Entry'!X95)","v":""},{"$f":"'Energy Data Entry'!AF95","v":0},{"$f":"IFERROR(Table4[[#This Row],[Total electric cost]]/Table4[[#This Row],[Electric kWh usage]],\"\")","v":""},{"$f":"IFERROR(Table4[[#This Row],[Electric Demand Cost]]/Table4[[#This Row],[Total Electric Demand (Billed)]],IFERROR(Table4[[#This Row],[Electric Demand Cost]]/Table4[[#This Row],[Total Electric Demand (Actual)]],\"\"))","v":""},{"$f":"IFERROR(Table4[[#This Row],[Total Gas cost]]+Table4[[#This Row],[Total electric cost]],\"\")","v":""},null,{"$f":"IFERROR(Table4[[#This Row],[Total Energy Cost]]/Table4[[#This Row],[Monthly Flow]],\"\")","v":""},{"$f":"IFERROR(Table4[[#This Row],[Total Energy Cost]]/Table4[[#This Row],[Total BOD removed]],\"\")","v":""},null,{"$f":"IF('Process Data Entry'!G76=\"\",\"\",'Process Data Entry'!G76)","v":""},{"$f":"IF('Process Data Entry'!H76=\"\",\"\",'Process Data Entry'!H76)","v":""},{"$f":"IF('Process Data Entry'!I76=\"\",0,'Process Data Entry'!I76)","v":0},{"$f":"IF('Process Data Entry'!J76=\"\",\"\",'Process Data Entry'!J76)","v":""},{"$f":"IF('Process Data Entry'!K76=\"\",\"\",'Process Data Entry'!K76)","v":""},{"$f":"IF('Process Data Entry'!L76=\"\",\"\",'Process Data Entry'!L76)","v":""},"","",{"$f":"IF('Process Data Entry'!M76=\"\",\"\",'Process Data Entry'!M76)","v":""},{"$f":"IF('Process Data Entry'!N76=\"\",\"\",'Process Data Entry'!N76)","v":""},""]
[6,{"$f":"'Energy Data Entry'!B96","v":"2023-07-01"},{"$f":"IF(OR('Process Data Entry'!C77=\"\",'Process Data Entry'!C77=0),\"\",'Process Data Entry'!C77)","v":""},{"$f":"IF(Table4[Avg Daily Flow]=\"\",\"\",_xlfn.DAYS(EOMONTH(B75,0),EOMONTH(B75,-1))*C75)","v":""},{"$f":"IF('Process Data Entry'!F77=\"\",\"\",'Process Data Entry'!F77)","v":""},{"$f":"IF(Table4[BOD removed]=\"\",\"\",Table4[BOD removed]*_xlfn.DAYS(EOMONTH(Table4[[#This Row],[Column2]],0),EOMONTH(Table4[[#This Row],[Column2]],-1)))","v":""},{"$f":"IF(SUM('Energy Data Entry'!C96,'Energy Data Entry'!H96,'Energy Data Entry'!M96,'Energy Data Entry'!R96,'Energy Data Entry'!W96)=0,\"\",SUM('Energy Data Entry'!C96,'Energy Data Entry'!H96,'Energy Data Entry'!M96,'Energy Data Entry'!R96,'Energy Data Entry'!W96))","v":""},{"$f":"'Energy Data Entry'!AG96","v":0},{"$f":"IF(Table4[[#This Row],[Electric kWh usage]]=\"\",\"\",Table4[[#This Row],[Gas kWh usage]]+Table4[[#This Row],[Electric kWh usage]])","v":""},{"$f":"IF(OR(Table4[[#This Row],[Electric kWh usage]]=\"\",Table4[[#This Row],[Monthly Flow]]=\"\"),\"\",(Table4[[#This Row],[Electric kWh usage]]+Table4[[#This Row],[Gas kWh usage]])/Table4[[#This Row],[Monthly Flow]])","v":""},{"$f":"IFERROR(IF(Table4[[#This Row],[Electric kWh usage]]=\"\",\"\",(Table4[[#This Row],[Electric kWh usage]]+Table4[[#This Row],[Gas kWh usage]])/Table4[[#This Row],[Total BOD removed]]),\"\")","v":""},{"$f":"IF('Energy Data Entry'!E96+'Energy Data Entry'!J96+'Energy Data Entry'!O96+'Energy Data Entry'!T96+'Energy Data Entry'!Y96=0,\"\",'Energy Data Entry'!E96+'Energy Data Entry'!J96+'Energy Data Entry'!O96+'Energy Data Entry'!T96+'Energy Data Entry'!Y96)","v":""},{"$f":"IF('Energy Data Entry'!F96+'Energy Data Entry'!K96+'Energy Data Entry'!P96++'Energy Data Entry'!U96+'Energy Data Entry'!Z96=0,\"\",'Energy Data Entry'!F96+'Energy Data Entry'!K96+'Energy Data Entry'!P96++'Energy Data Entry'!U96+'Energy Data Entry'!Z96)","v":""},{"$f":"IF('Energy Data Entry'!G96+'Energy Data Entry'!L96+'Energy Data Entry'!Q96+'Energy Data Entry'!V96+'Energy Data Entry'!AA96=0,\"\",'Energy Data Entry'!G96+'Energy Data Entry'!L96+'Energy Data Entry'!Q96+'Energy Data Entry'!V96+'Energy Data Entry'!AA96)","v":""},{"$f":"IF('Energy Data Entry'!D96+'Energy Data Entry'!I96+'Energy Data Entry'!N96+'Energy Data Entry'!S96+'Energy Data Entry'!X96=0,\"\",'Energy Data Entry'!D96+'Energy Data Entry'!I96+'Energy Data Entry'!N96+'Energy Data Entry'!S96+'Energy Data Entry'!X96)","v":""},{"$f":"'Energy Data Entry'!AF96","v":0},{"$f":"IFERROR(Table4[[#This Row],[Total electric cost]]/Table4[[#This Row],[Electric kWh usage]],\"\")","v":""},{"$f":"IFERROR(Table4[[#This Row],[Electric Demand Cost]]/Table4[[#This Row],[Total Electric Demand (Billed)]],IFERROR(Table4[[#This Row],[Electric Demand Cost]]/Table4[[#This Row],[Total Electric Demand (Actual)]],\"\"))","v":""},{"$f":"IFERROR(Table4[[#This Row],[Total Gas cost]]+Table4[[#This Row],[Total electric cost]],\"\")","v":""},null,{"$f":"IFERROR(Table4[[#This Row],[Total Energy Cost]]/Table4[[#This Row],[Monthly Flow]],\"\")","v":""},{"$f":"IFERROR(Table4[[#This Row],[Total Energy Cost]]/Table4[[#This Row],[Total BOD removed]],\"\")","v":""},null,{"$f":"IF('Process Data Entry'!G77=\"\",\"\",'Process Data Entry'!G77)","v":""},{"$f":"IF('Process Data Entry'!H77=\"\",\"\",'Process Data Entry'!H77)","v":""},{"$f":"IF('Process Data Entry'!I77=\"\",0,'Process Data Entry'!I77)","v":0},{"$f":"IF('Process Data Entry'!J77=\"\",\"\",'Process Data Entry'!J77)","v":""},{"$f":"IF('Process Data Entry'!K77=\"\",\"\",'Process Data Entry'!K77)","v":""},{"$f":"IF('Process Data Entry'!L77=\"\",\"\",'Process Data Entry'!L77)","v":""},"","",{"$f":"IF('Process Data Entry'!M77=\"\",\"\",'Process Data Entry'!M77)","v":""},{"$f":"IF('Process Data Entry'!N77=\"\",\"\",'Process Data Entry'!N77)","v":""},""]
[7,{"$f":"'Energy Data Entry'!B97","v":"2023-08-01"},{"$f":"IF(OR('Process Data Entry'!C78=\"\",'Process Data Entry'!C78=0),\"\",'Process Data Entry'!C78)","v":""},{"$f":"IF(Table4[Avg Daily Flow]=\"\",\"\",_xlfn.DAYS(EOMONTH(B76,0),EOMONTH(B76,-1))*C76)","v":""},{"$f":"IF('Process Data Entry'!F78=\"\",\"\",'Process Data Entry'!F78)","v":""},{"$f":"IF(Table4[BOD removed]=\"\",\"\",Table4[BOD removed]*_xlfn.DAYS(EOMONTH(Table4[[#This Row],[Column2]],0),EOMONTH(Table4[[#This Row],[Column2]],-1)))","v":""},{"$f":"IF(SUM('Energy Data Entry'!C97,'Energy Data Entry'!H97,'Energy Data Entry'!M97,'Energy Data Entry'!R97,'Energy Data Entry'!W97)=0,\"\",SUM('Energy Data Entry'!C97,'Energy Data Entry'!H97,'Energy Data Entry'!M97,'Energy Data Entry'!R97,'Energy Data Entry'!W97))","v":""},{"$f":"'Energy Data Entry'!AG97","v":0},{"$f":"IF(Table4[[#This Row],[Electric kWh usage]]=\"\",\"\",Table4[[#This Row],[Gas kWh usage]]+Table4[[#This Row],[Electric kWh usage]])","v":""},{"$f":"IF(OR(Table4[[#This Row],[Electric kWh usage]]=\"\",Table4[[#This Row],[Monthly Flow]]=\"\"),\"\",(Table4[[#This Row],[Electric kWh usage]]+Table4[[#This Row],[Gas kWh usage]])/Table4[[#This Row],[Monthly Flow]])","v":""},{"$f":"IFERROR(IF(Table4[[#This Row],[Electric kWh usage]]=\"\",\"\",(Table4[[#This Row],[Electric kWh usage]]+Table4[[#This Row],[Gas kWh usage]])/Table4[[#This Row],[Total BOD removed]]),\"\")","v":""},{"$f":"IF('Energy Data Entry'!E97+'Energy Data Entry'!J97+'Energy Data Entry'!O97+'Energy Data Entry'!T97+'Energy Data Entry'!Y97=0,\"\",'Energy Data Entry'!E97+'Energy Data Entry'!J97+'Energy Data Entry'!O97+'Energy Data Entry'!T97+'Energy Data Entry'!Y97)","v":""},{"$f":"IF('Energy Data Entry'!F97+'Energy Data Entry'!K97+'Energy Data Entry'!P97++'Energy Data Entry'!U97+'Energy Data Entry'!Z97=0,\"\",'Energy Data Entry'!F97+'Energy Data Entry'!K97+'Energy Data Entry'!P97++'Energy Data Entry'!U97+'Energy Data Entry'!Z97)","v":""},{"$f":"IF('Energy Data Entry'!G97+'Energy Data Entry'!L97+'Energy Data Entry'!Q97+'Energy Data Entry'!V97+'Energy Data Entry'!AA97=0,\"\",'Energy Data Entry'!G97+'Energy Data Entry'!L97+'Energy Data Entry'!Q97+'Energy Data Entry'!V97+'Energy Data Entry'!AA97)","v":""},{"$f":"IF('Energy Data Entry'!D97+'Energy Data Entry'!I97+'Energy Data Entry'!N97+'Energy Data Entry'!S97+'Energy Data Entry'!X97=0,\"\",'Energy Data Entry'!D97+'Energy Data Entry'!I97+'Energy Data Entry'!N97+'Energy Data Entry'!S97+'Energy Data Entry'!X97)","v":""},{"$f":"'Energy Data Entry'!AF97","v":0},{"$f":"IFERROR(Table4[[#This Row],[Total electric cost]]/Table4[[#This Row],[Electric kWh usage]],\"\")","v":""},{"$f":"IFERROR(Table4[[#This Row],[Electric Demand Cost]]/Table4[[#This Row],[Total Electric Demand (Billed)]],IFERROR(Table4[[#This Row],[Electric Demand Cost]]/Table4[[#This Row],[Total Electric Demand (Actual)]],\"\"))","v":""},{"$f":"IFERROR(Table4[[#This Row],[Total Gas cost]]+Table4[[#This Row],[Total electric cost]],\"\")","v":""},null,{"$f":"IFERROR(Table4[[#This Row],[Total Energy Cost]]/Table4[[#This Row],[Monthly Flow]],\"\")","v":""},{"$f":"IFERROR(Table4[[#This Row],[Total Energy Cost]]/Table4[[#This Row],[Total BOD removed]],\"\")","v":""},null,{"$f":"IF('Process Data Entry'!G78=\"\",\"\",'Process Data Entry'!G78)","v":""},{"$f":"IF('Process Data Entry'!H78=\"\",\"\",'Process Data Entry'!H78)","v":""},{"$f":"IF('Process Data Entry'!I78=\"\",0,'Process Data Entry'!I78)","v":0},{"$f":"IF('Process Data Entry'!J78=\"\",\"\",'Process Data Entry'!J78)","v":""},{"$f":"IF('Process Data Entry'!K78=\"\",\"\",'Process Data Entry'!K78)","v":""},{"$f":"IF('Process Data Entry'!L78=\"\",\"\",'Process Data Entry'!L78)","v":""},"","",{"$f":"IF('Process Data Entry'!M78=\"\",\"\",'Process Data Entry'!M78)","v":""},{"$f":"IF('Process Data Entry'!N78=\"\",\"\",'Process Data Entry'!N78)","v":""},""]
[7,{"$f":"'Energy Data Entry'!B98","v":"2023-09-01"},{"$f":"IF(OR('Process Data Entry'!C79=\"\",'Process Data Entry'!C79=0),\"\",'Process Data Entry'!C79)","v":""},{"$f":"IF(Table4[Avg Daily Flow]=\"\",\"\",_xlfn.DAYS(EOMONTH(B77,0),EOMONTH(B77,-1))*C77)","v":""},{"$f":"IF('Process Data Entry'!F79=\"\",\"\",'Process Data Entry'!F79)","v":""},{"$f":"IF(Table4[BOD removed]=\"\",\"\",Table4[BOD removed]*_xlfn.DAYS(EOMONTH(Table4[[#This Row],[Column2]],0),EOMONTH(Table4[[#This Row],[Column2]],-1)))","v":""},{"$f":"IF(SUM('Energy Data Entry'!C98,'Energy Data Entry'!H98,'Energy Data Entry'!M98,'Energy Data Entry'!R98,'Energy Data Entry'!W98)=0,\"\",SUM('Energy Data Entry'!C98,'Energy Data Entry'!H98,'Energy Data Entry'!M98,'Energy Data Entry'!R98,'Energy Data Entry'!W98))","v":""},{"$f":"'Energy Data Entry'!AG98","v":0},{"$f":"IF(Table4[[#This Row],[Electric kWh usage]]=\"\",\"\",Table4[[#This Row],[Gas kWh usage]]+Table4[[#This Row],[Electric kWh usage]])","v":""},{"$f":"IF(OR(Table4[[#This Row],[Electric kWh usage]]=\"\",Table4[[#This Row],[Monthly Flow]]=\"\"),\"\",(Table4[[#This Row],[Electric kWh usage]]+Table4[[#This Row],[Gas kWh usage]])/Table4[[#This Row],[Monthly Flow]])","v":""},{"$f":"IFERROR(IF(Table4[[#This Row],[Electric kWh usage]]=\"\",\"\",(Table4[[#This Row],[Electric kWh usage]]+Table4[[#This Row],[Gas kWh usage]])/Table4[[#This Row],[Total BOD removed]]),\"\")","v":""},{"$f":"IF('Energy Data Entry'!E98+'Energy Data Entry'!J98+'Energy Data Entry'!O98+'Energy Data Entry'!T98+'Energy Data Entry'!Y98=0,\"\",'Energy Data Entry'!E98+'Energy Data Entry'!J98+'Energy Data Entry'!O98+'Energy Data Entry'!T98+'Energy Data Entry'!Y98)","v":""},{"$f":"IF('Energy Data Entry'!F98+'Energy Data Entry'!K98+'Energy Data Entry'!P98++'Energy Data Entry'!U98+'Energy Data Entry'!Z98=0,\"\",'Energy Data Entry'!F98+'Energy Data Entry'!K98+'Energy Data Entry'!P98++'Energy Data Entry'!U98+'Energy Data Entry'!Z98)","v":""},{"$f":"IF('Energy Data Entry'!G98+'Energy Data Entry'!L98+'Energy Data Entry'!Q98+'Energy Data Entry'!V98+'Energy Data Entry'!AA98=0,\"\",'Energy Data Entry'!G98+'Energy Data Entry'!L98+'Energy Data Entry'!Q98+'Energy Data Entry'!V98+'Energy Data Entry'!AA98)","v":""},{"$f":"IF('Energy Data Entry'!D98+'Energy Data Entry'!I98+'Energy Data Entry'!N98+'Energy Data Entry'!S98+'Energy Data Entry'!X98=0,\"\",'Energy Data Entry'!D98+'Energy Data Entry'!I98+'Energy Data Entry'!N98+'Energy Data Entry'!S98+'Energy Data Entry'!X98)","v":""},{"$f":"'Energy Data Entry'!AF98","v":0},{"$f":"IFERROR(Table4[[#This Row],[Total electric cost]]/Table4[[#This Row],[Electric kWh usage]],\"\")","v":""},{"$f":"IFERROR(Table4[[#This Row],[Electric Demand Cost]]/Table4[[#This Row],[Total Electric Demand (Billed)]],IFERROR(Table4[[#This Row],[Electric Demand Cost]]/Table4[[#This Row],[Total Electric Demand (Actual)]],\"\"))","v":""},{"$f":"IFERROR(Table4[[#This Row],[Total Gas cost]]+Table4[[#This Row],[Total electric cost]],\"\")","v":""},null,{"$f":"IFERROR(Table4[[#This Row],[Total Energy Cost]]/Table4[[#This Row],[Monthly Flow]],\"\")","v":""},{"$f":"IFERROR(Table4[[#This Row],[Total Energy Cost]]/Table4[[#This Row],[Total BOD removed]],\"\")","v":""},null,{"$f":"IF('Process Data Entry'!G79=\"\",\"\",'Process Data Entry'!G79)","v":""},{"$f":"IF('Process Data Entry'!H79=\"\",\"\",'Process Data Entry'!H79)","v":""},{"$f":"IF('Process Data Entry'!I79=\"\",0,'Process Data Entry'!I79)","v":0},{"$f":"IF('Process Data Entry'!J79=\"\",\"\",'Process Data Entry'!J79)","v":""},{"$f":"IF('Process Data Entry'!K79=\"\",\"\",'Process Data Entry'!K79)","v":""},{"$f":"IF('Process Data Entry'!L79=\"\",\"\",'Process Data Entry'!L79)","v":""},"","",{"$f":"IF('Process Data Entry'!M79=\"\",\"\",'Process Data Entry'!M79)","v":""},{"$f":"IF('Process Data Entry'!N79=\"\",\"\",'Process Data Entry'!N79)","v":""},""]
[7,{"$f":"'Energy Data Entry'!B99","v":"2023-10-01"},{"$f":"IF(OR('Process Data Entry'!C80=\"\",'Process Data Entry'!C80=0),\"\",'Process Data Entry'!C80)","v":""},{"$f":"IF(Table4[Avg Daily Flow]=\"\",\"\",_xlfn.DAYS(EOMONTH(B78,0),EOMONTH(B78,-1))*C78)","v":""},{"$f":"IF('Process Data Entry'!F80=\"\",\"\",'Process Data Entry'!F80)","v":""},{"$f":"IF(Table4[BOD removed]=\"\",\"\",Table4[BOD removed]*_xlfn.DAYS(EOMONTH(Table4[[#This Row],[Column2]],0),EOMONTH(Table4[[#This Row],[Column2]],-1)))","v":""},{"$f":"IF(SUM('Energy Data Entry'!C99,'Energy Data Entry'!H99,'Energy Data Entry'!M99,'Energy Data Entry'!R99,'Energy Data Entry'!W99)=0,\"\",SUM('Energy Data Entry'!C99,'Energy Data Entry'!H99,'Energy Data Entry'!M99,'Energy Data Entry'!R99,'Energy Data Entry'!W99))","v":""},{"$f":"'Energy Data Entry'!AG99","v":0},{"$f":"IF(Table4[[#This Row],[Electric kWh usage]]=\"\",\"\",Table4[[#This Row],[Gas kWh usage]]+Table4[[#This Row],[Electric kWh usage]])","v":""},{"$f":"IF(OR(Table4[[#This Row],[Electric kWh usage]]=\"\",Table4[[#This Row],[Monthly Flow]]=\"\"),\"\",(Table4[[#This Row],[Electric kWh usage]]+Table4[[#This Row],[Gas kWh usage]])/Table4[[#This Row],[Monthly Flow]])","v":""},{"$f":"IFERROR(IF(Table4[[#This Row],[Electric kWh usage]]=\"\",\"\",(Table4[[#This Row],[Electric kWh usage]]+Table4[[#This Row],[Gas kWh usage]])/Table4[[#This Row],[Total BOD removed]]),\"\")","v":""},{"$f":"IF('Energy Data Entry'!E99+'Energy Data Entry'!J99+'Energy Data Entry'!O99+'Energy Data Entry'!T99+'Energy Data Entry'!Y99=0,\"\",'Energy Data Entry'!E99+'Energy Data Entry'!J99+'Energy Data Entry'!O99+'Energy Data Entry'!T99+'Energy Data Entry'!Y99)","v":""},{"$f":"IF('Energy Data Entry'!F99+'Energy Data Entry'!K99+'Energy Data Entry'!P99++'Energy Data Entry'!U99+'Energy Data Entry'!Z99=0,\"\",'Energy Data Entry'!F99+'Energy Data Entry'!K99+'Energy Data Entry'!P99++'Energy Data Entry'!U99+'Energy Data Entry'!Z99)","v":""},{"$f":"IF('Energy Data Entry'!G99+'Energy Data Entry'!L99+'Energy Data Entry'!Q99+'Energy Data Entry'!V99+'Energy Data Entry'!AA99=0,\"\",'Energy Data Entry'!G99+'Energy Data Entry'!L99+'Energy Data Entry'!Q99+'Energy Data Entry'!V99+'Energy Data Entry'!AA99)","v":""},{"$f":"IF('Energy Data Entry'!D99+'Energy Data Entry'!I99+'Energy Data Entry'!N99+'Energy Data Entry'!S99+'Energy Data Entry'!X99=0,\"\",'Energy Data Entry'!D99+'Energy Data Entry'!I99+'Energy Data Entry'!N99+'Energy Data Entry'!S99+'Energy Data Entry'!X99)","v":""},{"$f":"'Energy Data Entry'!AF99","v":0},{"$f":"IFERROR(Table4[[#This Row],[Total electric cost]]/Table4[[#This Row],[Electric kWh usage]],\"\")","v":""},{"$f":"IFERROR(Table4[[#This Row],[Electric Demand Cost]]/Table4[[#This Row],[Total Electric Demand (Billed)]],IFERROR(Table4[[#This Row],[Electric Demand Cost]]/Table4[[#This Row],[Total Electric Demand (Actual)]],\"\"))","v":""},{"$f":"IFERROR(Table4[[#This Row],[Total Gas cost]]+Table4[[#This Row],[Total electric cost]],\"\")","v":""},null,{"$f":"IFERROR(Table4[[#This Row],[Total Energy Cost]]/Table4[[#This Row],[Monthly Flow]],\"\")","v":""},{"$f":"IFERROR(Table4[[#This Row],[Total Energy Cost]]/Table4[[#This Row],[Total BOD removed]],\"\")","v":""},null,{"$f":"IF('Process Data Entry'!G80=\"\",\"\",'Process Data Entry'!G80)","v":""},{"$f":"IF('Process Data Entry'!H80=\"\",\"\",'Process Data Entry'!H80)","v":""},{"$f":"IF('Process Data Entry'!I80=\"\",0,'Process Data Entry'!I80)","v":0},{"$f":"IF('Process Data Entry'!J80=\"\",\"\",'Process Data Entry'!J80)","v":""},{"$f":"IF('Process Data Entry'!K80=\"\",\"\",'Process Data Entry'!K80)","v":""},{"$f":"IF('Process Data Entry'!L80=\"\",\"\",'Process Data Entry'!L80)","v":""},"","",{"$f":"IF('Process Data Entry'!M80=\"\",\"\",'Process Data Entry'!M80)","v":""},{"$f":"IF('Process Data Entry'!N80=\"\",\"\",'Process Data Entry'!N80)","v":""},""]
[7,{"$f":"'Energy Data Entry'!B100","v":"2023-11-01"},{"$f":"IF(OR('Process Data Entry'!C81=\"\",'Process Data Entry'!C81=0),\"\",'Process Data Entry'!C81)","v":""},{"$f":"IF(Table4[Avg Daily Flow]=\"\",\"\",_xlfn.DAYS(EOMONTH(B79,0),EOMONTH(B79,-1))*C79)","v":""},{"$f":"IF('Process Data Entry'!F81=\"\",\"\",'Process Data Entry'!F81)","v":""},{"$f":"IF(Table4[BOD removed]=\"\",\"\",Table4[BOD removed]*_xlfn.DAYS(EOMONTH(Table4[[#This Row],[Column2]],0),EOMONTH(Table4[[#This Row],[Column2]],-1)))","v":""},{"$f":"IF(SUM('Energy Data Entry'!C100,'Energy Data Entry'!H100,'Energy Data Entry'!M100,'Energy Data Entry'!R100,'Energy Data Entry'!W100)=0,\"\",SUM('Energy Data Entry'!C100,'Energy Data Entry'!H100,'Energy Data Entry'!M100,'Energy Data Entry'!R100,'Energy Data Entry'!W100))","v":""},{"$f":"'Energy Data Entry'!AG100","v":0},{"$f":"IF(Table4[[#This Row],[Electric kWh usage]]=\"\",\"\",Table4[[#This Row],[Gas kWh usage]]+Table4[[#This Row],[Electric kWh usage]])","v":""},{"$f":"IF(OR(Table4[[#This Row],[Electric kWh usage]]=\"\",Table4[[#This Row],[Monthly Flow]]=\"\"),\"\",(Table4[[#This Row],[Electric kWh usage]]+Table4[[#This Row],[Gas kWh usage]])/Table4[[#This Row],[Monthly Flow]])","v":""},{"$f":"IFERROR(IF(Table4[[#This Row],[Electric kWh usage]]=\"\",\"\",(Table4[[#This Row],[Electric kWh usage]]+Table4[[#This Row],[Gas kWh usage]])/Table4[[#This Row],[Total BOD removed]]),\"\")","v":""},{"$f":"IF('Energy Data Entry'!E100+'Energy Data Entry'!J100+'Energy Data Entry'!O100+'Energy Data Entry'!T100+'Energy Data Entry'!Y100=0,\"\",'Energy Data Entry'!E100+'Energy Data Entry'!J100+'Energy Data Entry'!O100+'Energy Data Entry'!T100+'Energy Data Entry'!Y100)","v":""},{"$f":"IF('Energy Data Entry'!F100+'Energy Data Entry'!K100+'Energy Data Entry'!P100++'Energy Data Entry'!U100+'Energy Data Entry'!Z100=0,\"\",'Energy Data Entry'!F100+'Energy Data Entry'!K100+'Energy Data Entry'!P100++'Energy Data Entry'!U100+'Energy Data Entry'!Z100)","v":""},{"$f":"IF('Energy Data Entry'!G100+'Energy Data Entry'!L100+'Energy Data Entry'!Q100+'Energy Data Entry'!V100+'Energy Data Entry'!AA100=0,\"\",'Energy Data Entry'!G100+'Energy Data Entry'!L100+'Energy Data Entry'!Q100+'Energy Data Entry'!V100+'Energy Data Entry'!AA100)","v":""},{"$f":"IF('Energy Data Entry'!D100+'Energy Data Entry'!I100+'Energy Data Entry'!N100+'Energy Data Entry'!S100+'Energy Data Entry'!X100=0,\"\",'Energy Data Entry'!D100+'Energy Data Entry'!I100+'Energy Data Entry'!N100+'Energy Data Entry'!S100+'Energy Data Entry'!X100)","v":""},{"$f":"'Energy Data Entry'!AF100","v":0},{"$f":"IFERROR(Table4[[#This Row],[Total electric cost]]/Table4[[#This Row],[Electric kWh usage]],\"\")","v":""},{"$f":"IFERROR(Table4[[#This Row],[Electric Demand Cost]]/Table4[[#This Row],[Total Electric Demand (Billed)]],IFERROR(Table4[[#This Row],[Electric Demand Cost]]/Table4[[#This Row],[Total Electric Demand (Actual)]],\"\"))","v":""},{"$f":"IFERROR(Table4[[#This Row],[Total Gas cost]]+Table4[[#This Row],[Total electric cost]],\"\")","v":""},null,{"$f":"IFERROR(Table4[[#This Row],[Total Energy Cost]]/Table4[[#This Row],[Monthly Flow]],\"\")","v":""},{"$f":"IFERROR(Table4[[#This Row],[Total Energy Cost]]/Table4[[#This Row],[Total BOD removed]],\"\")","v":""},null,{"$f":"IF('Process Data Entry'!G81=\"\",\"\",'Process Data Entry'!G81)","v":""},{"$f":"IF('Process Data Entry'!H81=\"\",\"\",'Process Data Entry'!H81)","v":""},{"$f":"IF('Process Data Entry'!I81=\"\",0,'Process Data Entry'!I81)","v":0},{"$f":"IF('Process Data Entry'!J81=\"\",\"\",'Process Data Entry'!J81)","v":""},{"$f":"IF('Process Data Entry'!K81=\"\",\"\",'Process Data Entry'!K81)","v":""},{"$f":"IF('Process Data Entry'!L81=\"\",\"\",'Process Data Entry'!L81)","v":""},"","",{"$f":"IF('Process Data Entry'!M81=\"\",\"\",'Process Data Entry'!M81)","v":""},{"$f":"IF('Process Data Entry'!N81=\"\",\"\",'Process Data Entry'!N81)","v":""},""]
[7,{"$f":"'Energy Data Entry'!B101","v":"2023-12-01"},{"$f":"IF(OR('Process Data Entry'!C82=\"\",'Process Data Entry'!C82=0),\"\",'Process Data Entry'!C82)","v":""},{"$f":"IF(Table4[Avg Daily Flow]=\"\",\"\",_xlfn.DAYS(EOMONTH(B80,0),EOMONTH(B80,-1))*C80)","v":""},{"$f":"IF('Process Data Entry'!F82=\"\",\"\",'Process Data Entry'!F82)","v":""},{"$f":"IF(Table4[BOD removed]=\"\",\"\",Table4[BOD removed]*_xlfn.DAYS(EOMONTH(Table4[[#This Row],[Column2]],0),EOMONTH(Table4[[#This Row],[Column2]],-1)))","v":""},{"$f":"IF(SUM('Energy Data Entry'!C101,'Energy Data Entry'!H101,'Energy Data Entry'!M101,'Energy Data Entry'!R101,'Energy Data Entry'!W101)=0,\"\",SUM('Energy Data Entry'!C101,'Energy Data Entry'!H101,'Energy Data Entry'!M101,'Energy Data Entry'!R101,'Energy Data Entry'!W101))","v":""},{"$f":"'Energy Data Entry'!AG101","v":0},{"$f":"IF(Table4[[#This Row],[Electric kWh usage]]=\"\",\"\",Table4[[#This Row],[Gas kWh usage]]+Table4[[#This Row],[Electric kWh usage]])","v":""},{"$f":"IF(OR(Table4[[#This Row],[Electric kWh usage]]=\"\",Table4[[#This Row],[Monthly Flow]]=\"\"),\"\",(Table4[[#This Row],[Electric kWh usage]]+Table4[[#This Row],[Gas kWh usage]])/Table4[[#This Row],[Monthly Flow]])","v":""},{"$f":"IFERROR(IF(Table4[[#This Row],[Electric kWh usage]]=\"\",\"\",(Table4[[#This Row],[Electric kWh usage]]+Table4[[#This Row],[Gas kWh usage]])/Table4[[#This Row],[Total BOD removed]]),\"\")","v":""},{"$f":"IF('Energy Data Entry'!E101+'Energy Data Entry'!J101+'Energy Data Entry'!O101+'Energy Data Entry'!T101+'Energy Data Entry'!Y101=0,\"\",'Energy Data Entry'!E101+'Energy Data Entry'!J101+'Energy Data Entry'!O101+'Energy Data Entry'!T101+'Energy Data Entry'!Y101)","v":""},{"$f":"IF('Energy Data Entry'!F101+'Energy Data Entry'!K101+'Energy Data Entry'!P101++'Energy Data Entry'!U101+'Energy Data Entry'!Z101=0,\"\",'Energy Data Entry'!F101+'Energy Data Entry'!K101+'Energy Data Entry'!P101++'Energy Data Entry'!U101+'Energy Data Entry'!Z101)","v":""},{"$f":"IF('Energy Data Entry'!G101+'Energy Data Entry'!L101+'Energy Data Entry'!Q101+'Energy Data Entry'!V101+'Energy Data Entry'!AA101=0,\"\",'Energy Data Entry'!G101+'Energy Data Entry'!L101+'Energy Data Entry'!Q101+'Energy Data Entry'!V101+'Energy Data Entry'!AA101)","v":""},{"$f":"IF('Energy Data Entry'!D101+'Energy Data Entry'!I101+'Energy Data Entry'!N101+'Energy Data Entry'!S101+'Energy Data Entry'!X101=0,\"\",'Energy Data Entry'!D101+'Energy Data Entry'!I101+'Energy Data Entry'!N101+'Energy Data Entry'!S101+'Energy Data Entry'!X101)","v":""},{"$f":"'Energy Data Entry'!AF101","v":0},{"$f":"IFERROR(Table4[[#This Row],[Total electric cost]]/Table4[[#This Row],[Electric kWh usage]],\"\")","v":""},{"$f":"IFERROR(Table4[[#This Row],[Electric Demand Cost]]/Table4[[#This Row],[Total Electric Demand (Billed)]],IFERROR(Table4[[#This Row],[Electric Demand Cost]]/Table4[[#This Row],[Total Electric Demand (Actual)]],\"\"))","v":""},{"$f":"IFERROR(Table4[[#This Row],[Total Gas cost]]+Table4[[#This Row],[Total electric cost]],\"\")","v":""},null,{"$f":"IFERROR(Table4[[#This Row],[Total Energy Cost]]/Table4[[#This Row],[Monthly Flow]],\"\")","v":""},{"$f":"IFERROR(Table4[[#This Row],[Total Energy Cost]]/Table4[[#This Row],[Total BOD removed]],\"\")","v":""},null,{"$f":"IF('Process Data Entry'!G82=\"\",\"\",'Process Data Entry'!G82)","v":""},{"$f":"IF('Process Data Entry'!H82=\"\",\"\",'Process Data Entry'!H82)","v":""},{"$f":"IF('Process Data Entry'!I82=\"\",0,'Process Data Entry'!I82)","v":0},{"$f":"IF('Process Data Entry'!J82=\"\",\"\",'Process Data Entry'!J82)","v":""},{"$f":"IF('Process Data Entry'!K82=\"\",\"\",'Process Data Entry'!K82)","v":""},{"$f":"IF('Process Data Entry'!L82=\"\",\"\",'Process Data Entry'!L82)","v":""},"","",{"$f":"IF('Process Data Entry'!M82=\"\",\"\",'Process Data Entry'!M82)","v":""},{"$f":"IF('Process Data Entry'!N82=\"\",\"\",'Process Data Entry'!N82)","v":""},""]
[7,{"$f":"'Energy Data Entry'!B102","v":"2024-01-01"},{"$f":"IF(OR('Process Data Entry'!C83=\"\",'Process Data Entry'!C83=0),\"\",'Process Data Entry'!C83)","v":""},{"$f":"IF(Table4[Avg Daily Flow]=\"\",\"\",_xlfn.DAYS(EOMONTH(B81,0),EOMONTH(B81,-1))*C81)","v":""},{"$f":"IF('Process Data Entry'!F83=\"\",\"\",'Process Data Entry'!F83)","v":""},{"$f":"IF(Table4[BOD removed]=\"\",\"\",Table4[BOD removed]*_xlfn.DAYS(EOMONTH(Table4[[#This Row],[Column2]],0),EOMONTH(Table4[[#This Row],[Column2]],-1)))","v":""},{"$f":"IF(SUM('Energy Data Entry'!C102,'Energy Data Entry'!H102,'Energy Data Entry'!M102,'Energy Data Entry'!R102,'Energy Data Entry'!W102)=0,\"\",SUM('Energy Data Entry'!C102,'Energy Data Entry'!H102,'Energy Data Entry'!M102,'Energy Data Entry'!R102,'Energy Data Entry'!W102))","v":""},{"$f":"'Energy Data Entry'!AG102","v":0},{"$f":"IF(Table4[[#This Row],[Electric kWh usage]]=\"\",\"\",Table4[[#This Row],[Gas kWh usage]]+Table4[[#This Row],[Electric kWh usage]])","v":""},{"$f":"IF(OR(Table4[[#This Row],[Electric kWh usage]]=\"\",Table4[[#This Row],[Monthly Flow]]=\"\"),\"\",(Table4[[#This Row],[Electric kWh usage]]+Table4[[#This Row],[Gas kWh usage]])/Table4[[#This Row],[Monthly Flow]])","v":""},{"$f":"IFERROR(IF(Table4[[#This Row],[Electric kWh usage]]=\"\",\"\",(Table4[[#This Row],[Electric kWh usage]]+Table4[[#This Row],[Gas kWh usage]])/Table4[[#This Row],[Total BOD removed]]),\"\")","v":""},{"$f":"IF('Energy Data Entry'!E102+'Energy Data Entry'!J102+'Energy Data Entry'!O102+'Energy Data Entry'!T102+'Energy Data Entry'!Y102=0,\"\",'Energy Data Entry'!E102+'Energy Data Entry'!J102+'Energy Data Entry'!O102+'Energy Data Entry'!T102+'Energy Data Entry'!Y102)","v":""},{"$f":"IF('Energy Data Entry'!F102+'Energy Data Entry'!K102+'Energy Data Entry'!P102++'Energy Data Entry'!U102+'Energy Data Entry'!Z102=0,\"\",'Energy Data Entry'!F102+'Energy Data Entry'!K102+'Energy Data Entry'!P102++'Energy Data Entry'!U102+'Energy Data Entry'!Z102)","v":""},{"$f":"IF('Energy Data Entry'!G102+'Energy Data Entry'!L102+'Energy Data Entry'!Q102+'Energy Data Entry'!V102+'Energy Data Entry'!AA102=0,\"\",'Energy Data Entry'!G102+'Energy Data Entry'!L102+'Energy Data Entry'!Q102+'Energy Data Entry'!V102+'Energy Data Entry'!AA102)","v":""},{"$f":"IF('Energy Data Entry'!D102+'Energy Data Entry'!I102+'Energy Data Entry'!N102+'Energy Data Entry'!S102+'Energy Data Entry'!X102=0,\"\",'Energy Data Entry'!D102+'Energy Data Entry'!I102+'Energy Data Entry'!N102+'Energy Data Entry'!S102+'Energy Data Entry'!X102)","v":""},{"$f":"'Energy Data Entry'!AF102","v":0},{"$f":"IFERROR(Table4[[#This Row],[Total electric cost]]/Table4[[#This Row],[Electric kWh usage]],\"\")","v":""},{"$f":"IFERROR(Table4[[#This Row],[Electric Demand Cost]]/Table4[[#This Row],[Total Electric Demand (Billed)]],IFERROR(Table4[[#This Row],[Electric Demand Cost]]/Table4[[#This Row],[Total Electric Demand (Actual)]],\"\"))","v":""},{"$f":"IFERROR(Table4[[#This Row],[Total Gas cost]]+Table4[[#This Row],[Total electric cost]],\"\")","v":""},null,{"$f":"IFERROR(Table4[[#This Row],[Total Energy Cost]]/Table4[[#This Row],[Monthly Flow]],\"\")","v":""},{"$f":"IFERROR(Table4[[#This Row],[Total Energy Cost]]/Table4[[#This Row],[Total BOD removed]],\"\")","v":""},null,{"$f":"IF('Process Data Entry'!G83=\"\",\"\",'Process Data Entry'!G83)","v":""},{"$f":"IF('Process Data Entry'!H83=\"\",\"\",'Process Data Entry'!H83)","v":""},{"$f":"IF('Process Data Entry'!I83=\"\",0,'Process Data Entry'!I83)","v":0},{"$f":"IF('Process Data Entry'!J83=\"\",\"\",'Process Data Entry'!J83)","v":""},{"$f":"IF('Process Data Entry'!K83=\"\",\"\",'Process Data Entry'!K83)","v":""},{"$f":"IF('Process Data Entry'!L83=\"\",\"\",'Process Data Entry'!L83)","v":""},"","",{"$f":"IF('Process Data Entry'!M83=\"\",\"\",'Process Data Entry'!M83)","v":""},{"$f":"IF('Process Data Entry'!N83=\"\",\"\",'Process Data Entry'!N83)","v":""},""]
[7,{"$f":"'Energy Data Entry'!B103","v":"2024-02-01"},{"$f":"IF(OR('Process Data Entry'!C84=\"\",'Process Data Entry'!C84=0),\"\",'Process Data Entry'!C84)","v":""},{"$f":"IF(Table4[Avg Daily Flow]=\"\",\"\",_xlfn.DAYS(EOMONTH(B82,0),EOMONTH(B82,-1))*C82)","v":""},{"$f":"IF('Process Data Entry'!F84=\"\",\"\",'Process Data Entry'!F84)","v":""},{"$f":"IF(Table4[BOD removed]=\"\",\"\",Table4[BOD removed]*_xlfn.DAYS(EOMONTH(Table4[[#This Row],[Column2]],0),EOMONTH(Table4[[#This Row],[Column2]],-1)))","v":""},{"$f":"IF(SUM('Energy Data Entry'!C103,'Energy Data Entry'!H103,'Energy Data Entry'!M103,'Energy Data Entry'!R103,'Energy Data Entry'!W103)=0,\"\",SUM('Energy Data Entry'!C103,'Energy Data Entry'!H103,'Energy Data Entry'!M103,'Energy Data Entry'!R103,'Energy Data Entry'!W103))","v":""},{"$f":"'Energy Data Entry'!AG103","v":0},{"$f":"IF(Table4[[#This Row],[Electric kWh usage]]=\"\",\"\",Table4[[#This Row],[Gas kWh usage]]+Table4[[#This Row],[Electric kWh usage]])","v":""},{"$f":"IF(OR(Table4[[#This Row],[Electric kWh usage]]=\"\",Table4[[#This Row],[Monthly Flow]]=\"\"),\"\",(Table4[[#This Row],[Electric kWh usage]]+Table4[[#This Row],[Gas kWh usage]])/Table4[[#This Row],[Monthly Flow]])","v":""},{"$f":"IFERROR(IF(Table4[[#This Row],[Electric kWh usage]]=\"\",\"\",(Table4[[#This Row],[Electric kWh usage]]+Table4[[#This Row],[Gas kWh usage]])/Table4[[#This Row],[Total BOD removed]]),\"\")","v":""},{"$f":"IF('Energy Data Entry'!E103+'Energy Data Entry'!J103+'Energy Data Entry'!O103+'Energy Data Entry'!T103+'Energy Data Entry'!Y103=0,\"\",'Energy Data Entry'!E103+'Energy Data Entry'!J103+'Energy Data Entry'!O103+'Energy Data Entry'!T103+'Energy Data Entry'!Y103)","v":""},{"$f":"IF('Energy Data Entry'!F103+'Energy Data Entry'!K103+'Energy Data Entry'!P103++'Energy Data Entry'!U103+'Energy Data Entry'!Z103=0,\"\",'Energy Data Entry'!F103+'Energy Data Entry'!K103+'Energy Data Entry'!P103++'Energy Data Entry'!U103+'Energy Data Entry'!Z103)","v":""},{"$f":"IF('Energy Data Entry'!G103+'Energy Data Entry'!L103+'Energy Data Entry'!Q103+'Energy Data Entry'!V103+'Energy Data Entry'!AA103=0,\"\",'Energy Data Entry'!G103+'Energy Data Entry'!L103+'Energy Data Entry'!Q103+'Energy Data Entry'!V103+'Energy Data Entry'!AA103)","v":""},{"$f":"IF('Energy Data Entry'!D103+'Energy Data Entry'!I103+'Energy Data Entry'!N103+'Energy Data Entry'!S103+'Energy Data Entry'!X103=0,\"\",'Energy Data Entry'!D103+'Energy Data Entry'!I103+'Energy Data Entry'!N103+'Energy Data Entry'!S103+'Energy Data Entry'!X103)","v":""},{"$f":"'Energy Data Entry'!AF103","v":0},{"$f":"IFERROR(Table4[[#This Row],[Total electric cost]]/Table4[[#This Row],[Electric kWh usage]],\"\")","v":""},{"$f":"IFERROR(Table4[[#This Row],[Electric Demand Cost]]/Table4[[#This Row],[Total Electric Demand (Billed)]],IFERROR(Table4[[#This Row],[Electric Demand Cost]]/Table4[[#This Row],[Total Electric Demand (Actual)]],\"\"))","v":""},{"$f":"IFERROR(Table4[[#This Row],[Total Gas cost]]+Table4[[#This Row],[Total electric cost]],\"\")","v":""},null,{"$f":"IFERROR(Table4[[#This Row],[Total Energy Cost]]/Table4[[#This Row],[Monthly Flow]],\"\")","v":""},{"$f":"IFERROR(Table4[[#This Row],[Total Energy Cost]]/Table4[[#This Row],[Total BOD removed]],\"\")","v":""},null,{"$f":"IF('Process Data Entry'!G84=\"\",\"\",'Process Data Entry'!G84)","v":""},{"$f":"IF('Process Data Entry'!H84=\"\",\"\",'Process Data Entry'!H84)","v":""},{"$f":"IF('Process Data Entry'!I84=\"\",0,'Process Data Entry'!I84)","v":0},{"$f":"IF('Process Data Entry'!J84=\"\",\"\",'Process Data Entry'!J84)","v":""},{"$f":"IF('Process Data Entry'!K84=\"\",\"\",'Process Data Entry'!K84)","v":""},{"$f":"IF('Process Data Entry'!L84=\"\",\"\",'Process Data Entry'!L84)","v":""},"","",{"$f":"IF('Process Data Entry'!M84=\"\",\"\",'Process Data Entry'!M84)","v":""},{"$f":"IF('Process Data Entry'!N84=\"\",\"\",'Process Data Entry'!N84)","v":""},""]
[7,{"$f":"'Energy Data Entry'!B104","v":"2024-03-01"},{"$f":"IF(OR('Process Data Entry'!C85=\"\",'Process Data Entry'!C85=0),\"\",'Process Data Entry'!C85)","v":""},{"$f":"IF(Table4[Avg Daily Flow]=\"\",\"\",_xlfn.DAYS(EOMONTH(B83,0),EOMONTH(B83,-1))*C83)","v":""},{"$f":"IF('Process Data Entry'!F85=\"\",\"\",'Process Data Entry'!F85)","v":""},{"$f":"IF(Table4[BOD removed]=\"\",\"\",Table4[BOD removed]*_xlfn.DAYS(EOMONTH(Table4[[#This Row],[Column2]],0),EOMONTH(Table4[[#This Row],[Column2]],-1)))","v":""},{"$f":"IF(SUM('Energy Data Entry'!C104,'Energy Data Entry'!H104,'Energy Data Entry'!M104,'Energy Data Entry'!R104,'Energy Data Entry'!W104)=0,\"\",SUM('Energy Data Entry'!C104,'Energy Data Entry'!H104,'Energy Data Entry'!M104,'Energy Data Entry'!R104,'Energy Data Entry'!W104))","v":""},{"$f":"'Energy Data Entry'!AG104","v":0},{"$f":"IF(Table4[[#This Row],[Electric kWh usage]]=\"\",\"\",Table4[[#This Row],[Gas kWh usage]]+Table4[[#This Row],[Electric kWh usage]])","v":""},{"$f":"IF(OR(Table4[[#This Row],[Electric kWh usage]]=\"\",Table4[[#This Row],[Monthly Flow]]=\"\"),\"\",(Table4[[#This Row],[Electric kWh usage]]+Table4[[#This Row],[Gas kWh usage]])/Table4[[#This Row],[Monthly Flow]])","v":""},{"$f":"IFERROR(IF(Table4[[#This Row],[Electric kWh usage]]=\"\",\"\",(Table4[[#This Row],[Electric kWh usage]]+Table4[[#This Row],[Gas kWh usage]])/Table4[[#This Row],[Total BOD removed]]),\"\")","v":""},{"$f":"IF('Energy Data Entry'!E104+'Energy Data Entry'!J104+'Energy Data Entry'!O104+'Energy Data Entry'!T104+'Energy Data Entry'!Y104=0,\"\",'Energy Data Entry'!E104+'Energy Data Entry'!J104+'Energy Data Entry'!O104+'Energy Data Entry'!T104+'Energy Data Entry'!Y104)","v":""},{"$f":"IF('Energy Data Entry'!F104+'Energy Data Entry'!K104+'Energy Data Entry'!P104++'Energy Data Entry'!U104+'Energy Data Entry'!Z104=0,\"\",'Energy Data Entry'!F104+'Energy Data Entry'!K104+'Energy Data Entry'!P104++'Energy Data Entry'!U104+'Energy Data Entry'!Z104)","v":""},{"$f":"IF('Energy Data Entry'!G104+'Energy Data Entry'!L104+'Energy Data Entry'!Q104+'Energy Data Entry'!V104+'Energy Data Entry'!AA104=0,\"\",'Energy Data Entry'!G104+'Energy Data Entry'!L104+'Energy Data Entry'!Q104+'Energy Data Entry'!V104+'Energy Data Entry'!AA104)","v":""},{"$f":"IF('Energy Data Entry'!D104+'Energy Data Entry'!I104+'Energy Data Entry'!N104+'Energy Data Entry'!S104+'Energy Data Entry'!X104=0,\"\",'Energy Data Entry'!D104+'Energy Data Entry'!I104+'Energy Data Entry'!N104+'Energy Data Entry'!S104+'Energy Data Entry'!X104)","v":""},{"$f":"'Energy Data Entry'!AF104","v":0},{"$f":"IFERROR(Table4[[#This Row],[Total electric cost]]/Table4[[#This Row],[Electric kWh usage]],\"\")","v":""},{"$f":"IFERROR(Table4[[#This Row],[Electric Demand Cost]]/Table4[[#This Row],[Total Electric Demand (Billed)]],IFERROR(Table4[[#This Row],[Electric Demand Cost]]/Table4[[#This Row],[Total Electric Demand (Actual)]],\"\"))","v":""},{"$f":"IFERROR(Table4[[#This Row],[Total Gas cost]]+Table4[[#This Row],[Total electric cost]],\"\")","v":""},null,{"$f":"IFERROR(Table4[[#This Row],[Total Energy Cost]]/Table4[[#This Row],[Monthly Flow]],\"\")","v":""},{"$f":"IFERROR(Table4[[#This Row],[Total Energy Cost]]/Table4[[#This Row],[Total BOD removed]],\"\")","v":""},null,{"$f":"IF('Process Data Entry'!G85=\"\",\"\",'Process Data Entry'!G85)","v":""},{"$f":"IF('Process Data Entry'!H85=\"\",\"\",'Process Data Entry'!H85)","v":""},{"$f":"IF('Process Data Entry'!I85=\"\",0,'Process Data Entry'!I85)","v":0},{"$f":"IF('Process Data Entry'!J85=\"\",\"\",'Process Data Entry'!J85)","v":""},{"$f":"IF('Process Data Entry'!K85=\"\",\"\",'Process Data Entry'!K85)","v":""},{"$f":"IF('Process Data Entry'!L85=\"\",\"\",'Process Data Entry'!L85)","v":""},"","",{"$f":"IF('Process Data Entry'!M85=\"\",\"\",'Process Data Entry'!M85)","v":""},{"$f":"IF('Process Data Entry'!N85=\"\",\"\",'Process Data Entry'!N85)","v":""},""]
[7,{"$f":"'Energy Data Entry'!B105","v":"2024-04-01"},{"$f":"IF(OR('Process Data Entry'!C86=\"\",'Process Data Entry'!C86=0),\"\",'Process Data Entry'!C86)","v":""},{"$f":"IF(Table4[Avg Daily Flow]=\"\",\"\",_xlfn.DAYS(EOMONTH(B84,0),EOMONTH(B84,-1))*C84)","v":""},{"$f":"IF('Process Data Entry'!F86=\"\",\"\",'Process Data Entry'!F86)","v":""},{"$f":"IF(Table4[BOD removed]=\"\",\"\",Table4[BOD removed]*_xlfn.DAYS(EOMONTH(Table4[[#This Row],[Column2]],0),EOMONTH(Table4[[#This Row],[Column2]],-1)))","v":""},{"$f":"IF(SUM('Energy Data Entry'!C105,'Energy Data Entry'!H105,'Energy Data Entry'!M105,'Energy Data Entry'!R105,'Energy Data Entry'!W105)=0,\"\",SUM('Energy Data Entry'!C105,'Energy Data Entry'!H105,'Energy Data Entry'!M105,'Energy Data Entry'!R105,'Energy Data Entry'!W105))","v":""},{"$f":"'Energy Data Entry'!AG105","v":0},{"$f":"IF(Table4[[#This Row],[Electric kWh usage]]=\"\",\"\",Table4[[#This Row],[Gas kWh usage]]+Table4[[#This Row],[Electric kWh usage]])","v":""},{"$f":"IF(OR(Table4[[#This Row],[Electric kWh usage]]=\"\",Table4[[#This Row],[Monthly Flow]]=\"\"),\"\",(Table4[[#This Row],[Electric kWh usage]]+Table4[[#This Row],[Gas kWh usage]])/Table4[[#This Row],[Monthly Flow]])","v":""},{"$f":"IFERROR(IF(Table4[[#This Row],[Electric kWh usage]]=\"\",\"\",(Table4[[#This Row],[Electric kWh usage]]+Table4[[#This Row],[Gas kWh usage]])/Table4[[#This Row],[Total BOD removed]]),\"\")","v":""},{"$f":"IF('Energy Data Entry'!E105+'Energy Data Entry'!J105+'Energy Data Entry'!O105+'Energy Data Entry'!T105+'Energy Data Entry'!Y105=0,\"\",'Energy Data Entry'!E105+'Energy Data Entry'!J105+'Energy Data Entry'!O105+'Energy Data Entry'!T105+'Energy Data Entry'!Y105)","v":""},{"$f":"IF('Energy Data Entry'!F105+'Energy Data Entry'!K105+'Energy Data Entry'!P105++'Energy Data Entry'!U105+'Energy Data Entry'!Z105=0,\"\",'Energy Data Entry'!F105+'Energy Data Entry'!K105+'Energy Data Entry'!P105++'Energy Data Entry'!U105+'Energy Data Entry'!Z105)","v":""},{"$f":"IF('Energy Data Entry'!G105+'Energy Data Entry'!L105+'Energy Data Entry'!Q105+'Energy Data Entry'!V105+'Energy Data Entry'!AA105=0,\"\",'Energy Data Entry'!G105+'Energy Data Entry'!L105+'Energy Data Entry'!Q105+'Energy Data Entry'!V105+'Energy Data Entry'!AA105)","v":""},{"$f":"IF('Energy Data Entry'!D105+'Energy Data Entry'!I105+'Energy Data Entry'!N105+'Energy Data Entry'!S105+'Energy Data Entry'!X105=0,\"\",'Energy Data Entry'!D105+'Energy Data Entry'!I105+'Energy Data Entry'!N105+'Energy Data Entry'!S105+'Energy Data Entry'!X105)","v":""},{"$f":"'Energy Data Entry'!AF105","v":0},{"$f":"IFERROR(Table4[[#This Row],[Total electric cost]]/Table4[[#This Row],[Electric kWh usage]],\"\")","v":""},{"$f":"IFERROR(Table4[[#This Row],[Electric Demand Cost]]/Table4[[#This Row],[Total Electric Demand (Billed)]],IFERROR(Table4[[#This Row],[Electric Demand Cost]]/Table4[[#This Row],[Total Electric Demand (Actual)]],\"\"))","v":""},{"$f":"IFERROR(Table4[[#This Row],[Total Gas cost]]+Table4[[#This Row],[Total electric cost]],\"\")","v":""},null,{"$f":"IFERROR(Table4[[#This Row],[Total Energy Cost]]/Table4[[#This Row],[Monthly Flow]],\"\")","v":""},{"$f":"IFERROR(Table4[[#This Row],[Total Energy Cost]]/Table4[[#This Row],[Total BOD removed]],\"\")","v":""},null,{"$f":"IF('Process Data Entry'!G86=\"\",\"\",'Process Data Entry'!G86)","v":""},{"$f":"IF('Process Data Entry'!H86=\"\",\"\",'Process Data Entry'!H86)","v":""},{"$f":"IF('Process Data Entry'!I86=\"\",0,'Process Data Entry'!I86)","v":0},{"$f":"IF('Process Data Entry'!J86=\"\",\"\",'Process Data Entry'!J86)","v":""},{"$f":"IF('Process Data Entry'!K86=\"\",\"\",'Process Data Entry'!K86)","v":""},{"$f":"IF('Process Data Entry'!L86=\"\",\"\",'Process Data Entry'!L86)","v":""},"","",{"$f":"IF('Process Data Entry'!M86=\"\",\"\",'Process Data Entry'!M86)","v":""},{"$f":"IF('Process Data Entry'!N86=\"\",\"\",'Process Data Entry'!N86)","v":""},""]
[7,{"$f":"'Energy Data Entry'!B106","v":"2024-05-01"},{"$f":"IF(OR('Process Data Entry'!C87=\"\",'Process Data Entry'!C87=0),\"\",'Process Data Entry'!C87)","v":""},{"$f":"IF(Table4[Avg Daily Flow]=\"\",\"\",_xlfn.DAYS(EOMONTH(B85,0),EOMONTH(B85,-1))*C85)","v":""},{"$f":"IF('Process Data Entry'!F87=\"\",\"\",'Process Data Entry'!F87)","v":""},{"$f":"IF(Table4[BOD removed]=\"\",\"\",Table4[BOD removed]*_xlfn.DAYS(EOMONTH(Table4[[#This Row],[Column2]],0),EOMONTH(Table4[[#This Row],[Column2]],-1)))","v":""},{"$f":"IF(SUM('Energy Data Entry'!C106,'Energy Data Entry'!H106,'Energy Data Entry'!M106,'Energy Data Entry'!R106,'Energy Data Entry'!W106)=0,\"\",SUM('Energy Data Entry'!C106,'Energy Data Entry'!H106,'Energy Data Entry'!M106,'Energy Data Entry'!R106,'Energy Data Entry'!W106))","v":""},{"$f":"'Energy Data Entry'!AG106","v":0},{"$f":"IF(Table4[[#This Row],[Electric kWh usage]]=\"\",\"\",Table4[[#This Row],[Gas kWh usage]]+Table4[[#This Row],[Electric kWh usage]])","v":""},{"$f":"IF(OR(Table4[[#This Row],[Electric kWh usage]]=\"\",Table4[[#This Row],[Monthly Flow]]=\"\"),\"\",(Table4[[#This Row],[Electric kWh usage]]+Table4[[#This Row],[Gas kWh usage]])/Table4[[#This Row],[Monthly Flow]])","v":""},{"$f":"IFERROR(IF(Table4[[#This Row],[Electric kWh usage]]=\"\",\"\",(Table4[[#This Row],[Electric kWh usage]]+Table4[[#This Row],[Gas kWh usage]])/Table4[[#This Row],[Total BOD removed]]),\"\")","v":""},{"$f":"IF('Energy Data Entry'!E106+'Energy Data Entry'!J106+'Energy Data Entry'!O106+'Energy Data Entry'!T106+'Energy Data Entry'!Y106=0,\"\",'Energy Data Entry'!E106+'Energy Data Entry'!J106+'Energy Data Entry'!O106+'Energy Data Entry'!T106+'Energy Data Entry'!Y106)","v":""},{"$f":"IF('Energy Data Entry'!F106+'Energy Data Entry'!K106+'Energy Data Entry'!P106++'Energy Data Entry'!U106+'Energy Data Entry'!Z106=0,\"\",'Energy Data Entry'!F106+'Energy Data Entry'!K106+'Energy Data Entry'!P106++'Energy Data Entry'!U106+'Energy Data Entry'!Z106)","v":""},{"$f":"IF('Energy Data Entry'!G106+'Energy Data Entry'!L106+'Energy Data Entry'!Q106+'Energy Data Entry'!V106+'Energy Data Entry'!AA106=0,\"\",'Energy Data Entry'!G106+'Energy Data Entry'!L106+'Energy Data Entry'!Q106+'Energy Data Entry'!V106+'Energy Data Entry'!AA106)","v":""},{"$f":"IF('Energy Data Entry'!D106+'Energy Data Entry'!I106+'Energy Data Entry'!N106+'Energy Data Entry'!S106+'Energy Data Entry'!X106=0,\"\",'Energy Data Entry'!D106+'Energy Data Entry'!I106+'Energy Data Entry'!N106+'Energy Data Entry'!S106+'Energy Data Entry'!X106)","v":""},{"$f":"'Energy Data Entry'!AF106","v":0},{"$f":"IFERROR(Table4[[#This Row],[Total electric cost]]/Table4[[#This Row],[Electric kWh usage]],\"\")","v":""},{"$f":"IFERROR(Table4[[#This Row],[Electric Demand Cost]]/Table4[[#This Row],[Total Electric Demand (Billed)]],IFERROR(Table4[[#This Row],[Electric Demand Cost]]/Table4[[#This Row],[Total Electric Demand (Actual)]],\"\"))","v":""},{"$f":"IFERROR(Table4[[#This Row],[Total Gas cost]]+Table4[[#This Row],[Total electric cost]],\"\")","v":""},null,{"$f":"IFERROR(Table4[[#This Row],[Total Energy Cost]]/Table4[[#This Row],[Monthly Flow]],\"\")","v":""},{"$f":"IFERROR(Table4[[#This Row],[Total Energy Cost]]/Table4[[#This Row],[Total BOD removed]],\"\")","v":""},null,{"$f":"IF('Process Data Entry'!G87=\"\",\"\",'Process Data Entry'!G87)","v":""},{"$f":"IF('Process Data Entry'!H87=\"\",\"\",'Process Data Entry'!H87)","v":""},{"$f":"IF('Process Data Entry'!I87=\"\",0,'Process Data Entry'!I87)","v":0},{"$f":"IF('Process Data Entry'!J87=\"\",\"\",'Process Data Entry'!J87)","v":""},{"$f":"IF('Process Data Entry'!K87=\"\",\"\",'Process Data Entry'!K87)","v":""},{"$f":"IF('Process Data Entry'!L87=\"\",\"\",'Process Data Entry'!L87)","v":""},"","",{"$f":"IF('Process Data Entry'!M87=\"\",\"\",'Process Data Entry'!M87)","v":""},{"$f":"IF('Process Data Entry'!N87=\"\",\"\",'Process Data Entry'!N87)","v":""},""]
[7,{"$f":"'Energy Data Entry'!B107","v":"2024-06-01"},{"$f":"IF(OR('Process Data Entry'!C88=\"\",'Process Data Entry'!C88=0),\"\",'Process Data Entry'!C88)","v":""},{"$f":"IF(Table4[Avg Daily Flow]=\"\",\"\",_xlfn.DAYS(EOMONTH(B86,0),EOMONTH(B86,-1))*C86)","v":""},{"$f":"IF('Process Data Entry'!F88=\"\",\"\",'Process Data Entry'!F88)","v":""},{"$f":"IF(Table4[BOD removed]=\"\",\"\",Table4[BOD removed]*_xlfn.DAYS(EOMONTH(Table4[[#This Row],[Column2]],0),EOMONTH(Table4[[#This Row],[Column2]],-1)))","v":""},{"$f":"IF(SUM('Energy Data Entry'!C107,'Energy Data Entry'!H107,'Energy Data Entry'!M107,'Energy Data Entry'!R107,'Energy Data Entry'!W107)=0,\"\",SUM('Energy Data Entry'!C107,'Energy Data Entry'!H107,'Energy Data Entry'!M107,'Energy Data Entry'!R107,'Energy Data Entry'!W107))","v":""},{"$f":"'Energy Data Entry'!AG107","v":0},{"$f":"IF(Table4[[#This Row],[Electric kWh usage]]=\"\",\"\",Table4[[#This Row],[Gas kWh usage]]+Table4[[#This Row],[Electric kWh usage]])","v":""},{"$f":"IF(OR(Table4[[#This Row],[Electric kWh usage]]=\"\",Table4[[#This Row],[Monthly Flow]]=\"\"),\"\",(Table4[[#This Row],[Electric kWh usage]]+Table4[[#This Row],[Gas kWh usage]])/Table4[[#This Row],[Monthly Flow]])","v":""},{"$f":"IFERROR(IF(Table4[[#This Row],[Electric kWh usage]]=\"\",\"\",(Table4[[#This Row],[Electric kWh usage]]+Table4[[#This Row],[Gas kWh usage]])/Table4[[#This Row],[Total BOD removed]]),\"\")","v":""},{"$f":"IF('Energy Data Entry'!E107+'Energy Data Entry'!J107+'Energy Data Entry'!O107+'Energy Data Entry'!T107+'Energy Data Entry'!Y107=0,\"\",'Energy Data Entry'!E107+'Energy Data Entry'!J107+'Energy Data Entry'!O107+'Energy Data Entry'!T107+'Energy Data Entry'!Y107)","v":""},{"$f":"IF('Energy Data Entry'!F107+'Energy Data Entry'!K107+'Energy Data Entry'!P107++'Energy Data Entry'!U107+'Energy Data Entry'!Z107=0,\"\",'Energy Data Entry'!F107+'Energy Data Entry'!K107+'Energy Data Entry'!P107++'Energy Data Entry'!U107+'Energy Data Entry'!Z107)","v":""},{"$f":"IF('Energy Data Entry'!G107+'Energy Data Entry'!L107+'Energy Data Entry'!Q107+'Energy Data Entry'!V107+'Energy Data Entry'!AA107=0,\"\",'Energy Data Entry'!G107+'Energy Data Entry'!L107+'Energy Data Entry'!Q107+'Energy Data Entry'!V107+'Energy Data Entry'!AA107)","v":""},{"$f":"IF('Energy Data Entry'!D107+'Energy Data Entry'!I107+'Energy Data Entry'!N107+'Energy Data Entry'!S107+'Energy Data Entry'!X107=0,\"\",'Energy Data Entry'!D107+'Energy Data Entry'!I107+'Energy Data Entry'!N107+'Energy Data Entry'!S107+'Energy Data Entry'!X107)","v":""},{"$f":"'Energy Data Entry'!AF107","v":0},{"$f":"IFERROR(Table4[[#This Row],[Total electric cost]]/Table4[[#This Row],[Electric kWh usage]],\"\")","v":""},{"$f":"IFERROR(Table4[[#This Row],[Electric Demand Cost]]/Table4[[#This Row],[Total Electric Demand (Billed)]],IFERROR(Table4[[#This Row],[Electric Demand Cost]]/Table4[[#This Row],[Total Electric Demand (Actual)]],\"\"))","v":""},{"$f":"IFERROR(Table4[[#This Row],[Total Gas cost]]+Table4[[#This Row],[Total electric cost]],\"\")","v":""},null,{"$f":"IFERROR(Table4[[#This Row],[Total Energy Cost]]/Table4[[#This Row],[Monthly Flow]],\"\")","v":""},{"$f":"IFERROR(Table4[[#This Row],[Total Energy Cost]]/Table4[[#This Row],[Total BOD removed]],\"\")","v":""},null,{"$f":"IF('Process Data Entry'!G88=\"\",\"\",'Process Data Entry'!G88)","v":""},{"$f":"IF('Process Data Entry'!H88=\"\",\"\",'Process Data Entry'!H88)","v":""},{"$f":"IF('Process Data Entry'!I88=\"\",0,'Process Data Entry'!I88)","v":0},{"$f":"IF('Process Data Entry'!J88=\"\",\"\",'Process Data Entry'!J88)","v":""},{"$f":"IF('Process Data Entry'!K88=\"\",\"\",'Process Data Entry'!K88)","v":""},{"$f":"IF('Process Data Entry'!L88=\"\",\"\",'Process Data Entry'!L88)","v":""},"","",{"$f":"IF('Process Data Entry'!M88=\"\",\"\",'Process Data Entry'!M88)","v":""},{"$f":"IF('Process Data Entry'!N88=\"\",\"\",'Process Data Entry'!N88)","v":""},""]
[7,{"$f":"'Energy Data Entry'!B108","v":"2024-07-01"},{"$f":"IF(OR('Process Data Entry'!C89=\"\",'Process Data Entry'!C89=0),\"\",'Process Data Entry'!C89)","v":""},{"$f":"IF(Table4[Avg Daily Flow]=\"\",\"\",_xlfn.DAYS(EOMONTH(B87,0),EOMONTH(B87,-1))*C87)","v":""},{"$f":"IF('Process Data Entry'!F89=\"\",\"\",'Process Data Entry'!F89)","v":""},{"$f":"IF(Table4[BOD removed]=\"\",\"\",Table4[BOD removed]*_xlfn.DAYS(EOMONTH(Table4[[#This Row],[Column2]],0),EOMONTH(Table4[[#This Row],[Column2]],-1)))","v":""},{"$f":"IF(SUM('Energy Data Entry'!C108,'Energy Data Entry'!H108,'Energy Data Entry'!M108,'Energy Data Entry'!R108,'Energy Data Entry'!W108)=0,\"\",SUM('Energy Data Entry'!C108,'Energy Data Entry'!H108,'Energy Data Entry'!M108,'Energy Data Entry'!R108,'Energy Data Entry'!W108))","v":""},{"$f":"'Energy Data Entry'!AG108","v":0},{"$f":"IF(Table4[[#This Row],[Electric kWh usage]]=\"\",\"\",Table4[[#This Row],[Gas kWh usage]]+Table4[[#This Row],[Electric kWh usage]])","v":""},{"$f":"IF(OR(Table4[[#This Row],[Electric kWh usage]]=\"\",Table4[[#This Row],[Monthly Flow]]=\"\"),\"\",(Table4[[#This Row],[Electric kWh usage]]+Table4[[#This Row],[Gas kWh usage]])/Table4[[#This Row],[Monthly Flow]])","v":""},{"$f":"IFERROR(IF(Table4[[#This Row],[Electric kWh usage]]=\"\",\"\",(Table4[[#This Row],[Electric kWh usage]]+Table4[[#This Row],[Gas kWh usage]])/Table4[[#This Row],[Total BOD removed]]),\"\")","v":""},{"$f":"IF('Energy Data Entry'!E108+'Energy Data Entry'!J108+'Energy Data Entry'!O108+'Energy Data Entry'!T108+'Energy Data Entry'!Y108=0,\"\",'Energy Data Entry'!E108+'Energy Data Entry'!J108+'Energy Data Entry'!O108+'Energy Data Entry'!T108+'Energy Data Entry'!Y108)","v":""},{"$f":"IF('Energy Data Entry'!F108+'Energy Data Entry'!K108+'Energy Data Entry'!P108++'Energy Data Entry'!U108+'Energy Data Entry'!Z108=0,\"\",'Energy Data Entry'!F108+'Energy Data Entry'!K108+'Energy Data Entry'!P108++'Energy Data Entry'!U108+'Energy Data Entry'!Z108)","v":""},{"$f":"IF('Energy Data Entry'!G108+'Energy Data Entry'!L108+'Energy Data Entry'!Q108+'Energy Data Entry'!V108+'Energy Data Entry'!AA108=0,\"\",'Energy Data Entry'!G108+'Energy Data Entry'!L108+'Energy Data Entry'!Q108+'Energy Data Entry'!V108+'Energy Data Entry'!AA108)","v":""},{"$f":"IF('Energy Data Entry'!D108+'Energy Data Entry'!I108+'Energy Data Entry'!N108+'Energy Data Entry'!S108+'Energy Data Entry'!X108=0,\"\",'Energy Data Entry'!D108+'Energy Data Entry'!I108+'Energy Data Entry'!N108+'Energy Data Entry'!S108+'Energy Data Entry'!X108)","v":""},{"$f":"'Energy Data Entry'!AF108","v":0},{"$f":"IFERROR(Table4[[#This Row],[Total electric cost]]/Table4[[#This Row],[Electric kWh usage]],\"\")","v":""},{"$f":"IFERROR(Table4[[#This Row],[Electric Demand Cost]]/Table4[[#This Row],[Total Electric Demand (Billed)]],IFERROR(Table4[[#This Row],[Electric Demand Cost]]/Table4[[#This Row],[Total Electric Demand (Actual)]],\"\"))","v":""},{"$f":"IFERROR(Table4[[#This Row],[Total Gas cost]]+Table4[[#This Row],[Total electric cost]],\"\")","v":""},null,{"$f":"IFERROR(Table4[[#This Row],[Total Energy Cost]]/Table4[[#This Row],[Monthly Flow]],\"\")","v":""},{"$f":"IFERROR(Table4[[#This Row],[Total Energy Cost]]/Table4[[#This Row],[Total BOD removed]],\"\")","v":""},null,{"$f":"IF('Process Data Entry'!G89=\"\",\"\",'Process Data Entry'!G89)","v":""},{"$f":"IF('Process Data Entry'!H89=\"\",\"\",'Process Data Entry'!H89)","v":""},{"$f":"IF('Process Data Entry'!I89=\"\",0,'Process Data Entry'!I89)","v":0},{"$f":"IF('Process Data Entry'!J89=\"\",\"\",'Process Data Entry'!J89)","v":""},{"$f":"IF('Process Data Entry'!K89=\"\",\"\",'Process Data Entry'!K89)","v":""},{"$f":"IF('Process Data Entry'!L89=\"\",\"\",'Process Data Entry'!L89)","v":""},"","",{"$f":"IF('Process Data Entry'!M89=\"\",\"\",'Process Data Entry'!M89)","v":""},{"$f":"IF('Process Data Entry'!N89=\"\",\"\",'Process Data Entry'!N89)","v":""},""]
[]
[]
[]
[]
[]
[]
[]
[null,null,null,null,null,"Summary of Flow efficiency calculations",null,null,null,null,null,null,null,null,null,null,null,null,null,null,null,null,null,"Avg Nitrogen Effluent, by species (mg/L-N)"]
[null,null,"Labels","Avg Daily Flow","Annual Flow Treated","Counted Flow","Counted Energy","Avg kWh/MG","Months Reporting",null,null,null,null,null,null,null,null,null,null,null,null,null,"Year",null,"TKN (mg/L)","NH3 (mg/L)","NO3+ NO2 (mg/L)",{"$f":"IF(COUNT(Table4[Avg effluent TKN])>=COUNT(Table4[Avg effluent NH3]),Y96,Z96)","v":"TKN (mg/L)"},"Approx. TN removal (mg/L)","Approx. TN removal (lbs/mo)"]
[null,"Year",null,"MGD","MG",null,null,null,null,null,null,null,null,null,null,null,null,null,null,null,null,null,1,{"$f":"TEXT(DATE(YEAR(B$4),MONTH(B$4),DAY(B$4)),\"mmm yyyy\")&\" - \"&TEXT(DATE(YEAR(B$15),MONTH(B$15),DAY(B$15)),\"mmm yyyy\")","v":"Aug 2017 - Jul 2018"},{"$f":"IFERROR(AVERAGEIF(Table4[Year],W97,Table4[Avg effluent TKN]),\"\")","v":""},{"$f":"IFERROR(AVERAGEIF(Table4[Year],W97,Table4[Avg effluent NH3]),\"\")","v":""},{"$f":"IFERROR(AVERAGEIF(Table4[Year],W97,Table4[Avg effluent NOx]),\"\")","v":""},{"$f":"IF(AB$96=Y$96,Y97,Z97)","v":""},null,{"$f":"IFERROR(IF(SUMPRODUCT(--(Table4[Year]=W97),--(Table4[Monthly Flow]<>\"\"))/SUMPRODUCT(--(Table4[Year]=W97),--(Table4[Approx TN removal (lbs)]<>\"\"))<=3,AVERAGEIF(Table4[Year],W97,Table4[Approx TN removal (lbs)]),\"Insufficient Data\"),\"\")","v":""}]
[null,1,{"$f":"TEXT(DATE(YEAR(B$4),MONTH(B$4),DAY(B$4)),\"mmm yyyy\")&\" - \"&TEXT(DATE(YEAR(B$15),MONTH(B$15),DAY(B$15)),\"mmm yyyy\")","v":"Aug 2017 - Jul 2018"},{"$f":"IFERROR(AVERAGEIF(Table4[Year],B98,Table4[Avg Daily Flow]),\"\")","v":""},{"$f":"SUMIF(Table4[Year],B98,Table4[Monthly Flow])","v":0},{"$f":"SUMPRODUCT(Table4[Monthly Flow],--(Table4[Year]=B98),--(Table4[Monthly Flow]<>\"\"),--(Table4[Total Energy Usage]<>\"\"))","v":0},{"$f":"SUMPRODUCT(Table4[Total Energy Usage],--(Table4[Year]=B98),--(Table4[Monthly Flow]<>\"\"),--(Table4[Electric kWh usage]<>\"\"))","v":0},{"$f":"G98/F98","v":{"$error":"#DIV/0!"}},{"$f":"SUMPRODUCT(--(Table4[Monthly Flow]<>\"\"),--(Table4[Total Energy Usage]<>\"\"),--(Table4[Year]=B98))","v":0},null,null,null,null,null,null,null,null,null,null,null,null,null,2,{"$f":"TEXT(DATE(YEAR(B$16),MONTH(B$16),DAY(B$16)),\"mmm yyyy\")&\" - \"&TEXT(DATE(YEAR(B$27),MONTH(B$27),DAY(B$27)),\"mmm yyyy\")","v":"Aug 2018 - Jul 2019"},{"$f":"IFERROR(AVERAGEIF(Table4[Year],W98,Table4[Avg effluent TKN]),\"\")","v":""},{"$f":"IFERROR(AVERAGEIF(Table4[Year],W98,Table4[Avg effluent NH3]),\"\")","v":""},{"$f":"IFERROR(AVERAGEIF(Table4[Year],W98,Table4[Avg effluent NOx]),\"\")","v":""},{"$f":"IF(AB$96=Y$96,Y98,Z98)","v":""},null,{"$f":"IFERROR(IF(SUMPRODUCT(--(Table4[Year]=W98),--(Table4[Monthly Flow]<>\"\"))/SUMPRODUCT(--(Table4[Year]=W98),--(Table4[Approx TN removal (lbs)]<>\"\"))<=3,AVERAGEIF(Table4[Year],W98,Table4[Approx TN removal (lbs)]),\"Insufficient Data\"),\"\")","v":""}]
[null,2,{"$f":"TEXT(DATE(YEAR(B$16),MONTH(B$16),DAY(B$16)),\"mmm yyyy\")&\" - \"&TEXT(DATE(YEAR(B$27),MONTH(B$27),DAY(B$27)),\"mmm yyyy\")","v":"Aug 2018 - Jul 2019"},{"$f":"IFERROR(AVERAGEIF(Table4[Year],B99,Table4[Avg Daily Flow]),\"\")","v":""},{"$f":"SUMIF(Table4[Year],B99,Table4[Monthly Flow])","v":0},{"$f":"SUMPRODUCT(Table4[Monthly Flow],--(Table4[Year]=B99),--(Table4[Monthly Flow]<>\"\"),--(Table4[Total Energy Usage]<>\"\"))","v":0},{"$f":"SUMPRODUCT(Table4[Total Energy Usage],--(Table4[Year]=B99),--(Table4[Monthly Flow]<>\"\"),--(Table4[Electric kWh usage]<>\"\"))","v":0},{"$error":"#DIV/0!"},{"$f":"SUMPRODUCT(--(Table4[Monthly Flow]<>\"\"),--(Table4[Total Energy Usage]<>\"\"),--(Table4[Year]=B99))","v":0},null,null,null,null,null,null,null,null,null,null,null,null,null,3,{"$f":"TEXT(DATE(YEAR(B$28),MONTH(B$28),DAY(B$28)),\"mmm yyyy\")&\" - \"&TEXT(DATE(YEAR(B$39),MONTH(B$39),DAY(B$39)),\"mmm yyyy\")","v":"Aug 2019 - Jul 2020"},{"$f":"IFERROR(AVERAGEIF(Table4[Year],W99,Table4[Avg effluent TKN]),\"\")","v":""},{"$f":"IFERROR(AVERAGEIF(Table4[Year],W99,Table4[Avg effluent NH3]),\"\")","v":""},{"$f":"IFERROR(AVERAGEIF(Table4[Year],W99,Table4[Avg effluent NOx]),\"\")","v":""},"",null,{"$f":"IFERROR(IF(SUMPRODUCT(--(Table4[Year]=W99),--(Table4[Monthly Flow]<>\"\"))/SUMPRODUCT(--(Table4[Year]=W99),--(Table4[Approx TN removal (lbs)]<>\"\"))<=3,AVERAGEIF(Table4[Year],W99,Table4[Approx TN removal (lbs)]),\"Insufficient Data\"),\"\")","v":""}]
[null,3,{"$f":"TEXT(DATE(YEAR(B$28),MONTH(B$28),DAY(B$28)),\"mmm yyyy\")&\" - \"&TEXT(DATE(YEAR(B$39),MONTH(B$39),DAY(B$39)),\"mmm yyyy\")","v":"Aug 2019 - Jul 2020"},{"$f":"IFERROR(AVERAGEIF(Table4[Year],B100,Table4[Avg Daily Flow]),\"\")","v":""},{"$f":"SUMIF(Table4[Year],B100,Table4[Monthly Flow])","v":0},{"$f":"SUMPRODUCT(Table4[Monthly Flow],--(Table4[Year]=B100),--(Table4[Monthly Flow]<>\"\"),--(Table4[Total Energy Usage]<>\"\"))","v":0},{"$f":"SUMPRODUCT(Table4[Total Energy Usage],--(Table4[Year]=B100),--(Table4[Monthly Flow]<>\"\"),--(Table4[Electric kWh usage]<>\"\"))","v":0},{"$error":"#DIV/0!"},{"$f":"SUMPRODUCT(--(Table4[Monthly Flow]<>\"\"),--(Table4[Total Energy Usage]<>\"\"),--(Table4[Year]=B100))","v":0},null,null,null,null,null,null,null,null,null,null,null,null,null,4,{"$f":"TEXT(DATE(YEAR(B$40),MONTH(B$40),DAY(B$40)),\"mmm yyyy\")&\" - \"&TEXT(DATE(YEAR(B$51),MONTH(B$51),DAY(B$51)),\"mmm yyyy\")","v":"Aug 2020 - Jul 2021"},{"$f":"IFERROR(AVERAGEIF(Table4[Year],W100,Table4[Avg effluent TKN]),\"\")","v":""},{"$f":"IFERROR(AVERAGEIF(Table4[Year],W100,Table4[Avg effluent NH3]),\"\")","v":""},{"$f":"IFERROR(AVERAGEIF(Table4[Year],W100,Table4[Avg effluent NOx]),\"\")","v":""},"",null,{"$f":"IFERROR(IF(SUMPRODUCT(--(Table4[Year]=W100),--(Table4[Monthly Flow]<>\"\"))/SUMPRODUCT(--(Table4[Year]=W100),--(Table4[Approx TN removal (lbs)]<>\"\"))<=3,AVERAGEIF(Table4[Year],W100,Table4[Approx TN removal (lbs)]),\"Insufficient Data\"),\"\")","v":""}]
[null,4,{"$f":"TEXT(DATE(YEAR(B$40),MONTH(B$40),DAY(B$40)),\"mmm yyyy\")&\" - \"&TEXT(DATE(YEAR(B$51),MONTH(B$51),DAY(B$51)),\"mmm yyyy\")","v":"Aug 2020 - Jul 2021"},{"$f":"IFERROR(AVERAGEIF(Table4[Year],B101,Table4[Avg Daily Flow]),\"\")","v":""},{"$f":"SUMIF(Table4[Year],B101,Table4[Monthly Flow])","v":0},{"$f":"SUMPRODUCT(Table4[Monthly Flow],--(Table4[Year]=B101),--(Table4[Monthly Flow]<>\"\"),--(Table4[Total Energy Usage]<>\"\"))","v":0},{"$f":"SUMPRODUCT(Table4[Total Energy Usage],--(Table4[Year]=B101),--(Table4[Monthly Flow]<>\"\"),--(Table4[Electric kWh usage]<>\"\"))","v":0},{"$error":"#DIV/0!"},{"$f":"SUMPRODUCT(--(Table4[Monthly Flow]<>\"\"),--(Table4[Total Energy Usage]<>\"\"),--(Table4[Year]=B101))","v":0},null,null,null,null,null,null,null,null,null,null,null,null,null,5,{"$f":"TEXT(DATE(YEAR(B$52),MONTH(B$52),DAY(B$52)),\"mmm yyyy\")&\" - \"&TEXT(DATE(YEAR(B$63),MONTH(B$63),DAY(B$63)),\"mmm yyyy\")","v":"Aug 2021 - Jul 2022"},{"$f":"IFERROR(AVERAGEIF(Table4[Year],W101,Table4[Avg effluent TKN]),\"\")","v":""},{"$f":"IFERROR(AVERAGEIF(Table4[Year],W101,Table4[Avg effluent NH3]),\"\")","v":""},{"$f":"IFERROR(AVERAGEIF(Table4[Year],W101,Table4[Avg effluent NOx]),\"\")","v":""},"",null,{"$f":"IFERROR(IF(SUMPRODUCT(--(Table4[Year]=W101),--(Table4[Monthly Flow]<>\"\"))/SUMPRODUCT(--(Table4[Year]=W101),--(Table4[Approx TN removal (lbs)]<>\"\"))<=3,AVERAGEIF(Table4[Year],W101,Table4[Approx TN removal (lbs)]),\"Insufficient Data\"),\"\")","v":""}]
[null,5,{"$f":"TEXT(DATE(YEAR(B$52),MONTH(B$52),DAY(B$52)),\"mmm yyyy\")&\" - \"&TEXT(DATE(YEAR(B$63),MONTH(B$63),DAY(B$63)),\"mmm yyyy\")","v":"Aug 2021 - Jul 2022"},{"$f":"IFERROR(AVERAGEIF(Table4[Year],B102,Table4[Avg Daily Flow]),\"\")","v":""},{"$f":"SUMIF(Table4[Year],B102,Table4[Monthly Flow])","v":0},{"$f":"SUMPRODUCT(Table4[Monthly Flow],--(Table4[Year]=B102),--(Table4[Monthly Flow]<>\"\"),--(Table4[Total Energy Usage]<>\"\"))","v":0},{"$f":"SUMPRODUCT(Table4[Total Energy Usage],--(Table4[Year]=B102),--(Table4[Monthly Flow]<>\"\"),--(Table4[Electric kWh usage]<>\"\"))","v":0},{"$error":"#DIV/0!"},{"$f":"SUMPRODUCT(--(Table4[Monthly Flow]<>\"\"),--(Table4[Total Energy Usage]<>\"\"),--(Table4[Year]=B102))","v":0},null,null,null,null,null,null,null,null,null,null,null,null,null,6,{"$f":"TEXT(DATE(YEAR(B$64),MONTH(B$64),DAY(B$64)),\"mmm yyyy\")&\" - \"&TEXT(DATE(YEAR(B$75),MONTH(B$75),DAY(B$75)),\"mmm yyyy\")","v":"Aug 2022 - Jul 2023"},{"$f":"IFERROR(AVERAGEIF(Table4[Year],W102,Table4[Avg effluent TKN]),\"\")","v":""},{"$f":"IFERROR(AVERAGEIF(Table4[Year],W102,Table4[Avg effluent NH3]),\"\")","v":""},{"$f":"IFERROR(AVERAGEIF(Table4[Year],W102,Table4[Avg effluent NOx]),\"\")","v":""},"",null,{"$f":"IFERROR(IF(SUMPRODUCT(--(Table4[Year]=W102),--(Table4[Monthly Flow]<>\"\"))/SUMPRODUCT(--(Table4[Year]=W102),--(Table4[Approx TN removal (lbs)]<>\"\"))<=3,AVERAGEIF(Table4[Year],W102,Table4[Approx TN removal (lbs)]),\"Insufficient Data\"),\"\")","v":""}]
[null,6,{"$f":"TEXT(DATE(YEAR(B$64),MONTH(B$64),DAY(B$64)),\"mmm yyyy\")&\" - \"&TEXT(DATE(YEAR(B$75),MONTH(B$75),DAY(B$75)),\"mmm yyyy\")","v":"Aug 2022 - Jul 2023"},{"$f":"IFERROR(AVERAGEIF(Table4[Year],B103,Table4[Avg Daily Flow]),\"\")","v":""},{"$f":"SUMIF(Table4[Year],B103,Table4[Monthly Flow])","v":0},{"$f":"SUMPRODUCT(Table4[Monthly Flow],--(Table4[Year]=B103),--(Table4[Monthly Flow]<>\"\"),--(Table4[Total Energy Usage]<>\"\"))","v":0},{"$f":"SUMPRODUCT(Table4[Total Energy Usage],--(Table4[Year]=B103),--(Table4[Monthly Flow]<>\"\"),--(Table4[Electric kWh usage]<>\"\"))","v":0},{"$error":"#DIV/0!"},{"$f":"SUMPRODUCT(--(Table4[Monthly Flow]<>\"\"),--(Table4[Total Energy Usage]<>\"\"),--(Table4[Year]=B103))","v":0},null,null,null,null,null,null,null,null,null,null,null,null,null,7,{"$f":"TEXT(DATE(YEAR(B$76),MONTH(B$76),DAY(B$76)),\"mmm yyyy\")&\" - \"&TEXT(DATE(YEAR(B$87),MONTH(B$87),DAY(B$87)),\"mmm yyyy\")","v":"Aug 2023 - Jul 2024"},{"$f":"IFERROR(AVERAGEIF(Table4[Year],W103,Table4[Avg effluent TKN]),\"\")","v":""},{"$f":"IFERROR(AVERAGEIF(Table4[Year],W103,Table4[Avg effluent NH3]),\"\")","v":""},{"$f":"IFERROR(AVERAGEIF(Table4[Year],W103,Table4[Avg effluent NOx]),\"\")","v":""},"",null,{"$f":"IFERROR(IF(SUMPRODUCT(--(Table4[Year]=W103),--(Table4[Monthly Flow]<>\"\"))/SUMPRODUCT(--(Table4[Year]=W103),--(Table4[Approx TN removal (lbs)]<>\"\"))<=3,AVERAGEIF(Table4[Year],W103,Table4[Approx TN removal (lbs)]),\"Insufficient Data\"),\"\")","v":""}]
[null,7,{"$f":"TEXT(DATE(YEAR(B$76),MONTH(B$76),DAY(B$76)),\"mmm yyyy\")&\" - \"&TEXT(DATE(YEAR(B$87),MONTH(B$87),DAY(B$87)),\"mmm yyyy\")","v":"Aug 2023 - Jul 2024"},{"$f":"IFERROR(AVERAGEIF(Table4[Year],B104,Table4[Avg Daily Flow]),\"\")","v":""},{"$f":"SUMIF(Table4[Year],B104,Table4[Monthly Flow])","v":0},{"$f":"SUMPRODUCT(Table4[Monthly Flow],--(Table4[Year]=B104),--(Table4[Monthly Flow]<>\"\"),--(Table4[Total Energy Usage]<>\"\"))","v":0},{"$f":"SUMPRODUCT(Table4[Total Energy Usage],--(Table4[Year]=B104),--(Table4[Monthly Flow]<>\"\"),--(Table4[Electric kWh usage]<>\"\"))","v":0},{"$error":"#DIV/0!"},{"$f":"SUMPRODUCT(--(Table4[Monthly Flow]<>\"\"),--(Table4[Total Energy Usage]<>\"\"),--(Table4[Year]=B104))","v":0}]
[]
[]
[null,null,null,null,null,"Summary of BOD efficiency calculations"]
[null,null,"Labels","Avg BOD removal","Total BOD removal","Counted BOD removal","Counted Energy","Avg kWh/lb BOD removed","Months Reporting",null,null,null,null,null,null,null,null,null,null,null,null,null,"Year","Year","Avg TP influent","Avg TP effluent","Approx. TP removal (mg/L)","Approx TP removal (lbs/year)","Avg TP removal (lbs/mo)"]
[null,"Year",null,"lbs/d","lbs","lbs","kWh-eq",null,null,null,null,null,null,null,null,null,null,null,null,null,null,null,1,{"$f":"TEXT(DATE(YEAR(B$4),MONTH(B$4),DAY(B$4)),\"mmm yyyy\")&\" - \"&TEXT(DATE(YEAR(B$15),MONTH(B$15),DAY(B$15)),\"mmm yyyy\")","v":"Aug 2017 - Jul 2018"},{"$f":"IFERROR(AVERAGEIF(Table4[Year],W109,Table4[Avg influent TP]),\"\")","v":""},{"$f":"IFERROR(AVERAGEIF(Table4[Year],W109,Table4[Avg effluent TP]),\"\")","v":""},{"$f":"IF(OR(Y109=\"\", Z109=\"\"),\"Insufficient Data\",Y109-Z109)","v":"Insufficient Data"},{"$f":"IFERROR(IF(SUMPRODUCT(--(Table4[Year]=W109),--(Table4[Monthly Flow]<>0))/SUMPRODUCT(--(Table4[Year]=W109),--(Table4[Calculated TP removal (lbs)]<>\"\"))>3,\"Insufficient Data\",AA109*E98*8.34),\"Insufficient Data\")","v":"Insufficient Data"},{"$f":"IFERROR(AVERAGEIF(Table4[Year],W109,Table4[Calculated TP removal (lbs)]),\"\")","v":""}]
[null,1,{"$f":"TEXT(DATE(YEAR(B$4),MONTH(B$4),DAY(B$4)),\"mmm yyyy\")&\" - \"&TEXT(DATE(YEAR(B$15),MONTH(B$15),DAY(B$15)),\"mmm yyyy\")","v":"Aug 2017 - Jul 2018"},{"$f":"AVERAGEIF(Table4[Year],B110,Table4[BOD removed])","v":{"$error":"#DIV/0!"}},{"$f":"SUMIF(Table4[Year],B110,Table4[Total BOD removed])","v":0},{"$f":"SUMPRODUCT(Table4[Total BOD removed],--(Table4[Total Energy Usage]<>\"\"),--(Table4[Year]=B110))","v":0},{"$f":"SUMPRODUCT(Table4[Total Energy Usage],--(Table4[Year]=B110),--(Table4[Total BOD removed]<>\"\"),--(Table4[Total Energy Usage]<>\"\"))","v":0},{"$f":"G110/F110","v":{"$error":"#DIV/0!"}},{"$f":"SUMPRODUCT(--(Table4[Total BOD removed]<>\"\"),--(Table4[Total Energy Usage]<>\"\"),--(Table4[Year]=B110))","v":0},null,null,null,null,null,null,null,null,null,null,null,null,null,2,{"$f":"TEXT(DATE(YEAR(B$16),MONTH(B$16),DAY(B$16)),\"mmm yyyy\")&\" - \"&TEXT(DATE(YEAR(B$27),MONTH(B$27),DAY(B$27)),\"mmm yyyy\")","v":"Aug 2018 - Jul 2019"},{"$f":"IFERROR(AVERAGEIF(Table4[Year],W110,Table4[Avg influent TP]),\"\")","v":""},{"$f":"IFERROR(AVERAGEIF(Table4[Year],W110,Table4[Avg effluent TP]),\"\")","v":""},"Insufficient Data",{"$f":"IFERROR(IF(SUMPRODUCT(--(Table4[Year]=W110),--(Table4[Monthly Flow]<>0))/SUMPRODUCT(--(Table4[Year]=W110),--(Table4[Calculated TP removal (lbs)]<>\"\"))>3,\"Insufficient Data\",AA110*E99*8.34),\"Insufficient Data\")","v":"Insufficient Data"},{"$f":"IFERROR(AVERAGEIF(Table4[Year],W110,Table4[Calculated TP removal (lbs)]),\"\")","v":""}]
[null,2,{"$f":"TEXT(DATE(YEAR(B$16),MONTH(B$16),DAY(B$16)),\"mmm yyyy\")&\" - \"&TEXT(DATE(YEAR(B$27),MONTH(B$27),DAY(B$27)),\"mmm yyyy\")","v":"Aug 2018 - Jul 2019"},{"$f":"AVERAGEIF(Table4[Year],B99,Table4[BOD removed])","v":{"$error":"#DIV/0!"}},{"$f":"SUMIF(Table4[Year],B111,Table4[Total BOD removed])","v":0},{"$f":"SUMPRODUCT(Table4[Total BOD removed],--(Table4[Total BOD removed]<>\"\"),--(Table4[Total Energy Usage]<>\"\"),--(Table4[Year]=B111))","v":0},{"$f":"SUMPRODUCT(Table4[Total Energy Usage],--(Table4[Year]=B111),--(Table4[Total BOD removed]<>\"\"),--(Table4[Total Energy Usage]<>\"\"))","v":0},{"$f":"G111/F111","v":{"$error":"#DIV/0!"}},{"$f":"SUMPRODUCT(--(Table4[Total BOD removed]<>\"\"),--(Table4[Total Energy Usage]<>\"\"),--(Table4[Year]=B111))","v":0},null,null,null,null,null,null,null,null,null,null,null,null,null,3,{"$f":"TEXT(DATE(YEAR(B$28),MONTH(B$28),DAY(B$28)),\"mmm yyyy\")&\" - \"&TEXT(DATE(YEAR(B$39),MONTH(B$39),DAY(B$39)),\"mmm yyyy\")","v":"Aug 2019 - Jul 2020"},{"$f":"IFERROR(AVERAGEIF(Table4[Year],W111,Table4[Avg influent TP]),\"\")","v":""},{"$f":"IFERROR(AVERAGEIF(Table4[Year],W111,Table4[Avg effluent TP]),\"\")","v":""},"Insufficient Data",{"$f":"IFERROR(IF(SUMPRODUCT(--(Table4[Year]=W111),--(Table4[Monthly Flow]<>0))/SUMPRODUCT(--(Table4[Year]=W111),--(Table4[Calculated TP removal (lbs)]<>\"\"))>3,\"Insufficient Data\",AA111*E100*8.34),\"Insufficient Data\")","v":"Insufficient Data"},{"$f":"IFERROR(AVERAGEIF(Table4[Year],W111,Table4[Calculated TP removal (lbs)]),\"\")","v":""}]
[null,3,{"$f":"TEXT(DATE(YEAR(B$28),MONTH(B$28),DAY(B$28)),\"mmm yyyy\")&\" - \"&TEXT(DATE(YEAR(B$39),MONTH(B$39),DAY(B$39)),\"mmm yyyy\")","v":"Aug 2019 - Jul 2020"},{"$f":"AVERAGEIF(Table4[Year],B100,Table4[BOD removed])","v":{"$error":"#DIV/0!"}},{"$f":"SUMIF(Table4[Year],B112,Table4[Total BOD removed])","v":0},{"$f":"SUMPRODUCT(Table4[Total BOD removed],--(Table4[Total BOD removed]<>\"\"),--(Table4[Total Energy Usage]<>\"\"),--(Table4[Year]=B112))","v":0},{"$f":"SUMPRODUCT(Table4[Total Energy Usage],--(Table4[Year]=B112),--(Table4[Total BOD removed]<>\"\"),--(Table4[Total Energy Usage]<>\"\"))","v":0},{"$error":"#DIV/0!"},{"$f":"SUMPRODUCT(--(Table4[Total BOD removed]<>\"\"),--(Table4[Total Energy Usage]<>\"\"),--(Table4[Year]=B112))","v":0},null,null,null,null,null,null,null,null,null,null,null,null,null,4,{"$f":"TEXT(DATE(YEAR(B$40),MONTH(B$40),DAY(B$40)),\"mmm yyyy\")&\" - \"&TEXT(DATE(YEAR(B$51),MONTH(B$51),DAY(B$51)),\"mmm yyyy\")","v":"Aug 2020 - Jul 2021"},{"$f":"IFERROR(AVERAGEIF(Table4[Year],W112,Table4[Avg influent TP]),\"\")","v":""},{"$f":"IFERROR(AVERAGEIF(Table4[Year],W112,Table4[Avg effluent TP]),\"\")","v":""},"Insufficient Data",{"$f":"IFERROR(IF(SUMPRODUCT(--(Table4[Year]=W112),--(Table4[Monthly Flow]<>0))/SUMPRODUCT(--(Table4[Year]=W112),--(Table4[Calculated TP removal (lbs)]<>\"\"))>3,\"Insufficient Data\",AA112*E101*8.34),\"Insufficient Data\")","v":"Insufficient Data"},{"$f":"IFERROR(AVERAGEIF(Table4[Year],W112,Table4[Calculated TP removal (lbs)]),\"\")","v":""}]
[null,4,{"$f":"TEXT(DATE(YEAR(B$40),MONTH(B$40),DAY(B$40)),\"mmm yyyy\")&\" - \"&TEXT(DATE(YEAR(B$51),MONTH(B$51),DAY(B$51)),\"mmm yyyy\")","v":"Aug 2020 - Jul 2021"},{"$f":"AVERAGEIF(Table4[Year],B101,Table4[BOD removed])","v":{"$error":"#DIV/0!"}},{"$f":"SUMIF(Table4[Year],B113,Table4[Total BOD removed])","v":0},{"$f":"SUMPRODUCT(Table4[Total BOD removed],--(Table4[Total BOD removed]<>\"\"),--(Table4[Total Energy Usage]<>\"\"),--(Table4[Year]=B113))","v":0},{"$f":"SUMPRODUCT(Table4[Total Energy Usage],--(Table4[Year]=B113),--(Table4[Total BOD removed]<>\"\"),--(Table4[Total Energy Usage]<>\"\"))","v":0},{"$error":"#DIV/0!"},{"$f":"SUMPRODUCT(--(Table4[Total BOD removed]<>\"\"),--(Table4[Total Energy Usage]<>\"\"),--(Table4[Year]=B113))","v":0},null,null,null,null,null,null,null,null,null,null,null,null,null,5,{"$f":"TEXT(DATE(YEAR(B$52),MONTH(B$52),DAY(B$52)),\"mmm yyyy\")&\" - \"&TEXT(DATE(YEAR(B$63),MONTH(B$63),DAY(B$63)),\"mmm yyyy\")","v":"Aug 2021 - Jul 2022"},{"$f":"IFERROR(AVERAGEIF(Table4[Year],W113,Table4[Avg influent TP]),\"\")","v":""},{"$f":"IFERROR(AVERAGEIF(Table4[Year],W113,Table4[Avg effluent TP]),\"\")","v":""},"Insufficient Data",{"$f":"IFERROR(IF(SUMPRODUCT(--(Table4[Year]=W113),--(Table4[Monthly Flow]<>0))/SUMPRODUCT(--(Table4[Year]=W113),--(Table4[Calculated TP removal (lbs)]<>\"\"))>3,\"Insufficient Data\",AA113*E102*8.34),\"Insufficient Data\")","v":"Insufficient Data"},{"$f":"IFERROR(AVERAGEIF(Table4[Year],W113,Table4[Calculated TP removal (lbs)]),\"\")","v":""}]
[null,5,{"$f":"TEXT(DATE(YEAR(B$52),MONTH(B$52),DAY(B$52)),\"mmm yyyy\")&\" - \"&TEXT(DATE(YEAR(B$63),MONTH(B$63),DAY(B$63)),\"mmm yyyy\")","v":"Aug 2021 - Jul 2022"},{"$f":"AVERAGEIF(Table4[Year],B102,Table4[BOD removed])","v":{"$error":"#DIV/0!"}},{"$f":"SUMIF(Table4[Year],B114,Table4[Total BOD removed])","v":0},{"$f":"SUMPRODUCT(Table4[Total BOD removed],--(Table4[Total BOD removed]<>\"\"),--(Table4[Total Energy Usage]<>\"\"),--(Table4[Year]=B114))","v":0},{"$f":"SUMPRODUCT(Table4[Total Energy Usage],--(Table4[Year]=B114),--(Table4[Total BOD removed]<>\"\"),--(Table4[Total Energy Usage]<>\"\"))","v":0},{"$error":"#DIV/0!"},{"$f":"SUMPRODUCT(--(Table4[Total BOD removed]<>\"\"),--(Table4[Total Energy Usage]<>\"\"),--(Table4[Year]=B114))","v":0},null,null,null,null,null,null,null,null,null,null,null,null,null,6,{"$f":"TEXT(DATE(YEAR(B$64),MONTH(B$64),DAY(B$64)),\"mmm yyyy\")&\" - \"&TEXT(DATE(YEAR(B$75),MONTH(B$75),DAY(B$75)),\"mmm yyyy\")","v":"Aug 2022 - Jul 2023"},{"$f":"IFERROR(AVERAGEIF(Table4[Year],W114,Table4[Avg influent TP]),\"\")","v":""},{"$f":"IFERROR(AVERAGEIF(Table4[Year],W114,Table4[Avg effluent TP]),\"\")","v":""},"Insufficient Data",{"$f":"IFERROR(IF(SUMPRODUCT(--(Table4[Year]=W114),--(Table4[Monthly Flow]<>0))/SUMPRODUCT(--(Table4[Year]=W114),--(Table4[Calculated TP removal (lbs)]<>\"\"))>3,\"Insufficient Data\",AA114*E103*8.34),\"Insufficient Data\")","v":"Insufficient Data"},{"$f":"IFERROR(AVERAGEIF(Table4[Year],W114,Table4[Calculated TP removal (lbs)]),\"\")","v":""}]
[null,6,{"$f":"TEXT(DATE(YEAR(B$64),MONTH(B$64),DAY(B$64)),\"mmm yyyy\")&\" - \"&TEXT(DATE(YEAR(B$75),MONTH(B$75),DAY(B$75)),\"mmm yyyy\")","v":"Aug 2022 - Jul 2023"},{"$f":"AVERAGEIF(Table4[Year],B103,Table4[BOD removed])","v":{"$error":"#DIV/0!"}},{"$f":"SUMIF(Table4[Year],B115,Table4[Total BOD removed])","v":0},{"$f":"SUMPRODUCT(Table4[Total BOD removed],--(Table4[Total BOD removed]<>\"\"),--(Table4[Total Energy Usage]<>\"\"),--(Table4[Year]=B115))","v":0},{"$f":"SUMPRODUCT(Table4[Total Energy Usage],--(Table4[Year]=B115),--(Table4[Total BOD removed]<>\"\"),--(Table4[Total Energy Usage]<>\"\"))","v":0},{"$error":"#DIV/0!"},{"$f":"SUMPRODUCT(--(Table4[Total BOD removed]<>\"\"),--(Table4[Total Energy Usage]<>\"\"),--(Table4[Year]=B115))","v":0},null,null,null,null,null,null,null,null,null,null,null,null,null,7,{"$f":"TEXT(DATE(YEAR(B$76),MONTH(B$76),DAY(B$76)),\"mmm yyyy\")&\" - \"&TEXT(DATE(YEAR(B$87),MONTH(B$87),DAY(B$87)),\"mmm yyyy\")","v":"Aug 2023 - Jul 2024"},{"$f":"IFERROR(AVERAGEIF(Table4[Year],W115,Table4[Avg influent TP]),\"\")","v":""},{"$f":"IFERROR(AVERAGEIF(Table4[Year],W115,Table4[Avg effluent TP]),\"\")","v":""},"Insufficient Data",{"$f":"IFERROR(IF(SUMPRODUCT(--(Table4[Year]=W115),--(Table4[Monthly Flow]<>0))/SUMPRODUCT(--(Table4[Year]=W115),--(Table4[Calculated TP removal (lbs)]<>\"\"))>3,\"Insufficient Data\",AA115*E104*8.34),\"Insufficient Data\")","v":"Insufficient Data"},{"$f":"IFERROR(AVERAGEIF(Table4[Year],W115,Table4[Calculated TP removal (lbs)]),\"\")","v":""}]
[null,7,{"$f":"TEXT(DATE(YEAR(B$76),MONTH(B$76),DAY(B$76)),\"mmm yyyy\")&\" - \"&TEXT(DATE(YEAR(B$87),MONTH(B$87),DAY(B$87)),\"mmm yyyy\")","v":"Aug 2023 - Jul 2024"},{"$f":"AVERAGEIF(Table4[Year],B104,Table4[BOD removed])","v":{"$error":"#DIV/0!"}},{"$f":"SUMIF(Table4[Year],B116,Table4[Total BOD removed])","v":0},{"$f":"SUMPRODUCT(Table4[Total BOD removed],--(Table4[Total BOD removed]<>\"\"),--(Table4[Total Energy Usage]<>\"\"),--(Table4[Year]=B116))","v":0},{"$f":"SUMPRODUCT(Table4[Total Energy Usage],--(Table4[Year]=B116),--(Table4[Total BOD removed]<>\"\"),--(Table4[Total Energy Usage]<>\"\"))","v":0},{"$error":"#DIV/0!"},{"$f":"SUMPRODUCT(--(Table4[Total BOD removed]<>\"\"),--(Table4[Total Energy Usage]<>\"\"),--(Table4[Year]=B116))","v":0}]
[]
[null,null,null,null,null,"Summary of Cost per Flow calculations"]
[null,null,"Labels","Avg Daily Flow","Annual Flow Treated","Counted Flow","Counted Energy Cost","$/MG","Months Reporting"]
[null,"Year",null,"MGD","MG"]
[null,1,{"$f":"TEXT(DATE(YEAR(B$4),MONTH(B$4),DAY(B$4)),\"mmm yyyy\")&\" - \"&TEXT(DATE(YEAR(B$15),MONTH(B$15),DAY(B$15)),\"mmm yyyy\")","v":"Aug 2017 - Jul 2018"},{"$f":"AVERAGEIF(Table4[Year],B121,Table4[Avg Daily Flow])","v":{"$error":"#DIV/0!"}},{"$f":"SUMIF(Table4[Year],B121,Table4[Monthly Flow])","v":0},{"$f":"SUMPRODUCT(Table4[Monthly Flow],--(Table4[Year]=B121),--(Table4[Monthly Flow]<>\"\"),--(Table4[Total Energy Cost]<>\"\"))","v":0},{"$f":"SUMPRODUCT(Table4[Total Energy Cost],--(Table4[Year]=B121),--(Table4[Monthly Flow]<>\"\"),--(Table4[Total Energy Cost]<>\"\"))","v":0},{"$f":"G121/F121","v":{"$error":"#DIV/0!"}},{"$f":"SUMPRODUCT(--(Table4[Monthly Flow]<>\"\"),--(Table4[Total Energy Cost]<>\"\"),--(Table4[Year]=B121))","v":0}]
[null,2,{"$f":"TEXT(DATE(YEAR(B$16),MONTH(B$16),DAY(B$16)),\"mmm yyyy\")&\" - \"&TEXT(DATE(YEAR(B$27),MONTH(B$27),DAY(B$27)),\"mmm yyyy\")","v":"Aug 2018 - Jul 2019"},{"$f":"AVERAGEIF(Table4[Year],B122,Table4[Avg Daily Flow])","v":{"$error":"#DIV/0!"}},{"$f":"SUMIF(Table4[Year],B122,Table4[Monthly Flow])","v":0},{"$f":"SUMPRODUCT(Table4[Monthly Flow],--(Table4[Year]=B122),--(Table4[Monthly Flow]<>\"\"),--(Table4[Total Energy Cost]<>\"\"))","v":0},{"$f":"SUMPRODUCT(Table4[Total Energy Cost],--(Table4[Year]=B122),--(Table4[Monthly Flow]<>\"\"),--(Table4[Total Energy Cost]<>\"\"))","v":0},{"$f":"G122/F122","v":{"$error":"#DIV/0!"}},{"$f":"SUMPRODUCT(--(Table4[Monthly Flow]<>\"\"),--(Table4[Total Energy Cost]<>\"\"),--(Table4[Year]=B122))","v":0}]
[null,3,{"$f":"TEXT(DATE(YEAR(B$28),MONTH(B$28),DAY(B$28)),\"mmm yyyy\")&\" - \"&TEXT(DATE(YEAR(B$39),MONTH(B$39),DAY(B$39)),\"mmm yyyy\")","v":"Aug 2019 - Jul 2020"},{"$f":"AVERAGEIF(Table4[Year],B123,Table4[Avg Daily Flow])","v":{"$error":"#DIV/0!"}},{"$f":"SUMIF(Table4[Year],B123,Table4[Monthly Flow])","v":0},{"$f":"SUMPRODUCT(Table4[Monthly Flow],--(Table4[Year]=B123),--(Table4[Monthly Flow]<>\"\"),--(Table4[Total Energy Cost]<>\"\"))","v":0},{"$f":"SUMPRODUCT(Table4[Total Energy Cost],--(Table4[Year]=B123),--(Table4[Monthly Flow]<>\"\"),--(Table4[Total Energy Cost]<>\"\"))","v":0},{"$error":"#DIV/0!"},{"$f":"SUMPRODUCT(--(Table4[Monthly Flow]<>\"\"),--(Table4[Total Energy Cost]<>\"\"),--(Table4[Year]=B123))","v":0}]
[null,4,{"$f":"TEXT(DATE(YEAR(B$40),MONTH(B$40),DAY(B$40)),\"mmm yyyy\")&\" - \"&TEXT(DATE(YEAR(B$51),MONTH(B$51),DAY(B$51)),\"mmm yyyy\")","v":"Aug 2020 - Jul 2021"},{"$f":"AVERAGEIF(Table4[Year],B124,Table4[Avg Daily Flow])","v":{"$error":"#DIV/0!"}},{"$f":"SUMIF(Table4[Year],B124,Table4[Monthly Flow])","v":0},{"$f":"SUMPRODUCT(Table4[Monthly Flow],--(Table4[Year]=B124),--(Table4[Monthly Flow]<>\"\"),--(Table4[Total Energy Cost]<>\"\"))","v":0},{"$f":"SUMPRODUCT(Table4[Total Energy Cost],--(Table4[Year]=B124),--(Table4[Monthly Flow]<>\"\"),--(Table4[Total Energy Cost]<>\"\"))","v":0},{"$error":"#DIV/0!"},{"$f":"SUMPRODUCT(--(Table4[Monthly Flow]<>\"\"),--(Table4[Total Energy Cost]<>\"\"),--(Table4[Year]=B124))","v":0}]
[null,5,{"$f":"TEXT(DATE(YEAR(B$52),MONTH(B$52),DAY(B$52)),\"mmm yyyy\")&\" - \"&TEXT(DATE(YEAR(B$63),MONTH(B$63),DAY(B$63)),\"mmm yyyy\")","v":"Aug 2021 - Jul 2022"},{"$f":"AVERAGEIF(Table4[Year],B125,Table4[Avg Daily Flow])","v":{"$error":"#DIV/0!"}},{"$f":"SUMIF(Table4[Year],B125,Table4[Monthly Flow])","v":0},{"$f":"SUMPRODUCT(Table4[Monthly Flow],--(Table4[Year]=B125),--(Table4[Monthly Flow]<>\"\"),--(Table4[Total Energy Cost]<>\"\"))","v":0},{"$f":"SUMPRODUCT(Table4[Total Energy Cost],--(Table4[Year]=B125),--(Table4[Monthly Flow]<>\"\"),--(Table4[Total Energy Cost]<>\"\"))","v":0},{"$error":"#DIV/0!"},{"$f":"SUMPRODUCT(--(Table4[Monthly Flow]<>\"\"),--(Table4[Total Energy Cost]<>\"\"),--(Table4[Year]=B125))","v":0}]
[null,6,{"$f":"TEXT(DATE(YEAR(B$64),MONTH(B$64),DAY(B$64)),\"mmm yyyy\")&\" - \"&TEXT(DATE(YEAR(B$75),MONTH(B$75),DAY(B$75)),\"mmm yyyy\")","v":"Aug 2022 - Jul 2023"},{"$f":"AVERAGEIF(Table4[Year],B126,Table4[Avg Daily Flow])","v":{"$error":"#DIV/0!"}},{"$f":"SUMIF(Table4[Year],B126,Table4[Monthly Flow])","v":0},{"$f":"SUMPRODUCT(Table4[Monthly Flow],--(Table4[Year]=B126),--(Table4[Monthly Flow]<>\"\"),--(Table4[Total Energy Cost]<>\"\"))","v":0},{"$f":"SUMPRODUCT(Table4[Total Energy Cost],--(Table4[Year]=B126),--(Table4[Monthly Flow]<>\"\"),--(Table4[Total Energy Cost]<>\"\"))","v":0},{"$error":"#DIV/0!"},{"$f":"SUMPRODUCT(--(Table4[Monthly Flow]<>\"\"),--(Table4[Total Energy Cost]<>\"\"),--(Table4[Year]=B126))","v":0}]
[null,7,{"$f":"TEXT(DATE(YEAR(B$76),MONTH(B$76),DAY(B$76)),\"mmm yyyy\")&\" - \"&TEXT(DATE(YEAR(B$87),MONTH(B$87),DAY(B$87)),\"mmm yyyy\")","v":"Aug 2023 - Jul 2024"},{"$f":"AVERAGEIF(Table4[Year],B127,Table4[Avg Daily Flow])","v":{"$error":"#DIV/0!"}},{"$f":"SUMIF(Table4[Year],B127,Table4[Monthly Flow])","v":0},{"$f":"SUMPRODUCT(Table4[Monthly Flow],--(Table4[Year]=B127),--(Table4[Monthly Flow]<>\"\"),--(Table4[Total Energy Cost]<>\"\"))","v":0},{"$f":"SUMPRODUCT(Table4[Total Energy Cost],--(Table4[Year]=B127),--(Table4[Monthly Flow]<>\"\"),--(Table4[Total Energy Cost]<>\"\"))","v":0},{"$error":"#DIV/0!"},{"$f":"SUMPRODUCT(--(Table4[Monthly Flow]<>\"\"),--(Table4[Total Energy Cost]<>\"\"),--(Table4[Year]=B127))","v":0}]
[]
[]
[]
[]
[null,null,null,null,null,"Summary of Cost per lb BOD calculations"]
[null,null,"Labels","Avg BOD removal","Total BOD removal","Counted BOD removal","Counted Energy Cost","$/lb BOD","Months Reporting"]
[null,"Year",null,"lbs/d","lbs","lbs","$"]
[null,1,{"$f":"TEXT(DATE(YEAR(B$4),MONTH(B$4),DAY(B$4)),\"mmm yyyy\")&\" - \"&TEXT(DATE(YEAR(B$15),MONTH(B$15),DAY(B$15)),\"mmm yyyy\")","v":"Aug 2017 - Jul 2018"},{"$f":"IFERROR(AVERAGEIF(Table4[Year],B135,Table4[BOD removed]),\"\")","v":""},{"$f":"SUMIF(Table4[Year],B135,Table4[Total BOD removed])","v":0},{"$f":"SUMPRODUCT(Table4[Total BOD removed],--(Table4[Total BOD removed]<>\"\"),--(Table4[Total Energy Cost]<>\"\"),--(Table4[Year]=B135))","v":0},{"$f":"SUMPRODUCT(Table4[Total Energy Cost],--(Table4[Year]=B135),--(Table4[Total BOD removed]<>\"\"),--(Table4[Total Energy Cost]<>\"\"))","v":0},{"$f":"G135/F135","v":{"$error":"#DIV/0!"}},{"$f":"SUMPRODUCT(--(Table4[Total BOD removed]<>\"\"),--(Table4[Total Energy Cost]<>\"\"),--(Table4[Year]=B135))","v":0}]
[null,2,{"$f":"TEXT(DATE(YEAR(B$16),MONTH(B$16),DAY(B$16)),\"mmm yyyy\")&\" - \"&TEXT(DATE(YEAR(B$27),MONTH(B$27),DAY(B$27)),\"mmm yyyy\")","v":"Aug 2018 - Jul 2019"},{"$f":"IFERROR(AVERAGEIF(Table4[Year],B136,Table4[BOD removed]),\"\")","v":""},{"$f":"SUMIF(Table4[Year],B136,Table4[Total BOD removed])","v":0},{"$f":"SUMPRODUCT(Table4[Total BOD removed],--(Table4[Total BOD removed]<>\"\"),--(Table4[Total Energy Cost]<>\"\"),--(Table4[Year]=B136))","v":0},{"$f":"SUMPRODUCT(Table4[Total Energy Cost],--(Table4[Year]=B136),--(Table4[Total BOD removed]<>\"\"),--(Table4[Total Energy Cost]<>\"\"))","v":0},{"$f":"G136/F136","v":{"$error":"#DIV/0!"}},{"$f":"SUMPRODUCT(--(Table4[Total BOD removed]<>\"\"),--(Table4[Total Energy Cost]<>\"\"),--(Table4[Year]=B136))","v":0}]
[null,3,{"$f":"TEXT(DATE(YEAR(B$28),MONTH(B$28),DAY(B$28)),\"mmm yyyy\")&\" - \"&TEXT(DATE(YEAR(B$39),MONTH(B$39),DAY(B$39)),\"mmm yyyy\")","v":"Aug 2019 - Jul 2020"},{"$f":"IFERROR(AVERAGEIF(Table4[Year],B137,Table4[BOD removed]),\"\")","v":""},{"$f":"SUMIF(Table4[Year],B137,Table4[Total BOD removed])","v":0},{"$f":"SUMPRODUCT(Table4[Total BOD removed],--(Table4[Total BOD removed]<>\"\"),--(Table4[Total Energy Cost]<>\"\"),--(Table4[Year]=B137))","v":0},{"$f":"SUMPRODUCT(Table4[Total Energy Cost],--(Table4[Year]=B137),--(Table4[Total BOD removed]<>\"\"),--(Table4[Total Energy Cost]<>\"\"))","v":0},{"$error":"#DIV/0!"},{"$f":"SUMPRODUCT(--(Table4[Total BOD removed]<>\"\"),--(Table4[Total Energy Cost]<>\"\"),--(Table4[Year]=B137))","v":0}]
[null,4,{"$f":"TEXT(DATE(YEAR(B$40),MONTH(B$40),DAY(B$40)),\"mmm yyyy\")&\" - \"&TEXT(DATE(YEAR(B$51),MONTH(B$51),DAY(B$51)),\"mmm yyyy\")","v":"Aug 2020 - Jul 2021"},{"$f":"IFERROR(AVERAGEIF(Table4[Year],B138,Table4[BOD removed]),\"\")","v":""},{"$f":"SUMIF(Table4[Year],B138,Table4[Total BOD removed])","v":0},{"$f":"SUMPRODUCT(Table4[Total BOD removed],--(Table4[Total BOD removed]<>\"\"),--(Table4[Total Energy Cost]<>\"\"),--(Table4[Year]=B138))","v":0},{"$f":"SUMPRODUCT(Table4[Total Energy Cost],--(Table4[Year]=B138),--(Table4[Total BOD removed]<>\"\"),--(Table4[Total Energy Cost]<>\"\"))","v":0},{"$error":"#DIV/0!"},{"$f":"SUMPRODUCT(--(Table4[Total BOD removed]<>\"\"),--(Table4[Total Energy Cost]<>\"\"),--(Table4[Year]=B138))","v":0}]
[null,5,{"$f":"TEXT(DATE(YEAR(B$52),MONTH(B$52),DAY(B$52)),\"mmm yyyy\")&\" - \"&TEXT(DATE(YEAR(B$63),MONTH(B$63),DAY(B$63)),\"mmm yyyy\")","v":"Aug 2021 - Jul 2022"},{"$f":"IFERROR(AVERAGEIF(Table4[Year],B139,Table4[BOD removed]),\"\")","v":""},{"$f":"SUMIF(Table4[Year],B139,Table4[Total BOD removed])","v":0},{"$f":"SUMPRODUCT(Table4[Total BOD removed],--(Table4[Total BOD removed]<>\"\"),--(Table4[Total Energy Cost]<>\"\"),--(Table4[Year]=B139))","v":0},{"$f":"SUMPRODUCT(Table4[Total Energy Cost],--(Table4[Year]=B139),--(Table4[Total BOD removed]<>\"\"),--(Table4[Total Energy Cost]<>\"\"))","v":0},{"$error":"#DIV/0!"},{"$f":"SUMPRODUCT(--(Table4[Total BOD removed]<>\"\"),--(Table4[Total Energy Cost]<>\"\"),--(Table4[Year]=B139))","v":0}]
[null,6,{"$f":"TEXT(DATE(YEAR(B$64),MONTH(B$64),DAY(B$64)),\"mmm yyyy\")&\" - \"&TEXT(DATE(YEAR(B$75),MONTH(B$75),DAY(B$75)),\"mmm yyyy\")","v":"Aug 2022 - Jul 2023"},{"$f":"IFERROR(AVERAGEIF(Table4[Year],B140,Table4[BOD removed]),\"\")","v":""},{"$f":"SUMIF(Table4[Year],B140,Table4[Total BOD removed])","v":0},{"$f":"SUMPRODUCT(Table4[Total BOD removed],--(Table4[Total BOD removed]<>\"\"),--(Table4[Total Energy Cost]<>\"\"),--(Table4[Year]=B140))","v":0},{"$f":"SUMPRODUCT(Table4[Total Energy Cost],--(Table4[Year]=B140),--(Table4[Total BOD removed]<>\"\"),--(Table4[Total Energy Cost]<>\"\"))","v":0},{"$error":"#DIV/0!"},{"$f":"SUMPRODUCT(--(Table4[Total BOD removed]<>\"\"),--(Table4[Total Energy Cost]<>\"\"),--(Table4[Year]=B140))","v":0}]
[null,7,{"$f":"TEXT(DATE(YEAR(B$76),MONTH(B$76),DAY(B$76)),\"mmm yyyy\")&\" - \"&TEXT(DATE(YEAR(B$87),MONTH(B$87),DAY(B$87)),\"mmm yyyy\")","v":"Aug 2023 - Jul 2024"},{"$f":"IFERROR(AVERAGEIF(Table4[Year],B141,Table4[BOD removed]),\"\")","v":""},{"$f":"SUMIF(Table4[Year],B141,Table4[Total BOD removed])","v":0},{"$f":"SUMPRODUCT(Table4[Total BOD removed],--(Table4[Total BOD removed]<>\"\"),--(Table4[Total Energy Cost]<>\"\"),--(Table4[Year]=B141))","v":0},{"$f":"SUMPRODUCT(Table4[Total Energy Cost],--(Table4[Year]=B141),--(Table4[Total BOD removed]<>\"\"),--(Table4[Total Energy Cost]<>\"\"))","v":0},{"$error":"#DIV/0!"},{"$f":"SUMPRODUCT(--(Table4[Total BOD removed]<>\"\"),--(Table4[Total Energy Cost]<>\"\"),--(Table4[Year]=B141))","v":0}]
[]
[]
[null,null,"Flow Summary Table Values"]
[null,"Year","Label","Energy-paired Avg Flow","Energy-paired Total Flow (MG)","Flow-paired Monthly Energy Usage","kWh/MG","Flow-matched Energy $/month","Avg $/kWh (electric only)","$/MG","Energy savings","Avg Actual Electric Demand (kW)","Avg Billed Electric Demand (kW)",{"$f":"IF(SUMPRODUCT(--(Table4[Total Electric Demand (Actual)]<>\"\"))>SUMPRODUCT(--(Table4[Total Electric Demand (Billed)]<>\"\")),L145,M145)","v":"Avg Billed Electric Demand (kW)"},"Energy Cost Savings"]
[null,"Unit",null,"MGD",null,"kWh-eq","kWh/MG",null,null,null,"kWh-eq","kW","kW",null,"$"]
[null,"Baseline",{"$f":"\"Baseline: \"&TEXT(DATE(YEAR(B$4),MONTH(B$4),DAY(B$4)),\"mmm yyyy\")&\" - \"&TEXT(DATE(YEAR(B$27),MONTH(B$27),DAY(B$27)),\"mmm yyyy\")","v":"Baseline: Aug 2017 - Jul 2019"},{"$f":"(SUMPRODUCT(--(Table4[Year]=1),--(Table4[Total Energy Usage]<>\"\"),Table4[Avg Daily Flow])+SUMPRODUCT(--(Table4[Year]=2),--(Table4[Total Energy Usage]<>\"\"),Table4[Avg Daily Flow]))/(SUMPRODUCT(--(Table4[Year]=1),--(Table4[Total Energy Usage]<>\"\"),--(Table4[Avg Daily Flow]<>\"\"))+SUMPRODUCT(--(Table4[Year]=2),--(Table4[Total Energy Usage]<>\"\"),--(Table4[Avg Daily Flow]<>\"\")))","v":{"$error":"#DIV/0!"}},{"$f":"(SUMPRODUCT(--(Table4[Year]=1),--(Table4[Total Energy Usage]<>\"\"),Table4[Monthly Flow])+SUMPRODUCT(--(Table4[Year]=2),--(Table4[Total Energy Usage]<>\"\"),Table4[Monthly Flow]))","v":0},{"$f":"(SUMPRODUCT(--(Table4[Year]=1),--(Table4[Monthly Flow]<>\"\"),Table4[Total Energy Usage])+SUMPRODUCT(--(Table4[Year]=2),--(Table4[Monthly Flow]<>\"\"),Table4[Total Energy Usage]))/(SUMPRODUCT(--(Table4[Year]=1),--(Table4[Total Energy Usage]<>\"\"),--(Table4[Monthly Flow]<>\"\"))+SUMPRODUCT(--(Table4[Year]=2),--(Table4[Total Energy Usage]<>\"\"),--(Table4[Monthly Flow]<>\"\")))","v":{"$error":"#DIV/0!"}},{"$f":"SUM(G98:G99)/SUM(F98:F99)","v":{"$error":"#DIV/0!"}},{"$f":"(SUMPRODUCT(--(Table4[Year]=1),--(Table4[Avg Daily Flow]<>\"\"),Table4[Total Energy Cost])+SUMPRODUCT(--(Table4[Year]=2),--(Table4[Avg Daily Flow]<>\"\"),Table4[Total Energy Cost]))/(SUMPRODUCT(--(Table4[Year]=1),--(Table4[Total Energy Cost]<>\"\"),--(Table4[Avg Daily Flow]<>\"\"))+SUMPRODUCT(--(Table4[Year]=2),--(Table4[Total Energy Cost]<>\"\"),--(Table4[Avg Daily Flow]<>\"\")))","v":{"$error":"#DIV/0!"}},{"$f":"(SUMPRODUCT(--(Table4[Year]=1),--(Table4[Electric kWh usage]<>\"\"),Table4[Total electric cost])+SUMPRODUCT(--(Table4[Year]=2),--(Table4[Electric kWh usage]<>\"\"),Table4[Total electric cost]))/(SUMPRODUCT(--(Table4[Year]=1),--(Table4[Total electric cost]<>\"\"),--(Table4[Electric kWh usage]<>\"\"),Table4[Electric kWh usage])+SUMPRODUCT(--(Table4[Year]=2),--(Table4[Total electric cost]<>\"\"),--(Table4[Electric kWh usage]<>\"\"),Table4[Electric kWh usage]))","v":{"$error":"#DIV/0!"}},{"$f":"(SUMPRODUCT(--(Table4[Year]=1),--(Table4[Monthly Flow]<>\"\"),Table4[Total Energy Cost])+SUMPRODUCT(--(Table4[Year]=2),--(Table4[Monthly Flow]<>\"\"),Table4[Total Energy Cost]))/(SUMPRODUCT(--(Table4[Year]=1),--(Table4[Total Energy Cost]<>\"\"),Table4[Monthly Flow])+SUMPRODUCT(--(Table4[Year]=2),--(Table4[Total Energy Cost]<>\"\"),Table4[Monthly Flow]))","v":{"$error":"#DIV/0!"}},"N/A",{"$f":"(SUMPRODUCT(--(Table4[Year]=1),Table4[Total Electric Demand (Actual)])+SUMPRODUCT(--(Table4[Year]=2),Table4[Total Electric Demand (Actual)]))/(SUMPRODUCT(--(Table4[Year]=1),--(Table4[Total Electric Demand (Actual)]<>\"\"))+SUMPRODUCT(--(Table4[Year]=2),--(Table4[Total Electric Demand (Actual)]<>\"\")))","v":{"$error":"#DIV/0!"}},{"$f":"(SUMPRODUCT(--(Table4[Year]=1),Table4[Total Electric Demand (Billed)])+SUMPRODUCT(--(Table4[Year]=2),Table4[Total Electric Demand (Billed)]))/(SUMPRODUCT(--(Table4[Year]=1),--(Table4[Total Electric Demand (Billed)]<>\"\"))+SUMPRODUCT(--(Table4[Year]=2),--(Table4[Total Electric Demand (Billed)]<>\"\")))","v":{"$error":"#DIV/0!"}},{"$f":"IF(N$145=M$145,M147,L147)","v":{"$error":"#DIV/0!"}},"N/A"]
[]
[null,3,{"$f":"TEXT(DATE(YEAR(B$28),MONTH(B$28),DAY(B$28)),\"mmm yyyy\")&\" - \"&TEXT(DATE(YEAR(B$39),MONTH(B$39),DAY(B$39)),\"mmm yyyy\")","v":"Aug 2019 - Jul 2020"},{"$f":"SUMPRODUCT(--(Table4[Total Energy Usage]<>\"\"),--(Table4[Year]=B149),Table4[Avg Daily Flow])/SUMPRODUCT(--(Table4[Total Energy Usage]<>\"\"),--(Table4[Avg Daily Flow]<>\"\"),--(Table4[Year]=B149))","v":{"$error":"#DIV/0!"}},{"$f":"SUMPRODUCT(--(Table4[Year]=B149),--(Table4[Total Energy Usage]<>\"\"),Table4[Monthly Flow])","v":0},{"$f":"IFERROR(SUMPRODUCT(--(Table4[Year]=B149),--(Table4[Monthly Flow]<>\"\"),Table4[Total Energy Usage])/SUMPRODUCT(--(Table4[Year]=B149),--(Table4[Monthly Flow]<>\"\"),--(Table4[Total Energy Usage]<>\"\")),\"\")","v":""},{"$f":"H100","v":{"$error":"#DIV/0!"}},{"$f":"SUMPRODUCT(--(Table4[Avg Daily Flow]<>\"\"),--(Table4[Year]=B149),Table4[Total Energy Cost])/SUMPRODUCT(--(Table4[Avg Daily Flow]<>\"\"),--(Table4[Year]=B149),--(Table4[Total Energy Cost]<>\"\"))","v":{"$error":"#DIV/0!"}},{"$f":"SUMPRODUCT(--(Table4[Year]=B149),--(Table4[Electric kWh usage]<>\"\"),Table4[Total electric cost])/SUMPRODUCT(--(Table4[Year]=B149),--(Table4[Total electric cost]<>\"\"),Table4[Electric kWh usage])","v":{"$error":"#DIV/0!"}},{"$f":"(SUMPRODUCT(--(Table4[Year]=B149),--(Table4[Monthly Flow]<>\"\"),Table4[Total Energy Cost]))/(SUMPRODUCT(--(Table4[Year]=B149),--(Table4[Total Energy Cost]<>\"\"),Table4[Monthly Flow]))","v":{"$error":"#DIV/0!"}},{"$f":"(G$147-G149)*E149","v":{"$error":"#DIV/0!"}},{"$f":"SUMPRODUCT(--(Table4[Year]=B149),Table4[Total Electric Demand (Actual)])/SUMPRODUCT(--(Table4[Year]=B149),--(Table4[Total Electric Demand (Actual)]<>\"\"))","v":{"$error":"#DIV/0!"}},{"$f":"SUMPRODUCT(--(Table4[Year]=B149),Table4[Total Electric Demand (Billed)])/SUMPRODUCT(--(Table4[Year]=B149),--(Table4[Total Electric Demand (Billed)]<>\"\"))","v":{"$error":"#DIV/0!"}},{"$f":"IF(N$145=M$145,M149,L149)","v":{"$error":"#DIV/0!"}},{"$f":"(J$147-J149)*E149","v":{"$error":"#DIV/0!"}}]
[null,4,{"$f":"TEXT(DATE(YEAR(B$40),MONTH(B$40),DAY(B$40)),\"mmm yyyy\")&\" - \"&TEXT(DATE(YEAR(B$51),MONTH(B$51),DAY(B$51)),\"mmm yyyy\")","v":"Aug 2020 - Jul 2021"},{"$f":"SUMPRODUCT(--(Table4[Total Energy Usage]<>\"\"),--(Table4[Year]=B150),Table4[Avg Daily Flow])/SUMPRODUCT(--(Table4[Total Energy Usage]<>\"\"),--(Table4[Avg Daily Flow]<>\"\"),--(Table4[Year]=B150))","v":{"$error":"#DIV/0!"}},{"$f":"SUMPRODUCT(--(Table4[Year]=B150),--(Table4[Total Energy Usage]<>\"\"),Table4[Monthly Flow])","v":0},{"$f":"IFERROR(SUMPRODUCT(--(Table4[Year]=B150),--(Table4[Monthly Flow]<>\"\"),Table4[Total Energy Usage])/SUMPRODUCT(--(Table4[Year]=B150),--(Table4[Monthly Flow]<>\"\"),--(Table4[Total Energy Usage]<>\"\")),\"\")","v":""},{"$f":"H101","v":{"$error":"#DIV/0!"}},{"$f":"SUMPRODUCT(--(Table4[Avg Daily Flow]<>\"\"),--(Table4[Year]=B150),Table4[Total Energy Cost])/SUMPRODUCT(--(Table4[Avg Daily Flow]<>\"\"),--(Table4[Year]=B150),--(Table4[Total Energy Cost]<>\"\"))","v":{"$error":"#DIV/0!"}},{"$f":"SUMPRODUCT(--(Table4[Year]=B150),--(Table4[Electric kWh usage]<>\"\"),Table4[Total electric cost])/SUMPRODUCT(--(Table4[Year]=B150),--(Table4[Total electric cost]<>\"\"),Table4[Electric kWh usage])","v":{"$error":"#DIV/0!"}},{"$f":"(SUMPRODUCT(--(Table4[Year]=B150),--(Table4[Monthly Flow]<>\"\"),Table4[Total Energy Cost]))/(SUMPRODUCT(--(Table4[Year]=B150),--(Table4[Total Energy Cost]<>\"\"),Table4[Monthly Flow]))","v":{"$error":"#DIV/0!"}},{"$f":"(G$147-G150)*E150","v":{"$error":"#DIV/0!"}},{"$f":"SUMPRODUCT(--(Table4[Year]=B150),Table4[Total Electric Demand (Actual)])/SUMPRODUCT(--(Table4[Year]=B150),--(Table4[Total Electric Demand (Actual)]<>\"\"))","v":{"$error":"#DIV/0!"}},{"$f":"SUMPRODUCT(--(Table4[Year]=B150),Table4[Total Electric Demand (Billed)])/SUMPRODUCT(--(Table4[Year]=B150),--(Table4[Total Electric Demand (Billed)]<>\"\"))","v":{"$error":"#DIV/0!"}},{"$error":"#DIV/0!"},{"$f":"(J$147-J150)*E150","v":{"$error":"#DIV/0!"}}]
[null,5,{"$f":"TEXT(DATE(YEAR(B$52),MONTH(B$52),DAY(B$52)),\"mmm yyyy\")&\" - \"&TEXT(DATE(YEAR(B$63),MONTH(B$63),DAY(B$63)),\"mmm yyyy\")","v":"Aug 2021 - Jul 2022"},{"$f":"SUMPRODUCT(--(Table4[Total Energy Usage]<>\"\"),--(Table4[Year]=B151),Table4[Avg Daily Flow])/SUMPRODUCT(--(Table4[Total Energy Usage]<>\"\"),--(Table4[Avg Daily Flow]<>\"\"),--(Table4[Year]=B151))","v":{"$error":"#DIV/0!"}},{"$f":"(SUMPRODUCT(--(Table4[Year]=B151),--(Table4[Total Energy Usage]<>\"\"),Table4[Monthly Flow]))","v":0},{"$f":"IFERROR(SUMPRODUCT(--(Table4[Year]=B151),--(Table4[Monthly Flow]<>\"\"),Table4[Total Energy Usage])/SUMPRODUCT(--(Table4[Year]=B151),--(Table4[Monthly Flow]<>\"\"),--(Table4[Total Energy Usage]<>\"\")),\"\")","v":""},{"$f":"H102","v":{"$error":"#DIV/0!"}},{"$f":"SUMPRODUCT(--(Table4[Avg Daily Flow]<>\"\"),--(Table4[Year]=B151),Table4[Total Energy Cost])/SUMPRODUCT(--(Table4[Avg Daily Flow]<>\"\"),--(Table4[Year]=B151),--(Table4[Total Energy Cost]<>\"\"))","v":{"$error":"#DIV/0!"}},{"$f":"SUMPRODUCT(--(Table4[Year]=B151),--(Table4[Electric kWh usage]<>\"\"),Table4[Total electric cost])/SUMPRODUCT(--(Table4[Year]=B151),--(Table4[Total electric cost]<>\"\"),Table4[Electric kWh usage])","v":{"$error":"#DIV/0!"}},{"$f":"(SUMPRODUCT(--(Table4[Year]=B151),--(Table4[Monthly Flow]<>\"\"),Table4[Total Energy Cost]))/(SUMPRODUCT(--(Table4[Year]=B151),--(Table4[Total Energy Cost]<>\"\"),Table4[Monthly Flow]))","v":{"$error":"#DIV/0!"}},{"$f":"(G$147-G151)*E151","v":{"$error":"#DIV/0!"}},{"$f":"SUMPRODUCT(--(Table4[Year]=B151),Table4[Total Electric Demand (Actual)])/SUMPRODUCT(--(Table4[Year]=B151),--(Table4[Total Electric Demand (Actual)]<>\"\"))","v":{"$error":"#DIV/0!"}},{"$f":"SUMPRODUCT(--(Table4[Year]=B151),Table4[Total Electric Demand (Billed)])/SUMPRODUCT(--(Table4[Year]=B151),--(Table4[Total Electric Demand (Billed)]<>\"\"))","v":{"$error":"#DIV/0!"}},{"$error":"#DIV/0!"},{"$f":"(J$147-J151)*E151","v":{"$error":"#DIV/0!"}}]
[null,6,{"$f":"TEXT(DATE(YEAR(B$64),MONTH(B$64),DAY(B$64)),\"mmm yyyy\")&\" - \"&TEXT(DATE(YEAR(B$75),MONTH(B$75),DAY(B$75)),\"mmm yyyy\")","v":"Aug 2022 - Jul 2023"},{"$f":"SUMPRODUCT(--(Table4[Total Energy Usage]<>\"\"),--(Table4[Year]=B152),Table4[Avg Daily Flow])/SUMPRODUCT(--(Table4[Total Energy Usage]<>\"\"),--(Table4[Avg Daily Flow]<>\"\"),--(Table4[Year]=B152))","v":{"$error":"#DIV/0!"}},{"$f":"(SUMPRODUCT(--(Table4[Year]=B152),--(Table4[Total Energy Usage]<>\"\"),Table4[Monthly Flow]))","v":0},{"$f":"IFERROR(SUMPRODUCT(--(Table4[Year]=B152),--(Table4[Monthly Flow]<>\"\"),Table4[Total Energy Usage])/SUMPRODUCT(--(Table4[Year]=B152),--(Table4[Monthly Flow]<>\"\"),--(Table4[Total Energy Usage]<>\"\")),\"\")","v":""},{"$f":"H103","v":{"$error":"#DIV/0!"}},{"$f":"SUMPRODUCT(--(Table4[Avg Daily Flow]<>\"\"),--(Table4[Year]=B152),Table4[Total Energy Cost])/SUMPRODUCT(--(Table4[Avg Daily Flow]<>\"\"),--(Table4[Year]=B152),--(Table4[Total Energy Cost]<>\"\"))","v":{"$error":"#DIV/0!"}},{"$f":"SUMPRODUCT(--(Table4[Year]=B152),--(Table4[Electric kWh usage]<>\"\"),Table4[Total electric cost])/SUMPRODUCT(--(Table4[Year]=B152),--(Table4[Total electric cost]<>\"\"),Table4[Electric kWh usage])","v":{"$error":"#DIV/0!"}},{"$f":"(SUMPRODUCT(--(Table4[Year]=B152),--(Table4[Monthly Flow]<>\"\"),Table4[Total Energy Cost]))/(SUMPRODUCT(--(Table4[Year]=B152),--(Table4[Total Energy Cost]<>\"\"),Table4[Monthly Flow]))","v":{"$error":"#DIV/0!"}},{"$f":"(G$147-G152)*E152","v":{"$error":"#DIV/0!"}},{"$f":"SUMPRODUCT(--(Table4[Year]=B152),Table4[Total Electric Demand (Actual)])/SUMPRODUCT(--(Table4[Year]=B152),--(Table4[Total Electric Demand (Actual)]<>\"\"))","v":{"$error":"#DIV/0!"}},{"$f":"SUMPRODUCT(--(Table4[Year]=B152),Table4[Total Electric Demand (Billed)])/SUMPRODUCT(--(Table4[Year]=B152),--(Table4[Total Electric Demand (Billed)]<>\"\"))","v":{"$error":"#DIV/0!"}},{"$error":"#DIV/0!"},{"$f":"(J$147-J152)*E152","v":{"$error":"#DIV/0!"}}]
[null,7,{"$f":"TEXT(DATE(YEAR(B$76),MONTH(B$76),DAY(B$76)),\"mmm yyyy\")&\" - \"&TEXT(DATE(YEAR(B$87),MONTH(B$87),DAY(B$87)),\"mmm yyyy\")","v":"Aug 2023 - Jul 2024"},{"$f":"SUMPRODUCT(--(Table4[Total Energy Usage]<>\"\"),--(Table4[Year]=B153),Table4[Avg Daily Flow])/SUMPRODUCT(--(Table4[Total Energy Usage]<>\"\"),--(Table4[Avg Daily Flow]<>\"\"),--(Table4[Year]=B153))","v":{"$error":"#DIV/0!"}},{"$f":"(SUMPRODUCT(--(Table4[Year]=B153),--(Table4[Total Energy Usage]<>\"\"),Table4[Monthly Flow]))","v":0},{"$f":"IFERROR(SUMPRODUCT(--(Table4[Year]=B153),--(Table4[Monthly Flow]<>\"\"),Table4[Total Energy Usage])/SUMPRODUCT(--(Table4[Year]=B153),--(Table4[Monthly Flow]<>\"\"),--(Table4[Total Energy Usage]<>\"\")),\"\")","v":""},{"$f":"H104","v":{"$error":"#DIV/0!"}},{"$f":"SUMPRODUCT(--(Table4[Avg Daily Flow]<>\"\"),--(Table4[Year]=B153),Table4[Total Energy Cost])/SUMPRODUCT(--(Table4[Avg Daily Flow]<>\"\"),--(Table4[Year]=B153),--(Table4[Total Energy Cost]<>\"\"))","v":{"$error":"#DIV/0!"}},{"$f":"SUMPRODUCT(--(Table4[Year]=B153),--(Table4[Electric kWh usage]<>\"\"),Table4[Total electric cost])/SUMPRODUCT(--(Table4[Year]=B153),--(Table4[Total electric cost]<>\"\"),Table4[Electric kWh usage])","v":{"$error":"#DIV/0!"}},{"$f":"(SUMPRODUCT(--(Table4[Year]=B153),--(Table4[Monthly Flow]<>\"\"),Table4[Total Energy Cost]))/(SUMPRODUCT(--(Table4[Year]=B153),--(Table4[Total Energy Cost]<>\"\"),Table4[Monthly Flow]))","v":{"$error":"#DIV/0!"}},{"$f":"(G$147-G153)*E153","v":{"$error":"#DIV/0!"}},{"$f":"SUMPRODUCT(--(Table4[Year]=B153),Table4[Total Electric Demand (Actual)])/SUMPRODUCT(--(Table4[Year]=B153),--(Table4[Total Electric Demand (Actual)]<>\"\"))","v":{"$error":"#DIV/0!"}},{"$f":"SUMPRODUCT(--(Table4[Year]=B153),Table4[Total Electric Demand (Billed)])/SUMPRODUCT(--(Table4[Year]=B153),--(Table4[Total Electric Demand (Billed)]<>\"\"))","v":{"$error":"#DIV/0!"}},{"$error":"#DIV/0!"},{"$f":"(J$147-J153)*E153","v":{"$error":"#DIV/0!"}}]
[null,null,"Cumulative change",{"$f":"((SUMPRODUCT(--(Table4[Total Energy Usage]<>\"\"),--(Table4[Year]=3),Table4[Avg Daily Flow])+SUMPRODUCT(--(Table4[Total Energy Usage]<>\"\"),--(Table4[Year]=4),Table4[Avg Daily Flow])+SUMPRODUCT(--(Table4[Total Energy Usage]<>\"\"),--(Table4[Year]=5),Table4[Avg Daily Flow])+SUMPRODUCT(--(Table4[Total Energy Usage]<>\"\"),--(Table4[Year]=6),Table4[Avg Daily Flow])+SUMPRODUCT(--(Table4[Total Energy Usage]<>\"\"),--(Table4[Year]=7),Table4[Avg Daily Flow]))/(SUMPRODUCT(--(Table4[Total Energy Usage]<>\"\"),--(Table4[Avg Daily Flow]<>\"\"),--(Table4[Year]=3))+SUMPRODUCT(--(Table4[Total Energy Usage]<>\"\"),--(Table4[Avg Daily Flow]<>\"\"),--(Table4[Year]=4))+SUMPRODUCT(--(Table4[Total Energy Usage]<>\"\"),--(Table4[Avg Daily Flow]<>\"\"),--(Table4[Year]=5))+SUMPRODUCT(--(Table4[Total Energy Usage]<>\"\"),--(Table4[Avg Daily Flow]<>\"\"),--(Table4[Year]=6))+SUMPRODUCT(--(Table4[Total Energy Usage]<>\"\"),--(Table4[Avg Daily Flow]<>\"\"),--(Table4[Year]=7))))/D147-1","v":{"$error":"#DIV/0!"}},null,{"$f":"(((SUMPRODUCT(--(Table4[Year]=3),--(Table4[Monthly Flow]<>\"\"),Table4[Total Energy Usage])+SUMPRODUCT(--(Table4[Year]=4),--(Table4[Monthly Flow]<>\"\"),Table4[Total Energy Usage])+SUMPRODUCT(--(Table4[Year]=5),--(Table4[Monthly Flow]<>\"\"),Table4[Total Energy Usage])+SUMPRODUCT(--(Table4[Year]=6),--(Table4[Monthly Flow]<>\"\"),Table4[Total Energy Usage])+SUMPRODUCT(--(Table4[Year]=7),--(Table4[Monthly Flow]<>\"\"),Table4[Total Energy Usage]))/(SUMPRODUCT(--(Table4[Year]=3),--(Table4[Total Energy Usage]<>\"\"),--(Table4[Monthly Flow]<>\"\"))+SUMPRODUCT(--(Table4[Year]=4),--(Table4[Total Energy Usage]<>\"\"),--(Table4[Monthly Flow]<>\"\"))+SUMPRODUCT(--(Table4[Year]=5),--(Table4[Total Energy Usage]<>\"\"),--(Table4[Monthly Flow]<>\"\"))+SUMPRODUCT(--(Table4[Year]=6),--(Table4[Total Energy Usage]<>\"\"),--(Table4[Monthly Flow]<>\"\"))+SUMPRODUCT(--(Table4[Year]=7),--(Table4[Total Energy Usage]<>\"\"),--(Table4[Monthly Flow]<>\"\"))))/F147)-1","v":{"$error":"#DIV/0!"}},{"$f":"((SUMPRODUCT(--(Table4[Avg Daily Flow]<>\"\"),--(Table4[Year]=3),Table4[Total Energy Usage])+SUMPRODUCT(--(Table4[Avg Daily Flow]<>\"\"),--(Table4[Year]=4),Table4[Total Energy Usage])+SUMPRODUCT(--(Table4[Avg Daily Flow]<>\"\"),--(Table4[Year]=5),Table4[Total Energy Usage])+SUMPRODUCT(--(Table4[Avg Daily Flow]<>\"\"),--(Table4[Year]=6),Table4[Total Energy Usage])+SUMPRODUCT(--(Table4[Avg Daily Flow]<>\"\"),--(Table4[Year]=7),Table4[Total Energy Usage]))/(SUMPRODUCT(--(Table4[Total Energy Usage]<>\"\"),--(Table4[Year]=3),Table4[Monthly Flow])+SUMPRODUCT(--(Table4[Total Energy Usage]<>\"\"),--(Table4[Year]=4),Table4[Monthly Flow])+SUMPRODUCT(--(Table4[Total Energy Usage]<>\"\"),--(Table4[Year]=5),Table4[Monthly Flow])+SUMPRODUCT(--(Table4[Total Energy Usage]<>\"\"),--(Table4[Year]=6),Table4[Monthly Flow])+SUMPRODUCT(--(Table4[Total Energy Usage]<>\"\"),--(Table4[Year]=7),Table4[Monthly Flow])))/G147-1","v":{"$error":"#DIV/0!"}},{"$f":"((SUMPRODUCT(--(Table4[Avg Daily Flow]<>\"\"),--(Table4[Year]=3),Table4[Total Energy Cost])+SUMPRODUCT(--(Table4[Avg Daily Flow]<>\"\"),--(Table4[Year]=4),Table4[Total Energy Cost])+SUMPRODUCT(--(Table4[Avg Daily Flow]<>\"\"),--(Table4[Year]=5),Table4[Total Energy Cost])+SUMPRODUCT(--(Table4[Avg Daily Flow]<>\"\"),--(Table4[Year]=6),Table4[Total Energy Cost])+SUMPRODUCT(--(Table4[Avg Daily Flow]<>\"\"),--(Table4[Year]=7),Table4[Total Energy Cost]))/(SUMPRODUCT(--(Table4[Avg Daily Flow]<>\"\"),--(Table4[Year]=3),--(Table4[Total Energy Cost]<>\"\"))+SUMPRODUCT(--(Table4[Avg Daily Flow]<>\"\"),--(Table4[Year]=4),--(Table4[Total Energy Cost]<>\"\"))+SUMPRODUCT(--(Table4[Avg Daily Flow]<>\"\"),--(Table4[Year]=5),--(Table4[Total Energy Cost]<>\"\"))+SUMPRODUCT(--(Table4[Avg Daily Flow]<>\"\"),--(Table4[Year]=6),--(Table4[Total Energy Cost]<>\"\"))+SUMPRODUCT(--(Table4[Avg Daily Flow]<>\"\"),--(Table4[Year]=7),--(Table4[Total Energy Cost]<>\"\"))))/H147-1","v":{"$error":"#DIV/0!"}},{"$f":"((SUMPRODUCT(--(Table4[Electric kWh usage]<>\"\"),--(Table4[Year]=3),Table4[Total electric cost])+SUMPRODUCT(--(Table4[Electric kWh usage]<>\"\"),--(Table4[Year]=4),Table4[Total electric cost])+SUMPRODUCT(--(Table4[Electric kWh usage]<>\"\"),--(Table4[Year]=5),Table4[Total electric cost])+SUMPRODUCT(--(Table4[Electric kWh usage]<>\"\"),--(Table4[Year]=6),Table4[Total electric cost])+SUMPRODUCT(--(Table4[Electric kWh usage]<>\"\"),--(Table4[Year]=7),Table4[Total electric cost]))/(SUMPRODUCT(--(Table4[Total electric cost]<>\"\"),--(Table4[Year]=3),Table4[Electric kWh usage])+SUMPRODUCT(--(Table4[Total electric cost]<>\"\"),--(Table4[Year]=4),Table4[Electric kWh usage])+SUMPRODUCT(--(Table4[Total electric cost]<>\"\"),--(Table4[Year]=5),Table4[Electric kWh usage])+SUMPRODUCT(--(Table4[Total electric cost]<>\"\"),--(Table4[Year]=6),Table4[Electric kWh usage])+SUMPRODUCT(--(Table4[Total electric cost]<>\"\"),--(Table4[Year]=7),Table4[Electric kWh usage])))/I147-1","v":{"$error":"#DIV/0!"}},{"$f":"((SUMPRODUCT(--(Table4[Year]=3),--(Table4[Monthly Flow]<>\"\"),Table4[Total Energy Cost])+SUMPRODUCT(--(Table4[Year]=4),--(Table4[Monthly Flow]<>\"\"),Table4[Total Energy Cost])+SUMPRODUCT(--(Table4[Year]=5),--(Table4[Monthly Flow]<>\"\"),Table4[Total Energy Cost])+SUMPRODUCT(--(Table4[Year]=6),--(Table4[Monthly Flow]<>\"\"),Table4[Total Energy Cost])+SUMPRODUCT(--(Table4[Year]=7),--(Table4[Monthly Flow]<>\"\"),Table4[Total Energy Cost]))/(SUMPRODUCT(--(Table4[Year]=3),--(Table4[Total Energy Cost]<>\"\"),Table4[Monthly Flow])+SUMPRODUCT(--(Table4[Year]=4),--(Table4[Total Energy Cost]<>\"\"),Table4[Monthly Flow])+SUMPRODUCT(--(Table4[Year]=5),--(Table4[Total Energy Cost]<>\"\"),Table4[Monthly Flow])+SUMPRODUCT(--(Table4[Year]=6),--(Table4[Total Energy Cost]<>\"\"),Table4[Monthly Flow])+SUMPRODUCT(--(Table4[Year]=7),--(Table4[Total Energy Cost]<>\"\"),Table4[Monthly Flow])))/J147-1","v":{"$error":"#DIV/0!"}},null,{"$f":"((SUMPRODUCT(--(Table4[Year]=3),Table4[Total Electric Demand (Actual)])+SUMPRODUCT(--(Table4[Year]=4),Table4[Total Electric Demand (Actual)])+SUMPRODUCT(--(Table4[Year]=5),Table4[Total Electric Demand (Actual)])+SUMPRODUCT(--(Table4[Year]=6),Table4[Total Electric Demand (Actual)])+SUMPRODUCT(--(Table4[Year]=7),Table4[Total Electric Demand (Actual)]))/(SUMPRODUCT(--(Table4[Year]=3),--(Table4[Total Electric Demand (Actual)]<>\"\"))+SUMPRODUCT(--(Table4[Year]=4),--(Table4[Total Electric Demand (Actual)]<>\"\"))+SUMPRODUCT(--(Table4[Year]=5),--(Table4[Total Electric Demand (Actual)]<>\"\"))+SUMPRODUCT(--(Table4[Year]=6),--(Table4[Total Electric Demand (Actual)]<>\"\"))+SUMPRODUCT(--(Table4[Year]=7),--(Table4[Total Electric Demand (Actual)]<>\"\"))))/L147-1","v":{"$error":"#DIV/0!"}},{"$f":"((SUMPRODUCT(--(Table4[Year]=3),Table4[Total Electric Demand (Billed)])+SUMPRODUCT(--(Table4[Year]=4),Table4[Total Electric Demand (Billed)])+SUMPRODUCT(--(Table4[Year]=5),Table4[Total Electric Demand (Billed)])+SUMPRODUCT(--(Table4[Year]=6),Table4[Total Electric Demand (Billed)])+SUMPRODUCT(--(Table4[Year]=7),Table4[Total Electric Demand (Billed)]))/(SUMPRODUCT(--(Table4[Year]=3),--(Table4[Total Electric Demand (Billed)]<>\"\"))+SUMPRODUCT(--(Table4[Year]=4),--(Table4[Total Electric Demand (Billed)]<>\"\"))+SUMPRODUCT(--(Table4[Year]=5),--(Table4[Total Electric Demand (Billed)]<>\"\"))+SUMPRODUCT(--(Table4[Year]=6),--(Table4[Total Electric Demand (Billed)]<>\"\"))+SUMPRODUCT(--(Table4[Year]=7),--(Table4[Total Electric Demand (Billed)]<>\"\"))))/M147-1","v":{"$error":"#DIV/0!"}},{"$error":"#DIV/0!"}]
[null,null,"Cumulative Savings"]
[]
[null,null,"BOD Summary Table Values"]
[null,"Year","Label","Energy-paired BOD removal","Energy-paired Total BOD removal","BOD-paired Monthly Energy Usage","kWh/lb BOD","BOD-matched Energy $/month","Avg $/kWh (electric only)","$/lb BOD","Energy savings",null,null,"Energy Cost Savings"]
[null,"Unit",null,"lbs/d","lbs/year","kWh-eq","kWh/lb BOD",null,null,null,"kWh-eq",null,null,"$"]
[null,"Baseline",{"$f":"\"Baseline: \"&TEXT(DATE(YEAR(B$4),MONTH(B$4),DAY(B$4)),\"mmm yyyy\")&\" - \"&TEXT(DATE(YEAR(B$27),MONTH(B$27),DAY(B$27)),\"mmm yyyy\")","v":"Baseline: Aug 2017 - Jul 2019"},{"$f":"(SUMPRODUCT(--(Table4[Year]=1),--(Table4[Total Energy Usage]<>\"\"),Table4[BOD removed])+SUMPRODUCT(--(Table4[Year]=2),--(Table4[Total Energy Usage]<>\"\"),Table4[BOD removed]))/(SUMPRODUCT(--(Table4[Year]=1),--(Table4[Total Energy Usage]<>\"\"),--(Table4[BOD removed]<>\"\"))+SUMPRODUCT(--(Table4[Year]=2),--(Table4[Total Energy Usage]<>\"\"),--(Table4[BOD removed]<>\"\")))","v":{"$error":"#DIV/0!"}},{"$f":"(SUMPRODUCT(--(Table4[Year]=1),--(Table4[Total Energy Usage]<>\"\"),Table4[Total BOD removed])+SUMPRODUCT(--(Table4[Year]=2),--(Table4[Total Energy Usage]<>\"\"),Table4[Total BOD removed]))","v":0},{"$f":"(SUMPRODUCT(--(Table4[Year]=1),--(Table4[BOD removed]<>\"\"),Table4[Total Energy Usage])+SUMPRODUCT(--(Table4[Year]=2),--(Table4[BOD removed]<>\"\"),Table4[Total Energy Usage]))/(SUMPRODUCT(--(Table4[Year]=1),--(Table4[Total Energy Usage]<>\"\"),--(Table4[BOD removed]<>\"\"))+SUMPRODUCT(--(Table4[Year]=2),--(Table4[Total Energy Usage]<>\"\"),--(Table4[BOD removed]<>\"\")))","v":{"$error":"#DIV/0!"}},{"$f":"SUM(G110:G111)/SUM(F110:F111)","v":{"$error":"#DIV/0!"}},{"$f":"(SUMPRODUCT(--(Table4[Year]=1),--(Table4[BOD removed]<>\"\"),Table4[Total Energy Cost])+SUMPRODUCT(--(Table4[Year]=2),--(Table4[BOD removed]<>\"\"),Table4[Total Energy Cost]))/(SUMPRODUCT(--(Table4[Year]=1),--(Table4[Total Energy Cost]<>\"\"),--(Table4[BOD removed]<>\"\"))+SUMPRODUCT(--(Table4[Year]=2),--(Table4[Total Energy Cost]<>\"\"),--(Table4[BOD removed]<>\"\")))","v":{"$error":"#DIV/0!"}},{"$f":"(SUMPRODUCT(--(Table4[Year]=1),--(Table4[Electric kWh usage]<>\"\"),Table4[Total electric cost])+SUMPRODUCT(--(Table4[Year]=2),--(Table4[Electric kWh usage]<>\"\"),Table4[Total electric cost]))/(SUMPRODUCT(--(Table4[Year]=1),--(Table4[Total electric cost]<>\"\"),--(Table4[Electric kWh usage]<>\"\"),Table4[Electric kWh usage])+SUMPRODUCT(--(Table4[Year]=2),--(Table4[Total electric cost]<>\"\"),--(Table4[Electric kWh usage]<>\"\"),Table4[Electric kWh usage]))","v":{"$error":"#DIV/0!"}},{"$f":"(SUMPRODUCT(--(Table4[Year]=1),--(Table4[Total BOD removed]<>\"\"),Table4[Total Energy Cost])+SUMPRODUCT(--(Table4[Year]=2),--(Table4[Total BOD removed]<>\"\"),Table4[Total Energy Cost]))/(SUMPRODUCT(--(Table4[Year]=1),--(Table4[Total Energy Cost]<>\"\"),Table4[Total BOD removed])+SUMPRODUCT(--(Table4[Year]=2),--(Table4[Total Energy Cost]<>\"\"),Table4[Total BOD removed]))","v":{"$error":"#DIV/0!"}},"N/A",null,null,"N/A"]
[]
[null,3,{"$f":"TEXT(DATE(YEAR(B$28),MONTH(B$28),DAY(B$28)),\"mmm yyyy\")&\" - \"&TEXT(DATE(YEAR(B$39),MONTH(B$39),DAY(B$39)),\"mmm yyyy\")","v":"Aug 2019 - Jul 2020"},{"$f":"SUMPRODUCT(--(Table4[Total Energy Usage]<>\"\"),--(Table4[Year]=B162),Table4[BOD removed])/SUMPRODUCT(--(Table4[Total Energy Usage]<>\"\"),--(Table4[BOD removed]<>\"\"),--(Table4[Year]=B162))","v":{"$error":"#DIV/0!"}},{"$f":"SUMPRODUCT(--(Table4[Year]=B162),--(Table4[Total Energy Usage]<>\"\"),Table4[Total BOD removed])","v":0},{"$f":"IFERROR(SUMPRODUCT(--(Table4[Year]=B162),--(Table4[BOD removed]<>\"\"),Table4[Total Energy Usage])/SUMPRODUCT(--(Table4[Year]=B162),--(Table4[BOD removed]<>\"\"),--(Table4[Total Energy Usage]<>\"\")),\"\")","v":""},{"$f":"H112","v":{"$error":"#DIV/0!"}},{"$f":"SUMPRODUCT(--(Table4[BOD removed]<>\"\"),--(Table4[Year]=B162),Table4[Total Energy Cost])/SUMPRODUCT(--(Table4[BOD removed]<>\"\"),--(Table4[Year]=B162),--(Table4[Total Energy Cost]<>\"\"))","v":{"$error":"#DIV/0!"}},{"$f":"SUMPRODUCT(--(Table4[Year]=B162),--(Table4[Electric kWh usage]<>\"\"),Table4[Total electric cost])/SUMPRODUCT(--(Table4[Year]=B162),--(Table4[Total electric cost]<>\"\"),Table4[Electric kWh usage])","v":{"$error":"#DIV/0!"}},{"$f":"(SUMPRODUCT(--(Table4[Year]=B162),--(Table4[Total BOD removed]<>\"\"),Table4[Total Energy Cost]))/(SUMPRODUCT(--(Table4[Year]=B162),--(Table4[Total Energy Cost]<>\"\"),Table4[Total BOD removed]))","v":{"$error":"#DIV/0!"}},{"$f":"(G$160-G162)*E162","v":{"$error":"#DIV/0!"}},null,null,{"$f":"(J$160-J162)*E162","v":{"$error":"#DIV/0!"}}]
[null,4,{"$f":"TEXT(DATE(YEAR(B$40),MONTH(B$40),DAY(B$40)),\"mmm yyyy\")&\" - \"&TEXT(DATE(YEAR(B$51),MONTH(B$51),DAY(B$51)),\"mmm yyyy\")","v":"Aug 2020 - Jul 2021"},{"$f":"SUMPRODUCT(--(Table4[Total Energy Usage]<>\"\"),--(Table4[Year]=B163),Table4[BOD removed])/SUMPRODUCT(--(Table4[Total Energy Usage]<>\"\"),--(Table4[BOD removed]<>\"\"),--(Table4[Year]=B163))","v":{"$error":"#DIV/0!"}},{"$f":"SUMPRODUCT(--(Table4[Year]=B163),--(Table4[Total Energy Usage]<>\"\"),Table4[Total BOD removed])","v":0},{"$f":"IFERROR(SUMPRODUCT(--(Table4[Year]=B163),--(Table4[BOD removed]<>\"\"),Table4[Total Energy Usage])/SUMPRODUCT(--(Table4[Year]=B163),--(Table4[BOD removed]<>\"\"),--(Table4[Total Energy Usage]<>\"\")),\"\")","v":""},{"$f":"H113","v":{"$error":"#DIV/0!"}},{"$f":"SUMPRODUCT(--(Table4[BOD removed]<>\"\"),--(Table4[Year]=B163),Table4[Total Energy Cost])/SUMPRODUCT(--(Table4[BOD removed]<>\"\"),--(Table4[Year]=B163),--(Table4[Total Energy Cost]<>\"\"))","v":{"$error":"#DIV/0!"}},{"$f":"SUMPRODUCT(--(Table4[Year]=B163),--(Table4[Electric kWh usage]<>\"\"),Table4[Total electric cost])/SUMPRODUCT(--(Table4[Year]=B163),--(Table4[Total electric cost]<>\"\"),Table4[Electric kWh usage])","v":{"$error":"#DIV/0!"}},{"$f":"(SUMPRODUCT(--(Table4[Year]=B163),--(Table4[Total BOD removed]<>\"\"),Table4[Total Energy Cost]))/(SUMPRODUCT(--(Table4[Year]=B163),--(Table4[Total Energy Cost]<>\"\"),Table4[Total BOD removed]))","v":{"$error":"#DIV/0!"}},{"$f":"(G$160-G163)*E163","v":{"$error":"#DIV/0!"}},null,null,{"$f":"(J$160-J163)*E163","v":{"$error":"#DIV/0!"}}]
[null,5,{"$f":"TEXT(DATE(YEAR(B$52),MONTH(B$52),DAY(B$52)),\"mmm yyyy\")&\" - \"&TEXT(DATE(YEAR(B$63),MONTH(B$63),DAY(B$63)),\"mmm yyyy\")","v":"Aug 2021 - Jul 2022"},{"$f":"SUMPRODUCT(--(Table4[Total Energy Usage]<>\"\"),--(Table4[Year]=B164),Table4[BOD removed])/SUMPRODUCT(--(Table4[Total Energy Usage]<>\"\"),--(Table4[BOD removed]<>\"\"),--(Table4[Year]=B164))","v":{"$error":"#DIV/0!"}},{"$f":"SUMPRODUCT(--(Table4[Year]=B164),--(Table4[Total Energy Usage]<>\"\"),Table4[Total BOD removed])","v":0},{"$f":"IFERROR(SUMPRODUCT(--(Table4[Year]=B164),--(Table4[BOD removed]<>\"\"),Table4[Total Energy Usage])/SUMPRODUCT(--(Table4[Year]=B164),--(Table4[BOD removed]<>\"\"),--(Table4[Total Energy Usage]<>\"\")),\"\")","v":""},{"$f":"H114","v":{"$error":"#DIV/0!"}},{"$f":"SUMPRODUCT(--(Table4[BOD removed]<>\"\"),--(Table4[Year]=B164),Table4[Total Energy Cost])/SUMPRODUCT(--(Table4[BOD removed]<>\"\"),--(Table4[Year]=B164),--(Table4[Total Energy Cost]<>\"\"))","v":{"$error":"#DIV/0!"}},{"$f":"SUMPRODUCT(--(Table4[Year]=B164),--(Table4[Electric kWh usage]<>\"\"),Table4[Total electric cost])/SUMPRODUCT(--(Table4[Year]=B164),--(Table4[Total electric cost]<>\"\"),Table4[Electric kWh usage])","v":{"$error":"#DIV/0!"}},{"$f":"(SUMPRODUCT(--(Table4[Year]=B164),--(Table4[Total BOD removed]<>\"\"),Table4[Total Energy Cost]))/(SUMPRODUCT(--(Table4[Year]=B164),--(Table4[Total Energy Cost]<>\"\"),Table4[Total BOD removed]))","v":{"$error":"#DIV/0!"}},{"$f":"(G$160-G164)*E164","v":{"$error":"#DIV/0!"}},null,null,{"$f":"(J$160-J164)*E164","v":{"$error":"#DIV/0!"}}]
[null,6,{"$f":"TEXT(DATE(YEAR(B$64),MONTH(B$64),DAY(B$64)),\"mmm yyyy\")&\" - \"&TEXT(DATE(YEAR(B$75),MONTH(B$75),DAY(B$75)),\"mmm yyyy\")","v":"Aug 2022 - Jul 2023"},{"$f":"SUMPRODUCT(--(Table4[Total Energy Usage]<>\"\"),--(Table4[Year]=B165),Table4[BOD removed])/SUMPRODUCT(--(Table4[Total Energy Usage]<>\"\"),--(Table4[BOD removed]<>\"\"),--(Table4[Year]=B165))","v":{"$error":"#DIV/0!"}},{"$f":"SUMPRODUCT(--(Table4[Year]=B165),--(Table4[Total Energy Usage]<>\"\"),Table4[Total BOD removed])","v":0},{"$f":"IFERROR(SUMPRODUCT(--(Table4[Year]=B165),--(Table4[BOD removed]<>\"\"),Table4[Total Energy Usage])/SUMPRODUCT(--(Table4[Year]=B165),--(Table4[BOD removed]<>\"\"),--(Table4[Total Energy Usage]<>\"\")),\"\")","v":""},{"$f":"H115","v":{"$error":"#DIV/0!"}},{"$f":"SUMPRODUCT(--(Table4[BOD removed]<>\"\"),--(Table4[Year]=B165),Table4[Total Energy Cost])/SUMPRODUCT(--(Table4[BOD removed]<>\"\"),--(Table4[Year]=B165),--(Table4[Total Energy Cost]<>\"\"))","v":{"$error":"#DIV/0!"}},{"$f":"SUMPRODUCT(--(Table4[Year]=B165),--(Table4[Electric kWh usage]<>\"\"),Table4[Total electric cost])/SUMPRODUCT(--(Table4[Year]=B165),--(Table4[Total electric cost]<>\"\"),Table4[Electric kWh usage])","v":{"$error":"#DIV/0!"}},{"$f":"(SUMPRODUCT(--(Table4[Year]=B165),--(Table4[Total BOD removed]<>\"\"),Table4[Total Energy Cost]))/(SUMPRODUCT(--(Table4[Year]=B165),--(Table4[Total Energy Cost]<>\"\"),Table4[Total BOD removed]))","v":{"$error":"#DIV/0!"}},{"$f":"(G$160-G165)*E165","v":{"$error":"#DIV/0!"}},null,null,{"$f":"(J$160-J165)*E165","v":{"$error":"#DIV/0!"}}]
[null,7,{"$f":"TEXT(DATE(YEAR(B$76),MONTH(B$76),DAY(B$76)),\"mmm yyyy\")&\" - \"&TEXT(DATE(YEAR(B$87),MONTH(B$87),DAY(B$87)),\"mmm yyyy\")","v":"Aug 2023 - Jul 2024"},{"$f":"SUMPRODUCT(--(Table4[Total Energy Usage]<>\"\"),--(Table4[Year]=B166),Table4[BOD removed])/SUMPRODUCT(--(Table4[Total Energy Usage]<>\"\"),--(Table4[BOD removed]<>\"\"),--(Table4[Year]=B166))","v":{"$error":"#DIV/0!"}},{"$f":"SUMPRODUCT(--(Table4[Year]=B166),--(Table4[Total Energy Usage]<>\"\"),Table4[Total BOD removed])","v":0},{"$f":"IFERROR(SUMPRODUCT(--(Table4[Year]=B166),--(Table4[BOD removed]<>\"\"),Table4[Total Energy Usage])/SUMPRODUCT(--(Table4[Year]=B166),--(Table4[BOD removed]<>\"\"),--(Table4[Total Energy Usage]<>\"\")),\"\")","v":""},{"$f":"H116","v":{"$error":"#DIV/0!"}},{"$f":"SUMPRODUCT(--(Table4[BOD removed]<>\"\"),--(Table4[Year]=B166),Table4[Total Energy Cost])/SUMPRODUCT(--(Table4[BOD removed]<>\"\"),--(Table4[Year]=B166),--(Table4[Total Energy Cost]<>\"\"))","v":{"$error":"#DIV/0!"}},{"$f":"SUMPRODUCT(--(Table4[Year]=B166),--(Table4[Electric kWh usage]<>\"\"),Table4[Total electric cost])/SUMPRODUCT(--(Table4[Year]=B166),--(Table4[Total electric cost]<>\"\"),Table4[Electric kWh usage])","v":{"$error":"#DIV/0!"}},{"$f":"(SUMPRODUCT(--(Table4[Year]=B166),--(Table4[Total BOD removed]<>\"\"),Table4[Total Energy Cost]))/(SUMPRODUCT(--(Table4[Year]=B166),--(Table4[Total Energy Cost]<>\"\"),Table4[Total BOD removed]))","v":{"$error":"#DIV/0!"}},{"$f":"(G$160-G166)*E166","v":{"$error":"#DIV/0!"}},null,null,{"$f":"(J$160-J166)*E166","v":{"$error":"#DIV/0!"}}]
[null,null,"Cumulative change",{"$f":"((SUMPRODUCT(--(Table4[Total Energy Usage]<>\"\"),--(Table4[Year]=3),Table4[BOD removed])+SUMPRODUCT(--(Table4[Total Energy Usage]<>\"\"),--(Table4[Year]=4),Table4[BOD removed])+SUMPRODUCT(--(Table4[Total Energy Usage]<>\"\"),--(Table4[Year]=5),Table4[BOD removed])+SUMPRODUCT(--(Table4[Total Energy Usage]<>\"\"),--(Table4[Year]=6),Table4[BOD removed])+SUMPRODUCT(--(Table4[Total Energy Usage]<>\"\"),--(Table4[Year]=7),Table4[BOD removed]))/(SUMPRODUCT(--(Table4[Total Energy Usage]<>\"\"),--(Table4[BOD removed]<>\"\"),--(Table4[Year]=3))+SUMPRODUCT(--(Table4[Total Energy Usage]<>\"\"),--(Table4[BOD removed]<>\"\"),--(Table4[Year]=4))+SUMPRODUCT(--(Table4[Total Energy Usage]<>\"\"),--(Table4[BOD removed]<>\"\"),--(Table4[Year]=5))+SUMPRODUCT(--(Table4[Total Energy Usage]<>\"\"),--(Table4[BOD removed]<>\"\"),--(Table4[Year]=6))+SUMPRODUCT(--(Table4[Total Energy Usage]<>\"\"),--(Table4[BOD removed]<>\"\"),--(Table4[Year]=7))))/D160-1","v":{"$error":"#DIV/0!"}},null,{"$f":"(((SUMPRODUCT(--(Table4[Year]=3),--(Table4[BOD removed]<>\"\"),Table4[Total Energy Usage])+SUMPRODUCT(--(Table4[Year]=4),--(Table4[BOD removed]<>\"\"),Table4[Total Energy Usage])+SUMPRODUCT(--(Table4[Year]=5),--(Table4[BOD removed]<>\"\"),Table4[Total Energy Usage])+SUMPRODUCT(--(Table4[Year]=6),--(Table4[BOD removed]<>\"\"),Table4[Total Energy Usage])+SUMPRODUCT(--(Table4[Year]=7),--(Table4[BOD removed]<>\"\"),Table4[Total Energy Usage]))/(SUMPRODUCT(--(Table4[Year]=3),--(Table4[Total Energy Usage]<>\"\"),--(Table4[BOD removed]<>\"\"))+SUMPRODUCT(--(Table4[Year]=4),--(Table4[Total Energy Usage]<>\"\"),--(Table4[BOD removed]<>\"\"))+SUMPRODUCT(--(Table4[Year]=5),--(Table4[Total Energy Usage]<>\"\"),--(Table4[BOD removed]<>\"\"))+SUMPRODUCT(--(Table4[Year]=6),--(Table4[Total Energy Usage]<>\"\"),--(Table4[BOD removed]<>\"\"))+SUMPRODUCT(--(Table4[Year]=7),--(Table4[Total Energy Usage]<>\"\"),--(Table4[BOD removed]<>\"\"))))/F160)-1","v":{"$error":"#DIV/0!"}},{"$f":"((SUMPRODUCT(--(Table4[BOD removed]<>\"\"),--(Table4[Year]=3),Table4[Total Energy Usage])+SUMPRODUCT(--(Table4[Total BOD removed]<>\"\"),--(Table4[Year]=4),Table4[Total Energy Usage])+SUMPRODUCT(--(Table4[Total BOD removed]<>\"\"),--(Table4[Year]=5),Table4[Total Energy Usage])+SUMPRODUCT(--(Table4[Total BOD removed]<>\"\"),--(Table4[Year]=6),Table4[Total Energy Usage])+SUMPRODUCT(--(Table4[Total BOD removed]<>\"\"),--(Table4[Year]=7),Table4[Total Energy Usage]))/(SUMPRODUCT(--(Table4[Total Energy Usage]<>\"\"),--(Table4[Year]=3),Table4[Total BOD removed])+SUMPRODUCT(--(Table4[Total Energy Usage]<>\"\"),--(Table4[Year]=4),Table4[Total BOD removed])+SUMPRODUCT(--(Table4[Total Energy Usage]<>\"\"),--(Table4[Year]=5),Table4[Total BOD removed])+SUMPRODUCT(--(Table4[Total Energy Usage]<>\"\"),--(Table4[Year]=6),Table4[Total BOD removed])+SUMPRODUCT(--(Table4[Total Energy Usage]<>\"\"),--(Table4[Year]=7),Table4[Total BOD removed])))/G160-1","v":{"$error":"#DIV/0!"}},{"$f":"((SUMPRODUCT(--(Table4[BOD removed]<>\"\"),--(Table4[Year]=3),Table4[Total Energy Cost])+SUMPRODUCT(--(Table4[BOD removed]<>\"\"),--(Table4[Year]=4),Table4[Total Energy Cost])+SUMPRODUCT(--(Table4[BOD removed]<>\"\"),--(Table4[Year]=5),Table4[Total Energy Cost])+SUMPRODUCT(--(Table4[BOD removed]<>\"\"),--(Table4[Year]=6),Table4[Total Energy Cost])+SUMPRODUCT(--(Table4[BOD removed]<>\"\"),--(Table4[Year]=7),Table4[Total Energy Cost]))/(SUMPRODUCT(--(Table4[BOD removed]<>\"\"),--(Table4[Year]=3),--(Table4[Total Energy Cost]<>\"\"))+SUMPRODUCT(--(Table4[BOD removed]<>\"\"),--(Table4[Year]=4),--(Table4[Total Energy Cost]<>\"\"))+SUMPRODUCT(--(Table4[BOD removed]<>\"\"),--(Table4[Year]=5),--(Table4[Total Energy Cost]<>\"\"))+SUMPRODUCT(--(Table4[BOD removed]<>\"\"),--(Table4[Year]=6),--(Table4[Total Energy Cost]<>\"\"))+SUMPRODUCT(--(Table4[BOD removed]<>\"\"),--(Table4[Year]=7),--(Table4[Total Energy Cost]<>\"\"))))/H160-1","v":{"$error":"#DIV/0!"}},{"$f":"((SUMPRODUCT(--(Table4[Electric kWh usage]<>\"\"),--(Table4[Year]=3),Table4[Total electric cost])+SUMPRODUCT(--(Table4[Electric kWh usage]<>\"\"),--(Table4[Year]=4),Table4[Total electric cost])+SUMPRODUCT(--(Table4[Electric kWh usage]<>\"\"),--(Table4[Year]=5),Table4[Total electric cost])+SUMPRODUCT(--(Table4[Electric kWh usage]<>\"\"),--(Table4[Year]=6),Table4[Total electric cost])+SUMPRODUCT(--(Table4[Electric kWh usage]<>\"\"),--(Table4[Year]=7),Table4[Total electric cost]))/(SUMPRODUCT(--(Table4[Total electric cost]<>\"\"),--(Table4[Year]=3),Table4[Electric kWh usage])+SUMPRODUCT(--(Table4[Total electric cost]<>\"\"),--(Table4[Year]=4),Table4[Electric kWh usage])+SUMPRODUCT(--(Table4[Total electric cost]<>\"\"),--(Table4[Year]=5),Table4[Electric kWh usage])+SUMPRODUCT(--(Table4[Total electric cost]<>\"\"),--(Table4[Year]=6),Table4[Electric kWh usage])+SUMPRODUCT(--(Table4[Total electric cost]<>\"\"),--(Table4[Year]=7),Table4[Electric kWh usage])))/I160-1","v":{"$error":"#DIV/0!"}},{"$f":"((SUMPRODUCT(--(Table4[Year]=3),--(Table4[Total BOD removed]<>\"\"),Table4[Total Energy Cost])+SUMPRODUCT(--(Table4[Year]=4),--(Table4[Total BOD removed]<>\"\"),Table4[Total Energy Cost])+SUMPRODUCT(--(Table4[Year]=5),--(Table4[Total BOD removed]<>\"\"),Table4[Total Energy Cost])+SUMPRODUCT(--(Table4[Year]=6),--(Table4[Total BOD removed]<>\"\"),Table4[Total Energy Cost])+SUMPRODUCT(--(Table4[Year]=7),--(Table4[Total BOD removed]<>\"\"),Table4[Total Energy Cost]))/(SUMPRODUCT(--(Table4[Year]=3),--(Table4[Total Energy Cost]<>\"\"),Table4[Total BOD removed])+SUMPRODUCT(--(Table4[Year]=4),--(Table4[Total Energy Cost]<>\"\"),Table4[Total BOD removed])+SUMPRODUCT(--(Table4[Year]=5),--(Table4[Total Energy Cost]<>\"\"),Table4[Total BOD removed])+SUMPRODUCT(--(Table4[Year]=6),--(Table4[Total Energy Cost]<>\"\"),Table4[Total BOD removed])+SUMPRODUCT(--(Table4[Year]=7),--(Table4[Total Energy Cost]<>\"\"),Table4[Total BOD removed])))/J160-1","v":{"$error":"#DIV/0!"}}]
[null,null,"Cumulative Savings"]
[]
[]
[null,null,"Flow Efficiency Graph Values"]
[]
[null,"Year","Year","kWh/MG","overlap 1","$/MG","overlap 2"]
[]
[null,"Baseline 1",{"$f":"TEXT(DATE(YEAR(B$4),MONTH(B$4),DAY(B$4)),\"mmm yyyy\")&\" - \"&TEXT(DATE(YEAR(B$15),MONTH(B$15),DAY(B$15)),\"mmm yyyy\")","v":"Aug 2017 - Jul 2018"},{"$f":"H98","v":{"$error":"#DIV/0!"}},0,{"$f":"H121","v":{"$error":"#DIV/0!"}},0]
[null,"Baseline 2",{"$f":"TEXT(DATE(YEAR(B$16),MONTH(B$16),DAY(B$16)),\"mmm yyyy\")&\" - \"&TEXT(DATE(YEAR(B$27),MONTH(B$27),DAY(B$27)),\"mmm yyyy\")","v":"Aug 2018 - Jul 2019"},{"$error":"#DIV/0!"},0,{"$error":"#DIV/0!"},0]
[null,3,{"$f":"TEXT(DATE(YEAR(B$28),MONTH(B$28),DAY(B$28)),\"mmm yyyy\")&\" - \"&TEXT(DATE(YEAR(B$39),MONTH(B$39),DAY(B$39)),\"mmm yyyy\")","v":"Aug 2019 - Jul 2020"},{"$error":"#DIV/0!"},0,{"$error":"#DIV/0!"},0]
[null,4,{"$f":"TEXT(DATE(YEAR(B$40),MONTH(B$40),DAY(B$40)),\"mmm yyyy\")&\" - \"&TEXT(DATE(YEAR(B$51),MONTH(B$51),DAY(B$51)),\"mmm yyyy\")","v":"Aug 2020 - Jul 2021"},{"$error":"#DIV/0!"},0,{"$error":"#DIV/0!"},0]
[null,5,{"$f":"TEXT(DATE(YEAR(B$52),MONTH(B$52),DAY(B$52)),\"mmm yyyy\")&\" - \"&TEXT(DATE(YEAR(B$63),MONTH(B$63),DAY(B$63)),\"mmm yyyy\")","v":"Aug 2021 - Jul 2022"},{"$error":"#DIV/0!"},0,{"$error":"#DIV/0!"},0]
[null,6,{"$f":"TEXT(DATE(YEAR(B$64),MONTH(B$64),DAY(B$64)),\"mmm yyyy\")&\" - \"&TEXT(DATE(YEAR(B$75),MONTH(B$75),DAY(B$75)),\"mmm yyyy\")","v":"Aug 2022 - Jul 2023"},{"$error":"#DIV/0!"},0,{"$error":"#DIV/0!"},0]
[null,7,{"$f":"TEXT(DATE(YEAR(B$76),MONTH(B$76),DAY(B$76)),\"mmm yyyy\")&\" - \"&TEXT(DATE(YEAR(B$87),MONTH(B$87),DAY(B$87)),\"mmm yyyy\")","v":"Aug 2023 - Jul 2024"},{"$error":"#DIV/0!"},0,{"$error":"#DIV/0!"},0]
[]
[]
[null,null,"BOD Efficiency Graph Values"]
[null,"Year",null,"kWh/lb BOD","overlap","$/lb BOD","overlap"]
[null,"Baseline 1",{"$f":"TEXT(DATE(YEAR(B$4),MONTH(B$4),DAY(B$4)),\"mmm yyyy\")&\" - \"&TEXT(DATE(YEAR(B$15),MONTH(B$15),DAY(B$15)),\"mmm yyyy\")","v":"Aug 2017 - Jul 2018"},{"$f":"(SUMPRODUCT(--(Table4[Year]=1),--(Table4[Total BOD removed]<>\"\"),Table4[Total Energy Usage])+SUMPRODUCT(--(Table4[Year]=2),--(Table4[Total BOD removed]<>\"\"),Table4[Total Energy Usage]))/(SUMPRODUCT(--(Table4[Year]=1),Table4[Total BOD removed],--(Table4[Total Energy Usage]<>\"\"))+SUMPRODUCT(--(Table4[Year]=2),Table4[Total BOD removed],--(Table4[Total Energy Usage]<>\"\")))","v":{"$error":"#DIV/0!"}},0,{"$f":"(SUMPRODUCT(--(Table4[Year]=1),--(Table4[Total BOD removed]<>\"\"),Table4[Total Energy Cost])+SUMPRODUCT(--(Table4[Year]=2),--(Table4[Total BOD removed]<>\"\"),Table4[Total Energy Cost]))/(SUMPRODUCT(--(Table4[Year]=1),--(Table4[Total Energy Cost]<>\"\"),Table4[Total BOD removed])+SUMPRODUCT(--(Table4[Year]=2),--(Table4[Total Energy Cost]<>\"\"),Table4[Total BOD removed]))","v":{"$error":"#DIV/0!"}},0]
[null,"Baseline 2",{"$f":"TEXT(DATE(YEAR(B$16),MONTH(B$16),DAY(B$16)),\"mmm yyyy\")&\" - \"&TEXT(DATE(YEAR(B$27),MONTH(B$27),DAY(B$27)),\"mmm yyyy\")","v":"Aug 2018 - Jul 2019"},{"$f":"H111","v":{"$error":"#DIV/0!"}},0,{"$f":"H136","v":{"$error":"#DIV/0!"}},0,"Current year?"]
[null,3,{"$f":"TEXT(DATE(YEAR(B$28),MONTH(B$28),DAY(B$28)),\"mmm yyyy\")&\" - \"&TEXT(DATE(YEAR(B$39),MONTH(B$39),DAY(B$39)),\"mmm yyyy\")","v":"Aug 2019 - Jul 2020"},{"$error":"#DIV/0!"},0,{"$error":"#DIV/0!"},0,{"$f":"IF(AND(TODAY()>=B28,TODAY()<=B39),CHAR(10)&\"(to date)\",\"\")","v":"\n(to date)"}]
[null,4,{"$f":"TEXT(DATE(YEAR(B$40),MONTH(B$40),DAY(B$40)),\"mmm yyyy\")&\" - \"&TEXT(DATE(YEAR(B$51),MONTH(B$51),DAY(B$51)),\"mmm yyyy\")","v":"Aug 2020 - Jul 2021"},{"$error":"#DIV/0!"},0,{"$error":"#DIV/0!"},0,{"$f":"IF(AND(TODAY()>=B40,TODAY()<=B51),CHAR(10)&\"(to date)\",\"\")","v":""}]
[null,5,{"$f":"TEXT(DATE(YEAR(B$52),MONTH(B$52),DAY(B$52)),\"mmm yyyy\")&\" - \"&TEXT(DATE(YEAR(B$63),MONTH(B$63),DAY(B$63)),\"mmm yyyy\")","v":"Aug 2021 - Jul 2022"},{"$error":"#DIV/0!"},0,{"$error":"#DIV/0!"},0,{"$f":"IF(AND(TODAY()>=B52,TODAY()<=B63),CHAR(10)&\"(to date)\",\"\")","v":""}]
[null,6,{"$f":"TEXT(DATE(YEAR(B$64),MONTH(B$64),DAY(B$64)),\"mmm yyyy\")&\" - \"&TEXT(DATE(YEAR(B$75),MONTH(B$75),DAY(B$75)),\"mmm yyyy\")","v":"Aug 2022 - Jul 2023"},{"$error":"#DIV/0!"},0,{"$error":"#DIV/0!"},0,{"$f":"IF(AND(TODAY()>=B64,TODAY()<=B75),CHAR(10)&\"(to date)\",\"\")","v":""}]
[null,7,{"$f":"TEXT(DATE(YEAR(B$76),MONTH(B$76),DAY(B$76)),\"mmm yyyy\")&\" - \"&TEXT(DATE(YEAR(B$87),MONTH(B$87),DAY(B$87)),\"mmm yyyy\")","v":"Aug 2023 - Jul 2024"},{"$error":"#DIV/0!"},0,{"$error":"#DIV/0!"},0,{"$f":"IF(AND(TODAY()>=B76,TODAY()<=B87),CHAR(10)&\"(to date)\",\"\")","v":""}]
[]
[]
[null,"Nutrient Summary Table"]
[null,null,null,"Influent TN","Effluent NH3","Effluent TKN",{"$f":"IF((SUMPRODUCT(--(Table4[Year]=1),--(Table4[Avg effluent NH3]<>\"\"))+SUMPRODUCT(--(Table4[Year]=2),--(Table4[Avg effluent NH3]<>\"\")))<=(SUMPRODUCT(--(Table4[Year]=1),--(Table4[Avg effluent TKN]<>\"\"))+SUMPRODUCT(--(Table4[Year]=2),--(Table4[Avg effluent TKN]<>\"\"))),\"Avg Effluent TKN (mg/L)\",\"Avg Effluent NH3 (mg/L)\")","v":"Avg Effluent TKN (mg/L)"},"Effluent NOx","Avg TN Removal (lbs/mo)","Approx TN removed (tons/year)","Approx. add'l removal TN over baseline (lbs)","Sufficient TN data to extrapolate?",null,"Influent TP","Effluent TP","Avg TP removal (lbs/mo)","Approx. add'l TP removal over baseline (lbs/year)","Sufficient TP data to extrapolate?"]
[null,"Baseline",{"$f":"\"Baseline: \"&TEXT(DATE(YEAR(B$4),MONTH(B$4),DAY(B$4)),\"mmm yyyy\")&\" - \"&TEXT(DATE(YEAR(B$27),MONTH(B$27),DAY(B$27)),\"mmm yyyy\")","v":"Baseline: Aug 2017 - Jul 2019"},{"$f":"(SUMPRODUCT(--(Table4[Year]=1),Table4[Avg influent TKN])+SUMPRODUCT(--(Table4[Year]=2),Table4[Avg influent TKN]))/(SUMPRODUCT(--(Table4[Year]=1),--(Table4[Avg influent TKN]<>\"\"))+SUMPRODUCT(--(Table4[Year]=2),--(Table4[Avg influent TKN]<>\"\")))+(SUMPRODUCT(--(Table4[Year]=1),Table4[Avg influent NOx])+SUMPRODUCT(--(Table4[Year]=2),Table4[Avg influent NOx]))/(SUMPRODUCT(--(Table4[Year]=1),--(Table4[Avg influent NOx]<>\"\"))+SUMPRODUCT(--(Table4[Year]=2),--(Table4[Avg influent NOx]<>\"\")))","v":{"$error":"#DIV/0!"}},{"$f":"(SUMPRODUCT(--(Table4[Year]=1),Table4[Avg effluent NH3])+SUMPRODUCT(--(Table4[Year]=2),Table4[Avg effluent NH3]))/(SUMPRODUCT(--(Table4[Year]=1),--(Table4[Avg effluent NH3]<>\"\"))+SUMPRODUCT(--(Table4[Year]=2),--(Table4[Avg effluent NH3]<>\"\")))","v":{"$error":"#DIV/0!"}},{"$f":"(SUMPRODUCT(--(Table4[Year]=1),Table4[Avg effluent TKN])+SUMPRODUCT(--(Table4[Year]=2),Table4[Avg effluent TKN]))/(SUMPRODUCT(--(Table4[Year]=1),--(Table4[Avg effluent TKN]<>\"\"))+SUMPRODUCT(--(Table4[Year]=2),--(Table4[Avg effluent TKN]<>\"\")))","v":{"$error":"#DIV/0!"}},{"$f":"IF($G$196=\"Avg Effluent TKN (mg/L)\",F197,E197)","v":{"$error":"#DIV/0!"}},{"$f":"(SUMPRODUCT(--(Table4[Year]=1),Table4[Avg effluent NOx])+SUMPRODUCT(--(Table4[Year]=2),Table4[Avg effluent NOx]))/(SUMPRODUCT(--(Table4[Year]=1),--(Table4[Avg effluent NOx]<>\"\"))+SUMPRODUCT(--(Table4[Year]=2),--(Table4[Avg effluent NOx]<>\"\")))","v":{"$error":"#DIV/0!"}},{"$f":"(SUMPRODUCT(--(Table4[Year]=1),Table4[Approx TN removal (lbs)])+SUMPRODUCT(--(Table4[Year]=2),Table4[Approx TN removal (lbs)]))/(SUMPRODUCT(--(Table4[Year]=1),--(Table4[Approx TN removal (lbs)]<>\"\"))+SUMPRODUCT(--(Table4[Year]=2),--(Table4[Approx TN removal (lbs)]<>\"\")))","v":{"$error":"#DIV/0!"}},{"$f":"ROUND((I197*12/2000),1)","v":{"$error":"#DIV/0!"}},"N/A",null,null,{"$f":"(SUMPRODUCT(--(Table4[Year]=1),Table4[Avg influent TP])+SUMPRODUCT(--(Table4[Year]=2),Table4[Avg influent TP]))/(SUMPRODUCT(--(Table4[Year]=1),--(Table4[Avg influent TP]<>\"\"))+SUMPRODUCT(--(Table4[Year]=2),--(Table4[Avg influent TP]<>\"\")))","v":{"$error":"#DIV/0!"}},{"$f":"(SUMPRODUCT(--(Table4[Year]=1),Table4[Avg effluent TP])+SUMPRODUCT(--(Table4[Year]=2),Table4[Avg effluent TP]))/(SUMPRODUCT(--(Table4[Year]=1),--(Table4[Avg effluent TP]<>\"\"))+SUMPRODUCT(--(Table4[Year]=2),--(Table4[Avg effluent TP]<>\"\")))","v":{"$error":"#DIV/0!"}},{"$f":"(SUMPRODUCT(--(Table4[Year]=1),Table4[Calculated TP removal (lbs)])+SUMPRODUCT(--(Table4[Year]=2),Table4[Calculated TP removal (lbs)]))/(SUMPRODUCT(--(Table4[Year]=1),--(Table4[Calculated TP removal (lbs)]<>\"\"))+SUMPRODUCT(--(Table4[Year]=2),--(Table4[Calculated TP removal (lbs)]<>\"\")))","v":{"$error":"#DIV/0!"}},"N/A"]
[]
[null,3,{"$f":"TEXT(DATE(YEAR(B$28),MONTH(B$28),DAY(B$28)),\"mmm yyyy\")&\" - \"&TEXT(DATE(YEAR(B$39),MONTH(B$39),DAY(B$39)),\"mmm yyyy\")","v":"Aug 2019 - Jul 2020"},{"$f":"SUMPRODUCT(--(Table4[Year]=B199),Table4[Avg influent TKN])/SUMPRODUCT(--(Table4[Year]=B199),--(Table4[Avg influent TKN]<>\"\"))+SUMPRODUCT(--(Table4[Year]=B199),Table4[Avg influent NOx])/SUMPRODUCT(--(Table4[Year]=B199),--(Table4[Avg influent NOx]<>\"\"))","v":{"$error":"#DIV/0!"}},{"$f":"SUMPRODUCT(--(Table4[Year]=B199),Table4[Avg effluent NH3])/SUMPRODUCT(--(Table4[Year]=B199),--(Table4[Avg effluent NH3]<>\"\"))","v":{"$error":"#DIV/0!"}},{"$f":"SUMPRODUCT(--(Table4[Year]=B199),Table4[Avg effluent TKN])/SUMPRODUCT(--(Table4[Year]=B199),--(Table4[Avg effluent TKN]<>\"\"))","v":{"$error":"#DIV/0!"}},{"$f":"IF($G$196=\"Avg Effluent TKN (mg/L)\",F199,E199)","v":{"$error":"#DIV/0!"}},{"$f":"SUMPRODUCT(--(Table4[Year]=B199),Table4[Avg effluent NOx])/SUMPRODUCT(--(Table4[Year]=B199),--(Table4[Avg effluent NOx]<>\"\"))","v":{"$error":"#DIV/0!"}},{"$f":"SUMPRODUCT(--(Table4[Year]=B199),Table4[Approx TN removal (lbs)])/SUMPRODUCT(--(Table4[Year]=B199),--(Table4[Approx TN removal (lbs)]<>\"\"))","v":{"$error":"#DIV/0!"}},{"$f":"ROUND((I199*12/2000),1)","v":{"$error":"#DIV/0!"}},{"$f":"IF(L199=\"Yes\",IFERROR(D199*8.34*SUMPRODUCT(--(Table4[Year]=B199),Table4[Monthly Flow])*(((D199-(G199+H199))/D199)-(D$197-(G$197+H$197))/D$197),\"\"),\"\")","v":""},{"$f":"IF(SUMPRODUCT(--(Table4[Year]=B199),--(Table4[Approx TN removal (lbs)]<>\"\"))<(SUMPRODUCT(--(Table4[Year]=B199),--(Table4[Avg Daily Flow]<>\"\")))/3,\"No\",\"Yes\")","v":"Yes"},null,{"$f":"SUMPRODUCT(--(Table4[Year]=B199),Table4[Avg influent TP])/SUMPRODUCT(--(Table4[Year]=B199),--(Table4[Avg influent TP]<>\"\"))","v":{"$error":"#DIV/0!"}},{"$f":"SUMPRODUCT(--(Table4[Year]=B199),Table4[Avg effluent TP])/SUMPRODUCT(--(Table4[Year]=B199),--(Table4[Avg effluent TP]<>\"\"))","v":{"$error":"#DIV/0!"}},{"$f":"(SUMPRODUCT(--(Table4[Year]=B199),Table4[Calculated TP removal (lbs)]))/(SUMPRODUCT(--(Table4[Year]=B199),--(Table4[Calculated TP removal (lbs)]<>\"\")))","v":{"$error":"#DIV/0!"}},{"$f":"IF(R199=\"Yes\",IFERROR(N199*8.34*SUMPRODUCT(--(Table4[Year]=B199),Table4[Monthly Flow])*(((N199-O199)/N199)-(N$197-O$197)/N$197),\"\"),\"\")","v":""},{"$f":"IF(SUMPRODUCT(--(Table4[Year]=B199),--(Table4[Calculated TP removal (lbs)]<>\"\"))<(SUMPRODUCT(--(Table4[Year]=B199),--(Table4[Avg Daily Flow]<>\"\")))/3,\"No\",\"Yes\")","v":"Yes"}]
[null,4,{"$f":"TEXT(DATE(YEAR(B$40),MONTH(B$40),DAY(B$40)),\"mmm yyyy\")&\" - \"&TEXT(DATE(YEAR(B$51),MONTH(B$51),DAY(B$51)),\"mmm yyyy\")","v":"Aug 2020 - Jul 2021"},{"$f":"SUMPRODUCT(--(Table4[Year]=B200),Table4[Avg influent TKN])/SUMPRODUCT(--(Table4[Year]=B200),--(Table4[Avg influent TKN]<>\"\"))+SUMPRODUCT(--(Table4[Year]=B200),Table4[Avg influent NOx])/SUMPRODUCT(--(Table4[Year]=B200),--(Table4[Avg influent NOx]<>\"\"))","v":{"$error":"#DIV/0!"}},{"$f":"SUMPRODUCT(--(Table4[Year]=B200),Table4[Avg effluent NH3])/SUMPRODUCT(--(Table4[Year]=B200),--(Table4[Avg effluent NH3]<>\"\"))","v":{"$error":"#DIV/0!"}},{"$f":"SUMPRODUCT(--(Table4[Year]=B200),Table4[Avg effluent TKN])/SUMPRODUCT(--(Table4[Year]=B200),--(Table4[Avg effluent TKN]<>\"\"))","v":{"$error":"#DIV/0!"}},{"$error":"#DIV/0!"},{"$f":"SUMPRODUCT(--(Table4[Year]=B200),Table4[Avg effluent NOx])/SUMPRODUCT(--(Table4[Year]=B200),--(Table4[Avg effluent NOx]<>\"\"))","v":{"$error":"#DIV/0!"}},{"$f":"SUMPRODUCT(--(Table4[Year]=B200),Table4[Approx TN removal (lbs)])/SUMPRODUCT(--(Table4[Year]=B200),--(Table4[Approx TN removal (lbs)]<>\"\"))","v":{"$error":"#DIV/0!"}},{"$f":"ROUND((I200*12/2000),1)","v":{"$error":"#DIV/0!"}},{"$f":"IF(L200=\"Yes\",IFERROR(D200*8.34*SUMPRODUCT(--(Table4[Year]=B200),Table4[Monthly Flow])*(((D200-(G200+H200))/D200)-(D$197-(G$197+H$197))/D$197),\"\"),\"\")","v":""},{"$f":"IF(SUMPRODUCT(--(Table4[Year]=B200),--(Table4[Approx TN removal (lbs)]<>\"\"))<(SUMPRODUCT(--(Table4[Year]=B200),--(Table4[Avg Daily Flow]<>\"\")))/3,\"No\",\"Yes\")","v":"Yes"},null,{"$f":"SUMPRODUCT(--(Table4[Year]=B200),Table4[Avg influent TP])/SUMPRODUCT(--(Table4[Year]=B200),--(Table4[Avg influent TP]<>\"\"))","v":{"$error":"#DIV/0!"}},{"$f":"SUMPRODUCT(--(Table4[Year]=B200),Table4[Avg effluent TP])/SUMPRODUCT(--(Table4[Year]=B200),--(Table4[Avg effluent TP]<>\"\"))","v":{"$error":"#DIV/0!"}},{"$f":"(SUMPRODUCT(--(Table4[Year]=B200),Table4[Calculated TP removal (lbs)]))/(SUMPRODUCT(--(Table4[Year]=B200),--(Table4[Calculated TP removal (lbs)]<>\"\")))","v":{"$error":"#DIV/0!"}},{"$f":"IF(R200=\"Yes\",IFERROR(N200*8.34*SUMPRODUCT(--(Table4[Year]=B200),Table4[Monthly Flow])*(((N200-O200)/N200)-(N$197-O$197)/N$197),\"\"),\"\")","v":""},{"$f":"IF(SUMPRODUCT(--(Table4[Year]=B200),--(Table4[Calculated TP removal (lbs)]<>\"\"))<(SUMPRODUCT(--(Table4[Year]=B200),--(Table4[Avg Daily Flow]<>\"\")))/3,\"No\",\"Yes\")","v":"Yes"}]
[null,5,{"$f":"TEXT(DATE(YEAR(B$52),MONTH(B$52),DAY(B$52)),\"mmm yyyy\")&\" - \"&TEXT(DATE(YEAR(B$63),MONTH(B$63),DAY(B$63)),\"mmm yyyy\")","v":"Aug 2021 - Jul 2022"},{"$f":"SUMPRODUCT(--(Table4[Year]=B201),Table4[Avg influent TKN])/SUMPRODUCT(--(Table4[Year]=B201),--(Table4[Avg influent TKN]<>\"\"))+SUMPRODUCT(--(Table4[Year]=B201),Table4[Avg influent NOx])/SUMPRODUCT(--(Table4[Year]=B201),--(Table4[Avg influent NOx]<>\"\"))","v":{"$error":"#DIV/0!"}},{"$f":"SUMPRODUCT(--(Table4[Year]=B201),Table4[Avg effluent NH3])/SUMPRODUCT(--(Table4[Year]=B201),--(Table4[Avg effluent NH3]<>\"\"))","v":{"$error":"#DIV/0!"}},{"$f":"SUMPRODUCT(--(Table4[Year]=B201),Table4[Avg effluent TKN])/SUMPRODUCT(--(Table4[Year]=B201),--(Table4[Avg effluent TKN]<>\"\"))","v":{"$error":"#DIV/0!"}},{"$error":"#DIV/0!"},{"$f":"SUMPRODUCT(--(Table4[Year]=B201),Table4[Avg effluent NOx])/SUMPRODUCT(--(Table4[Year]=B201),--(Table4[Avg effluent NOx]<>\"\"))","v":{"$error":"#DIV/0!"}},{"$f":"SUMPRODUCT(--(Table4[Year]=B201),Table4[Approx TN removal (lbs)])/SUMPRODUCT(--(Table4[Year]=B201),--(Table4[Approx TN removal (lbs)]<>\"\"))","v":{"$error":"#DIV/0!"}},{"$error":"#DIV/0!"},{"$f":"IF(L201=\"Yes\",IFERROR(D201*8.34*SUMPRODUCT(--(Table4[Year]=B201),Table4[Monthly Flow])*(((D201-(G201+H201))/D201)-(D$197-(G$197+H$197))/D$197),\"\"),\"\")","v":""},{"$f":"IF(SUMPRODUCT(--(Table4[Year]=B201),--(Table4[Approx TN removal (lbs)]<>\"\"))<(SUMPRODUCT(--(Table4[Year]=B201),--(Table4[Avg Daily Flow]<>\"\")))/3,\"No\",\"Yes\")","v":"Yes"},null,{"$f":"SUMPRODUCT(--(Table4[Year]=B201),Table4[Avg influent TP])/SUMPRODUCT(--(Table4[Year]=B201),--(Table4[Avg influent TP]<>\"\"))","v":{"$error":"#DIV/0!"}},{"$f":"SUMPRODUCT(--(Table4[Year]=B201),Table4[Avg effluent TP])/SUMPRODUCT(--(Table4[Year]=B201),--(Table4[Avg effluent TP]<>\"\"))","v":{"$error":"#DIV/0!"}},{"$f":"(SUMPRODUCT(--(Table4[Year]=B201),Table4[Calculated TP removal (lbs)]))/(SUMPRODUCT(--(Table4[Year]=B201),--(Table4[Calculated TP removal (lbs)]<>\"\")))","v":{"$error":"#DIV/0!"}},{"$f":"IF(R201=\"Yes\",IFERROR(N201*8.34*SUMPRODUCT(--(Table4[Year]=B201),Table4[Monthly Flow])*(((N201-O201)/N201)-(N$197-O$197)/N$197),\"\"),\"\")","v":""},{"$f":"IF(SUMPRODUCT(--(Table4[Year]=B201),--(Table4[Calculated TP removal (lbs)]<>\"\"))<(SUMPRODUCT(--(Table4[Year]=B201),--(Table4[Avg Daily Flow]<>\"\")))/3,\"No\",\"Yes\")","v":"Yes"}]
[null,6,{"$f":"TEXT(DATE(YEAR(B$64),MONTH(B$64),DAY(B$64)),\"mmm yyyy\")&\" - \"&TEXT(DATE(YEAR(B$75),MONTH(B$75),DAY(B$75)),\"mmm yyyy\")","v":"Aug 2022 - Jul 2023"},{"$f":"SUMPRODUCT(--(Table4[Year]=B202),Table4[Avg influent TKN])/SUMPRODUCT(--(Table4[Year]=B202),--(Table4[Avg influent TKN]<>\"\"))+SUMPRODUCT(--(Table4[Year]=B202),Table4[Avg influent NOx])/SUMPRODUCT(--(Table4[Year]=B202),--(Table4[Avg influent NOx]<>\"\"))","v":{"$error":"#DIV/0!"}},{"$f":"SUMPRODUCT(--(Table4[Year]=B202),Table4[Avg effluent NH3])/SUMPRODUCT(--(Table4[Year]=B202),--(Table4[Avg effluent NH3]<>\"\"))","v":{"$error":"#DIV/0!"}},{"$f":"SUMPRODUCT(--(Table4[Year]=B202),Table4[Avg effluent TKN])/SUMPRODUCT(--(Table4[Year]=B202),--(Table4[Avg effluent TKN]<>\"\"))","v":{"$error":"#DIV/0!"}},{"$error":"#DIV/0!"},{"$f":"SUMPRODUCT(--(Table4[Year]=B202),Table4[Avg effluent NOx])/SUMPRODUCT(--(Table4[Year]=B202),--(Table4[Avg effluent NOx]<>\"\"))","v":{"$error":"#DIV/0!"}},{"$f":"SUMPRODUCT(--(Table4[Year]=B202),Table4[Approx TN removal (lbs)])/SUMPRODUCT(--(Table4[Year]=B202),--(Table4[Approx TN removal (lbs)]<>\"\"))","v":{"$error":"#DIV/0!"}},{"$error":"#DIV/0!"},{"$f":"IF(L202=\"Yes\",IFERROR(D202*8.34*SUMPRODUCT(--(Table4[Year]=B202),Table4[Monthly Flow])*(((D202-(G202+H202))/D202)-(D$197-(G$197+H$197))/D$197),\"\"),\"\")","v":""},{"$f":"IF(SUMPRODUCT(--(Table4[Year]=B202),--(Table4[Approx TN removal (lbs)]<>\"\"))<(SUMPRODUCT(--(Table4[Year]=B202),--(Table4[Avg Daily Flow]<>\"\")))/3,\"No\",\"Yes\")","v":"Yes"},null,{"$f":"SUMPRODUCT(--(Table4[Year]=B202),Table4[Avg influent TP])/SUMPRODUCT(--(Table4[Year]=B202),--(Table4[Avg influent TP]<>\"\"))","v":{"$error":"#DIV/0!"}},{"$f":"SUMPRODUCT(--(Table4[Year]=B202),Table4[Avg effluent TP])/SUMPRODUCT(--(Table4[Year]=B202),--(Table4[Avg effluent TP]<>\"\"))","v":{"$error":"#DIV/0!"}},{"$f":"(SUMPRODUCT(--(Table4[Year]=B202),Table4[Calculated TP removal (lbs)]))/(SUMPRODUCT(--(Table4[Year]=B202),--(Table4[Calculated TP removal (lbs)]<>\"\")))","v":{"$error":"#DIV/0!"}},{"$f":"IF(R202=\"Yes\",IFERROR(N202*8.34*SUMPRODUCT(--(Table4[Year]=B202),Table4[Monthly Flow])*(((N202-O202)/N202)-(N$197-O$197)/N$197),\"\"),\"\")","v":""},{"$f":"IF(SUMPRODUCT(--(Table4[Year]=B202),--(Table4[Calculated TP removal (lbs)]<>\"\"))<(SUMPRODUCT(--(Table4[Year]=B202),--(Table4[Avg Daily Flow]<>\"\")))/3,\"No\",\"Yes\")","v":"Yes"}]
[null,7,{"$f":"TEXT(DATE(YEAR(B$76),MONTH(B$76),DAY(B$76)),\"mmm yyyy\")&\" - \"&TEXT(DATE(YEAR(B$87),MONTH(B$87),DAY(B$87)),\"mmm yyyy\")","v":"Aug 2023 - Jul 2024"},{"$f":"SUMPRODUCT(--(Table4[Year]=B203),Table4[Avg influent TKN])/SUMPRODUCT(--(Table4[Year]=B203),--(Table4[Avg influent TKN]<>\"\"))+SUMPRODUCT(--(Table4[Year]=B203),Table4[Avg influent NOx])/SUMPRODUCT(--(Table4[Year]=B203),--(Table4[Avg influent NOx]<>\"\"))","v":{"$error":"#DIV/0!"}},{"$f":"SUMPRODUCT(--(Table4[Year]=B203),Table4[Avg effluent NH3])/SUMPRODUCT(--(Table4[Year]=B203),--(Table4[Avg effluent NH3]<>\"\"))","v":{"$error":"#DIV/0!"}},{"$f":"SUMPRODUCT(--(Table4[Year]=B203),Table4[Avg effluent TKN])/SUMPRODUCT(--(Table4[Year]=B203),--(Table4[Avg effluent TKN]<>\"\"))","v":{"$error":"#DIV/0!"}},{"$error":"#DIV/0!"},{"$f":"SUMPRODUCT(--(Table4[Year]=B203),Table4[Avg effluent NOx])/SUMPRODUCT(--(Table4[Year]=B203),--(Table4[Avg effluent NOx]<>\"\"))","v":{"$error":"#DIV/0!"}},{"$f":"SUMPRODUCT(--(Table4[Year]=B203),Table4[Approx TN removal (lbs)])/SUMPRODUCT(--(Table4[Year]=B203),--(Table4[Approx TN removal (lbs)]<>\"\"))","v":{"$error":"#DIV/0!"}},{"$error":"#DIV/0!"},{"$f":"IF(L203=\"Yes\",IFERROR(D203*8.34*SUMPRODUCT(--(Table4[Year]=B203),Table4[Monthly Flow])*(((D203-(G203+H203))/D203)-(D$197-(G$197+H$197))/D$197),\"\"),\"\")","v":""},{"$f":"IF(SUMPRODUCT(--(Table4[Year]=B203),--(Table4[Approx TN removal (lbs)]<>\"\"))<(SUMPRODUCT(--(Table4[Year]=B203),--(Table4[Avg Daily Flow]<>\"\")))/3,\"No\",\"Yes\")","v":"Yes"},null,{"$f":"SUMPRODUCT(--(Table4[Year]=B203),Table4[Avg influent TP])/SUMPRODUCT(--(Table4[Year]=B203),--(Table4[Avg influent TP]<>\"\"))","v":{"$error":"#DIV/0!"}},{"$f":"SUMPRODUCT(--(Table4[Year]=B203),Table4[Avg effluent TP])/SUMPRODUCT(--(Table4[Year]=B203),--(Table4[Avg effluent TP]<>\"\"))","v":{"$error":"#DIV/0!"}},{"$f":"(SUMPRODUCT(--(Table4[Year]=B203),Table4[Calculated TP removal (lbs)]))/(SUMPRODUCT(--(Table4[Year]=B203),--(Table4[Calculated TP removal (lbs)]<>\"\")))","v":{"$error":"#DIV/0!"}},{"$f":"IF(R203=\"Yes\",IFERROR(N203*8.34*SUMPRODUCT(--(Table4[Year]=B203),Table4[Monthly Flow])*(((N203-O203)/N203)-(N$197-O$197)/N$197),\"\"),\"\")","v":""},{"$f":"IF(SUMPRODUCT(--(Table4[Year]=B203),--(Table4[Calculated TP removal (lbs)]<>\"\"))<(SUMPRODUCT(--(Table4[Year]=B203),--(Table4[Avg Daily Flow]<>\"\")))/3,\"No\",\"Yes\")","v":"Yes"}]
[null,null,"Cumulative change",{"$f":"((SUMPRODUCT(--(Table4[Year]=3),Table4[Avg influent TKN])+SUMPRODUCT(--(Table4[Year]=4),Table4[Avg influent TKN])+SUMPRODUCT(--(Table4[Year]=5),Table4[Avg influent TKN])+SUMPRODUCT(--(Table4[Year]=6),Table4[Avg influent TKN])+SUMPRODUCT(--(Table4[Year]=7),Table4[Avg influent TKN]))/(SUMPRODUCT(--(Table4[Year]=3),--(Table4[Avg influent TKN]<>\"\"))+SUMPRODUCT(--(Table4[Year]=4),--(Table4[Avg influent TKN]<>\"\"))+SUMPRODUCT(--(Table4[Year]=5),--(Table4[Avg influent TKN]<>\"\"))+SUMPRODUCT(--(Table4[Year]=6),--(Table4[Avg influent TKN]<>\"\"))+SUMPRODUCT(--(Table4[Year]=7),--(Table4[Avg influent TKN]<>\"\")))+(SUMPRODUCT(--(Table4[Year]=3),Table4[Avg influent NOx])+SUMPRODUCT(--(Table4[Year]=4),Table4[Avg influent NOx])+SUMPRODUCT(--(Table4[Year]=5),Table4[Avg influent NOx])+SUMPRODUCT(--(Table4[Year]=6),Table4[Avg influent NOx])+SUMPRODUCT(--(Table4[Year]=7),Table4[Avg influent NOx]))/(SUMPRODUCT(--(Table4[Year]=3),--(Table4[Avg influent NOx]<>\"\"))+SUMPRODUCT(--(Table4[Year]=4),--(Table4[Avg influent NOx]<>\"\"))+SUMPRODUCT(--(Table4[Year]=5),--(Table4[Avg influent NOx]<>\"\"))+SUMPRODUCT(--(Table4[Year]=6),--(Table4[Avg influent NOx]<>\"\"))+SUMPRODUCT(--(Table4[Year]=7),--(Table4[Avg influent NOx]<>\"\"))))/D197-1","v":{"$error":"#DIV/0!"}},{"$f":"((SUMPRODUCT(--(Table4[Year]=3),Table4[Avg effluent NH3])+SUMPRODUCT(--(Table4[Year]=4),Table4[Avg effluent NH3])+SUMPRODUCT(--(Table4[Year]=5),Table4[Avg effluent NH3])+SUMPRODUCT(--(Table4[Year]=6),Table4[Avg effluent NH3])+SUMPRODUCT(--(Table4[Year]=7),Table4[Avg effluent NH3]))/(SUMPRODUCT(--(Table4[Year]=3),--(Table4[Avg effluent NH3]<>\"\"))+SUMPRODUCT(--(Table4[Year]=4),--(Table4[Avg effluent NH3]<>\"\"))+SUMPRODUCT(--(Table4[Year]=5),--(Table4[Avg effluent NH3]<>\"\"))+SUMPRODUCT(--(Table4[Year]=6),--(Table4[Avg effluent NH3]<>\"\"))+SUMPRODUCT(--(Table4[Year]=7),--(Table4[Avg effluent NH3]<>\"\"))))/E197-1","v":{"$error":"#DIV/0!"}},{"$f":"((SUMPRODUCT(--(Table4[Year]=3),Table4[Avg effluent TKN])+SUMPRODUCT(--(Table4[Year]=4),Table4[Avg effluent TKN])+SUMPRODUCT(--(Table4[Year]=5),Table4[Avg effluent TKN])+SUMPRODUCT(--(Table4[Year]=6),Table4[Avg effluent TKN])+SUMPRODUCT(--(Table4[Year]=7),Table4[Avg effluent TKN]))/(SUMPRODUCT(--(Table4[Year]=3),--(Table4[Avg effluent TKN]<>\"\"))+SUMPRODUCT(--(Table4[Year]=4),--(Table4[Avg effluent TKN]<>\"\"))+SUMPRODUCT(--(Table4[Year]=5),--(Table4[Avg effluent TKN]<>\"\"))+SUMPRODUCT(--(Table4[Year]=6),--(Table4[Avg effluent TKN]<>\"\"))+SUMPRODUCT(--(Table4[Year]=7),--(Table4[Avg effluent TKN]<>\"\"))))/F197-1","v":{"$error":"#DIV/0!"}},{"$error":"#DIV/0!"},{"$f":"((SUMPRODUCT(--(Table4[Year]=3),Table4[Avg effluent NOx])+SUMPRODUCT(--(Table4[Year]=4),Table4[Avg effluent NOx])+SUMPRODUCT(--(Table4[Year]=5),Table4[Avg effluent NOx])+SUMPRODUCT(--(Table4[Year]=6),Table4[Avg effluent NOx])+SUMPRODUCT(--(Table4[Year]=7),Table4[Avg effluent NOx]))/(SUMPRODUCT(--(Table4[Year]=3),--(Table4[Avg effluent NOx]<>\"\"))+SUMPRODUCT(--(Table4[Year]=4),--(Table4[Avg effluent NOx]<>\"\"))+SUMPRODUCT(--(Table4[Year]=5),--(Table4[Avg effluent NOx]<>\"\"))+SUMPRODUCT(--(Table4[Year]=6),--(Table4[Avg effluent NOx]<>\"\"))+SUMPRODUCT(--(Table4[Year]=7),--(Table4[Avg effluent NOx]<>\"\"))))/H197-1","v":{"$error":"#DIV/0!"}},{"$f":"((SUMPRODUCT(--(Table4[Year]=3),Table4[Approx TN removal (lbs)])+SUMPRODUCT(--(Table4[Year]=4),Table4[Approx TN removal (lbs)])+SUMPRODUCT(--(Table4[Year]=5),Table4[Approx TN removal (lbs)])+SUMPRODUCT(--(Table4[Year]=6),Table4[Approx TN removal (lbs)])+SUMPRODUCT(--(Table4[Year]=7),Table4[Approx TN removal (lbs)]))/(SUMPRODUCT(--(Table4[Year]=3),--(Table4[Approx TN removal (lbs)]<>\"\"))+SUMPRODUCT(--(Table4[Year]=4),--(Table4[Approx TN removal (lbs)]<>\"\"))+SUMPRODUCT(--(Table4[Year]=5),--(Table4[Approx TN removal (lbs)]<>\"\"))+SUMPRODUCT(--(Table4[Year]=6),--(Table4[Approx TN removal (lbs)]<>\"\"))+SUMPRODUCT(--(Table4[Year]=7),--(Table4[Approx TN removal (lbs)]<>\"\"))))/I197-1","v":{"$error":"#DIV/0!"}},null,{"$f":"SUM(K199:K203)","v":0},null,null,{"$f":"((SUMPRODUCT(--(Table4[Year]=3),Table4[Avg influent TP])+SUMPRODUCT(--(Table4[Year]=4),Table4[Avg influent TP])+SUMPRODUCT(--(Table4[Year]=5),Table4[Avg influent TP])+SUMPRODUCT(--(Table4[Year]=6),Table4[Avg influent TP])+SUMPRODUCT(--(Table4[Year]=7),Table4[Avg influent TP]))/(SUMPRODUCT(--(Table4[Year]=3),--(Table4[Avg influent TP]<>\"\"))+SUMPRODUCT(--(Table4[Year]=4),--(Table4[Avg influent TP]<>\"\"))+SUMPRODUCT(--(Table4[Year]=5),--(Table4[Avg influent TP]<>\"\"))+SUMPRODUCT(--(Table4[Year]=6),--(Table4[Avg influent TP]<>\"\"))+SUMPRODUCT(--(Table4[Year]=7),--(Table4[Avg influent TP]<>\"\"))))/N197-1","v":{"$error":"#DIV/0!"}},{"$f":"((SUMPRODUCT(--(Table4[Year]=3),Table4[Avg effluent TP])+SUMPRODUCT(--(Table4[Year]=4),Table4[Avg effluent TP])+SUMPRODUCT(--(Table4[Year]=5),Table4[Avg effluent TP])+SUMPRODUCT(--(Table4[Year]=6),Table4[Avg effluent TP])+SUMPRODUCT(--(Table4[Year]=7),Table4[Avg effluent TP]))/(SUMPRODUCT(--(Table4[Year]=3),--(Table4[Avg effluent TP]<>\"\"))+SUMPRODUCT(--(Table4[Year]=4),--(Table4[Avg effluent TP]<>\"\"))+SUMPRODUCT(--(Table4[Year]=5),--(Table4[Avg effluent TP]<>\"\"))+SUMPRODUCT(--(Table4[Year]=6),--(Table4[Avg effluent TP]<>\"\"))+SUMPRODUCT(--(Table4[Year]=7),--(Table4[Avg effluent TP]<>\"\"))))/O197-1","v":{"$error":"#DIV/0!"}},{"$f":"((SUMPRODUCT(--(Table4[Year]=3),Table4[Calculated TP removal (lbs)])+SUMPRODUCT(--(Table4[Year]=4),Table4[Calculated TP removal (lbs)])+SUMPRODUCT(--(Table4[Year]=5),Table4[Calculated TP removal (lbs)])+SUMPRODUCT(--(Table4[Year]=6),Table4[Calculated TP removal (lbs)])+SUMPRODUCT(--(Table4[Year]=7),Table4[Calculated TP removal (lbs)]))/(SUMPRODUCT(--(Table4[Year]=3),--(Table4[Calculated TP removal (lbs)]<>\"\"))+SUMPRODUCT(--(Table4[Year]=4),--(Table4[Calculated TP removal (lbs)]<>\"\"))+SUMPRODUCT(--(Table4[Year]=5),--(Table4[Calculated TP removal (lbs)]<>\"\"))+SUMPRODUCT(--(Table4[Year]=6),--(Table4[Calculated TP removal (lbs)]<>\"\"))+SUMPRODUCT(--(Table4[Year]=7),--(Table4[Calculated TP removal (lbs)]<>\"\"))))/P197-1","v":{"$error":"#DIV/0!"}},{"$f":"SUM(Q199:Q203)","v":0}]

{"sheet":"Other Charts","index":12,"n_rows":0,"n_cols":0,"rows_kept":0,"cut":false,"hidden":false,"merged":[]}